Workbook

Sheet LDC Info
Z3: 1 | AA3: Algoma Power Inc.
Z4: 2 | AA4: Atikokan Hydro Inc.
Z5: 3 | AA5: Attawapiskat Power Corporation
Z6: 4 | AA6: Bluewater Power Distribution Corporation
Z7: 5 | AA7: Brantford Power Inc.
Z8: 6 | AA8: Burlington Hydro Inc.
Z9: 7 | AA9: Canadian Niagara Power Inc.
Z10: 8 | AA10: Centre Wellington Hydro Ltd.
Z11: 9 | AA11: Chapleau Public Utilities Corporation
Z12: 10 | AA12: COLLUS PowerStream Corp.
Z13: 11 | AA13: Cooperative Hydro Embrun Inc.
D14: Utility Name | E14: Thunder Bay Hydro Electricity Distribution Inc. | Z14: 12 | AA14: E.L.K. Energy Inc.
Z15: 13 | AA15: Energy + Inc.
D16: Assigned EB Number | E16: EB-2016-0105 | Z16: 14 | AA16: Enersource Hydro Mississauga Inc.
Z17: 15 | AA17: Entegrus Powerlines Inc.
D18: Name of Contact and Title | E18: Cindy Speziale, Vice President Finance | Z18: 16 | AA18: ENWIN Utilities Ltd.
Z19: 17 | AA19: Erie Thames Powerlines Corporation
D20: Phone Number | E20: 807-343-1118 | Z20: 18 | AA20: Espanola Regional Hydro Distribution Corporation
Z21: 19 | AA21: Essex Powerlines Corporation
D22: Email Address | E22: cspeziale@tbhydro.on.ca | Z22: 20 | AA22: Festival Hydro Inc.
Z23: 21 | AA23: Fort Albany Power Corporation
D24: Test Year | E24: 2017 | Z24: 22 | AA24: Fort Frances Power Corporation
Z25: 23 | AA25: Greater Sudbury Hydro Inc.
D26: Bridge Year | E26: =IF(ISBLANK(E24), "", E24-1) -> 2016 | Z26: 24 | AA26: Grimsby Power Inc.
Z27: 25 | AA27: Guelph Hydro Electric Systems Inc.
D28: Last Rebasing Year | E28: 2013 | Z28: 26 | AA28: Haldimand County Hydro Inc.
Z29: 27 | AA29: Halton Hills Hydro Inc.
A30: Identify the accounting standard used for the test year | Z30: 28 | AA30: Hearst Power Distribution Company Limited
E31: MIFRS | Z31: 29 | AA31: Horizon Utilities Corporation
Z32: 30 | AA32: Hydro 2000 Inc.
A33: Did you update your depreciation and capitalization policies and reflect the changes in policies in a prior rebasing application? | Z33: 31 | AA33: Hydro Hawkesbury Inc.
E34: No | Z34: 32 | AA34: Hydro One Brampton Networks Inc.
Z35: 33 | AA35: Hydro One Networks Inc.
A36: When did you update your actual depreciation and capitalization policies? | Z36: 34 | AA36: Hydro One Networks Inc. - Norfolk
E37: 2001-01-01 | F37: 2013 | Z37: 35 | AA37: Hydro One Remote Communities Inc.
Z38: 36 | AA38: Hydro Ottawa Limited
A39: Identify the year the applicant adopted IFRS for financial reporting purposes | Z39: 37 | AA39: Innpower Corporation
E40: 2015 | Z40: 38 | AA40: Kashechewan Power Corporation
Z41: 39 | AA41: Kenora Hydro Electric Corporation Ltd.
Z42: 40 | AA42: Kingston Hydro Corporation
A43: Are you applying for cost recovery for the test and/or future year(s) for Green Energy initiatives? | Z43: 41 | AA43: Kitchener-Wilmot Hydro Inc.
E44: No | Z44: 42 | AA44: Lakefront Utilities Inc.
Z45: 43 | AA45: Lakeland Power Distribution Ltd.
A46: ="Is " & E14 & " an embedded distributor?" -> Is Thunder Bay Hydro Electricity Distribution Inc. an embedded distributor? | E46: No | Z46: 44 | AA46: London Hydro Inc.
Z47: 45 | AA47: Midland Power Utility Corporation
Z48: 46 | AA48: Milton Hydro Distribution Inc.
B49: Notes | Z49: 47 | AA49: Newmarket-Tay Power Distribution Ltd.
Z50: 48 | AA50: Niagara Peninsula Energy Inc.
C51: Pale green cells represent input cells. | Z51: 49 | AA51: Niagara-on-the-Lake Hydro Inc.
Z52: 50 | AA52: North Bay Hydro Distribution Limited
C53: Pale blue cells represent drop-down lists. The applicant should select the appropriate item from the drop-down list. | Z53: 51 | AA53: Northern Ontario Wires Inc.
Z54: 52 | AA54: Oakville Hydro Electricity Distribution Inc.
C55: White cells contain fixed values, automatically generated values or formulae. | N55: =IF(LEN($G55)>1, (SUMPRODUCT(--($C$78:$C$1000=$C55),--($A$78:$A$1000=$D55), --($B$78:$B$1000=$B55&"_TOTAL"), $L$78:$L$1000)), "") ->  | O55: =IF(LEN($G55)>1, (SUMPRODUCT(--($C$78:$C$1000=$C55),--($A$78:$A$1000=$D55), --($B$78:$B$1000=$B55&"_TOTAL"), $M$78:$M$1000)), "") ->  | Z55: 53 | AA55: Orangeville Hydro Limited
N56: =IF(LEN($G56)>1, (SUMPRODUCT(--($C$78:$C$1000=$C56),--($A$78:$A$1000=$D56), --($B$78:$B$1000=$B56&"_TOTAL"), $L$78:$L$1000)), "") ->  | O56: =IF(LEN($G56)>1, (SUMPRODUCT(--($C$78:$C$1000=$C56),--($A$78:$A$1000=$D56), --($B$78:$B$1000=$B56&"_TOTAL"), $M$78:$M$1000)), "") ->  | Z56: 54 | AA56: Orillia Power Distribution Corporation
Z57: 55 | AA57: Oshawa PUC Networks Inc.
Z58: 56 | AA58: Ottawa River Power Corporation
Z59: 57 | AA59: Peterborough Distribution Inc.
Z60: 58 | AA60: PowerStream Inc.
Z61: 59 | AA61: PUC Distribution Inc.
Z62: 60 | AA62: Renfrew Hydro Inc.
Z63: 61 | AA63: Rideau St. Lawrence Distribution Inc.
Z64: 62 | AA64: Sioux Lookout Hydro Inc.
Z65: 63 | AA65: St. Thomas Energy Inc.
Z66: 64 | AA66: Thunder Bay Hydro Electricity Distribution Inc.
Z67: 65 | AA67: Tillsonburg Hydro Inc.
Z68: 66 | AA68: Toronto Hydro-Electric System Limited
Z69: 67 | AA69: Veridian Connections Inc.
Z70: 68 | AA70: Wasaga Distribution Inc.
Z71: 69 | AA71: Waterloo North Hydro Inc.
Z72: 70 | AA72: Welland Hydro-Electric System Corp.
Z73: 71 | AA73: Wellington North Power Inc.
Z74: 72 | AA74: West Coast Huron Energy Inc.
Z75: 73 | AA75: Westario Power Inc.
Z76: 74 | AA76: Whitby Hydro Electric Corporation
Z77: 75 | AA77: Woodstock Hydro Services Inc.

Sheet Index
A15: 1 | B15: LDC Information Sheet | E15: 27 | F15: App.2-G: Service Reliability Indicators
A16: 2 | B16: Index | E16: 28 | F16: App.2-H: Other Operating Revenue
A17: 3 | B17: Cost of Service Application Flowchart | E17: 29 | F17: App.2-I: Load Forecast CDM Adjustment Workform
A18: 4 | B18: List of Key References | E18: 30 | F18: App.2-IA: Load Forecast Data Instructions
A19: 5 | B19: App.2-A: List of Requested Approvals | E19: 31 | F19: App.2-IB: Actual and Forecast Load and Customer Data
A20: 6 | B20: App.2-AA: Capital Projects Table | E20: 32 | F20: App.2-JA: OM&A Summary Analysis
A21: 7 | B21: App.2-AB: Capital Expenditures | E21: 33 | F21: App.2-JB: Recoverable OM&A Cost Driver Table
A22: 8 | B22: App. 2-AC: Customer Engagement Worksheet | E22: 34 | F22: App.2-JC: OM&A Programs Table
A23: 9 | B23: App.2-B: General Accounting Instructions | E23: 35 | F23: App.2-K: Employee Costs
A24: 10 | B24: App.2-BA: Fixed Asset Continuity Schedule | E24: 36 | F24: App.2-KA: OPEBs (Other Post-Employment Benefits) Costs
A25: 11 | B25: Appendix 2-BB: Service Life Comparison | E25: 37 | F25: App.2-L: Recoverable OM&A Cost per Customer and per FTE
A26: 12 | B26: App.2-CA: Year 1 Depreciation and Amortization Expense (Old CGAAP) | E26: 38 | F26: App.2-M: Regulatory Costs Schedule
A27: 13 | B27: App.2-CB: Year 1 Depreciation and Amortization Expense (New CGAAP) | E27: 39 | F27: App.2-N: Shared Services and Corporate Cost Allocation
A28: 14 | B28: App.2-CC: Year 2 Depreciation and Amortization Expense (New CGAAP) | E28: 40 | F28: App.2-OA: Capital Structure and Cost of Capital
A29: 15 | B29: App.2-CD: Year 3 Depreciation and Amortization Expense (New CGAAP or MIFRS) | E29: 41 | F29: App.2-OB: Debt Instruments
A30: 16 | B30: App.2-CE: Year 4 Depreciation and Amortization Expense (MIFRS) | E30: 42 | F30: App.2-Q: Cost of Serving Embedded Distributor(s)
A31: 17 | B31: App.2-CF: Year 5 Depreciation and Amortization Expense (MIFRS) | E31: 43 | F31: App.2-R: Loss Factors
A32: 18 | B32: App.2-CG: Year 6 Depreciation and Amortization Expense (Old CGAAP) | E32: 44 | F32: App.2-S: Stranded Meter Treatment
A33: 19 | B33: App.2-CH: Depreciation and Amortization Expense (MIFRS) | E33: 45 | F33: App.2-Y: Transition to MIFRS Summary Impact
A34: 20 | B34: App.2-D: Overhead Expenses | E34: 46 | F34: App.2-YA: One-Time Incremental IFRS Transition Costs
A35: 21 | B35: App.2-EA: Account 1575 PP&E Deferral Account (2015 IFRS Adopters)
A36: 22 | B36: App.2-EB: Account 1576 - Accounting Changes Under CGAAP (2012 Changes)
A37: 23 | B37: App.2-EC: Account 1576 - Accounting Changes Under CGAAP (2013 Changes)
A38: 24 | B38: App.2-FA: Renewable Generation Connection Investment Summary
A39: 25 | B39: App.2-FB: Calculation of Renewable Generation Connection Direct Benefits/Provincial Amount: Renewable Enabling Improvement Investments
A40: 26 | B40: App.2-FC: Calculation of Renewable Generation Connection Direct Benefits/Provincial Amount: Renewable Expansion Investments
A42: Note: | B42: Appendices for the Tariff of Rates and Charges at Current and Proposed Rates, and for the Bill Impacts are now in a separate spreadsheet model. These appendices were formerly 2-Z and 2-W.

Sheet COS Flowchart
B4: Cost of Service Rate Application Schematic
B6: The Cost of Service Rate Application Schematic is a flowchart that is included as a guide for the components of an application. The schematic demonstrates how demand and costs interrelate to derive the revenue requirement and how the revenue requirement is allocated between classes and through fixed/variable splits to derive rates that will be compensatory for the annual revenue requirement, based on the the forecasted demand. There is no form to be filled out; therefore, this Schedule is not required to be filed.

Sheet List of Key References
B3: List of Key References
A5: A list of key references for understanding the Filing Requirements has been embedded in the document below. To access the list of references and associated hyperlinks double-click the icon below.

Sheet App.2-A_Requested_Approvals
G1: File Number: | H1: =EBNUMBER -> EB-2016-0105
G2: Exhibit: | H2: 1
G3: Tab:
G4: Attachment: | H4: 1-P
G5: Page:
G7: Date: | H7: 2016-09-09
B9: Appendix 2-A
B10: List of Requested Approvals
B12: The distributor must fill out the following sheet with the complete list of specific approvals requested and relevant section(s) of the legislation must be provided. All approvals, including accounting orders (deferral and variance accounts) new rate classes, revised specific service charges or retail service charges which the applicant is seeking, must be separately identified, as well being clearly documented in the appropriate sections of the application.
B14: Additional requests may be added by copying and pasting blank input rows, as needed.
B16: If additional requests arise, or requested approvals are removed, during the processing of the application, the distributor should update this list.
B18: =CONCATENATE('LDC Info'!E14," is seeking the following approvals in this application:") -> Thunder Bay Hydro Electricity Distribution Inc. is seeking the following approvals in this application:
B20: 1 | F20: Approval to charge distribution rates effective May 1, 2017 to recover a service revenue requirement of $25,243,526 which includes a Revenue Deficiency of $4,160,021 as detailed in Exhibit 6. The schedule of proposed rates is set out in Exhibit 8
B22: 2 | F22: Approval of the DSP as outlined in Exhibit 2, Attachment 2-B.
B24: 3 | F24: Approval to adjust the Retail Transmission Rates – Network and Connection as detailed in Exhibit 8.
B26: 4 | F26: Approval to continue to charge Wholesale Market, Ontario Electricity Support Program and Rural Rate Protection Charges approved in the Board Decision and Order in the matter of Thunder Bay Hydro’s 2016 Distribution Rates (EB-2015-0103).
B28: 5 | F28: Approval to continue the Specific Service Charges and Transformer Allowance approved in the Board Decision and Order in the matter of Thunder Bay Hydro’s 2016 Distribution Rates (EB-2015-0103).
B30: 6 | F30: Approval of the proposed loss factors as detailed in Exhibit 8.
B32: 7 | F32: Approval of the rate riders for a one year disposition of the Group 1 and Group 2 and Other Deferral and Variance Accounts as detailed in Exhibit 9.
B34: 8 | F34: Approval of the rate riders for a one year period to dispose of Constructive Obligation and Actuarial Valuations due to the adoption of IFRS as detailed in Exhibit 9.
B36: 9 | F36: Approval of the rate riders for a one year disposition of the Lost Revenue Adjustment Mechanism Variance Account ("LRAMVA") and Lost Revenue Adjustment Mechanism (“LRAM”) for lost revenue for the 2011-2014 program years, with persistence from January 1, 2011 to December 31, 2014. For additional information, please refer to Exhibit 4.
B38: 10 | F38: Approval of the rate riders for a one year period to dispose of the remaining difference in incremental ITCs received on distribution revenue requirement items that were previously subject to PST and became subject to HST.
B40: 11 | F40: Approval to return net payments received from the IESO pertaining to the Green Energy Act, plus associated interest.

Sheet App.2-AA_Capital Projects
G1: File Number: | H1: =EBNUMBER -> EB-2016-0105
G2: Exhibit: | H2: 2
G3: Tab:
G4: Attachment: | H4: 2-D
G5: Page:
G7: Date: | H7: 2016-09-09
A9: Appendix 2-AA
A10: Capital Projects Table
A13: Projects | B13: 2012 | C13: 2013 | D13: 2014 | E13: 2015 | F13: 2016 Bridge Year | G13: 2017 Test Year
A14: Reporting Basis
B15: Actuals | C15: Actuals | D15: Actuals | E15: Actuals | F15: Budget | G15: Forecast
A16: SYSTEM ACCESS
A17: PCB Transformer Replacements (A 01) | B17: 143287.42 | C17: 120060.9246 | D17: 217973.7818 | E17: 100942.3744 | F17: 162598 | G17: 118655
A18: Customer Recoverable System Modifications (A 02) | B18: 0 | C18: 221636.4834 | D18: 509841.8342 | E18: 859513.0102 | F18: 235458 | G18: 281092
A19: Customer Driven System Expansions (A 11) | B19: 91317.52 | C19: 197648.842 | D19: 83248.25612 | E19: 181267.4978 | F19: 175506 | G19: 209034
A20: Residential Service Connections (A 12) | B20: 459349.52 | C20: 296841.7554 | D20: 302465.3508 | E20: 282377.8028 | F20: 449520 | G20: 445213
A21: General Service Connections (A 13) | B21: 627181.0657 | C21: 578080.0658 | D21: 580812.665 | E21: 461208.7987 | F21: 907343 | G21: 926898
A22: New courthouse - Miles @ Brodie (WF0376329) | B22: 323741.3943 | C22: 391725.9195 | D22: 0 | E22: 0 | G22: 0
A23: Expansions for Residential Subdivisions (A 14) | B23: 92347.74 | C23: 43936.19104 | D23: 335496.4905 | E23: 118497.6574 | F23: 232955 | G23: 230530
A24: System Relocations (A 15) | B24: 447447.03 | C24: 88702.75605 | D24: 428303.257 | E24: 176094.0032 | F24: 162858 | G24: 164881
A25: Golf Links Road Widening Stage 2 (WF0482298) | B25: 0 | C25: 0 | D25: 285168.9627 | E25: 57844.74794
A26: Balmoral Ave | B26: 0 | C26: 0 | D26: 0 | E26: 0
A27: Sentinel Lights (A 19) | B27: 8923.6 | C27: 3225 | D27: -173 | E27: 382 | F27: -338
A28: Meter Installations (A 21) | B28: 3509.61 | C28: 189543.7567 | D28: 175260.404 | E28: 192853.703 | F28: 396177 | G28: 286129
A29: Generator Driven Expansions (A 32) | B29: 666826.39 | C29: 22252.83452 | F29: 0 | G29: 0
A30: Renewable Enabling Improvements (A 33) | D30: 11946.53983 | E30: -12141.28118 | F30: 0 | G30: 0
A31: Event Center (A 34) | D31: 6536.049074 | E31: -6563.371065 | F31: 0 | G31: 0
A32: Miscellaneous | B32: =B18+B19+B23+B25+B26+B28+B30+B31+B27 -> 196098.47 | C32: =C23+C24+C25+C26+C27+C29+C30+C31 -> 158116.7816 | D32: =D19+D22+D26+D27+D29+D30+D31 -> 101557.845 | E32: =E17+E22+E25+E26+E27+E29+E30+E31 -> 140464.4701 | F32: =+F22+F25+F26+F27+F29+F30+F31 -> -338 | G32: =G22+G25+G26+G27+G29+G30+G31 -> 0
A33: Sub-Total System Access | B33: =SUM(B17:B31) -> 2863931.29 | C33: 2153654.529 | D33: 2936880.591 | E33: 2412276.943 | F33: 2722077 | G33: 2662432
A34: SYSTEM SERVICE
A35: Grid Modernization (A 35) | B35: 0 | C35: 0 | D35: 0 | E35: 0 | F35: 0 | G35: 230375
A36: Miscellaneous | B36: =B35 -> 0 | C36: =C35 -> 0 | D36: 0 | E36: 0 | F36: 0 | G36: 0
A37: Sub-Total System Service | B37: =SUM(B35:B36) -> 0 | C37: 0 | D37: 0 | E37: 0 | F37: 0 | G37: =SUM(G35:G36) -> 230375
A38: SYSTEM RENEWAL
A39: Line Voltage Conversions (B 12)
A40: Centre-Francis | B40: 27403.09 | C40: 0 | D40: 0 | E40: 0 | F40: 0 | G40: 0
A41: Montreal-Mountdale | B41: 91765.96 | C41: 0 | D41: 0 | E41: 0 | F41: 0 | G41: 0
A42: Brock-Ford Rebuild | B42: 1476051.34 | C42: 0 | D42: 0 | E42: 0 | F42: 0 | G42: 0
A43: Georgina-Francis Conversion | B43: 940824.28 | C43: 0 | D43: 0 | E43: 0 | F43: 0 | G43: 0
A44: Brown-Isabella Rebuild | B44: 1637598.76 | C44: 0 | D44: 0 | E44: 0 | F44: 0 | G44: 0
A45: Churchill-Edward 25kV Area Rebuild | B45: 0 | C45: 223673.9627 | D45: 247555.2444 | E45: 0 | F45: 0 | G45: 0
A46: Ogden-McMurray Area Rebuild | B46: 1075187.61 | C46: 1624654.15 | D46: 0 | E46: 0 | F46: 0 | G46: 0
A47: McKenzie-Dease Area Design | B47: 0 | C47: 6612.692235 | D47: 171814.63 | E47: 204138.6199 | F47: 0
A48: Brunswick-Legion Area Design | B48: 20292.18 | C48: 34786.83977 | D48: 19481.09774 | E48: 0 | F48: 0
A49: Clayte-Burriss Design | B49: 69956.39 | C49: 69888.08312 | D49: 1979500.626 | E49: 6727.279367 | F49: 0
A50: Huron-Otto Rebuild | B50: 49139.29 | C50: 196143.2153 | D50: 1327820.227 | E50: 5443.16341 | F50: 0
A51: Dawson-Rockwood Area Rebuild | B51: 2931.84 | C51: 32735.50976 | D51: 0 | E51: 1239671.668 | F51: 0
A52: Redmond-Egan Area Rebuild | B52: 6813.42 | C52: 56452.4581 | D52: 0 | E52: 0 | F52: 0
A53: Balsam-Minot Area Rebuild | B53: 70229.93 | C53: 3465.052138 | D53: 619343.7225 | E53: 1225644.983 | F53: 0
A54: Elm-Campbell Area Rebuild | B54: 4976.1 | C54: 52538.8915 | D54: 0 | E54: 0 | F54: 0
A55: Eliott-Leslie Area Rebuild | B55: 32210.15 | C55: 664836.0358 | D55: 0 | E55: 0 | F55: 0 | G55: 0
A56: Durban-Brodie Area Conversion | B56: 8540.63 | C56: 593882.4989 | D56: -143.2459546 | E56: 0 | F56: 0 | G56: 0
A57: Mary-Heath Area Conversion/Rebuild | B57: 67482.06 | C57: 1032388.053 | D57: 0 | E57: 0 | F57: 0 | G57: 0
A58: Black Bay-Dewe Rebuild | B58: 0 | C58: 0 | D58: 3648.395999 | E58: 12700.37943 | F58: 664656 | G58: 1174110
A59: Dewe-Rita Rebuild | B59: 0 | C59: 2439.274804 | D59: 28025.17572 | E59: 10210.58217 | F59: 700195 | G59: 1489302
A60: Donald-Mountdale | B60: 0 | C60: 0 | D60: 0 | E60: 4882.05401 | F60: 0 | G60: 310256
A61: Dacre-Leslie | B61: 1361.77 | C61: 27151.22238 | D61: 24414.4019 | E61: 586777.9405 | F61: 1439532 | G61: 0
A62: Bruswick-Legion | B62: 0 | C62: 0 | D62: 0 | E62: 411866.3665 | F62: 0
A63: Isabella-James | B63: 0 | C63: 0 | D63: 0 | E63: 362893.0855 | F63: 990067 | G63: 0
A64: Pole Butt and 4kV Removal | B64: 40903.05 | C64: 54345.34461 | D64: 424.4365562 | E64: -449.4908635 | F64: 101765 | G64: 30000
A65: McPherson-Christie | B65: 0 | C65: 0 | D65: 0 | E65: 22509.73821 | F65: 0 | G65: 0
A66: Court-VanHorne | C66: 0 | D66: 0 | E66: 44183.84575 | F66: 0 | G66: 0
A67: MacDougall-Court | B67: 0 | C67: 0 | D67: 0 | E67: 61095.5624 | F67: 0 | G67: 789716
A68: Victoria /James | B68: 0 | C68: 0 | D68: 0 | E68: 17908.2389 | F68: 1196761
A69: FW TS Exit Cable Replacement | B69: 0 | C69: 0 | D69: 0 | E69: 1456.068837 | F69: 0 | G69: 376868
A70: Finlayson - Brodie Conversion | B70: 0 | C70: 0 | D70: 0 | E70: 15495.87071 | F70: 0 | G70: 893725
A71: Cumming - Brodie Street | B71: 0 | C71: 0 | D71: 0 | E71: 32750.48755 | F71: 0 | G71: 580677
A72: 25kV Pole Replacements | B72: 0 | C72: 0 | D72: 0 | E72: 0 | G72: 584384
A73: Engineering Design for Future Projects | B73: 0 | C73: 0 | D73: 0 | F73: 142443 | G73: 189888
A74: Forestry for future Projects | G74: 100000
A75: Stations Improvements | B75: 0 | C75: 0 | D75: 0 | F75: 0 | G75: 0
A76: System Improvements (B 13) | B76: 0
A77: 10M8 Reconfiguration | B77: 0 | C77: 2799.576931 | D77: 57642.70526 | E77: 372317.204 | F77: 0 | G77: 0
A78: U/G Installations/Replacements (B 14) | B78: 213160.16
A79: Industrial Park - U/G Express Reinforcement | B79: 0 | C79: 0 | D79: 7893.666908 | E79: 280312.3571 | F79: 0 | G79: 0
A80: Main St Connection 10M3 to 17M1 | B80: 4823.09 | C80: 1165.12372 | D80: 116411.5511 | E80: 12629.20474 | F80: 0 | G80: 0
A81: Small Pole Replacements (A 16) | B81: 160400.03 | C81: -0.2051222565 | D81: 81.83329712 | E81: 130406.1888 | F81: 379573 | G81: 342512
A82: Northwood - 10M9 Pole Line (WF0469253) | B82: 0 | C82: 236494.2405 | D82: 1730.565946 | E82: 0 | F82: 0 | G82: 0
A83: 2M5 Pole Line Rebuild (WF0484290) | B83: 0 | C83: 0 | D83: 159795.1343 | E83: 126926.2647 | F83: 0 | G83: 0
A84: Main St and Hammond (WF0508762) | B84: 0 | C84: 0 | D84: 116797.9152 | E84: 198919.4767 | F84: 0 | G84: 0
A85: Lane South of Arthur between Edward and Ford Rebuild (WF0517942) | B85: 0 | C85: 0 | D85: 0 | E85: 138764.3658 | F85: 0 | G85: 0
A86: Edward between Aurthur and Mary Rebuild (WF052223) | B86: 0 | C86: 0 | D86: 0 | E86: 171493.3341 | F86: 0 | G86: 0
A87: Edward and Churchill Rebuild (WF0525234) | B87: 0 | C87: 0 | D87: 0 | E87: 261791.7246 | F87: 0 | G87: 0
A88: Lines Safety Reports (A 17) | B88: 468444.73 | C88: 625722.9333 | D88: 567743.0328 | E88: 495878.924 | F88: 732775 | G88: 761834
A89: Transformer/Switch/Switchgear Replacements (A 18) | B89: 123690.53 | C89: 345415.8681 | D89: 215210.1556 | E89: 932263.6511 | F89: 816936 | G89: 756484
A90: Hector Dougall Way (WF 0474031) | B90: 0 | C90: 0 | D90: 119529.0864 | E90: 25859.22949 | F90: 0 | G90: 0
A91: Waverly Park Towers Transformer Replacement (WF0484290) | B91: 0 | C91: 0 | D91: 209731.5706 | E91: 0 | F91: 0 | G91: 0
A92: Operations Safety Reports (A 22) | B92: 70056.82 | C92: 37.10759298 | D92: 0 | E92: 0 | F92: 0 | G92: 0
A93: Miscellaneous | B93: =B39+B40+B41+B45+B47+B48+B49+B50+B51+B52+B53+B54+B55+B56+B57+B58+B59+B60+B61+B62+B63+B64+B65+B66+B67+B68+B69+B70+B71+B72+B73+B74+B75+B76+B77+B79+B80+B82+B83+B84+B85+B86+B87+B90+B91+B92 -> 568885.77 | C93: =C39+C40+C41+C42+C43+C44+C47+C48+C49+C51+C52++C53+C54+C58+C59+C60+C61+C62+C63+C64+C65+C66+C67+C68+C69+C70+C71+C72+C73+C74+C75+C76+C77+C78+C79+C80+C81+C83+C84+C85+C86+C87+C90+C91+C92 -> 344416.9715 | D93: 143199.0334 | E93: 273402.2141 | F93: 101765 | G93: 130000
A94: Sub-Total System Renewal | B94: 6664243.21 | C94: 5887627.929 | D94: 5994451.929 | E94: 7413468.369 | F94: 7164703 | G94: 8379756
A95: GENERAL PLANT
A96: 2012 Terex Digger Derrick | C96: 220340
A97: 2013 Material Handler | C97: 291262
A98: 2014 Freight liner Double Bucket | D98: 364664
A99: 2015 Feight Liner Double Bucket | E99: 282464
A100: 2016 Digger Derrick | F100: 255160
A101: 2016 Double Bucket | F101: 125000
A102: 2016 Single Bucket | F102: 190016
A103: 2017 Mini Bucket | F103: 135522
A104: 2017 Double Bucket | G104: 325000
A105: 2017 Double Bucket (purchase began in 2016) | G105: 125000
A106: Fleet Garage | C106: 3277070 | F106: 0 | G106: 0
A107: Building Improvements | F107: 131000
A108: IT (Software and Hardware) | B108: 231506 | D108: 136189 | E108: 194052 | F108: 183686 | G108: 206500
A109: Power Operated Equipment | E109: 196682
A110: Equipment - Tools, Shop, Testing, Power and Communications | D110: 160587 | E110: 158841 | G110: 101500
A111: Fleet - Rolling Stock | B111: 437900 | C111: 249002 | D111: 257949 | E111: 202974 | F111: 286430 | G111: 160000
A112: SCADA | F112: 416699
A113: Miscellaneous | B113: 207279 | C113: 208204 | D113: 69225 | E113: 309957 | F113: 182292 | G113: 351000
A114: Sub-Total General Plant | B114: 876685 | C114: 4245878 | D114: 988614 | E114: 1344970 | F114: 1905805 | G114: 1167500
A115: Total | B115: 10404859.5 | C115: 12287160.46 | D115: 9919946.52 | E115: 11170715.31 | F115: 11792585 | G115: 12440063
A116: Less Renewable Generation Facility Assets and Other Non-Rate-Regulated Utility Assets (input as negative)
A117: Total | B117: 10404859.5 | C117: 12287160.46 | D117: 9919946.52 | E117: 11170715.31 | F117: 11792585 | G117: 12440063
A119: Notes:
A121: 1 Please provide a breakdown of the major components of each capital project undertaken in each year. Please ensure that all projects below the materiality threshold are included in the miscellaneous line. Add more projects as required.
A122: 2 The applicant should group projects appropriately and avoid presentations that result in classification of significant components of the capital budget in the miscellaneous category.

Sheet App.2-AB_Capital Expenditures
S1: File Number: | U1: =EBNUMBER -> EB-2016-0105
S2: Exhibit: | U2: 2
S3: Tab:
S4: Attachment: | U4: 2-C
S5: Page:
S7: Date: | U7: =+'App.2-AA_Capital Projects'!$H$7 -> 2016-09-09
A9: Appendix 2-AB
A10: Table 2 - Capital Expenditure Summary from Chapter 5 Consolidated Distribution System Plan Filing Requirements
A12: First year of Forecast Period: | B12: =TestYear -> 2017
A13: CATEGORY | B13: Historical Period (previous plan1 & actual) | Q13: Forecast Period (planned)
B14: =E14-1 -> 2012 | E14: =H14-1 -> 2013 | H14: =K14-1 -> 2014 | K14: =N14-1 -> 2015 | N14: =Q14-1 -> 2016 | Q14: =B12 -> 2017 | R14: =Q14+1 -> 2018 | S14: =R14+1 -> 2019 | T14: =S14+1 -> 2020 | U14: =T14+1 -> 2021
B15: Plan | C15: Actual | D15: Var | E15: Plan | F15: Actual | G15: Var | H15: Plan | I15: Actual | J15: Var | K15: Plan | L15: Actual | M15: Var | N15: Plan | O15: Actual2 | P15: Var
B16: $ '000 | D16: % | E16: $ '000 | G16: % | H16: $ '000 | J16: % | K16: $ '000 | M16: % | N16: $ '000 | P16: % | Q16: $ '000
A17: System Access | B17: 2032.252 | C17: =+'App.2-AA_Capital Projects'!B33/1000 -> 2863.93129 | D17: =IF(ISERROR((C17-B17)/B17),"--",(C17-B17)/B17) -> 0.4092402369 | E17: 1963.108 | F17: =+'App.2-AA_Capital Projects'!C33/1000 -> 2153.654529 | G17: =IF(ISERROR((F17-E17)/E17),"--",(F17-E17)/E17) -> 0.09706370151 | H17: 3555.592 | I17: =+'App.2-AA_Capital Projects'!D33/1000 -> 2936.880591 | J17: =IF(ISERROR((I17-H17)/H17),"--",(I17-H17)/H17) -> -0.1740108002 | K17: 3811.785 | L17: =+'App.2-AA_Capital Projects'!E33/1000 -> 2412.276943 | M17: =IF(ISERROR((L17-K17)/K17),"--",(L17-K17)/K17) -> -0.3671529367 | N17: 2795.331471 | O17: =+'App.2-AA_Capital Projects'!F33/1000 -> 2722.077 | P17: =IF(ISERROR((O17-N17)/N17),"--",(O17-N17)/N17) -> -0.02620600508 | Q17: 2662.432 | R17: 2422.273 | S17: 2432.053 | T17: 2444.7654 | U17: 2505.497028
A18: System Renewal | B18: 7117.835 | C18: =+'App.2-AA_Capital Projects'!B94/1000 -> 6664.24321 | D18: -0.06372608946 | E18: 6595.987 | F18: =+'App.2-AA_Capital Projects'!C94/1000 -> 5887.627929 | G18: -0.1073924298 | H18: 6402.476 | I18: =+'App.2-AA_Capital Projects'!D94/1000 -> 5994.451929 | J18: -0.06372910589 | K18: 6769.872 | L18: =+'App.2-AA_Capital Projects'!E94/1000 -> 7413.468369 | M18: 0.09506773075 | N18: 7089.521123 | O18: =+'App.2-AA_Capital Projects'!F94/1000 -> 7164.703 | P18: 0.0106046481 | Q18: 8379.756 | R18: 8818.369 | S18: 8975.72096 | T18: 9216.827859 | U18: 9261.478436
A19: System Service | B19: 0 | C19: ='App.2-AA_Capital Projects'!B34/1000 -> 0 | D19: -- | E19: 0 | F19: ='App.2-AA_Capital Projects'!C34/1000 -> 0 | G19: -- | H19: 0 | I19: ='App.2-AA_Capital Projects'!D34/1000 -> 0 | J19: -- | K19: 0 | L19: ='App.2-AA_Capital Projects'!E34/1000 -> 0 | M19: -- | N19: 0 | O19: ='App.2-AA_Capital Projects'!F34/1000 -> 0 | P19: -- | Q19: 230.375 | R19: 300 | S19: 280 | T19: 280 | U19: 300
A20: General Plant | B20: 1096.52 | C20: ='App.2-AA_Capital Projects'!B114/1000 -> 876.685 | D20: -0.2004842593 | E20: 4443.491 | F20: ='App.2-AA_Capital Projects'!C114/1000 -> 4245.878 | G20: -0.04447246546 | H20: 1198.79 | I20: ='App.2-AA_Capital Projects'!D114/1000 -> 988.614 | J20: -0.1753234511 | K20: 1356.687 | L20: ='App.2-AA_Capital Projects'!E114/1000 -> 1344.97 | M20: -0.008636479896 | N20: 2058.887 | O20: ='App.2-AA_Capital Projects'!F114/1000 -> 1905.805 | P20: -0.07435182213 | Q20: 1167.5 | R20: 1359.76 | S20: 946.1312 | T20: 900.51362 | U20: 969.30828
A21: TOTAL EXPENDITURE | B21: =SUM(B17:B20) -> 10246.607 | C21: =SUM(C17:C20) -> 10404.8595 | D21: 0.01544438076 | E21: =SUM(E17:E20) -> 13002.586 | F21: =SUM(F17:F20) -> 12287.16046 | G21: -0.05502178891 | H21: 11156.858 | I21: =SUM(I17:I20) -> 9919.94652 | J21: -0.1108655752 | K21: 11938.344 | L21: =SUM(L17:L20) -> 11170.71531 | M21: -0.06429942781 | N21: =SUM(N17:N20) -> 11943.73959 | O21: =SUM(O17:O20) -> 11792.585 | P21: -0.01265555003 | Q21: =SUM(Q17:Q20) -> 12440.063 | R21: =SUM(R17:R20) -> 12900.402 | S21: =SUM(S17:S20) -> 12633.90516 | T21: 12842 | U21: =SUM(U17:U20) -> 13036.28374
A22: System O&M | B22: 6594 | C22: 6998 | D22: 0.06126781923 | E22: 7064 | F22: =('App.2-JA_OM&A_Summary_Analys'!C15+'App.2-JA_OM&A_Summary_Analys'!C16)/1000 -> 6803.20604 | G22: -0.03691873726 | H22: 6959 | I22: =('App.2-JA_OM&A_Summary_Analys'!D15+'App.2-JA_OM&A_Summary_Analys'!D16)/1000 -> 7315.90641 | J22: 0.05128702543 | K22: 7229 | L22: =('App.2-JA_OM&A_Summary_Analys'!E15+'App.2-JA_OM&A_Summary_Analys'!E16)/1000 -> 7441.23208 | M22: 0.02935842855 | N22: 7675 | O22: =('App.2-JA_OM&A_Summary_Analys'!F15+'App.2-JA_OM&A_Summary_Analys'!F16)/1000 -> 8033.64873 | P22: 0.04672947622 | Q22: =('App.2-JA_OM&A_Summary_Analys'!G15+'App.2-JA_OM&A_Summary_Analys'!G16)/1000 -> 8026.17736 | R22: 8187 | S22: 8350 | T22: 8592 | U22: 8842
A24: Notes to the Table:
A25: 1. Historical “previous plan” data is not required unless a plan has previously been filed. However, use the last Board-approved, at least on a Total (Capital) Expenditure basis for the last cost of service rebasing year, and the applicant should include their planned budget in each subsequent historical year up to and including the Bridge Year.
A26: 2. Indicate the number of months of 'actual' data included in the last year of the Historical Period (normally a 'bridge' year): | J26: 3
A28: Explanatory Notes on Variances (complete only if applicable)
A29: Notes on shifts in forecast vs. historical budgets by category
A30: "• In 2013 Thunder Bay Hydro adopted IFRS accounting standards which led to a decrease in the extent of overheads allocated to Capital work • An increase in General Plant expenditures in 2013 due to the construction of a new Fleet Garage • An increase in General Plant expenditures in 2016 due to the replacement of the vintage SCADA system • An increase in System Renewal in 2015 due to defective assets being reported in the Lines Safety Reports and Transformer and Switch replacements. • An overall increase in System Renewal in 2017 in order to more effectively manage and proactively address sustainment levels of assets as a result of the ACA provided by Kinetrics in 2016. This levelized approach to the replacement of assets is being implemented through an increase in 2017 and subsequent gradual increases over the study period (2018-2021). • An increase in 2017 due to spending within the System Service categories to implement the ‘Grid Modernization Plan. • A decline in System Access expenditures from 2012 due in part to slowed economic growth in the region"
A32: Notes on year over year Plan vs. Actual variances for Total Expenditures
A33: "• An increase in 2012 Total Expenditures was primarily due to the unexpected level of customer service requests received by Thunder Bay Hydro • 2013 variances for the Total Expenditures are considered immaterial based on the materiality threshold • A decrease in Total Expenditures in 2014 was due to the cancellation of an approved Renewable Generation project • A decrease in 2015 Total Expenditures is due to the cancellation of the proposed Event Centre • A decrease in the 2016 projected Total Expenditures is due to the removal of a New Technology Pilot from the expenditures"
A35: Notes on Plan vs. Actual variance trends for individual expenditure categories
A36: "• An increase in 2012 System Access due to an unexpected amount of General Service requests, a decrease in 2012 System Renewal due to a reduction in Lines Safety Reports recieved • A increase in 2013 System Access due to a continued demand of General Service requests and a decrease in 2013 General Plant due to decrease in expected costs from the Fleet Garage and Equipment for Lines • An decrease in 2014 System Access due to the cancellation of Horizon Wind Project, and a decrease in 2014 System Renewal due to the cancellation of 10M8 Overhead project due to public pressure, a decrease in 2014 General Plant due to long lead times in the purchase of large vehciles that could only be partially recieved. • A decrease in 2015 System Access due to the cancellation of the proposed Event Centre which required the movement of a substation, an increase in the System Renewal due to an unexpected number of defective and failed transformers and defective poles as identified through the inspection and risk assessment process, a decrease in General Plant due to a reduction in costs in IT hardware purchases and the cancellation of a new vehicle due to the deferral of a new position • A decrease in General Plant in 2016 due to the removal of a New Technology Pilot from the planned expenditures"

Sheet App.2-AC_Customer Engagement
B1: File Number: | C1: =EBNUMBER -> EB-2016-0105
B2: Exhibit: | C2: 1
B3: Tab:
B4: Attachment: | C4: 1-J
B5: Page:
B7: Date: | C7: =+'App.2-AA_Capital Projects'!$H$7 -> 2016-09-09
A9: Appendix 2-AC
A10: Customer Engagement Activities Summary
A12: Provide a list of customer engagement activities | B12: Provide a list of customer needs and preferences identified through each engagement activity | C12: Actions taken to respond to identified needs and preferences. If no action was taken, explain why.
A13: Child safety and awareness regarding electricity. | B13: Public Safety Initiative as per OEB Mandated Scorecard Metrics | C13: Thunder Bay Hydro is a silver sponsor for St. John Ambulance’s educational programs for Grades 3 and 6 students and has provided take home material for 7500 students over the last three years. The Hi-Line Hazard Electrical Safety & Energy Conservation Awareness Program was delivered to roughly 3110 elementary students in the last three years. The presentation focused on electrical safety. Electrical Safety information shared with children and parents at local Teddy Bear's Picnic.
A14: Dig up prevention campaigns (public and contractors) | B14: Public Safety Initiative as per OEB Mandated Scorecard Metrics | C14: Annual Damage Prevention Presentation and Breakfast: Staff from the Asset Management and Engineering Department has participated in an event with other local utilities over the last few years. The event focuses on contractor safety and excavation procedures when working in the vicinity of construction sites. Call Before You Dig promotion. Information distributed to customers and contractors through media, social media, at area hardware suppliers and through presence at local trade shows. Web page promotion with links to further related information. Annual messages on bills or bill inserts \include information and a reminder for customers to call for locates prior to digging in the ground.
A15: Participation in Powerline Safety Campaign | B15: Identified by the ESA for workers and homeowners to promote safe work practices around powerlines. | C15: Powerline Safety Week promotion. Television, radio and newspaper ads with direct messages regarding powerline safety. Links to the ESA website for more information.
A16: Enhanced Contractor Safety Management at Thunder Bay Hydro and have shared resources with other organizations in the City with significant buying power. | B16: Need to assist companies hiring contractors on best practices from a H&S perspective. | C16: Contractor Compliance Website was adopted as our method of prequalifying contractors and we lead a community initiative to educate other organizations with significant purchasing power to do the same. With consistent standards and a simplified method for potential contractors to prequalify for work, work is done safer and over time, more contractors are eligible to bid on work, thus reducing prices. Thunder Bay Hydro has also had representatives speak at the local Partners In Prevention conference on the topic of Contractor Safety Management.
A17: Enhanced & consistent campaign province wide for safer drivers. | B17: Public Safety Initiative as per OEB Mandated Scorecard Metrics | C17: Assisted in the facilitation of a provincial Stay Focused Drive Safe Campaign which was an off shoot of our Hit the Breaks Campaign
A18: Partnerships with external agencies to promote health and safety in the community | B18: Public Safety Initiative as per OEB Mandated Scorecard Metrics | C18: Partnership with Active Transportation Thunder Bay in their Be Safe Be Seen Campaign to raise awareness about the dangers of walking and biking at night. Partnership with Northern Ontario Medical School to host a group of first year medical students to learn about the various types of workplace hazards and potential severity and types of injuries that could occur at an electrical utility. Partnership with the Canadian Red Cross, St John's Ambulance, Lakehead Social Planning Council/211, Thunder Bay Fire and Rescue, EMS and the City of Thunder Bay in the STORM Ready campaign. The campaign was designed to remind residents that they need to be prepared to take care of themselves and their family for 72 hours in the event of an emergency. Annual sponsor at the Health & Safety Ontario Health and Safety Conference (Forum North). Thunder Bay Hydro regularly provides speakers for this conference on topics such as contractor safety, ergonomics and best practices in safety management systems.
A19: Presentations & Radio Messaging Campaigns | B19: Public Safety Initiative as per OEB Mandated Scorecard Metrics | C19: Regular campaigns take place on local radio promoting safety messaging such as extension cord safety, indoor and outdoor lighting at Christmas time. Presentations to community groups and local employers. A recent example includes a presentation to 60 local school bus drivers regarding safety and what to do if they encounter downed power lines.
A20: Take Your Kids to Work Day | B20: Public Safety Initiative as per OEB Mandated Scorecard Metrics | C20: Annually the utility hosts the Take Your Kids to Work Day. While this was designed to educate grade nine students about possible jobs at Thunder Bay Hydro, the program has evolved to include several topics including safety, health and wellness.
A23: Note: Use "ALT-ENTER" to go to the next line within a cell

Sheet App.2-B_Acctg Instructions
A1: General Instructions to MIFRS Appendices
A2: Types of Schedules to File
A4: The purpose of this tab is to provide general instructions. The specific instructions to each appendix are listed in footnotes of each appendix.
A6: The typical applicant is expected to have made capitalization and depreciation policy changes under CGAAP as permitted by the Board on January 1, 2012 or mandated by the Board by January 1, 2013, and adopted IFRS for reporting purposes on January 1, 2015 (transition date January 1, 2014). Some distributors filing for 2017 rates have rebased with these accounting changes reflected in a prior rebasing application. If that is the case, information relating to pre-accounting policy changes is not generally required. The information to be provided by applicants will depend on when the accounting policy changes were made and when they last rebased. In general, applicants should provide the following information in the appendices:
E9: Reflecting Accounting Policy Changes in Current Application | G9: Reflected Accounting Policy Changes in Prior Application3
E10: Accounting Policy Changes in 2012 and Adopted IFRS in 2015 | F10: Accounting Policy Changes in 2013 and Adopted IFRS in 2015 | G10: Adopted IFRS in 2015
A11: Information to be filed in 2017 CoS Application | B11: 2017 | C11: Test | E11: MIFRS | F11: MIFRS | G11: MIFRS
B12: 2016 | C12: Bridge | E12: MIFRS | F12: MIFRS | G12: MIFRS
B13: 2015 | C13: Historical | E13: MIFRS | F13: MIFRS | G13: MIFRS
B14: 2014 | C14: Historical | E14: MIFRS and Revised CGAAP1 | F14: MIFRS and Revised CGAAP1 | G14: MIFRS and Revised CGAAP1
B15: 2013 | C15: Historical | E15: Revised CGAAP | F15: CGAAP and Revised CGAAP2 | G15: Rebased under Revised CGAAP
B16: 2012 | C16: Historical | E16: CGAAP and Revised CGAAP2 | F16: CGAAP | G16: Rebased under Revised CGAAP
B17: Prior | C17: Historicals | E17: Rebased under CGAAP | F17: Rebased under CGAAP | G17: N/A
A19: 1) For the transition year (2014), the applicant may file two appendices, one under Revised CGAAP and one under MIFRS, depending on the materiality of impacts. See the specific instructions under each appendix below for further details.
A20: 2) For applicants that are reflecting accounting policy changes for the first time in a rebasing application, the applicant must file two appendices in the year that the applicant implemented changes to its capitalization and depreciation policies (2012 or 2013), one before and one after the policy changes.
A21: 3) Applicants should provide CGGAP and Revised CGAAP schedules (i.e. as indicated in the first two columns of the above table) to support balances in Account 1576 if the account has yet to be disposed of.
A23: Appendix 2-BA - Fixed Asset Schedule
A25: Applicants are to provide Appendix 2-BA in accordance with the years and corresponding accounting standards noted in the above table to provide a year over year continuity in fixed assets.
A26: For the transition year (2014), the applicant should file two appendices, one under Revised CGAAP and one under MIFRS if the change between Revised CGAAP and MIFRS is material. If the change from the accounting standards is not material, the applicant may choose to only provide one appendix under MIFRS. However, the applicant must also indicate the fixed asset net book value balance under Revised CGAAP, the total dollar value of the change and explain why it is not material.
A30: Regulatory Gross Assets of Property, Plant and Equipment
A32: For an applicant that adopted IFRS on January 1, 2015 for financial reporting purposes, the applicant must establish the continuity of historic cost by using the December 31, 2013 regulatory gross assets of property, plant and equipment as the opening January 1, 2014 regulatory gross assets. The applicant must provide schedules (including Appendix 2-BA, Fixed Asset Continuity Schedule) which must identify the following details to substantiate the continuity of historic cost for regulatory purposes:
A35: · December 31, 2013 regulatory gross assets of property, plant and equipment, by asset class; and
A36: · January 1, 2014 regulatory gross assets of property, plant and equipment, by asset class.
A38: Accumulated Depreciation
A40: For an applicant that adopted IFRS on January 1, 2015 for financial reporting purposes, the applicant must establish the continuity of historic cost by using the December 31, 2013 regulatory accumulated depreciation as the opening January 1, 2014 regulatory accumulated depreciation. The applicant must provide schedules (including Appendix 2-BA, Fixed Asset Continuity Schedule) which must identify the following details to substantiate the continuity of historic cost for regulatory purposes:
A43: · December 31, 2013 regulatory accumulated depreciation, by asset class; and
A44: · January 1, 2014 regulatory accumulated depreciation, by asset class.
A46: Appendix 2-Cx - Depreciation and Amortization
A48: Applicants are to provide Appendix 2-Cx in accordance with the years and corresponding accounting standards listed in the above table.
A49: · | B49: If an applicant is reflecting changes to its depreciation policies for the first time in a rebasing application, the applicant should complete Appendix 2-CA to 2-CG (changes made in 2012) or Appendix 2-CA to 2-CF (changes made in 2013). In this set of appendices, the applicant will need to indicate the year it made the accounting policy changes. The applicant must provide data starting from the year it made changes to its capitalization and depreciation policies.
B52: *Depreciation accounting policy changes were mandated by the Board by January 1, 2013. In general, no further changes to an applicant's depreciation policy (i.e. assets' service lives) are expected after the Board mandated changes by January 1, 2013. The set of Appendix 2-CA to 2-CG assumes this to be the case. If the applicant has made any changes to its depreciation policy subsequent to the Board mandated changes, applicants must identify the change, explain the nature of the change, the reason for the change, quantify the impact of the change, and quantify the depreciation expense before and after the change.
A53: · | B53: If an applicant changed depreciation policies and reflected these changes in a prior rebasing application, the applicant should complete Appendix 2-CH. The applicant must provide data starting from the earlier of 1) all historical years back to its last rebasing; or 2) at least three years of historical actuals, in addition to Bridge Year and Test Year forecasts.
A56: Appendix 2-E - Account 1575, IFRS-CGAAP Transitional PP&E Amounts (2-EA), Account 1576, Accounting Changes Under CGAAP (2-EB, 2-EC)
A58: 1) For an applicant that has a balance in Account 1576 to dispose:
A59: · | B59: If an applicant changed capitalization and depreciation policies effective January 1, 2012, the applicant must complete Appendix 2-EB
A60: · | B60: If an applicant changed capitalization and depreciation policies effective January 1, 2013, the applicant must complete Appendix 2-EC
A62: 2) For an applicant that has a balance in Account 1575 to dispose:
A63: · | B63: The applicant must complete 2-EA
A64: If the applicant did not make any further PP&E accounting policy changes beyond the capitalization and depreciation policy changes as mandated by the Board by January 1, 2013 (i.e. no further changes made on transition to IFRS), the applicant must indicate this and does not need to complete Appendix 2-EA.
A69: Please refer to section 2.12.4 and 2.12.5 of the Filing Requirements for further details.
A71: Appendix 2-Y - Summary of Impacts to Revenue Requirement from Transition to MIFRS
A73: An applicant must provide a summary of the dollar impacts of MIFRS to each component of the revenue requirement (e.g. rate base, operating costs, etc.), including the overall impact on the proposed revenue requirement. Accordingly, the applicant must identify financial differences and resulting revenue requirement impacts arising from the adoption of MIFRS as compared to CGAAP. If the applicant is reflecting the changes in capitalization and depreciation policies for the first time in a rebasing application, then a comparison between MIFRS and CGAAP before the change in accounting policies should be completed. If the applicant changed capitalization and depreciation policies and reflected these changes in a prior rebasing application, then a comparison between MIFRS and CGAAP after the change in accounting policies should be completed.

Sheet App.2-BA_Fixed Asset Cont
L1: File Number: | M1: =EBNUMBER -> EB-2016-0105
L2: Exhibit: | M2: 2
L3: Tab:
L4: Attachment: | M4: 2-A
L5: Page:
L7: Date: | M7: =+'App.2-AA_Capital Projects'!$H$7 -> 2016-09-09
A9: Appendix 2-BA
A10: Fixed Asset Continuity Schedule 1
E12: Accounting Standard | F12: CGAAP
E13: Year | F13: 2013
D15: Cost | J15: Accumulated Depreciation
A16: CCA Class 2 | B16: OEB Account 3 | C16: Description 3 | D16: Opening Balance | E16: Additions 4 | F16: Disposals 6 | G16: Closing Balance | I16: Opening Balance | J16: Additions | K16: Disposals 6 | L16: Closing Balance | M16: Net Book Value
B17: 1609 | C17: Hydro One Gate Station | D17: 1272321.04 | E17: 0 | F17: 0 | G17: =D17+E17+F17 -> 1272321.04 | I17: -137025.81 | J17: -50892.72 | K17: 0 | L17: =I17+J17+K17 -> -187918.53 | M17: =G17+L17 -> 1084402.51
A18: 12 | B18: 1611 | C18: Computer Software (Formally known as Account 1925) | D18: 1175257 | E18: 2442 | F18: 0 | G18: =D18+E18+F18 -> 1177699 | I18: -986708 | J18: -85451 | K18: 0 | L18: =I18+J18+K18 -> -1072159 | M18: =G18+L18 -> 105540
A19: CEC | B19: 1612 | C19: Land Rights (Formally known as Account 1906) | G19: =D19+E19+F19 -> 0 | L19: =I19+J19+K19 -> 0 | M19: =G19+L19 -> 0
A20: N/A | B20: 1805 | C20: Land | D20: 133037.5 | E20: 0 | F20: 0 | G20: =D20+E20+F20 -> 133037.5 | I20: 0 | J20: 0 | K20: 0 | L20: =I20+J20+K20 -> 0 | M20: =G20+L20 -> 133037.5
A21: 47 | B21: 1808 | C21: Buildings | D21: 3932847.5 | E21: 3277071.4 | F21: 0 | G21: =D21+E21+F21 -> 7209918.9 | I21: -1862466.3 | J21: -72044.19 | K21: 0 | L21: =I21+J21+K21 -> -1934510.49 | M21: =G21+L21 -> 5275408.41
A22: 13 | B22: 1810 | C22: Leasehold Improvements | D22: 63262.07 | E22: 0 | F22: 0 | G22: 63262.07 | I22: -5218.48 | J22: -31202.02 | K22: 0 | L22: -36420.5 | M22: 26841.57
A23: 47 | B23: 1815 | C23: Transformer Station Equipment >50 kV | D23: 0 | E23: 0 | F23: 0 | G23: 0 | I23: 0 | J23: 0 | K23: 0 | L23: 0 | M23: 0
A24: 47 | B24: 1820 | C24: Distribution Station Equipment <50 kV | D24: 8315332.61 | E24: 0 | F24: 0 | G24: 8315332.61 | I24: -6155163.45 | J24: -381948.17 | K24: 0 | L24: -6537111.62 | M24: 1778220.99
A25: 47 | B25: 1825 | C25: Storage Battery Equipment | D25: 0 | E25: 0 | F25: 0 | G25: 0 | I25: 0 | J25: 0 | K25: 0 | L25: 0 | M25: 0
A26: 47 | B26: 1830 | C26: Poles, Towers & Fixtures | D26: 31903597.02 | E26: 3330044.68 | F26: -334965.26 | G26: 34898676.44 | I26: -10540766.62 | J26: -680779.56 | K26: 275072.97 | L26: =I26+J26+K26 -> -10946473.21 | M26: =G26+L26 -> 23952203.23
A27: 47 | B27: 1835 | C27: Overhead Conductors & Devices | D27: 33136376.97 | E27: 2336485.84 | F27: -447870.91 | G27: 35024991.9 | I27: -16817215.89 | J27: -410913.57 | K27: 414009.79 | L27: -16814119.67 | M27: 18210872.23
A28: 47 | B28: 1840 | C28: Underground Conduit | D28: 13776181.19 | E28: 794646.66 | F28: -4263.22 | G28: 14566564.63 | I28: -7631381.5 | J28: -108897.16 | K28: 4056.72 | L28: -7736221.94 | M28: 6830342.69
A29: 47 | B29: 1845 | C29: Underground Conductors & Devices | D29: 18998031.81 | E29: 161567.3 | F29: -49902.38 | G29: 19109696.73 | I29: -9512097.09 | J29: -340474.98 | K29: 45579.62 | L29: -9806992.45 | M29: 9302704.28
A30: 47 | B30: 1850 | C30: Line Transformers | D30: 27514624.68 | E30: 1470235.79 | F30: -518381.5 | G30: 28466478.97 | I30: -15496746.53 | J30: -461892.35 | K30: 801923.73 | L30: -15156715.15 | M30: 13309763.82
A31: 47 | B31: 1850 | C31: ARO | D31: 299629 | E31: -14255.4 | F31: 0 | G31: 285373.6 | I31: -79665 | J31: -27666 | K31: 0 | L31: =I31+J31+K31 -> -107331 | M31: 178042.6
A32: 47 | B32: 1855 | C32: Services (Overhead & Underground) | D32: 20981631.28 | E32: 293576.75 | F32: 0 | G32: 21275208.03 | I32: -14647010.01 | J32: -197687.95 | K32: 0 | L32: -14844697.96 | M32: 6430510.07
A33: 47 | B33: 1860 | C33: Meters | D33: 9039599.94 | E33: 162538.67 | F33: -79125.95 | G33: 9123012.66 | I33: -2589340.92 | J33: -539424.67 | K33: 64780.6 | L33: -3063984.99 | M33: 6059027.67
A34: 47 | B34: 1860 | C34: Meters (Smart Meters) | G34: 0 | L34: 0 | M34: 0
A35: N/A | B35: 1905 | C35: Land | D35: 0 | E35: 0 | F35: 0 | G35: 0 | I35: 0 | J35: 0 | K35: 0 | L35: 0 | M35: 0
A36: 47 | B36: 1908 | C36: Buildings & Fixtures | D36: 0 | E36: 0 | F36: 0 | G36: 0 | I36: 0 | J36: 0 | K36: 0 | L36: 0 | M36: 0
A37: 13 | B37: 1910 | C37: Leasehold Improvements | D37: 0 | E37: 0 | F37: 0 | G37: 0 | I37: 0 | J37: 0 | K37: 0 | L37: 0 | M37: 0
A38: 8 | B38: 1915 | C38: Office Furniture & Equipment (10 years) | D38: 1418600.66 | E38: 44016.45 | F38: 0 | G38: 1462617.11 | I38: -1168334.85 | J38: -38653.32 | K38: 0 | L38: -1206988.17 | M38: 255628.94
A39: 8 | B39: 1915 | C39: Office Furniture & Equipment (5 years) | G39: 0 | L39: 0 | M39: 0
A40: 10 | B40: 1920 | C40: Computer Equipment - Hardware | D40: 3007548.05 | E40: 53319.44 | F40: -3606.57 | G40: 3057260.92 | I40: -2723216.75 | J40: -99442.32 | K40: 3606.57 | L40: -2819052.5 | M40: 238208.42
A41: 45 | B41: 1920 | C41: Computer Equip.-Hardware(Post Mar. 22/04) | G41: 0 | L41: 0 | M41: 0
A42: 45.1 | B42: 1920 | C42: Computer Equip.-Hardware(Post Mar. 19/07) | G42: 0 | L42: 0 | M42: 0
A43: 10 | B43: 1930 | C43: Transportation Equipment | D43: 6540013.92 | E43: 760603.61 | F43: -46046.18 | G43: 7254571.35 | I43: -4554807.68 | J43: -181393.6 | K43: 46046.18 | L43: -4690155.1 | M43: 2564416.25
A44: 8 | B44: 1935 | C44: Stores Equipment | D44: 63417.16 | E44: 0 | F44: 0 | G44: 63417.16 | I44: -62835.45 | J44: -582.01 | K44: 0 | L44: -63417.46 | M44: -0.3
A45: 8 | B45: 1940 | C45: Tools, Shop & Garage Equipment | D45: 2490344.87 | E45: 50258.12 | F45: 0 | G45: 2540602.99 | I45: -2263684.8 | J45: -49469.44 | K45: 0 | L45: -2313154.24 | M45: 227448.75
A46: 8 | B46: 1945 | C46: Measurement & Testing Equipment | D46: 291549.9 | E46: 7633.75 | F46: 0 | G46: 299183.65 | I46: -159853.37 | J46: -24343.49 | K46: 0 | L46: -184196.86 | M46: 114986.79
A47: 8 | B47: 1950 | C47: Power Operated Equipment | D47: 204486.96 | E47: 11395 | F47: 0 | G47: 215881.96 | I47: -59789.72 | J47: -21361.8 | K47: 0 | L47: -81151.52 | M47: 134730.44
A48: 8 | B48: 1955 | C48: Communications Equipment | D48: 237542.56 | E48: 39139.98 | F48: 0 | G48: 276682.54 | I48: -164718.1 | J48: -20551.2 | K48: 0 | L48: -185269.3 | M48: 91413.24
A49: 8 | B49: 1955 | C49: Communication Equipment (Smart Meters) | G49: 0 | L49: 0 | M49: 0
A50: 8 | B50: 1960 | C50: Miscellaneous Equipment | D50: 0 | E50: 0 | F50: 0 | G50: 0 | I50: 0 | J50: 0 | K50: 0 | L50: 0 | M50: 0
A51: 47 | B51: 1970 | C51: Load Management Controls Customer Premises | D51: 0 | E51: 0 | F51: 0 | G51: 0 | I51: 0 | J51: 0 | K51: 0 | L51: 0 | M51: 0
A52: 47 | B52: 1975 | C52: Load Management Controls Utility Premises | D52: 0 | E52: 0 | F52: 0 | G52: 0 | I52: 0 | J52: 0 | K52: 0 | L52: =I52+J52+K52 -> 0 | M52: 0
A53: 47 | B53: 1980 | C53: System Supervisor Equipment | D53: 323860.64 | E53: 0 | F53: 0 | G53: 323860.64 | I53: -97221.2 | J53: -32357.04 | K53: 0 | L53: -129578.24 | M53: 194282.4
A54: 47 | B54: 1985 | C54: Miscellaneous Fixed Assets | G54: 0 | L54: 0 | M54: 0
A55: 47 | B55: 1990 | C55: Other Tangible Property | G55: 0 | L55: 0 | M55: 0
A56: 47 | B56: 1995 | C56: Contributions & Grants | D56: -16749780.48 | E56: -1792508.76 | F56: 0 | G56: -18542289.24 | I56: 3684311.33 | J56: 422209.81 | K56: 0 | L56: 4106521.14 | M56: -14435768.1
A57: 47 | B57: 2440 | C57: Deferred Revenue5
A58: WIP | C58: Work in Process | D58: 2906520.1 | E58: -759326.04 | F58: 0 | G58: =D58+E58+F58 -> 2147194.06 | I58: 0 | J58: 0 | K58: 0 | L58: =I58+J58+K58 -> 0 | M58: =G58-L58 -> 2147194.06
G59: 0 | L59: 0 | M59: 0
C60: Sub-Total | D60: =SUM(D17:D59) -> 171275834 | E60: =SUM(E17:E59) -> 10228885.24 | F60: =SUM(F17:F59) -> -1484161.97 | G60: =SUM(G17:G59) -> 180020557.2 | I60: =SUM(I17:I59) -> -94030956.19 | J60: =SUM(J17:J59) -> -3435218.75 | K60: =SUM(K17:K59) -> 1655076.18 | L60: =SUM(L17:L59) -> -95811098.76 | M60: =SUM(M17:M59) -> 84209458.46
C61: Less Socialized Renewable Energy Generation Investments (input as negative) | G61: =D61+E61+F61 -> 0 | L61: =I61+J61+K61 -> 0 | M61: =G61+L61 -> 0
C62: Less Other Non Rate-Regulated Utility Assets (input as negative) | G62: 0 | L62: =I62+J62+K62 -> 0 | M62: 0
C63: Total PP&E | D63: =SUM(D60:D62) -> 171275834 | E63: =SUM(E60:E62) -> 10228885.24 | F63: =SUM(F60:F62) -> -1484161.97 | G63: =SUM(G60:G62) -> 180020557.2 | I63: =SUM(I60:I62) -> -94030956.19 | J63: =SUM(J60:J62) -> -3435218.75 | K63: =SUM(K60:K62) -> 1655076.18 | L63: =SUM(L60:L62) -> -95811098.76 | M63: =SUM(M60:M62) -> 84209458.46
C64: Depreciation Expense adj. from gain or loss on the retirement of assets (pool of like assets), if applicable6 | J64: 0
C65: Total | J65: =J63+J64 -> -3435218.75
I67: Less: Fully Allocated Depreciation
A68: 10 | C68: Transportation | I68: Overhead Depts &
A69: 8 | C69: Stores Equipment | I69: Information Systems | K69: -341262.38
I70: Net Depreciation | K70: =J65-K68-K69 -> -3093956.37
A72: Notes:
A74: 1 | B74: Tables in the format outlined above covering all fixed asset accounts should be submitted for the Test Year, Bridge Year and all relevant historical years. At a minimum , the applicant must provide data for the earlier of: 1) all historical years back to its last rebasing; or 2) at least three years of historical actuals, in addition to Bridge Year and Test Year forecasts.
A77: 2 | B77: The "CCA Class" for fixed assets should agree with the CCA Class used for tax purposes in Tax Returns. Fixed Assets sub-components may be used where the underlying asset components are classified under multiple CCA Classes for tax purposes. If an applicant uses any different classes from those shown in the table, an explanation should be provided. (also see note 3).
A80: 3 | B80: The table may need to be customized for a utility's asset categories or for any new asset accounts announced or authorized by the Board.
A82: 4 | B82: The additions in column (E) must not include construction work in progress (CWIP).
A84: 5 | B84: Effective on the date of IFRS adoption, customer contributions will no longer be recorded in Account 1995 Contributions & Grants, but will be recorded in Account 2440, Deferred Revenues.
A86: 6 | B86: The applicant must ensure that all asset disposals have been clearly identified in the Chapter 2 Appendices for all historic, bridge and test years. Where a distributor for general financial reporting purposes under IFRS has accounted for the amount of gain or loss on the retirement of assets in a pool of like assets as a charge or credit to income, for reporting and rate application filings, the distributor shall reclassify such gains and losses as depreciation expense, and disclose the amount separately.
A93: Appendix 2-BA
A94: Fixed Asset Continuity Schedule 1
E96: Accounting Standard | F96: MIFRS
E97: Year | F97: 2014
D99: Cost | J99: Accumulated Depreciation
A100: CCA Class 2 | B100: OEB Account 3 | C100: Description 3 | D100: Opening Balance | E100: Additions 4 | F100: Disposals 6 | G100: Closing Balance | I100: Opening Balance | J100: Additions | K100: Disposals 6 | L100: Closing Balance | M100: Net Book Value
B101: 1609 | C101: Hydro One Gate Station | D101: =G17 -> 1272321.04 | E101: 0 | F101: 0 | G101: =D101+E101+F101 -> 1272321.04 | I101: =L17 -> -187918.53 | J101: -50892.72 | K101: 0 | L101: =I101+J101+K101 -> -238811.25 | M101: =G101+L101 -> 1033509.79
A102: 12 | B102: 1611 | C102: Computer Software (Formally known as Account 1925) | D102: 1177699 | E102: 62420 | F102: 0 | G102: =D102+E102+F102 -> 1240119 | I102: -1072159 | J102: -72240.81 | K102: 0 | L102: =I102+J102+K102 -> -1144399.81 | M102: =G102+L102 -> 95719.19
A103: CEC | B103: 1612 | C103: Land Rights (Formally known as Account 1906) | D103: 0 | G103: =D103+E103+F103 -> 0 | I103: 0 | L103: =I103+J103+K103 -> 0 | M103: =G103+L103 -> 0
A104: N/A | B104: 1805 | C104: Land | D104: 133037.5 | E104: 0 | F104: 0 | G104: =D104+E104+F104 -> 133037.5 | I104: 0 | J104: 0 | K104: 0 | L104: =I104+J104+K104 -> 0 | M104: =G104+L104 -> 133037.5
A105: 47 | B105: 1808 | C105: Buildings | D105: 7209918.9 | E105: 1529.2 | F105: 0 | G105: =D105+E105+F105 -> 7211448.1 | I105: -1934510.49 | J105: -190672.64 | K105: 0 | L105: =I105+J105+K105 -> -2125183.13 | M105: =G105+L105 -> 5086264.97
A106: 13 | B106: 1810 | C106: Leasehold Improvements | D106: 63262.07 | E106: 0 | F106: 0 | G106: 63262.07 | I106: -36420.5 | J106: -26841.57 | K106: 0 | L106: -63262.07 | M106: 0
A107: 47 | B107: 1815 | C107: Transformer Station Equipment >50 kV | D107: 0 | E107: 0 | F107: 0 | G107: 0 | I107: 0 | J107: 0 | K107: 0 | L107: 0 | M107: 0
A108: 47 | B108: 1820 | C108: Distribution Station Equipment <50 kV | D108: 8315332.61 | E108: 0 | F108: 0 | G108: 8315332.61 | I108: -6537111.62 | J108: -225959.43 | K108: 0 | L108: -6763071.05 | M108: 1552261.56
A109: 47 | B109: 1825 | C109: Storage Battery Equipment | D109: 0 | E109: 0 | F109: 0 | G109: 0 | I109: 0 | J109: 0 | K109: 0 | L109: 0 | M109: 0
A110: 47 | B110: 1830 | C110: Poles, Towers & Fixtures | D110: 34898676.44 | E110: 2957605.64 | F110: -298167.48 | G110: 37558114.6 | I110: -10946473.21 | J110: -773278.87 | K110: 260419.75 | L110: -11459332.33 | M110: 26098782.27
A111: 47 | B111: 1835 | C111: Overhead Conductors & Devices | D111: 35024991.9 | E111: 1436850.5 | F111: -145837.03 | G111: 36316005.37 | I111: -16814119.67 | J111: -445420.38 | K111: 136559.6 | L111: -17122980.45 | M111: 19193024.92
A112: 47 | B112: 1840 | C112: Underground Conduit | D112: 14566564.63 | E112: -46936.54 | F112: -17984.83 | G112: 14501643.26 | I112: -7736221.94 | J112: -112609.75 | K112: 17123.06 | L112: -7831708.63 | M112: 6669934.63
A113: 47 | B113: 1845 | C113: Underground Conductors & Devices | D113: 19109696.73 | E113: 1042228.73 | F113: -63586.84 | G113: 20088338.62 | I113: -9806992.45 | J113: -360228.82 | K113: 51780.7 | L113: -10115440.57 | M113: 9972898.05
A114: 47 | B114: 1850 | C114: Line Transformers | D114: 28466478.97 | E114: 2157714.2 | F114: -466901.13 | G114: 30157292.04 | I114: -15156715.15 | J114: -507533.9 | K114: 342906.08 | L114: -15321342.97 | M114: 14835949.07
A115: 47 | B115: 1850 | C115: ARO | D115: 285373.6 | E115: -48716.75 | F115: 0 | G115: 236656.85 | I115: -107331 | J115: -19720 | K115: 0 | L115: -127051 | M115: 109605.85
A116: 47 | B116: 1855 | C116: Services (Overhead & Underground) | D116: 21275208.03 | E116: 1017822.57 | F116: -120293.45 | G116: 22172737.15 | I116: -14844697.96 | J116: -206291.01 | K116: 102464.51 | L116: -14948524.46 | M116: 7224212.69
A117: 47 | B117: 1860 | C117: Meters | D117: 9123012.66 | E117: 410303.82 | F117: -180940.5 | G117: 9352375.98 | I117: -3063984.99 | J117: -551616.47 | K117: -43668.9 | L117: -3659270.36 | M117: 5693105.62
A118: 47 | B118: 1860 | C118: Meters (Smart Meters) | D118: 0 | G118: 0 | I118: 0 | L118: 0 | M118: 0
A119: N/A | B119: 1905 | C119: Land | D119: 0 | E119: 0 | F119: 0 | G119: 0 | I119: 0 | J119: 0 | K119: 0 | L119: 0 | M119: 0
A120: 47 | B120: 1908 | C120: Buildings & Fixtures | D120: 0 | E120: 0 | F120: 0 | G120: 0 | I120: 0 | J120: 0 | K120: 0 | L120: 0 | M120: 0
A121: 13 | B121: 1910 | C121: Leasehold Improvements | D121: 0 | E121: 0 | F121: 0 | G121: 0 | I121: 0 | J121: 0 | K121: 0 | L121: 0 | M121: 0
A122: 8 | B122: 1915 | C122: Office Furniture & Equipment (10 years) | D122: 1462617.11 | E122: 34690.29 | F122: -10340.73 | G122: 1486966.67 | I122: -1206988.17 | J122: -41010.89 | K122: 10340.73 | L122: =I122+J122+K122 -> -1237658.33 | M122: 249308.34
A123: 8 | B123: 1915 | C123: Office Furniture & Equipment (5 years) | D123: 0 | G123: 0 | I123: 0 | L123: =I123+J123+K123 -> 0 | M123: 0
A124: 10 | B124: 1920 | C124: Computer Equipment - Hardware | D124: 3057260.92 | E124: 76738.82 | F124: -20560.38 | G124: 3113439.36 | I124: -2819052.5 | J124: -101859.45 | K124: 20187.32 | L124: -2900724.63 | M124: 212714.73
A125: 45 | B125: 1920 | C125: Computer Equip.-Hardware(Post Mar. 22/04) | D125: 0 | G125: 0 | I125: 0 | L125: 0 | M125: 0
A126: 45.1 | B126: 1920 | C126: Computer Equip.-Hardware(Post Mar. 19/07) | D126: 0 | G126: 0 | I126: 0 | L126: 0 | M126: 0
A127: 10 | B127: 1930 | C127: Transportation Equipment | D127: 7254571.35 | E127: 622613.15 | F127: -317897.25 | G127: 7559287.25 | I127: -4690155.1 | J127: -221876.5 | K127: 308341.73 | L127: -4603689.87 | M127: 2955597.38
A128: 8 | B128: 1935 | C128: Stores Equipment | D128: 63417.16 | E128: 0 | F128: 0 | G128: 63417.16 | I128: -63417.46 | J128: 0 | K128: 0 | L128: -63417.46 | M128: -0.3
A129: 8 | B129: 1940 | C129: Tools, Shop & Garage Equipment | D129: 2540602.99 | E129: 160587.49 | F129: 0 | G129: 2701190.48 | I129: -2313154.24 | J129: -48090.1 | K129: 6048.68 | L129: -2355195.66 | M129: 345994.82
A130: 8 | B130: 1945 | C130: Measurement & Testing Equipment | D130: 299183.65 | E130: 26887.63 | F130: -8343 | G130: 317728.28 | I130: -184196.86 | J130: -23026.92 | K130: 0 | L130: -207223.78 | M130: 110504.5
A131: 8 | B131: 1950 | C131: Power Operated Equipment | D131: 215881.96 | E131: 0 | F131: 0 | G131: 215881.96 | I131: -81151.52 | J131: -16662.33 | K131: 0 | L131: -97813.85 | M131: 118068.11
A132: 8 | B132: 1955 | C132: Communications Equipment | D132: 276682.54 | E132: 3147 | F132: 0 | G132: 279829.54 | I132: -185269.3 | J132: -27675.26 | K132: 0 | L132: -212944.56 | M132: 66884.98
A133: 8 | B133: 1955 | C133: Communication Equipment (Smart Meters) | D133: 0 | G133: 0 | I133: 0 | L133: 0 | M133: 0
A134: 8 | B134: 1960 | C134: Miscellaneous Equipment | D134: 0 | E134: 0 | F134: 0 | G134: 0 | I134: 0 | J134: 0 | K134: 0 | L134: 0 | M134: 0
A135: 47 | B135: 1970 | C135: Load Management Controls Customer Premises | D135: 0 | E135: 0 | F135: 0 | G135: 0 | I135: 0 | J135: 0 | K135: 0 | L135: 0 | M135: 0
A136: 47 | B136: 1975 | C136: Load Management Controls Utility Premises | D136: 0 | E136: 0 | F136: 0 | G136: =D136+E136+F136 -> 0 | I136: 0 | J136: 0 | K136: 0 | L136: 0 | M136: 0
A137: 47 | B137: 1980 | C137: System Supervisor Equipment | D137: 323860.64 | E137: 39037.6 | F137: 0 | G137: =D137+E137+F137 -> 362898.24 | I137: -129578.24 | J137: -23781.12 | K137: 0 | L137: -153359.36 | M137: 209538.88
A138: 47 | B138: 1985 | C138: Miscellaneous Fixed Assets | D138: 0 | G138: =D138+E138+F138 -> 0 | I138: 0 | L138: 0 | M138: 0
A139: 47 | B139: 1990 | C139: Other Tangible Property | D139: 0 | G139: =D139+E139+F139 -> 0 | I139: 0 | L139: 0 | M139: 0
A140: 47 | B140: 1995 | C140: Contributions & Grants | D140: -18542289.24 | E140: -2137041.84 | F140: 0 | G140: =D140+E140+F140 -> -20679331.08 | I140: 4106521.14 | J140: 458949.54 | K140: 0 | L140: 4565470.68 | M140: -16113860.4
A141: 47 | B141: 2440 | C141: Deferred Revenue5 | D141: 0 | I141: 0 | L141: 0
A142: WIP | C142: Work in Process | D142: 2147194.06 | E142: 741545.11 | F142: 0 | G142: =D142+E142+F142 -> 2888739.17 | I142: 0 | J142: 0 | K142: 0 | L142: =I142+J142+K142 -> 0 | M142: =G142-L142 -> 2888739.17
G143: =D143+E143+F143 -> 0 | L143: =I143+J143+K143 -> 0 | M143: =G143+L143 -> 0
C144: Sub-Total | D144: =SUM(D101:D143) -> 180020557.2 | E144: =SUM(E101:E143) -> 8559026.62 | F144: =SUM(F101:F143) -> -1650852.62 | G144: =SUM(G101:G143) -> 186928731.2 | I144: =SUM(I101:I143) -> -95811098.76 | J144: =SUM(J101:J143) -> -3588339.4 | K144: =SUM(K101:K143) -> 1212503.26 | L144: =SUM(L101:L143) -> -98186934.9 | M144: =SUM(M101:M143) -> 88741796.32
C145: Less Socialized Renewable Energy Generation Investments (input as negative) | G145: =D145+E145+F145 -> 0 | L145: =I145+J145+K145 -> 0 | M145: =G145+L145 -> 0
C146: Less Other Non Rate-Regulated Utility Assets (input as negative) | G146: =D146+E146+F146 -> 0 | L146: =I146+J146+K146 -> 0 | M146: =G146+L146 -> 0
C147: Total PP&E | D147: =SUM(D144:D146) -> 180020557.2 | E147: =SUM(E144:E146) -> 8559026.62 | F147: =SUM(F144:F146) -> -1650852.62 | G147: =SUM(G144:G146) -> 186928731.2 | I147: =SUM(I144:I146) -> -95811098.76 | J147: =SUM(J144:J146) -> -3588339.4 | K147: =SUM(K144:K146) -> 1212503.26 | L147: =SUM(L144:L146) -> -98186934.9 | M147: =SUM(M144:M146) -> 88741796.32
C148: Depreciation Expense adj. from gain or loss on the retirement of assets (pool of like assets), if applicable6 | J148: 0
C149: Total | J149: =J147+J148 -> -3588339.4
I151: Less: Fully Allocated Depreciation
A152: 10 | C152: Transportation | I152: Overhead Depts &
A153: 8 | C153: Stores Equipment | I153: Information Systems | K153: -497156.11
I154: Net Depreciation | K154: =J149-K152-K153 -> -3091183.29
A160: Appendix 2-BA
A161: Fixed Asset Continuity Schedule 1
E163: Accounting Standard | F163: MIFRS
E164: Year | F164: 2015
D166: Cost | J166: Accumulated Depreciation
A167: CCA Class 2 | B167: OEB Account 3 | C167: Description 3 | D167: Opening Balance | E167: Additions 4 | F167: Disposals 6 | G167: Closing Balance | I167: Opening Balance | J167: Additions | K167: Disposals 6 | L167: Closing Balance | M167: Net Book Value
B168: 1609 | C168: Hydro One Gate Station | D168: =G101 -> 1272321.04 | E168: 0 | F168: 0 | G168: =D168+E168+F168 -> 1272321.04 | I168: =L101 -> -238811.25 | J168: -50892.78 | K168: 0 | L168: =I168+J168+K168 -> -289704.03 | M168: =G168+L168 -> 982617.01
A169: 12 | B169: 1611 | C169: Computer Software (Formally known as Account 1925) | D169: 1240119 | E169: 53506.06 | F169: 0 | G169: =D169+E169+F169 -> 1293625.06 | I169: -1144399.81 | J169: -57482.18 | K169: 0 | L169: =I169+J169+K169 -> -1201881.99 | M169: =G169+L169 -> 91743.07
A170: CEC | B170: 1612 | C170: Land Rights (Formally known as Account 1906) | D170: 0 | G170: =D170+E170+F170 -> 0 | I170: 0 | L170: =I170+J170+K170 -> 0 | M170: =G170+L170 -> 0
A171: N/A | B171: 1805 | C171: Land | D171: 133037.5 | E171: 0 | F171: 0 | G171: =D171+E171+F171 -> 133037.5 | I171: 0 | J171: 0 | K171: 0 | L171: =I171+J171+K171 -> 0 | M171: =G171+L171 -> 133037.5
A172: 47 | B172: 1808 | C172: Buildings | D172: 7211448.1 | E172: 152835 | F172: 0 | G172: =D172+E172+F172 -> 7364283.1 | I172: -2125183.13 | J172: -191983.89 | K172: 0 | L172: =I172+J172+K172 -> -2317167.02 | M172: =G172+L172 -> 5047116.08
A173: 13 | B173: 1810 | C173: Leasehold Improvements | D173: 63262.07 | E173: 0 | F173: 0 | G173: 63262.07 | I173: -63262.07 | J173: 0 | K173: 0 | L173: -63262.07 | M173: 0
A174: 47 | B174: 1815 | C174: Transformer Station Equipment >50 kV | D174: 0 | E174: 0 | F174: 0 | G174: 0 | I174: 0 | J174: 0 | K174: 0 | L174: 0 | M174: 0
A175: 47 | B175: 1820 | C175: Distribution Station Equipment <50 kV | D175: 8315332.61 | E175: 0 | F175: 0 | G175: 8315332.61 | I175: -6763071.05 | J175: -200250.49 | K175: 0 | L175: -6963321.54 | M175: 1352011.07
A176: 47 | B176: 1825 | C176: Storage Battery Equipment | D176: 0 | E176: 0 | F176: 0 | G176: 0 | I176: 0 | J176: 0 | K176: 0 | L176: 0 | M176: 0
A177: 47 | B177: 1830 | C177: Poles, Towers & Fixtures | D177: 37558114.6 | E177: 4241393.91 | F177: -373588.41 | G177: 41425920.1 | I177: -11459332.33 | J177: -855217.33 | K177: 313220.11 | L177: -12001329.55 | M177: 29424590.55
A178: 47 | B178: 1835 | C178: Overhead Conductors & Devices | D178: 36316005.37 | E178: 2218273.4 | F178: -258712.07 | G178: 38275566.7 | I178: -17122980.45 | J178: -475176.04 | K178: 247467.91 | L178: -17350688.58 | M178: 20924878.12
A179: 47 | B179: 1840 | C179: Underground Conduit | D179: 14501643.26 | E179: 807662.39 | F179: -3304 | G179: 15306001.65 | I179: -7831708.63 | J179: -116164.12 | K179: 3153.85 | L179: -7944718.9 | M179: 7361282.75
A180: 47 | B180: 1845 | C180: Underground Conductors & Devices | D180: 20088338.62 | E180: 649675 | F180: -137144.77 | G180: 20600868.85 | I180: -10115440.57 | J180: -378574.59 | K180: 126919.95 | L180: -10367095.21 | M180: 10233773.64
A181: 47 | B181: 1850 | C181: Line Transformers | D181: 30157292.04 | E181: 1539937.15 | F181: -483282.8 | G181: 31213946.39 | I181: -15321342.97 | J181: -535007.85 | K181: 386941.25 | L181: -15469409.57 | M181: 15744536.82
B182: 1850 | C182: ARO | D182: 236656.85 | E182: -26685.93 | F182: 0 | G182: 209970.92 | I182: -127051 | J182: -14120 | K182: 0 | L182: -141171 | M182: 68799.92
A183: 47 | B183: 1855 | C183: Services (Overhead & Underground) | D183: 22172737.15 | E183: 415378.65 | F183: -10031.92 | G183: 22578083.88 | I183: -14948524.46 | J183: -238636.02 | K183: 9479.22 | L183: -15177681.26 | M183: 7400402.62
A184: 47 | B184: 1860 | C184: Meters | D184: 9352375.98 | E184: 554669.48 | F184: -115427.19 | G184: 9791618.27 | I184: -3659270.36 | J184: -564951.36 | K184: 303.14 | L184: -4223918.58 | M184: 5567699.69
A185: 47 | B185: 1860 | C185: Meters (Smart Meters) | D185: 0 | G185: 0 | I185: 0 | L185: 0 | M185: 0
A186: N/A | B186: 1905 | C186: Land | D186: 0 | E186: 0 | F186: 0 | G186: 0 | I186: 0 | J186: 0 | K186: 0 | L186: 0 | M186: 0
A187: 47 | B187: 1908 | C187: Buildings & Fixtures | D187: 0 | E187: 0 | F187: 0 | G187: 0 | I187: 0 | J187: 0 | K187: 0 | L187: 0 | M187: 0
A188: 13 | B188: 1910 | C188: Leasehold Improvements | D188: 0 | E188: 0 | F188: 0 | G188: 0 | I188: 0 | J188: 0 | K188: 0 | L188: 0 | M188: 0
A189: 8 | B189: 1915 | C189: Office Furniture & Equipment (10 years) | D189: 1486966.67 | E189: 114528.03 | F189: -15977.52 | G189: 1585517.18 | I189: -1237658.33 | J189: -48133.87 | K189: 15977.52 | L189: -1269814.68 | M189: 315702.5
A190: 8 | B190: 1915 | C190: Office Furniture & Equipment (5 years) | D190: 0 | G190: 0 | I190: 0 | L190: 0 | M190: 0
A191: 10 | B191: 1920 | C191: Computer Equipment - Hardware | D191: 3113439.36 | E191: 137531.23 | F191: -14152.65 | G191: 3236817.94 | I191: -2900724.63 | J191: -115757.26 | K191: 12449.74 | L191: -3004032.15 | M191: 232785.79
A192: 45 | B192: 1920 | C192: Computer Equip.-Hardware(Post Mar. 22/04) | D192: 0 | G192: 0 | I192: 0 | L192: 0 | M192: 0
A193: 45.1 | B193: 1920 | C193: Computer Equip.-Hardware(Post Mar. 19/07) | D193: 0 | G193: 0 | I193: 0 | L193: 0 | M193: 0
A194: 10 | B194: 1930 | C194: Transportation Equipment | D194: 7559287.25 | E194: 485438.13 | F194: -447713.5 | G194: 7597011.88 | I194: -4603689.87 | J194: -260569.31 | K194: 447713.5 | L194: -4416545.68 | M194: 3180466.2
A195: 8 | B195: 1935 | C195: Stores Equipment | D195: 63417.16 | E195: 0 | F195: 0 | G195: 63417.16 | I195: -63417.46 | J195: 0 | K195: 0 | L195: -63417.46 | M195: -0.3
A196: 8 | B196: 1940 | C196: Tools, Shop & Garage Equipment | D196: 2701190.48 | E196: 158840.73 | F196: -36358.2 | G196: 2823673.01 | I196: -2355195.66 | J196: -62121.71 | K196: 33361.2 | L196: -2383956.17 | M196: 439716.84
A197: 8 | B197: 1945 | C197: Measurement & Testing Equipment | D197: 317728.28 | E197: 41458.24 | F197: 0 | G197: 359186.52 | I197: -207223.78 | J197: -24684.09 | K197: 0 | L197: -231907.87 | M197: 127278.65
A198: 8 | B198: 1950 | C198: Power Operated Equipment | D198: 215881.96 | E198: 196682.41 | F198: 0 | G198: 412564.37 | I198: -97813.85 | J198: -32050.5 | K198: 0 | L198: -129864.35 | M198: 282700.02
A199: 8 | B199: 1955 | C199: Communications Equipment | D199: 279829.54 | E199: 4150 | F199: 0 | G199: 283979.54 | I199: -212944.56 | J199: -27180.65 | K199: 0 | L199: -240125.21 | M199: 43854.33
A200: 8 | B200: 1955 | C200: Communication Equipment (Smart Meters) | D200: 0 | E200: 0 | F200: 0 | G200: 0 | I200: 0 | J200: 0 | K200: 0 | L200: 0 | M200: 0
A201: 8 | B201: 1960 | C201: Miscellaneous Equipment | D201: 0 | E201: 0 | F201: 0 | G201: 0 | I201: 0 | J201: 0 | K201: 0 | L201: 0 | M201: 0
A202: 47 | B202: 1970 | C202: Load Management Controls Customer Premises | D202: 0 | E202: 0 | F202: 0 | G202: 0 | I202: 0 | J202: 0 | K202: 0 | L202: 0 | M202: 0
A203: 47 | B203: 1975 | C203: Load Management Controls Utility Premises | D203: 0 | E203: 0 | F203: 0 | G203: 0 | I203: 0 | J203: 0 | K203: 0 | L203: 0 | M203: 0
A204: 47 | B204: 1980 | C204: System Supervisor Equipment | D204: 362898.24 | E204: 0 | F204: 0 | G204: 362898.24 | I204: -153359.36 | J204: -24857.7 | K204: 0 | L204: -178217.06 | M204: 184681.18
A205: 47 | B205: 1985 | C205: Miscellaneous Fixed Assets | D205: 0 | G205: =D205+E205+F205 -> 0 | I205: 0 | L205: 0 | M205: 0
A206: 47 | B206: 1990 | C206: Other Tangible Property | D206: 0 | G206: 0 | I206: 0 | L206: 0 | M206: 0
A207: 47 | B207: 1995 | C207: Contributions & Grants | D207: -20679331.08 | E207: -1984670.78 | F207: 0 | G207: -22664001.86 | I207: 4565470.68 | J207: 504470.93 | K207: 0 | L207: 5069941.61 | M207: -17594060.25
A208: 47 | B208: 2440 | C208: Deferred Revenue5 | D208: 0 | G208: 0 | I208: 0 | L208: 0 | M208: 0
A209: WIP | C209: Work in Process | D209: 2888739.17 | E209: 125762.11 | F209: 0 | G209: 3014501.28 | I209: 0 | J209: 0 | K209: 0 | L209: =I209+J209+K209 -> 0 | M209: =G209-L209 -> 3014501.28
G210: 0 | I210: 0 | L210: =I210+J210+K210 -> 0 | M210: =G210+L210 -> 0
C211: Sub-Total | D211: =SUM(D168:D210) -> 186928731.2 | E211: =SUM(E168:E210) -> 9886365.21 | F211: =SUM(F168:F210) -> -1895693.03 | G211: =SUM(G168:G210) -> 194919403.4 | I211: =SUM(I168:I210) -> -98186934.9 | J211: =SUM(J168:J210) -> -3769340.81 | K211: =SUM(K168:K210) -> 1596987.39 | L211: =SUM(L168:L210) -> -100359288.3 | M211: =SUM(M168:M210) -> 94560115.08
C212: Less Socialized Renewable Energy Generation Investments (input as negative) | G212: =D212+E212+F212 -> 0 | L212: =I212+J212+K212 -> 0 | M212: =G212+L212 -> 0
C213: Less Other Non Rate-Regulated Utility Assets (input as negative) | G213: =D213+E213+F213 -> 0 | L213: =I213+J213+K213 -> 0 | M213: =G213+L213 -> 0
C214: Total PP&E | D214: =SUM(D211:D213) -> 186928731.2 | E214: =SUM(E211:E213) -> 9886365.21 | F214: =SUM(F211:F213) -> -1895693.03 | G214: =SUM(G211:G213) -> 194919403.4 | I214: =SUM(I211:I213) -> -98186934.9 | J214: =SUM(J211:J213) -> -3769340.81 | K214: =SUM(K211:K213) -> 1596987.39 | L214: =SUM(L211:L213) -> -100359288.3 | M214: =SUM(M211:M213) -> 94560115.08
C215: Depreciation Expense adj. from gain or loss on the retirement of assets (pool of like assets), if applicable6 | J215: 0
C216: Total | J216: =J214+J215 -> -3769340.81
I218: Less: Fully Allocated Depreciation
A219: 10 | C219: Transportation | I219: Overhead Depts &
A220: 8 | C220: Stores Equipment | I220: Information Systems | K220: -551713.72
I221: Net Depreciation | K221: =J216-K219-K220 -> -3217627.09
A225: Appendix 2-BA
A226: Fixed Asset Continuity Schedule 1
E228: Accounting Standard | F228: MIFRS
E229: Year | F229: 2016
D231: Cost | J231: Accumulated Depreciation
A232: CCA Class 2 | B232: OEB Account 3 | C232: Description 3 | D232: Opening Balance | E232: Additions 4 | F232: Disposals 6 | G232: Closing Balance | I232: Opening Balance | J232: Additions | K232: Disposals 6 | L232: Closing Balance | M232: Net Book Value
B233: 1609 | C233: Hydro One Gate Station | D233: =G168 -> 1272321.04 | E233: 0 | F233: 0 | G233: =D233+E233+F233 -> 1272321.04 | I233: =L168 -> -289704.03 | J233: -50893 | K233: 0 | L233: =I233+J233+K233 -> -340597.03 | M233: =G233+L233 -> 931724.01
A234: 12 | B234: 1611 | C234: Computer Software (Formally known as Account 1925) | D234: 1293625.06 | E234: 77000 | F234: 0 | G234: =D234+E234+F234 -> 1370625.06 | I234: -1201881.99 | J234: -73141 | K234: 0 | L234: =I234+J234+K234 -> -1275022.99 | M234: =G234+L234 -> 95602.07
A235: CEC | B235: 1612 | C235: Land Rights (Formally known as Account 1906) | D235: 0 | G235: =D235+E235+F235 -> 0 | I235: 0 | L235: =I235+J235+K235 -> 0 | M235: =G235+L235 -> 0
A236: N/A | B236: 1805 | C236: Land | D236: 133037.5 | E236: 0 | F236: -3186 | G236: =D236+E236+F236 -> 129851.5 | I236: 0 | J236: 0 | K236: 0 | L236: =I236+J236+K236 -> 0 | M236: =G236+L236 -> 129851.5
... 108 more rows

Sheet Appendix 2-BB Service Life
N1: File Number: | P1: =+'App.2-BA_Fixed Asset Cont'!M1 -> EB-2016-0105
N2: Exhibit: | P2: 4
N3: Tab:
N4: Attachment: | P4: 4-O
N5: Page:
N7: Date: | P7: =+'App.2-AA_Capital Projects'!$H$7 -> 2016-09-09
A9: Appendix 2-BB
A10: Service Life Comparison
A11: Table F-1 from Kinetrics Report1
C15: Asset Details | F15: Useful Life | J15: USoA Account Number | K15: USoA Account Description | L15: Current | N15: Proposed | P15: Outside Range of Min, Max TUL?
A16: Parent* | B16: # | C16: Category| Component | Type | F16: MIN UL | G16: TUL | H16: MAX UL | L16: Years | M16: Rate | N16: Years | O16: Rate | P16: Below Min TUL | Q16: Above Max TUL
A17: OH | B17: 1 | C17: Fully Dressed Wood Poles | D17: Overall | F17: 35 | G17: 45 | H17: 75 | J17: 1830 | K17: Poles, Towers and Fixtures | L17: 40 | M17: =IF(ISERROR(1/L17), "", 1/L17) -> 0.025 | N17: 40 | O17: =IF(ISERROR(1/N17), "", 1/N17) -> 0.025 | P17: =IF(ISBLANK(N17),"",IF(N17<F17,"Yes","No")) -> No | Q17: =IF(ISBLANK(N17),"",IF(N17>H17,"Yes","No")) -> No
D18: Cross Arm | E18: Wood | F18: 20 | G18: 40 | H18: 55 | M18: =IF(ISERROR(1/L18), "", 1/L18) ->  | O18: =IF(ISERROR(1/N18), "", 1/N18) ->  | P18: =IF(ISBLANK(N18),"",IF(N18<F18,"Yes","No")) ->  | Q18: =IF(ISBLANK(N18),"",IF(N18>H18,"Yes","No")) -> 
E19: Steel | F19: 30 | G19: 70 | H19: 95
B20: 2 | C20: Fully Dressed Concrete Poles | D20: Overall | F20: 50 | G20: 60 | H20: 80
D21: Cross Arm | E21: Wood | F21: 20 | G21: 40 | H21: 55
E22: Steel | F22: 30 | G22: 70 | H22: 95
B23: 3 | C23: Fully Dressed Steel Poles | D23: Overall | F23: 60 | G23: 60 | H23: 80
D24: Cross Arm | E24: Wood | F24: 20 | G24: 40 | H24: 55
E25: Steel | F25: 30 | G25: 70 | H25: 95
B26: 4 | C26: OH Line Switch | F26: 30 | G26: 45 | H26: 55 | J26: 1835 | K26: Overhead Conductors and Devices | L26: 40 | M26: 0.025 | N26: 40 | O26: 0.025 | P26: No | Q26: No
B27: 5 | C27: OH Line Switch Motor | F27: 15 | G27: 25 | H27: 25 | J27: 1980 | K27: System Supervisory Equipment | L27: 25 | M27: 0.04 | N27: 25 | O27: 0.04 | P27: No | Q27: No
B28: 6 | C28: OH Line Switch RTU | F28: 15 | G28: 20 | H28: 20 | J28: 1980 | K28: System Supervisory Equipment | L28: 20 | M28: 0.05 | N28: 20 | O28: 0.05 | P28: No | Q28: No
B29: 7 | C29: OH Integral Switches | F29: 35 | G29: 45 | H29: 60 | J29: 1835 | K29: Overhead Conductors and Devices | L29: 40 | M29: 0.025 | N29: 40 | O29: 0.025 | P29: No | Q29: No
B30: 8 | C30: OH Conductors | F30: 50 | G30: 60 | H30: 75 | J30: 1835 | K30: Overhead Conductors and Devices | L30: 60 | M30: 0.01666666667 | N30: 60 | O30: 0.01666666667 | P30: No | Q30: No
B31: 9 | C31: OH Transformers & Voltage Regulators | F31: 30 | G31: 40 | H31: 60 | J31: 1850 | K31: Line Transformers | L31: 40 | M31: 0.025 | N31: 40 | O31: 0.025 | P31: No | Q31: No
B32: 10 | C32: OH Shunt Capacitor Banks | F32: 25 | G32: 30 | H32: 40
B33: 11 | C33: Reclosers | F33: 25 | G33: 40 | H33: 55 | J33: 1835 | K33: Overhead Conductors and Devices | L33: 40 | M33: 0.025 | N33: 40 | O33: 0.025 | P33: No | Q33: No
A34: TS & MS | B34: 12 | C34: Power Transformers | D34: Overall | F34: 30 | G34: 45 | H34: 60 | J34: 1820 | K34: Distribution Station Equipment<50kV | L34: 50 | M34: 0.02 | N34: 50 | O34: 0.02 | P34: No | Q34: No
D35: Bushing | F35: 10 | G35: 20 | H35: 30 | J35: 1820 | K35: Distribution Station Equipment<50kV | L35: 25 | M35: 0.04 | N35: 25 | O35: 0.04 | P35: No | Q35: No
D36: Tap Changer | F36: 20 | G36: 30 | H36: 60
B37: 13 | C37: Station Service Transformer | F37: 30 | G37: 45 | H37: 55 | J37: 1820 | K37: Distribution Station Equipment<50kV | L37: 45 | M37: 0.02222222222 | N37: 45 | O37: 0.02222222222 | P37: No | Q37: No
B38: 14 | C38: Station Grounding Transformer | F38: 30 | G38: 40 | H38: 40
B39: 15 | C39: Station DC System | D39: Overall | F39: 10 | G39: 20 | H39: 30 | J39: 1820 | K39: Distribution Station Equipment<50kV | L39: 20 | M39: 0.05 | N39: 20 | O39: 0.05 | P39: No | Q39: No
D40: Battery Bank | F40: 10 | G40: 15 | H40: 15 | J40: 1820 | K40: Distribution Station Equipment<50kV | L40: 15 | M40: 0.06666666667 | N40: 15 | O40: 0.06666666667 | P40: No | Q40: No
D41: Charger | F41: 20 | G41: 20 | H41: 30 | J41: 1820 | K41: Distribution Station Equipment<50kV | L41: 20 | M41: 0.05 | N41: 20 | O41: 0.05 | P41: No | Q41: No
B42: 16 | C42: Station Metal Clad Switchgear | D42: Overall | F42: 30 | G42: 40 | H42: 60 | J42: 1820 | K42: Distribution Station Equipment<50kV | L42: 40 | M42: 0.025 | N42: 40 | O42: 0.025 | P42: No | Q42: No
D43: Removable Breaker | F43: 25 | G43: 40 | H43: 60
B44: 17 | C44: Station Independent Breakers | F44: 35 | G44: 45 | H44: 65 | J44: 1820 | K44: Distribution Station Equipment<50kV | L44: 50 | M44: 0.02 | N44: 50 | O44: 0.02 | P44: No | Q44: No
B45: 18 | C45: Station Switch | F45: 30 | G45: 50 | H45: 60 | J45: 1820 | K45: Distribution Station Equipment<50kV | L45: 50 | M45: 0.02 | N45: 50 | O45: 0.02 | P45: No | Q45: No
B46: 19 | C46: Electromechanical Relays | F46: 25 | G46: 35 | H46: 50
B47: 20 | C47: Solid State Relays | F47: 10 | G47: 30 | H47: 45
B48: 21 | C48: Digital & Numeric Relays | F48: 15 | G48: 20 | H48: 20
B49: 22 | C49: Rigid Busbars | F49: 30 | G49: 55 | H49: 60
B50: 23 | C50: Steel Structure | F50: 35 | G50: 50 | H50: 90
A51: UG | B51: 24 | C51: Primary Paper Insulated Lead Covered (PILC) Cables | F51: 60 | G51: 65 | H51: 75
B52: 25 | C52: Primary Ethylene-Propylene Rubber (EPR) Cables | F52: 20 | G52: 25 | H52: 25
B53: 26 | C53: Primary Non-Tree Retardant (TR) Cross Linked Polyethylene (XLPE) Cables Direct Buried | F53: 20 | G53: 25 | H53: 30
B54: 28 | C54: Primary TR XLPE Cables Direct Buried | F54: 25 | G54: 30 | H54: 35 | J54: 1845 | K54: Underground Conductors and Devices | L54: 30 | M54: 0.03333333333 | N54: 30 | O54: 0.03333333333 | P54: No | Q54: No
B55: 29 | C55: Primary TR XLPE Cables in Duct | F55: 35 | G55: 40 | H55: 60 | J55: 1845 | K55: Underground Conductors and Devices | L55: 40 | M55: 0.025 | N55: 40 | O55: 0.025 | P55: No | Q55: No
B56: 31 | C56: Secondary Cables Direct Buried | F56: 25 | G56: 35 | H56: 40 | J56: 1845 | K56: Underground Conductors and Devices | L56: 40 | M56: 0.025 | N56: 40 | O56: 0.025 | P56: No | Q56: No
B57: 32 | C57: Secondary Cables in Duct | F57: 35 | G57: 40 | H57: 60 | J57: 1845 | K57: Underground Conductors and Devices | L57: 40 | M57: 0.025 | N57: 40 | O57: 0.025 | P57: No | Q57: No
B58: 33 | C58: Network Tranformers | D58: Overall | F58: 20 | G58: 35 | H58: 50
D59: Protector | F59: 20 | G59: 35 | H59: 40
B60: 34 | C60: Pad-Mounted Transformers | F60: 25 | G60: 40 | H60: 45 | J60: 1850 | K60: Line Transformers | L60: 40 | M60: 0.025 | N60: 40 | O60: 0.025 | P60: No | Q60: No
B61: 35 | C61: Submersible/Vault Transformers | F61: 25 | G61: 35 | H61: 45
B62: 36 | C62: UG Foundation | F62: 35 | G62: 55 | H62: 70 | J62: 1840 | K62: Underground Conduit | L62: 55 | M62: 0.01818181818 | N62: 55 | O62: 0.01818181818 | P62: No | Q62: No
B63: 37 | C63: UG Vaults | D63: Overall | F63: 40 | G63: 60 | H63: 80
D64: Roof | F64: 20 | G64: 30 | H64: 45
B65: 38 | C65: UG Vault Switches | F65: 20 | G65: 35 | H65: 50
B66: 39 | C66: Pad-Mounted Switchgear | F66: 20 | G66: 30 | H66: 45 | J66: 1845 | K66: Underground Conductors and Devices | L66: 30 | M66: 0.03333333333 | N66: 30 | O66: 0.03333333333 | P66: No | Q66: No
B67: 40 | C67: Ducts | F67: 30 | G67: 50 | H67: 85 | J67: 1840 | K67: Underground Conduit | L67: 80 | M67: 0.0125 | N67: 80 | O67: 0.0125 | P67: No | Q67: No
B68: 41 | C68: Concrete Encased Duct Banks | F68: 35 | G68: 55 | H68: 80
B69: 42 | C69: Cable Chambers | F69: 50 | G69: 60 | H69: 80
A70: S | B70: 43 | C70: Remote SCADA | F70: 15 | G70: 20 | H70: 30 | J70: 1980 | K70: System Supervisory Equipment | L70: 20 | M70: 0.05 | N70: 20 | O70: 0.05 | P70: No | Q70: No
A73: Table F-2 from Kinetrics Report1
C75: Asset Details | F75: Useful Life Range | J75: USoA Account Number | K75: USoA Account Description | L75: Current | N75: Proposed | P75: Outside Range of Min, Max TUL?
B76: # | C76: Category| Component | Type | L76: Years | M76: Rate | N76: Years | O76: Rate | P76: Below Min Range | Q76: Above Max Range
B77: 1 | C77: Office Equipment | F77: 5 | G77: 15 | J77: 1915 | K77: Office Furniture and Equipment | L77: 10 | M77: =IF(ISERROR(1/L77), "", 1/L77) -> 0.1 | N77: 10 | O77: =IF(ISERROR(1/N77), "", 1/N77) -> 0.1 | P77: =IF(ISBLANK(N77),"",IF(N77<F77,"Yes","No")) -> No | Q77: =IF(ISBLANK(N77),"",IF(N77>G77,"Yes","No")) -> No
B78: 2 | C78: Vehicles | D78: Trucks < 3 Tons | F78: 5 | G78: 15 | J78: 1930 | K78: Transportation equipment | L78: 12 | M78: =IF(ISERROR(1/L78), "", 1/L78) -> 0.08333333333 | N78: 12 | O78: =IF(ISERROR(1/N78), "", 1/N78) -> 0.08333333333 | P78: =IF(ISBLANK(N78),"",IF(N78<F78,"Yes","No")) -> No | Q78: =IF(ISBLANK(N78),"",IF(N78>G78,"Yes","No")) -> No
D79: Trucks > 3 Tons | F79: 5 | G79: 15 | J79: 1930 | K79: Transportation equipment | L79: 15 | M79: 0.06666666667 | N79: 15 | O79: 0.06666666667 | P79: No | Q79: No
D80: Trailers | F80: 5 | G80: 20 | J80: 1930 | K80: Transportation equipment | L80: 10 | M80: 0.1 | N80: 10 | O80: 0.1 | P80: No | Q80: No
D81: Vans | F81: 5 | G81: 10 | J81: 1930 | K81: Transportation equipment | L81: 12 | M81: 0.08333333333 | N81: 12 | O81: 0.08333333333 | P81: No | Q81: Yes
B82: 3 | C82: Administrative Buildings | F82: 50 | G82: 75 | J82: 1808 | K82: Buildings and Fixtures | L82: 50 | M82: 0.02 | N82: 50 | O82: 0.02 | P82: No | Q82: No
B83: 4 | C83: Leasehold Improvements | F83: Lease dependent | J83: 1810 | K83: Leasehold Improvements | L83: 5 | M83: 0.2 | N83: 5 | O83: 0.2
B84: 5 | C84: Station Buildings | D84: Station Buildings | F84: 50 | G84: 75
D85: Parking | F85: 25 | G85: 30
D86: Fence | F86: 25 | G86: 60
D87: Roof | F87: 20 | G87: 30
B88: 6 | C88: Computer Equipment | D88: Hardware | F88: 3 | G88: 5 | J88: 1920 | K88: Computer Equipment-Hardware | L88: 3-5 | M88: 2.353328784e-05 | N88: 3-5 | O88: 2.353328784e-05 | P88: No | Q88: Yes
D89: Software | F89: 2 | G89: 5 | J89: 1611 | K89: Computer Software | L89: 2-7 | M89: 2.350010575e-05 | N89: 2-7 | O89: 2.350010575e-05 | P89: No | Q89: Yes
B90: 7 | C90: Equipment | D90: Power Operated | F90: 5 | G90: 10 | J90: 1950 | K90: Power Operated Equipment | L90: 10 | M90: 0.1 | N90: 10 | O90: 0.1 | P90: No | Q90: No
D91: Stores | F91: 5 | G91: 10 | J91: 1935 | K91: Stores Equipment | L91: 10 | M91: 0.1 | N91: 10 | O91: 0.1 | P91: No | Q91: No
D92: Tools, Shop, Garage Equipment | F92: 5 | G92: 10 | J92: 1940 | K92: Tools, Shop and Garage | L92: 10 | M92: 0.1 | N92: 10 | O92: 0.1 | P92: No | Q92: No
D93: Measurement & Testing Equipment | F93: 5 | G93: 10 | J93: 1945 | K93: Measurement and Testing Equipment | L93: 10 | M93: 0.1 | N93: 10 | O93: 0.1 | P93: No | Q93: No
B94: 8 | C94: Communication | D94: Towers | F94: 60 | G94: 70
D95: Wireless | F95: 2 | G95: 10
B96: 9 | C96: Residential Energy Meters | F96: 25 | G96: 35
B97: 10 | C97: Industrial/Commercial Energy Meters | F97: 25 | G97: 35 | J97: 1860 | K97: Meters | L97: 35 | M97: 0.02857142857 | N97: 35 | O97: 0.02857142857 | P97: No | Q97: No
B98: 11 | C98: Wholesale Energy Meters | F98: 15 | G98: 30 | J98: 1860 | K98: Meters | L98: 30 | M98: 0.03333333333 | N98: 30 | O98: 0.03333333333 | P98: No | Q98: No
B99: 12 | C99: Current & Potential Transformer (CT & PT) | F99: 35 | G99: 50 | J99: 1860 | K99: Meters | L99: 50 | M99: 0.02 | N99: 50 | O99: 0.02 | P99: No | Q99: No
B100: 13 | C100: Smart Meters | F100: 5 | G100: 15 | J100: 1860 | K100: Meters | L100: 15 | M100: 0.06666666667 | N100: 15 | O100: 0.06666666667 | P100: No | Q100: No
B101: 14 | C101: Repeaters - Smart Metering | F101: 10 | G101: 15 | J101: 1860 | K101: Meters | L101: 15 | M101: 0.06666666667 | N101: 15 | O101: 0.06666666667 | P101: No | Q101: No
B102: 15 | C102: Data Collectors - Smart Metering | F102: 15 | G102: 20 | J102: 1860 | K102: Meters | L102: 15 | M102: 0.06666666667 | N102: 15 | O102: 0.06666666667 | P102: No | Q102: No
A105: * TS & MS = Transformer and Municipal Stations UG = Underground Systems S = Monitoring and Control Systems
A107: Note 1: | B107: Tables F-1 and F-2 above are to be used as a reference in order to complete columns J, K, L and N.
B108: See pages 17-19 of Kinetrics Report

Sheet App.2-CA_OldCGAAPDepExp_Yr1
K1: File Number: | L1: =EBNUMBER -> EB-2016-0105
K2: Exhibit:
K3: Tab:
K4: Attachment: | L4: NA
K5: Page:
K7: Date: | L7: =+'App.2-AA_Capital Projects'!$H$7 -> 2016-09-09
A9: Appendix 2-CA
A10: Depreciation and Amortization Expense
B11: Former CGAAP (Year 1)
A13: Select the set of appendices that apply | K13: Year Reflected in Schedule Below | L13: Accounting Standard
A14: 2012 Set of Appendices (2-CA to 2-CG) | C14: Assumes the applicant made capitalization and depreciation expense accounting policy changes under CGAAP effective January 1, 2012 and has adopted IFRS for financial reporting purposes effective January 1, 2015. Assumes that the applicant is reflecting these changes in a rebasing application for the first time. | K14: 2012 | L14: Former CGAAP
A15: 2013 Set of Appendices (2-CA to 2-CF) | C15: Assumes the applicant made capitalization and depreciation expense accounting policy changes under CGAAP effective January 1, 2013 and has adopted IFRS for financial reporting purposes effective January 1, 2015. Assumes that the applicant is reflecting these changes in a rebasing application for the first time. | K15: 2013 | L15: Former CGAAP
A18: Account | B18: Description | C18: Opening Regulatory Gross PP&E as at Jan. 1 | D18: Less Fully Depreciated | E18: Net for Depreciation | F18: Additions | G18: Total for Depreciation 1 | H18: Years | I18: Depreciation Rate | J18: Current Year Depreciation Expense | K18: Depreciation Expense per Appendix 2-BA Fixed Assets, Column J (l) | L18: Variance 2
C19: (a) | D19: (b) | E19: (c) | F19: (d) | G19: (e) = (c) + ½ x (d) | H19: (f) | I19: (g) = 1 / (f) | J19: (h) = (e) / (f) | L19: (m) = (h) - (l)
A20: 1609 | B20: Hydro One Gate Station | E20: =C20-D20 -> 0 | G20: =E20+0.5*F20 -> 0 | I20: =IF(H20=0,0,1/H20) -> 0 | J20: =IF(H20=0,0,G20/H20) -> 0 | L20: =IF(ISERROR(+J20-K20), 0, +J20-K20) -> 0
A21: 1611 | B21: Computer Software (Formally known as Account 1925) | E21: 0 | G21: 0 | I21: =IF(H21=0,0,1/H21) -> 0 | J21: 0 | L21: 0
A22: 1612 | B22: Land Rights (Formally known as Account 1906) | E22: 0 | G22: 0 | I22: 0 | J22: 0 | L22: 0
A23: 1805 | B23: Land | E23: 0 | G23: 0 | I23: 0 | J23: 0 | L23: 0
A24: 1808 | B24: Buildings | E24: 0 | G24: 0 | I24: 0 | J24: 0 | L24: 0
A25: 1810 | B25: Leasehold Improvements | E25: 0 | G25: 0 | I25: 0 | J25: 0 | L25: 0
A26: 1815 | B26: Transformer Station Equipment >50 kV | E26: 0 | G26: 0 | I26: 0 | J26: 0 | L26: 0
A27: 1820 | B27: Distribution Station Equipment <50 kV | E27: 0 | G27: 0 | I27: 0 | J27: 0 | L27: 0
A28: 1825 | B28: Storage Battery Equipment | E28: 0 | G28: 0 | I28: 0 | J28: 0 | L28: 0
A29: 1830 | B29: Poles, Towers & Fixtures | E29: 0 | G29: 0 | I29: 0 | J29: 0 | L29: 0
A30: 1835 | B30: Overhead Conductors & Devices | E30: 0 | G30: 0 | I30: 0 | J30: 0 | L30: 0
A31: 1840 | B31: Underground Conduit | E31: 0 | G31: 0 | I31: 0 | J31: 0 | L31: 0
A32: 1845 | B32: Underground Conductors & Devices | E32: 0 | G32: 0 | I32: 0 | J32: 0 | L32: 0
A33: 1850 | B33: Line Transformers | E33: 0 | G33: 0 | I33: 0 | J33: 0 | L33: 0
A34: 1850 | B34: ARO
A35: 1855 | B35: Services (Overhead & Underground) | E35: 0 | G35: 0 | I35: 0 | J35: 0 | L35: 0
A36: 1860 | B36: Meters | E36: 0 | G36: 0 | I36: 0 | J36: 0 | L36: 0
A37: 1860 | B37: Meters (Smart Meters) | E37: 0 | G37: 0 | I37: 0 | J37: 0 | L37: 0
A38: 1905 | B38: Land | E38: 0 | G38: 0 | I38: 0 | J38: 0 | L38: 0
A39: 1908 | B39: Buildings & Fixtures | E39: 0 | G39: 0 | I39: 0 | J39: 0 | L39: 0
A40: 1910 | B40: Leasehold Improvements | E40: 0 | G40: 0 | I40: 0 | J40: 0 | L40: 0
A41: 1915 | B41: Office Furniture & Equipment (10 years) | E41: 0 | G41: 0 | I41: 0 | J41: 0 | L41: 0
A42: 1915 | B42: Office Furniture & Equipment (5 years) | E42: 0 | G42: 0 | I42: 0 | J42: 0 | L42: 0
A43: 1920 | B43: Computer Equipment - Hardware | E43: 0 | G43: 0 | I43: 0 | J43: 0 | L43: 0
A44: 1920 | B44: Computer Equip.-Hardware(Post Mar. 22/04) | E44: 0 | G44: 0 | I44: 0 | J44: 0 | L44: 0
A45: 1920 | B45: Computer Equip.-Hardware(Post Mar. 19/07) | E45: 0 | G45: 0 | I45: 0 | J45: 0 | L45: 0
A46: 1930 | B46: Transportation Equipment | E46: 0 | G46: 0 | I46: 0 | J46: 0 | L46: 0
A47: 1935 | B47: Stores Equipment | E47: 0 | G47: 0 | I47: 0 | J47: 0 | L47: 0
A48: 1940 | B48: Tools, Shop & Garage Equipment | E48: 0 | G48: 0 | I48: 0 | J48: 0 | L48: 0
A49: 1945 | B49: Measurement & Testing Equipment | E49: 0 | G49: 0 | I49: 0 | J49: 0 | L49: 0
A50: 1950 | B50: Power Operated Equipment | E50: 0 | G50: 0 | I50: 0 | J50: 0 | L50: 0
A51: 1955 | B51: Communications Equipment | E51: 0 | G51: 0 | I51: 0 | J51: 0 | L51: 0
A52: 1955 | B52: Communication Equipment (Smart Meters) | E52: 0 | G52: 0 | I52: 0 | J52: 0 | L52: 0
A53: 1960 | B53: Miscellaneous Equipment | E53: 0 | G53: 0 | I53: 0 | J53: 0 | L53: 0
A54: 1970 | B54: Load Management Controls Customer Premises | E54: 0 | G54: 0 | I54: 0 | J54: 0 | L54: 0
A55: 1975 | B55: Load Management Controls Utility Premises | E55: 0 | G55: 0 | I55: 0 | J55: 0 | L55: 0
A56: 1980 | B56: System Supervisor Equipment | E56: 0 | G56: 0 | I56: 0 | J56: 0 | L56: 0
A57: 1985 | B57: Miscellaneous Fixed Assets | E57: 0 | G57: 0 | I57: 0 | J57: 0 | L57: 0
A58: 1990 | B58: Other Tangible Property | E58: 0 | G58: 0 | I58: 0 | J58: 0 | L58: 0
A59: 1995 | B59: Contributions & Grants | E59: 0 | G59: 0 | I59: =IF(H59=0,0,1/H59) -> 0 | J59: 0 | L59: 0
A60: 2440 | B60: Deferred Revenue | E60: 0 | G60: 0 | I60: =IF(H60=0,0,1/H60) -> 0 | J60: 0 | L60: 0
A61: WIP | B61: Work In Process | E61: 0 | G61: 0 | I61: 0 | J61: 0 | L61: 0
B62: Total | C62: =SUM(C20:C61) -> 0 | D62: =SUM(D20:D61) -> 0 | E62: =SUM(E20:E61) -> 0 | F62: =SUM(F20:F61) -> 0 | G62: =SUM(G20:G61) -> 0 | J62: =SUM(J20:J61) -> 0 | K62: =SUM(K20:K61) -> 0 | L62: =SUM(L20:L61) -> 0
A65: Notes:
A67: 1 | B67: Board policy of the "half-year" rule - the applicant must ensure that additions in the year attract a half-year depreciation expense in the first year. Deviations from this standard practice must be supported in the application.
A68: 2 | B68: The applicant must provide an explanation of material variances.
A70: General | B70: Applicants must provide a breakdown of depreciation and amortization expense in the above format for all relevant accounts. Asset Retirement Obligations (AROs), depreciation and accretion expense should be disclosed separately consistent with the Notes of historical Audited Financial Statements.

Sheet App.2-CB_NewCGAAP_DepExp_Yr1
N1: File Number: | O1: =EBNUMBER -> EB-2016-0105
N2: Exhibit: | O2: 4
N3: Tab:
N4: Attachment: | O4: 4-P
N5: Page:
N7: Date: | O7: =+'App.2-AA_Capital Projects'!$H$7 -> 2016-09-09
A9: Appendix 2-CB
A10: Depreciation and Amortization Expense
A11: Revised CGAAP (Year 1) 2013
A13: Select the set of appendices that apply | L13: Year Reflected in Schedule Below | N13: Accounting Standard
A14: 2012 Set of Appendices (2-CA to 2-CG) | C14: Assumes the applicant made capitalization and depreciation expense accounting policy changes under CGAAP effective January 1, 2012 and has adopted IFRS for financial reporting purposes effective January 1, 2015. Assumes that the applicant is reflecting these changes in a rebasing application for the first time. | L14: 2012 | N14: Revised CGAAP
A15: 2013 Set of Appendices (2-CA to 2-CF) | C15: Assumes the applicant made capitalization and depreciation expense accounting policy changes under CGAAP effective January 1, 2013 and has adopted IFRS for financial reporting purposes effective January 1, 2015. Assumes that the applicant is reflecting these changes in a rebasing application for the first time. | L15: 2013 | N15: Revised CGAAP
A18: Account | B18: Description | C18: Opening NBV as at Jan 15 | D18: Additions | E18: Average Remaining Life of Opening NBV 4 | F18: Years (new additions only) 3 | G18: Depreciation Rate on New Additions | H18: Depreciation Expense on Opening NBV | I18: Depreciation Expense on Additions 1 | J18: Current Year Depreciation Expense | K18: Depreciation Expense per Appendix 2-BA Fixed Assets, Column J (l) | L18: Variance 2 | M18: Depreciation Expense on Current Full Year Additions | N18: Less Depreciation Expense on Assets Fully Depreciated During the Year (o) | O18: Current Full Year Depreciation 6
C19: (a) | D19: (d) | E19: (i) | F19: (f) | G19: (g) = 1 / (f) | H19: (j) = (a) / (i) | I19: (h)=((d)*0.5)/(f) | J19: (k) = (j) + (h) | L19: (m) = (k) - (l) | M19: (n) = (d)/(f) | O19: (p) = (j) + (n) - (o)
A20: 1609 | B20: Hydro One Gate Station | C20: =SUM('App.2-BA_Fixed Asset Cont'!D17+'App.2-BA_Fixed Asset Cont'!I17) -> 1135295.23 | D20: =SUM('App.2-BA_Fixed Asset Cont'!E17) -> 0 | E20: 22.3333 | F20: 25 | G20: =IF(F20=0,0,1/F20) -> 0.04 | H20: =IF(E20=0,0,+C20/E20) -> 50834.19065 | I20: =IF(F20=0,0,+(D20*0.5)/F20) -> 0 | J20: =IF(ISERROR(+H20+I20), 0, +H20+I20) -> 50834.19065 | K20: =SUM('App.2-BA_Fixed Asset Cont'!J17)*-1 -> 50892.72 | L20: =IF(ISERROR(+J20-K20), 0, +J20-K20) -> -58.52935195 | M20: =IF(F20=0,0,+(D20)/F20) -> 0 | O20: =IF(ISERROR(+M20+H20-N20), 0, +M20+H20-N20) -> 50834.19065
A21: 1611 | B21: Computer Software (Formally known as Account 1925) | C21: =SUM('App.2-BA_Fixed Asset Cont'!D18+'App.2-BA_Fixed Asset Cont'!I18) -> 188549 | D21: =SUM('App.2-BA_Fixed Asset Cont'!E18) -> 2442 | E21: 2.29998484 | F21: 2 | G21: =IF(F21=0,0,1/F21) -> 0.5 | H21: 81978.36643 | I21: 610.5 | J21: 82588.86643 | K21: =SUM('App.2-BA_Fixed Asset Cont'!J18)*-1 -> 85451 | L21: -2862.133569 | M21: 1221 | N21: 63240.6 | O21: =IF(ISERROR(+M21+H21-N21), 0, +M21+H21-N21) -> 19958.76643
A22: 1612 | B22: Land Rights (Formally known as Account 1906) | C22: =SUM('App.2-BA_Fixed Asset Cont'!D19+'App.2-BA_Fixed Asset Cont'!I19) -> 0 | D22: =SUM('App.2-BA_Fixed Asset Cont'!E19) -> 0 | G22: 0 | H22: 0 | I22: 0 | J22: 0 | K22: =SUM('App.2-BA_Fixed Asset Cont'!J19)*-1 -> 0 | L22: 0 | M22: 0 | O22: 0
A23: 1805 | B23: Land | C23: =SUM('App.2-BA_Fixed Asset Cont'!D20+'App.2-BA_Fixed Asset Cont'!I20) -> 133037.5 | D23: =SUM('App.2-BA_Fixed Asset Cont'!E20) -> 0 | G23: 0 | H23: 0 | I23: 0 | J23: 0 | K23: =SUM('App.2-BA_Fixed Asset Cont'!J20)*-1 -> 0 | L23: 0 | M23: 0 | O23: 0
A24: 1808 | B24: Buildings | C24: =SUM('App.2-BA_Fixed Asset Cont'!D21+'App.2-BA_Fixed Asset Cont'!I21) -> 2070381.2 | D24: =SUM('App.2-BA_Fixed Asset Cont'!E21) -> 3277071.4 | E24: 35.80637 | F24: 27.56 | G24: 0.03628447025 | H24: 57821.58873 | I24: 59453.39985 | J24: 117274.9886 | K24: =SUM('App.2-BA_Fixed Asset Cont'!J21)*-1 -> 72044.19 | L24: 45230.79858 | M24: 118906.7997 | O24: 176728.3884
A25: 1810 | B25: Leasehold Improvements | C25: =SUM('App.2-BA_Fixed Asset Cont'!D22+'App.2-BA_Fixed Asset Cont'!I22) -> 58043.59 | D25: =SUM('App.2-BA_Fixed Asset Cont'!E22) -> 0 | E25: 1.899172 | F25: 5 | G25: 0.2 | H25: 30562.57674 | I25: 0 | J25: 30562.57674 | K25: =SUM('App.2-BA_Fixed Asset Cont'!J22)*-1 -> 31202.02 | L25: -639.443256 | M25: =IF(F25=0,0,+(D25)/F25) -> 0 | N25: =412.18+412.18+412.18 -> 1236.54 | O25: 29326.03674
A26: 1815 | B26: Transformer Station Equipment >50 kV | C26: =SUM('App.2-BA_Fixed Asset Cont'!D23+'App.2-BA_Fixed Asset Cont'!I23) -> 0 | D26: =SUM('App.2-BA_Fixed Asset Cont'!E23) -> 0 | G26: 0 | H26: 0 | I26: 0 | J26: 0 | K26: =SUM('App.2-BA_Fixed Asset Cont'!J23)*-1 -> 0 | L26: 0 | M26: 0 | O26: 0
A27: 1820 | B27: Distribution Station Equipment <50 kV | C27: =SUM('App.2-BA_Fixed Asset Cont'!D24+'App.2-BA_Fixed Asset Cont'!I24) -> 2160169.16 | D27: =SUM('App.2-BA_Fixed Asset Cont'!E24) -> 0 | E27: 5.54 | F27: 20 | G27: 0.05 | H27: =IF(E27=0,0,+C27/E27) -> 389922.231 | I27: 0 | J27: =IF(ISERROR(+H27+I27), 0, +H27+I27) -> 389922.231 | K27: =SUM('App.2-BA_Fixed Asset Cont'!J24)*-1 -> 381948.17 | L27: 7974.061047 | M27: 0 | N27: =41855.17+123597.8 -> 165452.97 | O27: 224469.261
A28: 1825 | B28: Storage Battery Equipment | C28: =SUM('App.2-BA_Fixed Asset Cont'!D25+'App.2-BA_Fixed Asset Cont'!I25) -> 0 | D28: =SUM('App.2-BA_Fixed Asset Cont'!E25) -> 0 | G28: 0 | H28: 0 | I28: 0 | J28: 0 | K28: =SUM('App.2-BA_Fixed Asset Cont'!J25)*-1 -> 0 | L28: 0 | M28: 0 | O28: 0
A29: 1830 | B29: Poles, Towers & Fixtures | C29: =SUM('App.2-BA_Fixed Asset Cont'!D26+'App.2-BA_Fixed Asset Cont'!I26) -> 21362830.4 | D29: =SUM('App.2-BA_Fixed Asset Cont'!E26) -> 3330044.68 | E29: 30 | F29: 40 | G29: 0.025 | H29: 712094.3467 | I29: 41625.5585 | J29: 753719.9052 | K29: =SUM('App.2-BA_Fixed Asset Cont'!J26)*-1 -> 680779.56 | L29: 72940.34517 | M29: 83251.117 | N29: 66993 | O29: 728352.4637
A30: 1835 | B30: Overhead Conductors & Devices | C30: =SUM('App.2-BA_Fixed Asset Cont'!D27+'App.2-BA_Fixed Asset Cont'!I27)-C31 -> 1202198.67 | D30: =SUM('App.2-BA_Fixed Asset Cont'!E27)-D31 -> 1286048.89 | E30: 27.47 | F30: 40 | G30: 0.025 | H30: 43764.05788 | I30: 16075.61112 | J30: =IF(ISERROR(+H30+I30), 0, +H30+I30) -> 59839.66901 | L30: 59839.66901 | M30: =IF(F30=0,0,+(D30)/F30) -> 32151.22225 | N30: 4898 | O30: 71017.28013
A31: 1835 | B31: Overhead Conductors & Devices - Conductor | C31: =16304189.41-1187227 -> 15116962.41 | D31: 1050436.95 | E31: 52.52 | F31: 60 | G31: =IF(F31=0,0,1/F31) -> 0.01666666667 | H31: =IF(E31=0,0,+C31/E31) -> 287832.4907 | I31: =IF(F31=0,0,+(D31*0.5)/F31) -> 8753.64125 | J31: =IF(ISERROR(+H31+I31), 0, +H31+I31) -> 296586.1319 | K31: =SUM('App.2-BA_Fixed Asset Cont'!J27)*-1 -> 410913.57 | L31: =IF(ISERROR(+J31-K31), 0, +J31-K31) -> -114327.4381 | M31: =IF(F31=0,0,+(D31)/F31) -> 17507.2825 | N31: 958 | O31: 304381.7732
A32: 1840 | B32: Underground Conduit - Ducts | C32: =SUM('App.2-BA_Fixed Asset Cont'!D28+'App.2-BA_Fixed Asset Cont'!I28)-196348.77-876564 -> 5071886.92 | D32: =SUM('App.2-BA_Fixed Asset Cont'!E28)-D33-D34 -> 770125.66 | E32: 70.43 | F32: 80 | G32: 0.0125 | H32: 72013.16087 | I32: 4813.285375 | J32: 76826.44624 | K32: =SUM('App.2-BA_Fixed Asset Cont'!J28)*-1 -> 108897.16 | L32: -32070.71376 | M32: 9626.57075 | O32: 81639.73162
A33: 1840 | B33: Underground Conduit - Trenches | C33: 196348.77 | E33: 18.3 | F33: 40 | G33: =IF(F33=0,0,1/F33) -> 0.025 | H33: =IF(E33=0,0,+C33/E33) -> 10729.44098 | I33: =IF(F33=0,0,+(D33*0.5)/F33) -> 0 | J33: =IF(ISERROR(+H33+I33), 0, +H33+I33) -> 10729.44098 | K33: 0 | L33: =IF(ISERROR(+J33-K33), 0, +J33-K33) -> 10729.44098 | M33: =IF(F33=0,0,+(D33)/F33) -> 0 | O33: 10729.44098
A34: 1840 | B34: Underground Conduit - Foundations | C34: 876564 | D34: 24521 | E34: 50.45 | F34: 55 | G34: =IF(F34=0,0,1/F34) -> 0.01818181818 | H34: =IF(E34=0,0,+C34/E34) -> 17374.90585 | I34: =IF(F34=0,0,+(D34*0.5)/F34) -> 222.9181818 | J34: =IF(ISERROR(+H34+I34), 0, +H34+I34) -> 17597.82403 | K34: 0 | L34: =IF(ISERROR(+J34-K34), 0, +J34-K34) -> 17597.82403 | M34: =IF(F34=0,0,+(D34)/F34) -> 445.8363636 | O34: 17820.74221
A35: 1845 | B35: U/G Conductors & Devices - Cables in Duct | C35: =SUM('App.2-BA_Fixed Asset Cont'!D29+'App.2-BA_Fixed Asset Cont'!I29)-622289.97-113053-162061 -> 8588530.75 | D35: =SUM('App.2-BA_Fixed Asset Cont'!E29) -> 161567.3 | E35: 33.82 | F35: 40 | G35: 0.025 | H35: 253948.2776 | I35: 2019.59125 | J35: 255967.8689 | K35: =SUM('App.2-BA_Fixed Asset Cont'!J29)*-1 -> 340474.98 | L35: -84507.1111 | M35: 4039.1825 | O35: 257987.4601
A36: 1845 | B36: U/G Conductors & Devices - Cables Direct Buried | C36: =622289.97+113053 -> 735342.97 | E36: 10.87 | F36: 30 | G36: =IF(F36=0,0,1/F36) -> 0.03333333333 | H36: =IF(E36=0,0,+C36/E36) -> 67648.84729 | I36: =IF(F36=0,0,+(D36*0.5)/F36) -> 0 | J36: =IF(ISERROR(+H36+I36), 0, +H36+I36) -> 67648.84729 | K36: 0 | L36: =IF(ISERROR(+J36-K36), 0, +J36-K36) -> 67648.84729 | M36: =IF(F36=0,0,+(D36)/F36) -> 0 | O36: 67648.84729
A37: 1845 | B37: U/G Conductors & Devices - UG Switchgear | C37: 162061 | E37: 23.1 | F37: 30 | G37: =IF(F37=0,0,1/F37) -> 0.03333333333 | H37: =IF(E37=0,0,+C37/E37) -> 7015.627706 | I37: =IF(F37=0,0,+(D37*0.5)/F37) -> 0 | J37: =IF(ISERROR(+H37+I37), 0, +H37+I37) -> 7015.627706 | K37: 0 | L37: =IF(ISERROR(+J37-K37), 0, +J37-K37) -> 7015.627706 | M37: =IF(F37=0,0,+(D37)/F37) -> 0 | O37: 7015.627706
A38: 1850 | B38: Line Transformers | C38: ='App.2-BA_Fixed Asset Cont'!D30+'App.2-BA_Fixed Asset Cont'!I30 -> 12017878.15 | D38: =SUM('App.2-BA_Fixed Asset Cont'!E30) -> 1470235.79 | E38: 21.92 | F38: 40 | G38: 0.025 | H38: 548260.8645 | I38: 18377.94737 | J38: 566638.8119 | K38: =SUM('App.2-BA_Fixed Asset Cont'!J30)*-1 -> 461892.35 | L38: 104746.4619 | M38: 36755.89475 | N38: 83265 | O38: 501751.7593
A39: 1850 | B39: ARO | C39: =SUM('App.2-BA_Fixed Asset Cont'!D31+'App.2-BA_Fixed Asset Cont'!I31) -> 219964 | D39: =SUM('App.2-BA_Fixed Asset Cont'!E31) -> -14255.4 | E39: 11.18 | F39: 11.18 | G39: =IF(F39=0,0,1/F39) -> 0.08944543828 | H39: =IF(E39=0,0,+C39/E39) -> 19674.77639 | I39: =IF(F39=0,0,+(D39*0.5)/F39) -> -637.5402504 | J39: =IF(ISERROR(+H39+I39), 0, +H39+I39) -> 19037.23614 | K39: =SUM('App.2-BA_Fixed Asset Cont'!J31)*-1 -> 27666 | L39: =IF(ISERROR(+J39-K39), 0, +J39-K39) -> -8628.763864 | M39: =IF(F39=0,0,+(D39)/F39) -> -1275.080501 | O39: 18399.69589
A40: 1855 | B40: Services Overhead | C40: =SUM('App.2-BA_Fixed Asset Cont'!D32+'App.2-BA_Fixed Asset Cont'!I32)-2233991.27-205969.74 -> 3894660.26 | D40: 28316 | E40: 51.42 | F40: 40 | G40: 0.025 | H40: 75742.12874 | I40: 353.95 | J40: 76096.07874 | K40: =SUM('App.2-BA_Fixed Asset Cont'!J32)*-1 -> 197687.95 | L40: =IF(ISERROR(+J40-K40), 0, +J40-K40) -> -121591.8713 | M40: 707.9 | O40: 76450.02874
A41: 1855 | B41: Services Underground - In Duct | C41: 2233991.27 | D41: =293577-D40 -> 265261 | E41: 31.93 | F41: 40 | G41: =IF(F41=0,0,1/F41) -> 0.025 | H41: =IF(E41=0,0,+C41/E41) -> 69965.27623 | I41: =IF(F41=0,0,+(D41*0.5)/F41) -> 3315.7625 | J41: =IF(ISERROR(+H41+I41), 0, +H41+I41) -> 73281.03873 | L41: =IF(ISERROR(+J41-K41), 0, +J41-K41) -> 73281.03873 | M41: =IF(F41=0,0,+(D41)/F41) -> 6631.525 | O41: 76596.80123
A42: 1855 | B42: Services Underground - Direct Buried | C42: 205969.74 | E42: 14.5 | F42: 30 | G42: =IF(F42=0,0,1/F42) -> 0.03333333333 | H42: =IF(E42=0,0,+C42/E42) -> 14204.80966 | I42: =IF(F42=0,0,+(D42*0.5)/F42) -> 0 | J42: =IF(ISERROR(+H42+I42), 0, +H42+I42) -> 14204.80966 | L42: =IF(ISERROR(+J42-K42), 0, +J42-K42) -> 14204.80966 | M42: =IF(F42=0,0,+(D42)/F42) -> 0 | O42: 14204.80966
A43: 1860 | B43: Meters - Industrial/Commercial Energy Meters | C43: =SUM('App.2-BA_Fixed Asset Cont'!D33+'App.2-BA_Fixed Asset Cont'!I33)-4324586.33-1203055.87-258541.8-104625.18-191834.09 -> 367615.75 | E43: 27.89 | F43: 35 | G43: 0.02857142857 | H43: 13180.9161 | I43: 0 | J43: 13180.9161 | L43: 13180.9161 | M43: 0 | O43: 13180.9161
A44: 1860 | B44: Meters - CT PT's | C44: 104625.18 | D44: 21879 | E44: 41.13 | F44: 50 | G44: =IF(F44=0,0,1/F44) -> 0.02 | H44: =IF(E44=0,0,+C44/E44) -> 2543.768053 | I44: =IF(F44=0,0,+(D44*0.5)/F44) -> 218.79 | J44: =IF(ISERROR(+H44+I44), 0, +H44+I44) -> 2762.558053 | L44: =IF(ISERROR(+J44-K44), 0, +J44-K44) -> 2762.558053 | M44: =IF(F44=0,0,+(D44)/F44) -> 437.58 | O44: 2981.348053
A45: 1860 | B45: Meters - Primary | C45: 191834.09 | E45: 40.3 | F45: 50 | G45: =IF(F45=0,0,1/F45) -> 0.02 | H45: =IF(E45=0,0,+C45/E45) -> 4760.151117 | I45: =IF(F45=0,0,+(D45*0.5)/F45) -> 0 | J45: =IF(ISERROR(+H45+I45), 0, +H45+I45) -> 4760.151117 | L45: =IF(ISERROR(+J45-K45), 0, +J45-K45) -> 4760.151117 | M45: =IF(F45=0,0,+(D45)/F45) -> 0 | O45: 4760.151117
A46: 1860 | B46: Meters - Smart Meters | C46: =4324586.33+1203056 -> 5527642.33 | D46: =162539-D44 -> 140660 | E46: 11.1 | F46: 15 | G46: =IF(F46=0,0,1/F46) -> 0.06666666667 | H46: =IF(E46=0,0,+C46/E46) -> 497985.7955 | I46: =IF(F46=0,0,+(D46*0.5)/F46) -> 4688.666667 | J46: =IF(ISERROR(+H46+I46), 0, +H46+I46) -> 502674.4622 | K46: =SUM('App.2-BA_Fixed Asset Cont'!J33)*-1 -> 539424.67 | L46: =IF(ISERROR(+J46-K46), 0, +J46-K46) -> -36750.20784 | M46: =IF(F46=0,0,+(D46)/F46) -> 9377.333333 | N46: 6403 | O46: 500960.1288
A47: 1860 | B47: Meters - Repeaters & Data Collectors | C47: 258541.8 | E47: 5.6 | F47: 15 | G47: =IF(F47=0,0,1/F47) -> 0.06666666667 | H47: =IF(E47=0,0,+C47/E47) -> 46168.17857 | I47: =IF(F47=0,0,+(D47*0.5)/F47) -> 0 | J47: =IF(ISERROR(+H47+I47), 0, +H47+I47) -> 46168.17857 | L47: =IF(ISERROR(+J47-K47), 0, +J47-K47) -> 46168.17857 | M47: =IF(F47=0,0,+(D47)/F47) -> 0 | O47: 46168.17857
A48: 1905 | B48: Land | C48: =SUM('App.2-BA_Fixed Asset Cont'!D35+'App.2-BA_Fixed Asset Cont'!I35) -> 0 | D48: =SUM('App.2-BA_Fixed Asset Cont'!E35) -> 0 | G48: 0 | H48: 0 | I48: 0 | J48: 0 | K48: =SUM('App.2-BA_Fixed Asset Cont'!J35)*-1 -> 0 | L48: 0 | M48: 0 | O48: 0
A49: 1908 | B49: Buildings & Fixtures | C49: =SUM('App.2-BA_Fixed Asset Cont'!D36+'App.2-BA_Fixed Asset Cont'!I36) -> 0 | D49: =SUM('App.2-BA_Fixed Asset Cont'!E36) -> 0 | G49: 0 | H49: 0 | I49: 0 | J49: 0 | K49: =SUM('App.2-BA_Fixed Asset Cont'!J36)*-1 -> 0 | L49: 0 | M49: 0 | O49: 0
A50: 1910 | B50: Leasehold Improvements | C50: =SUM('App.2-BA_Fixed Asset Cont'!D37+'App.2-BA_Fixed Asset Cont'!I37) -> 0 | D50: =SUM('App.2-BA_Fixed Asset Cont'!E37) -> 0 | G50: 0 | H50: 0 | I50: 0 | J50: 0 | K50: =SUM('App.2-BA_Fixed Asset Cont'!J37)*-1 -> 0 | L50: 0 | M50: 0 | O50: 0
A51: 1915 | B51: Office Furniture & Equipment | C51: =SUM('App.2-BA_Fixed Asset Cont'!D38+'App.2-BA_Fixed Asset Cont'!I38) -> 250265.81 | D51: =SUM('App.2-BA_Fixed Asset Cont'!E38) -> 44016.45 | E51: 6.564145 | F51: 10 | G51: 0.1 | H51: 38126.18551 | I51: 2200.8225 | J51: 40327.00801 | K51: =SUM('App.2-BA_Fixed Asset Cont'!J38)*-1 -> 38653.32 | L51: 1673.688012 | M51: 4401.645 | N51: =930.85+137.3+1072.76+103.22+585.14 -> 2829.27 | O51: 39698.56051
A52: 1920 | B52: Computer Equipment - Hardware | C52: =SUM('App.2-BA_Fixed Asset Cont'!D40+'App.2-BA_Fixed Asset Cont'!I40) -> 284331.3 | D52: =SUM('App.2-BA_Fixed Asset Cont'!E40)-D53-D54 -> 0 | E52: 3.0125 | F52: 5 | G52: 0.2 | H52: 94383.83402 | I52: 0 | J52: 94383.83402 | K52: =SUM('App.2-BA_Fixed Asset Cont'!J40)*-1 -> 99442.32 | L52: -5058.485975 | M52: 0 | N52: 27436.83 | O52: 66947.00402
A53: 1920 | B53: Computer Equip.-Hardware PC's | C53: =SUM('App.2-BA_Fixed Asset Cont'!D41+'App.2-BA_Fixed Asset Cont'!I41) -> 0 | D53: 43146.52 | F53: 3 | G53: 0.3333333333 | H53: 0 | I53: 7191.086667 | J53: 7191.086667 | K53: =SUM('App.2-BA_Fixed Asset Cont'!J41)*-1 -> 0 | L53: 7191.086667 | M53: 14382.17333 | O53: =IF(ISERROR(+M53+H53-N53), 0, +M53+H53-N53) -> 14382.17333
A54: 1920 | B54: Computer Equip.-Hardware Printers | C54: =SUM('App.2-BA_Fixed Asset Cont'!D42+'App.2-BA_Fixed Asset Cont'!I42) -> 0 | D54: =3550.35+6622.57 -> 10172.92 | F54: 5 | G54: 0.2 | H54: 0 | I54: 1017.292 | J54: 1017.292 | K54: =SUM('App.2-BA_Fixed Asset Cont'!J42)*-1 -> 0 | L54: 1017.292 | M54: 2034.584 | O54: 2034.584
A55: 1930 | B55: Trailers 10 Yrs | C55: 43946.29 | E55: 7.58 | F55: 10 | G55: =IF(F55=0,0,1/F55) -> 0.1 | H55: =IF(E55=0,0,+C55/E55) -> 5797.663588 | I55: =IF(F55=0,0,+(D55*0.5)/F55) -> 0 | J55: =IF(ISERROR(+H55+I55), 0, +H55+I55) -> 5797.663588 | K55: 5800.69 | L55: -3.026411609 | M55: 0 | O55: 5797.663588
A56: 1930 | B56: Trailers 20 Yrs | C56: 6276.15 | E56: 16.25 | F56: 20 | G56: 0.05 | H56: 386.2246154 | I56: 0 | J56: 386.2246154 | K56: 386.22 | L56: 0.004615384615 | M56: 0 | O56: 386.2246154
A57: 1930 | B57: Trucks < 3 Tons | C57: 280394.34 | D57: 88948.58 | E57: 10.55 | F57: 12 | G57: 0.08333333333 | H57: 26577.66256 | I57: 3706.190833 | J57: 30283.85339 | K57: 28751.42 | L57: 1532.433393 | M57: 7412.381667 | O57: 33990.04423
A58: 1930 | B58: Trucks > 3 Tons | C58: =1666275-11685.54 -> 1654589.46 | D58: 671655.03 | E58: 12.1 | F58: 15 | G58: 0.06666666667 | H58: 136742.9306 | I58: 22388.501 | J58: 159131.4316 | K58: 146455.27 | L58: 12676.16158 | M58: 44777.002 | O58: 181519.9326
A59: 1935 | B59: Stores Equipment | C59: =SUM('App.2-BA_Fixed Asset Cont'!D44+'App.2-BA_Fixed Asset Cont'!I44) -> 581.71 | D59: =SUM('App.2-BA_Fixed Asset Cont'!E44) -> 0 | E59: 1 | F59: 10 | G59: 0.1 | H59: 581.71 | I59: 0 | J59: 581.71 | K59: =SUM('App.2-BA_Fixed Asset Cont'!J44)*-1 -> 582.01 | L59: -0.3 | M59: 0 | N59: 582 | O59: -0.29
A60: 1940 | B60: Tools, Shop & Garage Equipment | C60: =SUM('App.2-BA_Fixed Asset Cont'!D45+'App.2-BA_Fixed Asset Cont'!I45) -> 226660.07 | D60: =SUM('App.2-BA_Fixed Asset Cont'!E45) -> 50258.12 | E60: 6.385965 | F60: 10 | G60: 0.1 | H60: 35493.47201 | I60: 2512.906 | J60: 38006.37801 | K60: =SUM('App.2-BA_Fixed Asset Cont'!J45)*-1 -> 49469.44 | L60: -11463.06199 | M60: 5025.812 | N60: =362.69+510.29+1312.4+270+209.52+1331.23+174.34+155.52+573.16 -> 4899.15 | O60: 35620.13401
A61: 1945 | B61: Measurement & Testing Equipment | C61: =SUM('App.2-BA_Fixed Asset Cont'!D46+'App.2-BA_Fixed Asset Cont'!I46) -> 131696.53 | D61: =SUM('App.2-BA_Fixed Asset Cont'!E46) -> 7633.75 | E61: 6.128968 | F61: 10 | G61: 0.1 | H61: 21487.55386 | I61: 381.6875 | J61: 21869.24136 | K61: =SUM('App.2-BA_Fixed Asset Cont'!J46)*-1 -> 24343.49 | L61: -2474.248641 | M61: 763.375 | N61: =623.62+221.4+2023.12+1550.8 -> 4418.94 | O61: 17831.98886
A62: 1950 | B62: Power Operated Equipment | C62: =SUM('App.2-BA_Fixed Asset Cont'!D47+'App.2-BA_Fixed Asset Cont'!I47) -> 144697.24 | D62: =SUM('App.2-BA_Fixed Asset Cont'!E47) -> 11395 | E62: 7.305556 | F62: 10 | G62: 0.1 | H62: 19806.46511 | I62: 569.75 | J62: 20376.21511 | K62: =SUM('App.2-BA_Fixed Asset Cont'!J47)*-1 -> 21361.8 | L62: -985.5848932 | M62: 1139.5 | O62: 20945.96511
A63: 1955 | B63: Communications Equipment | C63: =SUM('App.2-BA_Fixed Asset Cont'!D48+'App.2-BA_Fixed Asset Cont'!I48) -> 72824.46 | D63: =SUM('App.2-BA_Fixed Asset Cont'!E48) -> 39139.98 | E63: 3.829427 | F63: 5 | G63: 0.2 | H63: 19017.06443 | I63: 3913.998 | J63: 22931.06243 | K63: =SUM('App.2-BA_Fixed Asset Cont'!J48)*-1 -> 20551.2 | L63: 2379.862433 | M63: 7827.996 | O63: 26845.06043
A64: 1960 | B64: Miscellaneous Equipment | C64: =SUM('App.2-BA_Fixed Asset Cont'!D50+'App.2-BA_Fixed Asset Cont'!I50) -> 0 | D64: =SUM('App.2-BA_Fixed Asset Cont'!E50) -> 0 | G64: 0 | H64: 0 | I64: 0 | J64: 0 | K64: =SUM('App.2-BA_Fixed Asset Cont'!J50)*-1 -> 0 | L64: 0 | M64: 0 | O64: 0
A65: 1970 | B65: Load Management Controls Customer Premises | C65: =SUM('App.2-BA_Fixed Asset Cont'!D51+'App.2-BA_Fixed Asset Cont'!I51) -> 0 | D65: =SUM('App.2-BA_Fixed Asset Cont'!E51) -> 0 | G65: 0 | H65: 0 | I65: 0 | J65: 0 | K65: =SUM('App.2-BA_Fixed Asset Cont'!J51)*-1 -> 0 | L65: 0 | M65: 0 | O65: 0
A66: 1975 | B66: Load Management Controls Utility Premises | C66: =SUM('App.2-BA_Fixed Asset Cont'!D52+'App.2-BA_Fixed Asset Cont'!I52) -> 0 | D66: =SUM('App.2-BA_Fixed Asset Cont'!E52) -> 0 | G66: 0 | H66: 0 | I66: 0 | J66: 0 | K66: =SUM('App.2-BA_Fixed Asset Cont'!J52)*-1 -> 0 | L66: 0 | M66: 0 | O66: 0
A67: 1980 | B67: System Supervisor Equipment | C67: =SUM('App.2-BA_Fixed Asset Cont'!D53+'App.2-BA_Fixed Asset Cont'!I53) -> 226639.44 | D67: =SUM('App.2-BA_Fixed Asset Cont'!E53) -> 0 | E67: 7.01 | F67: 20 | G67: 0.05 | H67: 32330.87589 | I67: 0 | J67: 32330.87589 | K67: =SUM('App.2-BA_Fixed Asset Cont'!J53)*-1 -> 32357.04 | L67: -26.16410842 | M67: 0 | O67: 32330.87589
A68: 1985 | B68: Miscellaneous Fixed Assets | C68: =SUM('App.2-BA_Fixed Asset Cont'!D54+'App.2-BA_Fixed Asset Cont'!I54) -> 0 | D68: =SUM('App.2-BA_Fixed Asset Cont'!E54) -> 0 | G68: 0 | H68: 0 | I68: 0 | J68: 0 | K68: =SUM('App.2-BA_Fixed Asset Cont'!J54)*-1 -> 0 | L68: 0 | M68: 0 | O68: 0
A69: 1990 | B69: Other Tangible Property | C69: =SUM('App.2-BA_Fixed Asset Cont'!D55+'App.2-BA_Fixed Asset Cont'!I55) -> 0 | D69: =SUM('App.2-BA_Fixed Asset Cont'!E55) -> 0 | G69: 0 | H69: 0 | I69: 0 | J69: 0 | K69: =SUM('App.2-BA_Fixed Asset Cont'!J55)*-1 -> 0 | L69: 0 | M69: 0 | O69: 0
A70: 1995 | B70: Contributions & Grants | C70: =SUM('App.2-BA_Fixed Asset Cont'!D56+'App.2-BA_Fixed Asset Cont'!I56) -> -13065469.15 | D70: =SUM('App.2-BA_Fixed Asset Cont'!E56) -> -1792508.76 | E70: 31.73 | F70: 38.47 | G70: =IF(F70=0,0,1/F70) -> 0.02599428126 | H70: -411770.2222 | I70: -23297.48843 | J70: -435067.7106 | K70: =SUM('App.2-BA_Fixed Asset Cont'!J56)*-1 -> -422209.81 | L70: -12857.90062 | M70: -46594.97687 | O70: -458365.1991
A71: 2440 | B71: Deferred Revenue5 | C71: =SUM('App.2-BA_Fixed Asset Cont'!D57+'App.2-BA_Fixed Asset Cont'!I57) -> 0 | D71: =SUM('App.2-BA_Fixed Asset Cont'!E57) -> 0 | G71: =IF(F71=0,0,1/F71) -> 0 | H71: 0 | I71: 0 | J71: 0 | K71: =SUM('App.2-BA_Fixed Asset Cont'!J57)*-1 -> 0 | L71: 0 | M71: 0 | O71: 0
A72: WIP | B72: Work in Progress | C72: =SUM('App.2-BA_Fixed Asset Cont'!D58+'App.2-BA_Fixed Asset Cont'!I58) -> 2906520.1 | D72: =SUM('App.2-BA_Fixed Asset Cont'!E58) -> -759326.04 | G72: =IF(F72=0,0,1/F72) -> 0 | H72: 0 | I72: 0 | J72: 0 | K72: =SUM('App.2-BA_Fixed Asset Cont'!J58)*-1 -> 0 | L72: 0 | M72: 0 | O72: 0
B73: Total | C73: =SUM(C20:C72) -> 77244877.89 | D73: =SUM(D20:D72) -> 10228885.82 | H73: =SUM(H20:H72) -> 3394988.194 | I73: 180476.8279 | J73: 3575465.022 | K73: 3435218.75 | L73: 140246.2719 | M73: 360953.6558 | N73: 432613.3 | O73: 3323328.55
A75: Notes:
A77: 1 | B77: Board policy of the "half-year" rule - the applicant must ensure that additions in the year attract a half-year depreciation expense in the first year. Deviations from this standard practice must be supported in the application.
A78: 2 | B78: The applicant must provide an explanation of material variances in evidence.
A79: 3 | B79: The applicant should ensure that the years for new additions of assets are the asset useful lives determined by management in accordance with the Board's regulatory accounting policies. The capitalization and depreciation expense accounting changes should be implemented consistent with the Board’s regulatory accounting policies as set out for modified IFRS as contained in the Report of the Board, Transition to International Financial Reporting Standards, EB-2008-0408, the Kinectrics Report, and the Revised 2012 Accounting Procedures Handbook for Electricity Distributors (“APH”).
A80: 4 | B80: A recalculation should be performed to determine the average remaining life of opening balance of assets (i.e. excluding current year's additions) under the change in policies under CGAAP. For example, Asset A had a useful life of 20 years under CGAAP without the change in policies. On January 1 of the year of policy changes, Asset A was 3 years depreciated. As a result, Asset A would have a remaining service life of 17 years (20 years less 3 years) as at January 1 of the year of policy changes. Due to making the change in policies under CGAAP, management re-assessed the asset useful lives and concluded that the revised useful life of Asset A is now 30 years. Therefore, the average remaining useful life of the opening balance of Asset A is determined to be 27 years (30 years less 3 years) under the revised CGAAP as at January 1 of the year of policy changes.
A81: 5 | B81: NBV must exclude assets still on the books but which have been fully amortized or depreciated.
A82: 6 | B82: This column refers to the calculated full year depreciation but excludes the depreciation expense on assets fully depreciated during the year. This column is used for the purpose of calculating depreciation expense in the following year on the next worksheet.
A84: General: | B84: Applicants must provide a breakdown of depreciation and amortization expense in the above format for all relevant accounts. Asset Retirement Obligations (AROs), depreciation and accretion expense should be disclosed separately consistent with the Notes of historical Audited Financial Statements.

Sheet App.2-CC_DepExp_Yr2
J1: File Number: | K1: =EBNUMBER -> EB-2016-0105
J2: Exhibit: | K2: 4
J3: Tab:
J4: Attachment: | K4: 4Q
J5: Page:
J7: Date: | K7: =+'App.2-AA_Capital Projects'!$H$7 -> 2016-09-09
A9: Appendix 2-CC
A10: Depreciation and Amortization Expense
A11: Revised CGAAP (Year 2)-2014
A13: Select the set of appendices that apply | J13: Year Reflected in Schedule Below | K13: Accounting Standard
A14: 2012 Set of Appendices (2-CA to 2-CG) | C14: Assumes the applicant made capitalization and depreciation expense accounting policy changes under CGAAP effective January 1, 2012 and has adopted IFRS for financial reporting purposes effective January 1, 2015. Assumes that the applicant is reflecting these changes in a rebasing application for the first time. | J14: 2013 | K14: Revised CGAAP
A15: 2013 Set of Appendices (2-CA to 2-CF) | C15: Assumes the applicant made capitalization and depreciation expense accounting policy changes under CGAAP effective January 1, 2013 and has adopted IFRS for financial reporting purposes effective January 1, 2015. Assumes that the applicant is reflecting these changes in a rebasing application for the first time. | J15: 2014 | K15: Revised CGAAP
A18: Account | B18: Description | C18: Additions | D18: Years (new additions only) | E18: Depreciation Rate on New Additions | F18: Current Year Depreciation Expense 1 | G18: Depreciation Expense per Apppendix 2-BA Fixed Assets, Column J (l) | H18: Variance 2 | I18: Depreciation Expense on Current Full Year Additions | J18: Less Depreciation Expense on Assets Fully Depreciated During the Year (o) | K18: Current Full Year Depreciation 3
C19: (d) | D19: (f) | E19: (g) = 1 / (f) | F19: (h)= Prior Full Year Deprecation + ((d)*0.5)/(f) | H19: (m) = (h) - (l) | I19: (n)=((d))/(f) | K19: (p) = Prior Full Year Depreciation + (n) - (o)
A20: 1609 | B20: Hydro One Gate Station | C20: =SUM('App.2-BA_Fixed Asset Cont'!E101) -> 0 | D20: 25 | E20: =IF(D20=0,0,1/D20) -> 0.04 | F20: =IF(D20=0,+'App.2-CB_NewCGAAP_DepExp_Yr1'!O20,+'App.2-CB_NewCGAAP_DepExp_Yr1'!O20+((C20*0.5)/D20)) -> 50834.19065 | G20: =SUM('App.2-BA_Fixed Asset Cont'!J101)*-1 -> 50892.72 | H20: =IF(ISERROR(+F20-G20), 0, +F20-G20) -> -58.52935195 | I20: =IF(D20=0,0,+(C20)/D20) -> 0 | J20: 0 | K20: =IF(ISERROR(+I20+'App.2-CB_NewCGAAP_DepExp_Yr1'!O20-J20), 0, +I20+'App.2-CB_NewCGAAP_DepExp_Yr1'!O20-J20) -> 50834.19065
A21: 1611 | B21: Computer Software (Formally known as Account 1925) | C21: =SUM('App.2-BA_Fixed Asset Cont'!E102) -> 62420 | D21: 2 | E21: =IF(D21=0,0,1/D21) -> 0.5 | F21: =IF(D21=0,+'App.2-CB_NewCGAAP_DepExp_Yr1'!O21,+'App.2-CB_NewCGAAP_DepExp_Yr1'!O21+((C21*0.5)/D21)) -> 35563.76643 | G21: =SUM('App.2-BA_Fixed Asset Cont'!J102)*-1 -> 72240.81 | H21: -36677.04357 | I21: 31210 | J21: 4050.14 | K21: =IF(ISERROR(+I21+'App.2-CB_NewCGAAP_DepExp_Yr1'!O21-J21), 0, +I21+'App.2-CB_NewCGAAP_DepExp_Yr1'!O21-J21) -> 47118.62643
A22: 1612 | B22: Land Rights (Formally known as Account 1906) | C22: =SUM('App.2-BA_Fixed Asset Cont'!E103) -> 0 | E22: 0 | F22: =IF(D22=0,+'App.2-CB_NewCGAAP_DepExp_Yr1'!O22,+'App.2-CB_NewCGAAP_DepExp_Yr1'!O22+((C22*0.5)/D22)) -> 0 | G22: =SUM('App.2-BA_Fixed Asset Cont'!J103)*-1 -> 0 | H22: 0 | I22: 0 | K22: =IF(ISERROR(+I22+'App.2-CB_NewCGAAP_DepExp_Yr1'!O22-J22), 0, +I22+'App.2-CB_NewCGAAP_DepExp_Yr1'!O22-J22) -> 0
A23: 1805 | B23: Land | C23: =SUM('App.2-BA_Fixed Asset Cont'!E104) -> 0 | E23: 0 | F23: =IF(D23=0,+'App.2-CB_NewCGAAP_DepExp_Yr1'!O23,+'App.2-CB_NewCGAAP_DepExp_Yr1'!O23+((C23*0.5)/D23)) -> 0 | G23: =SUM('App.2-BA_Fixed Asset Cont'!J104)*-1 -> 0 | H23: 0 | I23: 0 | K23: =IF(ISERROR(+I23+'App.2-CB_NewCGAAP_DepExp_Yr1'!O23-J23), 0, +I23+'App.2-CB_NewCGAAP_DepExp_Yr1'!O23-J23) -> 0
A24: 1808 | B24: Buildings | C24: =SUM('App.2-BA_Fixed Asset Cont'!E105) -> 1529.2 | D24: 37.43 | E24: 0.02671653754 | F24: =IF(D24=0,+'App.2-CB_NewCGAAP_DepExp_Yr1'!O24,+'App.2-CB_NewCGAAP_DepExp_Yr1'!O24+((C24*0.5)/D24)) -> 176748.8159 | G24: =SUM('App.2-BA_Fixed Asset Cont'!J105)*-1 -> 190672.64 | H24: -13923.8241 | I24: 40.8549292 | K24: =IF(ISERROR(+I24+'App.2-CB_NewCGAAP_DepExp_Yr1'!O24-J24), 0, +I24+'App.2-CB_NewCGAAP_DepExp_Yr1'!O24-J24) -> 176769.2434
A25: 1810 | B25: Leasehold Improvements | C25: =SUM('App.2-BA_Fixed Asset Cont'!E106) -> 0 | D25: 5 | E25: 0.2 | F25: =IF(D25=0,+'App.2-CB_NewCGAAP_DepExp_Yr1'!O25,+'App.2-CB_NewCGAAP_DepExp_Yr1'!O25+((C25*0.5)/D25)) -> 29326.03674 | G25: =SUM('App.2-BA_Fixed Asset Cont'!J106)*-1 -> 26841.57 | H25: 2484.466744 | I25: 0 | J25: 26841.57 | K25: =IF(ISERROR(+I25+'App.2-CB_NewCGAAP_DepExp_Yr1'!O25-J25), 0, +I25+'App.2-CB_NewCGAAP_DepExp_Yr1'!O25-J25) -> 2484.466744
A26: 1815 | B26: Transformer Station Equipment >50 kV | C26: =SUM('App.2-BA_Fixed Asset Cont'!E107) -> 0 | E26: 0 | F26: =IF(D26=0,+'App.2-CB_NewCGAAP_DepExp_Yr1'!O26,+'App.2-CB_NewCGAAP_DepExp_Yr1'!O26+((C26*0.5)/D26)) -> 0 | G26: =SUM('App.2-BA_Fixed Asset Cont'!J107)*-1 -> 0 | H26: 0 | I26: 0 | K26: =IF(ISERROR(+I26+'App.2-CB_NewCGAAP_DepExp_Yr1'!O26-J26), 0, +I26+'App.2-CB_NewCGAAP_DepExp_Yr1'!O26-J26) -> 0
A27: 1820 | B27: Distribution Station Equipment <50 kV | C27: =SUM('App.2-BA_Fixed Asset Cont'!E108) -> 0 | D27: 20 | E27: 0.05 | F27: =IF(D27=0,+'App.2-CB_NewCGAAP_DepExp_Yr1'!O27,+'App.2-CB_NewCGAAP_DepExp_Yr1'!O27+((C27*0.5)/D27)) -> 224469.261 | G27: =SUM('App.2-BA_Fixed Asset Cont'!J108)*-1 -> 225959.43 | H27: -1490.168953 | I27: 0 | J27: 25708.92 | K27: =IF(ISERROR(+I27+'App.2-CB_NewCGAAP_DepExp_Yr1'!O27-J27), 0, +I27+'App.2-CB_NewCGAAP_DepExp_Yr1'!O27-J27) -> 198760.341
A28: 1825 | B28: Storage Battery Equipment | C28: =SUM('App.2-BA_Fixed Asset Cont'!E109) -> 0 | E28: 0 | F28: =IF(D28=0,+'App.2-CB_NewCGAAP_DepExp_Yr1'!O28,+'App.2-CB_NewCGAAP_DepExp_Yr1'!O28+((C28*0.5)/D28)) -> 0 | G28: =SUM('App.2-BA_Fixed Asset Cont'!J109)*-1 -> 0 | H28: 0 | I28: 0 | K28: =IF(ISERROR(+I28+'App.2-CB_NewCGAAP_DepExp_Yr1'!O28-J28), 0, +I28+'App.2-CB_NewCGAAP_DepExp_Yr1'!O28-J28) -> 0
A29: 1830 | B29: Poles, Towers & Fixtures | C29: =SUM('App.2-BA_Fixed Asset Cont'!E110) -> 2957605.64 | D29: 40 | E29: 0.025 | F29: =IF(D29=0,+'App.2-CB_NewCGAAP_DepExp_Yr1'!O29,+'App.2-CB_NewCGAAP_DepExp_Yr1'!O29+((C29*0.5)/D29)) -> 765322.5342 | G29: =SUM('App.2-BA_Fixed Asset Cont'!J110)*-1 -> 773278.87 | H29: -7956.335833 | I29: 73940.141 | J29: 38090 | K29: =IF(ISERROR(+I29+'App.2-CB_NewCGAAP_DepExp_Yr1'!O29-J29), 0, +I29+'App.2-CB_NewCGAAP_DepExp_Yr1'!O29-J29) -> 764202.6047
A30: 1835 | B30: Overhead Conductors & Devices | C30: =SUM('App.2-BA_Fixed Asset Cont'!E111)-C31 -> 183370.98 | D30: 40 | E30: 0.025 | F30: =IF(D30=0,+'App.2-CB_NewCGAAP_DepExp_Yr1'!O30,+'App.2-CB_NewCGAAP_DepExp_Yr1'!O30+((C30*0.5)/D30)) -> 73309.41738 | H30: 73309.41738 | I30: 4584.2745 | K30: =IF(ISERROR(+I30+'App.2-CB_NewCGAAP_DepExp_Yr1'!O30-J30), 0, +I30+'App.2-CB_NewCGAAP_DepExp_Yr1'!O30-J30) -> 75601.55463
A31: 1835 | B31: Overhead Conductors & Devices - Conductor | C31: 1253479.52 | D31: 60 | E31: 0.01666666667 | F31: =IF(D31=0,+'App.2-CB_NewCGAAP_DepExp_Yr1'!O31,+'App.2-CB_NewCGAAP_DepExp_Yr1'!O31+((C31*0.5)/D31)) -> 314827.4358 | G31: =SUM('App.2-BA_Fixed Asset Cont'!J111)*-1 -> 445420.38 | H31: -130592.9442 | I31: 20891.32533 | J31: 2838 | K31: =IF(ISERROR(+I31+'App.2-CB_NewCGAAP_DepExp_Yr1'!O31-J31), 0, +I31+'App.2-CB_NewCGAAP_DepExp_Yr1'!O31-J31) -> 322435.0985
A32: 1840 | B32: Underground Conduit - Ducts | C32: =SUM('App.2-BA_Fixed Asset Cont'!E112)-C33-C34 -> -61721.14 | D32: 80 | E32: 0.0125 | F32: =IF(D32=0,+'App.2-CB_NewCGAAP_DepExp_Yr1'!O32,+'App.2-CB_NewCGAAP_DepExp_Yr1'!O32+((C32*0.5)/D32)) -> 81253.97449 | G32: =SUM('App.2-BA_Fixed Asset Cont'!J112)*-1 -> 112609.75 | H32: -31355.77551 | I32: -771.51425 | J32: 561 | K32: =IF(ISERROR(+I32+'App.2-CB_NewCGAAP_DepExp_Yr1'!O32-J32), 0, +I32+'App.2-CB_NewCGAAP_DepExp_Yr1'!O32-J32) -> 80307.21737
A33: 1840 | B33: Underground Conduit - Trenches | D33: 40 | E33: 0.025 | F33: =IF(D33=0,+'App.2-CB_NewCGAAP_DepExp_Yr1'!O33,+'App.2-CB_NewCGAAP_DepExp_Yr1'!O33+((C33*0.5)/D33)) -> 10729.44098 | H33: 10729.44098 | I33: 0 | K33: =IF(ISERROR(+I33+'App.2-CB_NewCGAAP_DepExp_Yr1'!O33-J33), 0, +I33+'App.2-CB_NewCGAAP_DepExp_Yr1'!O33-J33) -> 10729.44098
A34: 1840 | B34: Underground Conduit - Foundations | C34: 14784.6 | D34: 55 | E34: 0.01818181818 | F34: =IF(D34=0,+'App.2-CB_NewCGAAP_DepExp_Yr1'!O34,+'App.2-CB_NewCGAAP_DepExp_Yr1'!O34+((C34*0.5)/D34)) -> 17955.14767 | H34: 17955.14767 | I34: 268.8109091 | K34: =IF(ISERROR(+I34+'App.2-CB_NewCGAAP_DepExp_Yr1'!O34-J34), 0, +I34+'App.2-CB_NewCGAAP_DepExp_Yr1'!O34-J34) -> 18089.55312
A35: 1845 | B35: Underground Conductors & Devices - Cables in Duct | C35: =SUM('App.2-BA_Fixed Asset Cont'!E113)-C36-C37 -> 525879.01 | D35: 40 | E35: 0.025 | F35: =IF(D35=0,+'App.2-CB_NewCGAAP_DepExp_Yr1'!O35,+'App.2-CB_NewCGAAP_DepExp_Yr1'!O35+((C35*0.5)/D35)) -> 264560.9478 | G35: =SUM('App.2-BA_Fixed Asset Cont'!J113)*-1 -> 360228.82 | H35: -95667.87223 | I35: 13146.97525 | K35: =IF(ISERROR(+I35+'App.2-CB_NewCGAAP_DepExp_Yr1'!O35-J35), 0, +I35+'App.2-CB_NewCGAAP_DepExp_Yr1'!O35-J35) -> 271134.4354
A36: 1845 | B36: Underground Conductors & Devices - Cables Direct Buried | D36: 30 | E36: 0.03333333333 | F36: =IF(D36=0,+'App.2-CB_NewCGAAP_DepExp_Yr1'!O36,+'App.2-CB_NewCGAAP_DepExp_Yr1'!O36+((C36*0.5)/D36)) -> 67648.84729 | H36: 67648.84729 | I36: 0 | K36: =IF(ISERROR(+I36+'App.2-CB_NewCGAAP_DepExp_Yr1'!O36-J36), 0, +I36+'App.2-CB_NewCGAAP_DepExp_Yr1'!O36-J36) -> 67648.84729
A37: 1845 | B37: Underground Conductors & Devices - UG Switchgear | C37: 516349.72 | D37: 30 | E37: 0.03333333333 | F37: =IF(D37=0,+'App.2-CB_NewCGAAP_DepExp_Yr1'!O37,+'App.2-CB_NewCGAAP_DepExp_Yr1'!O37+((C37*0.5)/D37)) -> 15621.45637 | H37: 15621.45637 | I37: 17211.65733 | K37: =IF(ISERROR(+I37+'App.2-CB_NewCGAAP_DepExp_Yr1'!O37-J37), 0, +I37+'App.2-CB_NewCGAAP_DepExp_Yr1'!O37-J37) -> 24227.28504
A38: 1850 | B38: Line Transformers | C38: =SUM('App.2-BA_Fixed Asset Cont'!E114) -> 2157714.2 | D38: 40 | E38: 0.025 | F38: =IF(D38=0,+'App.2-CB_NewCGAAP_DepExp_Yr1'!O38,+'App.2-CB_NewCGAAP_DepExp_Yr1'!O38+((C38*0.5)/D38)) -> 528723.1868 | G38: =SUM('App.2-BA_Fixed Asset Cont'!J114)*-1 -> 507533.9 | H38: 21189.28676 | I38: 53942.855 | J38: 16737 | K38: =IF(ISERROR(+I38+'App.2-CB_NewCGAAP_DepExp_Yr1'!O38-J38), 0, +I38+'App.2-CB_NewCGAAP_DepExp_Yr1'!O38-J38) -> 538957.6143
A39: 1850 | B39: ARO | C39: =SUM('App.2-BA_Fixed Asset Cont'!E115) -> -48716.75 | D39: 11.18 | E39: 0.08944543828 | F39: =IF(D39=0,+'App.2-CB_NewCGAAP_DepExp_Yr1'!O39,+'App.2-CB_NewCGAAP_DepExp_Yr1'!O39+((C39*0.5)/D39)) -> 16220.95036 | G39: =SUM('App.2-BA_Fixed Asset Cont'!J115)*-1 -> 19720 | H39: -3499.049642 | I39: -4357.491055 | K39: =IF(ISERROR(+I39+'App.2-CB_NewCGAAP_DepExp_Yr1'!O39-J39), 0, +I39+'App.2-CB_NewCGAAP_DepExp_Yr1'!O39-J39) -> 14042.20483
A40: 1855 | B40: Services Overhead | C40: =SUM('App.2-BA_Fixed Asset Cont'!E116)-C41-C42 -> 591285.87 | D40: 40 | E40: 0.025 | F40: =IF(D40=0,+'App.2-CB_NewCGAAP_DepExp_Yr1'!O40,+'App.2-CB_NewCGAAP_DepExp_Yr1'!O40+((C40*0.5)/D40)) -> 83841.10212 | G40: =SUM('App.2-BA_Fixed Asset Cont'!J116)*-1 -> 206291.01 | H40: -122449.9079 | I40: 14782.14675 | J40: 10436 | K40: =IF(ISERROR(+I40+'App.2-CB_NewCGAAP_DepExp_Yr1'!O40-J40), 0, +I40+'App.2-CB_NewCGAAP_DepExp_Yr1'!O40-J40) -> 80796.17549
A41: 1855 | B41: Services Underground - In Duct | C41: 426536.7 | D41: 40 | E41: 0.025 | F41: =IF(D41=0,+'App.2-CB_NewCGAAP_DepExp_Yr1'!O41,+'App.2-CB_NewCGAAP_DepExp_Yr1'!O41+((C41*0.5)/D41)) -> 81928.50998 | H41: 81928.50998 | I41: 10663.4175 | J41: 2952 | K41: =IF(ISERROR(+I41+'App.2-CB_NewCGAAP_DepExp_Yr1'!O41-J41), 0, +I41+'App.2-CB_NewCGAAP_DepExp_Yr1'!O41-J41) -> 84308.21873
A42: 1855 | B42: Services Underground - Direct Buried | D42: 30 | E42: 0.03333333333 | F42: =IF(D42=0,+'App.2-CB_NewCGAAP_DepExp_Yr1'!O42,+'App.2-CB_NewCGAAP_DepExp_Yr1'!O42+((C42*0.5)/D42)) -> 14204.80966 | H42: 14204.80966 | I42: 0 | J42: 779 | K42: =IF(ISERROR(+I42+'App.2-CB_NewCGAAP_DepExp_Yr1'!O42-J42), 0, +I42+'App.2-CB_NewCGAAP_DepExp_Yr1'!O42-J42) -> 13425.80966
A43: 1860 | B43: Meters - Industrial/Commercial Energy Meters | D43: 35 | E43: 0.02857142857 | F43: =IF(D43=0,+'App.2-CB_NewCGAAP_DepExp_Yr1'!O43,+'App.2-CB_NewCGAAP_DepExp_Yr1'!O43+((C43*0.5)/D43)) -> 13180.9161 | H43: 13180.9161 | I43: 0 | K43: =IF(ISERROR(+I43+'App.2-CB_NewCGAAP_DepExp_Yr1'!O43-J43), 0, +I43+'App.2-CB_NewCGAAP_DepExp_Yr1'!O43-J43) -> 13180.9161
A44: 1860 | B44: Meters - CT PT's | C44: 18618.5 | D44: 50 | E44: 0.02 | F44: =IF(D44=0,+'App.2-CB_NewCGAAP_DepExp_Yr1'!O44,+'App.2-CB_NewCGAAP_DepExp_Yr1'!O44+((C44*0.5)/D44)) -> 3167.533053 | G44: =SUM('App.2-BA_Fixed Asset Cont'!J118)*-1 -> 0 | H44: 3167.533053 | I44: 372.37 | K44: =IF(ISERROR(+I44+'App.2-CB_NewCGAAP_DepExp_Yr1'!O44-J44), 0, +I44+'App.2-CB_NewCGAAP_DepExp_Yr1'!O44-J44) -> 3353.718053
A45: 1860 | B45: Meters - Primary | D45: 50 | E45: 0.02 | F45: =IF(D45=0,+'App.2-CB_NewCGAAP_DepExp_Yr1'!O45,+'App.2-CB_NewCGAAP_DepExp_Yr1'!O45+((C45*0.5)/D45)) -> 4760.151117 | G45: =SUM('App.2-BA_Fixed Asset Cont'!J126)*-1 -> 0 | H45: 4760.151117 | I45: 0 | J45: 1297 | K45: =IF(ISERROR(+I45+'App.2-CB_NewCGAAP_DepExp_Yr1'!O45-J45), 0, +I45+'App.2-CB_NewCGAAP_DepExp_Yr1'!O45-J45) -> 3463.151117
A46: 1860 | B46: Meters - Smart Meters | C46: =SUM('App.2-BA_Fixed Asset Cont'!E117)-C43-C44-C45-C47 -> 332154.32 | D46: 15 | E46: 0.06666666667 | F46: =IF(D46=0,+'App.2-CB_NewCGAAP_DepExp_Yr1'!O46,+'App.2-CB_NewCGAAP_DepExp_Yr1'!O46+((C46*0.5)/D46)) -> 512031.9395 | G46: =SUM('App.2-BA_Fixed Asset Cont'!J117)*-1 -> 551616.47 | H46: -39584.5305 | I46: 22143.62133 | K46: =IF(ISERROR(+I46+'App.2-CB_NewCGAAP_DepExp_Yr1'!O46-J46), 0, +I46+'App.2-CB_NewCGAAP_DepExp_Yr1'!O46-J46) -> 523103.7502
A47: 1860 | B47: Meters - Repeaters & Data Collectors | C47: 59531 | D47: 15 | E47: 0.06666666667 | F47: =IF(D47=0,+'App.2-CB_NewCGAAP_DepExp_Yr1'!O47,+'App.2-CB_NewCGAAP_DepExp_Yr1'!O47+((C47*0.5)/D47)) -> 48152.54524 | G47: =SUM('App.2-BA_Fixed Asset Cont'!J128)*-1 -> 0 | H47: 48152.54524 | I47: 3968.733333 | K47: =IF(ISERROR(+I47+'App.2-CB_NewCGAAP_DepExp_Yr1'!O47-J47), 0, +I47+'App.2-CB_NewCGAAP_DepExp_Yr1'!O47-J47) -> 50136.9119
A48: 1905 | B48: Land | C48: =SUM('App.2-BA_Fixed Asset Cont'!E119) -> 0 | E48: 0 | F48: =IF(D48=0,+'App.2-CB_NewCGAAP_DepExp_Yr1'!O48,+'App.2-CB_NewCGAAP_DepExp_Yr1'!O48+((C48*0.5)/D48)) -> 0 | G48: =SUM('App.2-BA_Fixed Asset Cont'!J119)*-1 -> 0 | H48: 0 | I48: 0 | K48: =IF(ISERROR(+I48+'App.2-CB_NewCGAAP_DepExp_Yr1'!O48-J48), 0, +I48+'App.2-CB_NewCGAAP_DepExp_Yr1'!O48-J48) -> 0
A49: 1908 | B49: Buildings & Fixtures | C49: =SUM('App.2-BA_Fixed Asset Cont'!E120) -> 0 | E49: 0 | F49: =IF(D49=0,+'App.2-CB_NewCGAAP_DepExp_Yr1'!O49,+'App.2-CB_NewCGAAP_DepExp_Yr1'!O49+((C49*0.5)/D49)) -> 0 | G49: =SUM('App.2-BA_Fixed Asset Cont'!J120)*-1 -> 0 | H49: 0 | I49: 0 | K49: =IF(ISERROR(+I49+'App.2-CB_NewCGAAP_DepExp_Yr1'!O49-J49), 0, +I49+'App.2-CB_NewCGAAP_DepExp_Yr1'!O49-J49) -> 0
A50: 1910 | B50: Leasehold Improvements | C50: =SUM('App.2-BA_Fixed Asset Cont'!E121) -> 0 | E50: 0 | F50: =IF(D50=0,+'App.2-CB_NewCGAAP_DepExp_Yr1'!O50,+'App.2-CB_NewCGAAP_DepExp_Yr1'!O50+((C50*0.5)/D50)) -> 0 | G50: =SUM('App.2-BA_Fixed Asset Cont'!J121)*-1 -> 0 | H50: 0 | I50: 0 | K50: =IF(ISERROR(+I50+'App.2-CB_NewCGAAP_DepExp_Yr1'!O50-J50), 0, +I50+'App.2-CB_NewCGAAP_DepExp_Yr1'!O50-J50) -> 0
A51: 1915 | B51: Office Furniture & Equipment | C51: =SUM('App.2-BA_Fixed Asset Cont'!E122) -> 34690.29 | D51: 10 | E51: 0.1 | F51: =IF(D51=0,+'App.2-CB_NewCGAAP_DepExp_Yr1'!O51,+'App.2-CB_NewCGAAP_DepExp_Yr1'!O51+((C51*0.5)/D51)) -> 41433.07501 | G51: =SUM('App.2-BA_Fixed Asset Cont'!J122)*-1 -> 41010.89 | H51: 422.1850124 | I51: 3469.029 | J51: 1503.76 | K51: =IF(ISERROR(+I51+'App.2-CB_NewCGAAP_DepExp_Yr1'!O51-J51), 0, +I51+'App.2-CB_NewCGAAP_DepExp_Yr1'!O51-J51) -> 41663.82951
A52: 1920 | B52: Computer Equipment - Hardware | C52: =SUM('App.2-BA_Fixed Asset Cont'!E124)-C53-C54 -> 42910.77 | D52: 5 | E52: 0.2 | F52: =IF(D52=0,+'App.2-CB_NewCGAAP_DepExp_Yr1'!O52,+'App.2-CB_NewCGAAP_DepExp_Yr1'!O52+((C52*0.5)/D52)) -> 71238.08102 | G52: =SUM('App.2-BA_Fixed Asset Cont'!J124)*-1 -> 101859.45 | H52: -30621.36898 | I52: 8582.154 | J52: 0 | K52: =IF(ISERROR(+I52+'App.2-CB_NewCGAAP_DepExp_Yr1'!O52-J52), 0, +I52+'App.2-CB_NewCGAAP_DepExp_Yr1'!O52-J52) -> 75529.15802
A53: 1920 | B53: Computer Equip.-Hardware PC's | C53: 23067.41 | D53: 3 | E53: 0.3333333333 | F53: =IF(D53=0,+'App.2-CB_NewCGAAP_DepExp_Yr1'!O53,+'App.2-CB_NewCGAAP_DepExp_Yr1'!O53+((C53*0.5)/D53)) -> 18226.74167 | G53: =SUM('App.2-BA_Fixed Asset Cont'!J125)*-1 -> 0 | H53: 18226.74167 | I53: 7689.136667 | J53: 0 | K53: =IF(ISERROR(+I53+'App.2-CB_NewCGAAP_DepExp_Yr1'!O53-J53), 0, +I53+'App.2-CB_NewCGAAP_DepExp_Yr1'!O53-J53) -> 22071.31
A54: 1920 | B54: Computer Equip.-Hardware Printers | C54: 10760.64 | D54: 5 | E54: 0.2 | F54: =IF(D54=0,+'App.2-CB_NewCGAAP_DepExp_Yr1'!O54,+'App.2-CB_NewCGAAP_DepExp_Yr1'!O54+((C54*0.5)/D54)) -> 3110.648 | G54: =SUM('App.2-BA_Fixed Asset Cont'!J126)*-1 -> 0 | H54: 3110.648 | I54: 2152.128 | J54: 0 | K54: =IF(ISERROR(+I54+'App.2-CB_NewCGAAP_DepExp_Yr1'!O54-J54), 0, +I54+'App.2-CB_NewCGAAP_DepExp_Yr1'!O54-J54) -> 4186.712
A55: 1930 | B55: Trailers 10 Yrs | C55: 32735 | D55: 10 | E55: 0.1 | F55: =IF(D55=0,+'App.2-CB_NewCGAAP_DepExp_Yr1'!O55,+'App.2-CB_NewCGAAP_DepExp_Yr1'!O55+((C55*0.5)/D55)) -> 7434.413588 | G55: =SUM('App.2-BA_Fixed Asset Cont'!J136)*-1 -> 0 | H55: 7434.413588 | I55: 3273.5 | K55: =IF(ISERROR(+I55+'App.2-CB_NewCGAAP_DepExp_Yr1'!O55-J55), 0, +I55+'App.2-CB_NewCGAAP_DepExp_Yr1'!O55-J55) -> 9071.163588
A56: 1930 | B56: Trailers 20 Yrs | D56: 20 | E56: 0.05 | F56: =IF(D56=0,+'App.2-CB_NewCGAAP_DepExp_Yr1'!O56,+'App.2-CB_NewCGAAP_DepExp_Yr1'!O56+((C56*0.5)/D56)) -> 386.2246154 | H56: 386.2246154 | I56: 0 | K56: =IF(ISERROR(+I56+'App.2-CB_NewCGAAP_DepExp_Yr1'!O56-J56), 0, +I56+'App.2-CB_NewCGAAP_DepExp_Yr1'!O56-J56) -> 386.2246154
A57: 1930 | B57: Trucks < 3 Tons | C57: 217217.16 | D57: 12 | E57: 0.08333333333 | F57: =IF(D57=0,+'App.2-CB_NewCGAAP_DepExp_Yr1'!O57,+'App.2-CB_NewCGAAP_DepExp_Yr1'!O57+((C57*0.5)/D57)) -> 43040.75923 | H57: 43040.75923 | I57: 18101.43 | K57: =IF(ISERROR(+I57+'App.2-CB_NewCGAAP_DepExp_Yr1'!O57-J57), 0, +I57+'App.2-CB_NewCGAAP_DepExp_Yr1'!O57-J57) -> 52091.47423
A58: 1930 | B58: Trucks > 3 Tons | C58: 372664.03 | D58: 15 | E58: 0.06666666667 | F58: =IF(D58=0,+'App.2-CB_NewCGAAP_DepExp_Yr1'!O58,+'App.2-CB_NewCGAAP_DepExp_Yr1'!O58+((C58*0.5)/D58)) -> 193942.0669 | G58: =SUM('App.2-BA_Fixed Asset Cont'!J127)*-1 -> 221876.5 | H58: -27934.43309 | I58: 24844.26867 | K58: =IF(ISERROR(+I58+'App.2-CB_NewCGAAP_DepExp_Yr1'!O58-J58), 0, +I58+'App.2-CB_NewCGAAP_DepExp_Yr1'!O58-J58) -> 206364.2012
A59: 1935 | B59: Stores Equipment | C59: =SUM('App.2-BA_Fixed Asset Cont'!E128) -> 0 | D59: 10 | E59: 0.1 | F59: =IF(D59=0,+'App.2-CB_NewCGAAP_DepExp_Yr1'!O59,+'App.2-CB_NewCGAAP_DepExp_Yr1'!O59+((C59*0.5)/D59)) -> -0.29 | G59: =SUM('App.2-BA_Fixed Asset Cont'!J128)*-1 -> 0 | H59: -0.29 | I59: 0 | K59: =IF(ISERROR(+I59+'App.2-CB_NewCGAAP_DepExp_Yr1'!O59-J59), 0, +I59+'App.2-CB_NewCGAAP_DepExp_Yr1'!O59-J59) -> -0.29
A60: 1940 | B60: Tools, Shop & Garage Equipment | C60: =SUM('App.2-BA_Fixed Asset Cont'!E129) -> 160587.49 | D60: 10 | E60: 0.1 | F60: =IF(D60=0,+'App.2-CB_NewCGAAP_DepExp_Yr1'!O60,+'App.2-CB_NewCGAAP_DepExp_Yr1'!O60+((C60*0.5)/D60)) -> 43649.50851 | G60: =SUM('App.2-BA_Fixed Asset Cont'!J129)*-1 -> 48090.1 | H60: -4440.591488 | I60: 16058.749 | J60: 2453.88 | K60: =IF(ISERROR(+I60+'App.2-CB_NewCGAAP_DepExp_Yr1'!O60-J60), 0, +I60+'App.2-CB_NewCGAAP_DepExp_Yr1'!O60-J60) -> 49225.00301
A61: 1945 | B61: Measurement & Testing Equipment | C61: =SUM('App.2-BA_Fixed Asset Cont'!E130) -> 26887.63 | D61: 10 | E61: 0.1 | F61: =IF(D61=0,+'App.2-CB_NewCGAAP_DepExp_Yr1'!O61,+'App.2-CB_NewCGAAP_DepExp_Yr1'!O61+((C61*0.5)/D61)) -> 19176.37036 | G61: =SUM('App.2-BA_Fixed Asset Cont'!J130)*-1 -> 23026.92 | H61: -3850.549641 | I61: 2688.763 | J61: 1294.06 | K61: =IF(ISERROR(+I61+'App.2-CB_NewCGAAP_DepExp_Yr1'!O61-J61), 0, +I61+'App.2-CB_NewCGAAP_DepExp_Yr1'!O61-J61) -> 19226.69186
A62: 1950 | B62: Power Operated Equipment | C62: =SUM('App.2-BA_Fixed Asset Cont'!E131) -> 0 | D62: 10 | E62: 0.1 | F62: =IF(D62=0,+'App.2-CB_NewCGAAP_DepExp_Yr1'!O62,+'App.2-CB_NewCGAAP_DepExp_Yr1'!O62+((C62*0.5)/D62)) -> 20945.96511 | G62: =SUM('App.2-BA_Fixed Asset Cont'!J131)*-1 -> 16662.33 | H62: 4283.635107 | I62: 0 | K62: =IF(ISERROR(+I62+'App.2-CB_NewCGAAP_DepExp_Yr1'!O62-J62), 0, +I62+'App.2-CB_NewCGAAP_DepExp_Yr1'!O62-J62) -> 20945.96511
A63: 1955 | B63: Communications Equipment | C63: =SUM('App.2-BA_Fixed Asset Cont'!E132) -> 3147 | D63: 5 | E63: 0.2 | F63: =IF(D63=0,+'App.2-CB_NewCGAAP_DepExp_Yr1'!O63,+'App.2-CB_NewCGAAP_DepExp_Yr1'!O63+((C63*0.5)/D63)) -> 27159.76043 | G63: =SUM('App.2-BA_Fixed Asset Cont'!J132)*-1 -> 27675.26 | H63: -515.4995671 | I63: 629.4 | K63: =IF(ISERROR(+I63+'App.2-CB_NewCGAAP_DepExp_Yr1'!O63-J63), 0, +I63+'App.2-CB_NewCGAAP_DepExp_Yr1'!O63-J63) -> 27474.46043
A64: 1960 | B64: Miscellaneous Equipment | C64: =SUM('App.2-BA_Fixed Asset Cont'!E134) -> 0 | E64: 0 | F64: =IF(D64=0,+'App.2-CB_NewCGAAP_DepExp_Yr1'!O64,+'App.2-CB_NewCGAAP_DepExp_Yr1'!O64+((C64*0.5)/D64)) -> 0 | G64: =SUM('App.2-BA_Fixed Asset Cont'!J134)*-1 -> 0 | H64: 0 | I64: 0 | K64: =IF(ISERROR(+I64+'App.2-CB_NewCGAAP_DepExp_Yr1'!O64-J64), 0, +I64+'App.2-CB_NewCGAAP_DepExp_Yr1'!O64-J64) -> 0
A65: 1970 | B65: Load Management Controls Customer Premises | C65: =SUM('App.2-BA_Fixed Asset Cont'!E135) -> 0 | E65: 0 | F65: =IF(D65=0,+'App.2-CB_NewCGAAP_DepExp_Yr1'!O65,+'App.2-CB_NewCGAAP_DepExp_Yr1'!O65+((C65*0.5)/D65)) -> 0 | G65: =SUM('App.2-BA_Fixed Asset Cont'!J135)*-1 -> 0 | H65: 0 | I65: 0 | K65: =IF(ISERROR(+I65+'App.2-CB_NewCGAAP_DepExp_Yr1'!O65-J65), 0, +I65+'App.2-CB_NewCGAAP_DepExp_Yr1'!O65-J65) -> 0
A66: 1975 | B66: Load Management Controls Utility Premises | C66: =SUM('App.2-BA_Fixed Asset Cont'!E136) -> 0 | E66: 0 | F66: =IF(D66=0,+'App.2-CB_NewCGAAP_DepExp_Yr1'!O66,+'App.2-CB_NewCGAAP_DepExp_Yr1'!O66+((C66*0.5)/D66)) -> 0 | G66: =SUM('App.2-BA_Fixed Asset Cont'!J136)*-1 -> 0 | H66: 0 | I66: 0 | K66: =IF(ISERROR(+I66+'App.2-CB_NewCGAAP_DepExp_Yr1'!O66-J66), 0, +I66+'App.2-CB_NewCGAAP_DepExp_Yr1'!O66-J66) -> 0
A67: 1980 | B67: System Supervisor Equipment | C67: =SUM('App.2-BA_Fixed Asset Cont'!E137) -> 39037.6 | D67: 20 | E67: 0.05 | F67: =IF(D67=0,+'App.2-CB_NewCGAAP_DepExp_Yr1'!O67,+'App.2-CB_NewCGAAP_DepExp_Yr1'!O67+((C67*0.5)/D67)) -> 33306.81589 | G67: =SUM('App.2-BA_Fixed Asset Cont'!J137)*-1 -> 23781.12 | H67: 9525.695892 | I67: 1951.88 | K67: =IF(ISERROR(+I67+'App.2-CB_NewCGAAP_DepExp_Yr1'!O67-J67), 0, +I67+'App.2-CB_NewCGAAP_DepExp_Yr1'!O67-J67) -> 34282.75589
A68: 1985 | B68: Miscellaneous Fixed Assets | C68: =SUM('App.2-BA_Fixed Asset Cont'!E138) -> 0 | E68: 0 | F68: =IF(D68=0,+'App.2-CB_NewCGAAP_DepExp_Yr1'!O68,+'App.2-CB_NewCGAAP_DepExp_Yr1'!O68+((C68*0.5)/D68)) -> 0 | G68: =SUM('App.2-BA_Fixed Asset Cont'!J138)*-1 -> 0 | H68: 0 | I68: 0 | K68: =IF(ISERROR(+I68+'App.2-CB_NewCGAAP_DepExp_Yr1'!O68-J68), 0, +I68+'App.2-CB_NewCGAAP_DepExp_Yr1'!O68-J68) -> 0
A69: 1990 | B69: Other Tangible Property | C69: =SUM('App.2-BA_Fixed Asset Cont'!E139) -> 0 | E69: 0 | F69: =IF(D69=0,+'App.2-CB_NewCGAAP_DepExp_Yr1'!O69,+'App.2-CB_NewCGAAP_DepExp_Yr1'!O69+((C69*0.5)/D69)) -> 0 | G69: =SUM('App.2-BA_Fixed Asset Cont'!J139)*-1 -> 0 | H69: 0 | I69: 0 | K69: =IF(ISERROR(+I69+'App.2-CB_NewCGAAP_DepExp_Yr1'!O69-J69), 0, +I69+'App.2-CB_NewCGAAP_DepExp_Yr1'!O69-J69) -> 0
A70: 1995 | B70: Contributions & Grants | C70: =SUM('App.2-BA_Fixed Asset Cont'!E140) -> -2137041.84 | D70: 40.65 | E70: 0.024600246 | F70: =IF(D70=0,+'App.2-CB_NewCGAAP_DepExp_Yr1'!O70,+'App.2-CB_NewCGAAP_DepExp_Yr1'!O70+((C70*0.5)/D70)) -> -484651.0765 | G70: =SUM('App.2-BA_Fixed Asset Cont'!J140)*-1 -> -458949.54 | H70: -25701.53654 | I70: -52571.75498 | K70: =IF(ISERROR(+I70+'App.2-CB_NewCGAAP_DepExp_Yr1'!O70-J70), 0, +I70+'App.2-CB_NewCGAAP_DepExp_Yr1'!O70-J70) -> -510936.954
A71: 2440 | B71: Deferred Revenue5 | C71: =SUM('App.2-BA_Fixed Asset Cont'!E141) -> 0 | E71: 0 | F71: =IF(D71=0,+'App.2-CB_NewCGAAP_DepExp_Yr1'!O71,+'App.2-CB_NewCGAAP_DepExp_Yr1'!O71+((C71*0.5)/D71)) -> 0 | G71: =SUM('App.2-BA_Fixed Asset Cont'!J141)*-1 -> 0 | H71: 0 | I71: 0 | K71: =IF(ISERROR(+I71+'App.2-CB_NewCGAAP_DepExp_Yr1'!O71-J71), 0, +I71+'App.2-CB_NewCGAAP_DepExp_Yr1'!O71-J71) -> 0
A72: WIP | B72: Work in Progress | C72: =SUM('App.2-BA_Fixed Asset Cont'!E142) -> 741545.11 | E72: 0 | F72: =IF(D72=0,+'App.2-CB_NewCGAAP_DepExp_Yr1'!O72,+'App.2-CB_NewCGAAP_DepExp_Yr1'!O72+((C72*0.5)/D72)) -> 0 | G72: =SUM('App.2-BA_Fixed Asset Cont'!J142)*-1 -> 0 | H72: 0 | I72: 0 | K72: =IF(ISERROR(+I72+'App.2-CB_NewCGAAP_DepExp_Yr1'!O72-J72), 0, +I72+'App.2-CB_NewCGAAP_DepExp_Yr1'!O72-J72) -> 0
B73: Total | C73: =SUM(C20:C72) -> 8559029.66 | D73: 0 | F73: =SUM(F20:F72) -> 3472781.98 | G73: 3588339.4 | H73: -115557.4196 | I73: 298906.8612 | J73: 135542.33 | K73: 3486693.081
A75: Notes:
A76: 1 | B76: Board policy of the "half-year" rule - the applicant must ensure that additions in the year attract a half-year depreciation expense in the first year. Deviations from this standard practice must be supported in the application.
A77: 2 | B77: The applicant must provide an explanation of material variances in evidence.
A78: 3 | B78: This column refers to the calculated full year depreciation but excludes the depreciation expense on assets fully depreciated during the year. This column is used for the purpose of calculating depreciation expense in the following year on the next worksheet.
A80: General: | B80: Applicants must provide a breakdown of depreciation and amortization expense in the above format for all relevant accounts. Asset Retirement Obligations (AROs), depreciation and accretion expense should be disclosed separately consistent with the Notes of historical Audited Financial Statements.

Sheet App.2-CD_DepExp_Yr3
J1: File Number: | K1: =EBNUMBER -> EB-2016-0105
J2: Exhibit: | K2: 4
J3: Tab:
J4: Attachment: | K4: 4-R
J5: Page:
J7: Date: | K7: =+'App.2-AA_Capital Projects'!$H$7 -> 2016-09-09
A9: Appendix 2-CD
A10: Depreciation and Amortization Expense
A11: Revised CGAAP or MIFRS (Year 3) 2015
A13: Select the set of appendices that apply | J13: Year Reflected in Schedule Below | K13: Accounting Standard
A14: 2012 Set of Appendices (2-CA to 2-CG) | C14: Assumes the applicant made capitalization and depreciation expense accounting policy changes under CGAAP effective January 1, 2012 and has adopted IFRS for financial reporting purposes effective January 1, 2015. Assumes that the applicant is reflecting these changes in a rebasing application for the first time. | J14: 2014 | K14: Revised CGAAP
A15: 2013 Set of Appendices (2-CA to 2-CF) | C15: Assumes the applicant made capitalization and depreciation expense accounting policy changes under CGAAP effective January 1, 2013 and has adopted IFRS for financial reporting purposes effective January 1, 2015. Assumes that the applicant is reflecting these changes in a rebasing application for the first time. | J15: 2015 | K15: MIFRS
A18: Account | B18: Description | C18: Additions | D18: Years (new additions only) | E18: Depreciation Rate on New Additions | F18: Current Year Depreciation Expense1 | G18: Depreciation Expense per Apppendix 2-BA Fixed Assets, Column J (l) | H18: Variance 2 | I18: Depreciation Expense on Current Full Year Additions | J18: Less Depreciation Expense on Assets Fully Depreciated During the Year (o) | K18: Current Full Year Depreciation 3
C19: (d) | D19: (f) | E19: (g) = 1 / (f) | F19: (h) = Prior Full Year Deprecation + ((d)*0.5)/(f) | H19: (m) = (h) - (l) | I19: (n)=((d))/(f) | K19: (p) = Prior Full Year Depreciation + (n) - (o)
A20: 1609 | B20: Hydro One Gate Station | C20: =SUM('App.2-BA_Fixed Asset Cont'!E168) -> 0 | D20: 25 | E20: =IF(D20=0,0,1/D20) -> 0.04 | F20: =IF(D20=0,+'App.2-CC_DepExp_Yr2'!K20,+'App.2-CC_DepExp_Yr2'!K20+((C20*0.5)/D20)) -> 50834.19065 | G20: =SUM('App.2-BA_Fixed Asset Cont'!J168)*-1 -> 50892.78 | H20: =IF(ISERROR(+F20-G20), 0, +F20-G20) -> -58.58935195 | I20: =IF(D20=0,0,+(C20)/D20) -> 0 | K20: =IF(ISERROR(+I20+'App.2-CC_DepExp_Yr2'!K20-J20), 0, +I20+'App.2-CC_DepExp_Yr2'!K20-J20) -> 50834.19065
A21: 1611 | B21: Computer Software (Formally known as Account 1925) | C21: =SUM('App.2-BA_Fixed Asset Cont'!E169) -> 53506.06 | D21: 2.05 | E21: =IF(D21=0,0,1/D21) -> 0.487804878 | F21: =IF(D21=0,+'App.2-CC_DepExp_Yr2'!K21,+'App.2-CC_DepExp_Yr2'!K21+((C21*0.5)/D21)) -> 60168.88497 | G21: =SUM('App.2-BA_Fixed Asset Cont'!J169)*-1 -> 57482.18 | H21: 2686.704968 | I21: 26100.51707 | J21: 36813.27 | K21: =IF(ISERROR(+I21+'App.2-CC_DepExp_Yr2'!K21-J21), 0, +I21+'App.2-CC_DepExp_Yr2'!K21-J21) -> 36405.8735
A22: 1612 | B22: Land Rights (Formally known as Account 1906) | C22: =SUM('App.2-BA_Fixed Asset Cont'!E170) -> 0 | E22: 0 | F22: =IF(D22=0,+'App.2-CC_DepExp_Yr2'!K22,+'App.2-CC_DepExp_Yr2'!K22+((C22*0.5)/D22)) -> 0 | G22: =SUM('App.2-BA_Fixed Asset Cont'!J170)*-1 -> 0 | H22: 0 | I22: 0 | K22: =IF(ISERROR(+I22+'App.2-CC_DepExp_Yr2'!K22-J22), 0, +I22+'App.2-CC_DepExp_Yr2'!K22-J22) -> 0
A23: 1805 | B23: Land | C23: =SUM('App.2-BA_Fixed Asset Cont'!E171) -> 0 | E23: 0 | F23: =IF(D23=0,+'App.2-CC_DepExp_Yr2'!K23,+'App.2-CC_DepExp_Yr2'!K23+((C23*0.5)/D23)) -> 0 | G23: =SUM('App.2-BA_Fixed Asset Cont'!J171)*-1 -> 0 | H23: 0 | I23: 0 | K23: =IF(ISERROR(+I23+'App.2-CC_DepExp_Yr2'!K23-J23), 0, +I23+'App.2-CC_DepExp_Yr2'!K23-J23) -> 0
A24: 1808 | B24: Buildings | C24: =SUM('App.2-BA_Fixed Asset Cont'!E172) -> 152835 | D24: 37.06 | E24: 0.02698327037 | F24: =IF(D24=0,+'App.2-CC_DepExp_Yr2'!K24,+'App.2-CC_DepExp_Yr2'!K24+((C24*0.5)/D24)) -> 178831.2374 | G24: =SUM('App.2-BA_Fixed Asset Cont'!J172)*-1 -> 191983.89 | H24: -13152.65257 | I24: 4123.988127 | K24: =IF(ISERROR(+I24+'App.2-CC_DepExp_Yr2'!K24-J24), 0, +I24+'App.2-CC_DepExp_Yr2'!K24-J24) -> 180893.2315
A25: 1810 | B25: Leasehold Improvements | C25: =SUM('App.2-BA_Fixed Asset Cont'!E173) -> 0 | D25: 5 | E25: 0.2 | F25: =IF(D25=0,+'App.2-CC_DepExp_Yr2'!K25,+'App.2-CC_DepExp_Yr2'!K25+((C25*0.5)/D25)) -> 2484.466744 | G25: =SUM('App.2-BA_Fixed Asset Cont'!J173)*-1 -> 0 | H25: 2484.466744 | I25: 0 | K25: =IF(ISERROR(+I25+'App.2-CC_DepExp_Yr2'!K25-J25), 0, +I25+'App.2-CC_DepExp_Yr2'!K25-J25) -> 2484.466744
A26: 1815 | B26: Transformer Station Equipment >50 kV | C26: =SUM('App.2-BA_Fixed Asset Cont'!E174) -> 0 | E26: 0 | F26: =IF(D26=0,+'App.2-CC_DepExp_Yr2'!K26,+'App.2-CC_DepExp_Yr2'!K26+((C26*0.5)/D26)) -> 0 | G26: =SUM('App.2-BA_Fixed Asset Cont'!J174)*-1 -> 0 | H26: 0 | I26: 0 | K26: =IF(ISERROR(+I26+'App.2-CC_DepExp_Yr2'!K26-J26), 0, +I26+'App.2-CC_DepExp_Yr2'!K26-J26) -> 0
A27: 1820 | B27: Distribution Station Equipment <50 kV | C27: =SUM('App.2-BA_Fixed Asset Cont'!E175) -> 0 | D27: 20 | E27: 0.05 | F27: =IF(D27=0,+'App.2-CC_DepExp_Yr2'!K27,+'App.2-CC_DepExp_Yr2'!K27+((C27*0.5)/D27)) -> 198760.341 | G27: =SUM('App.2-BA_Fixed Asset Cont'!J175)*-1 -> 200250.49 | H27: -1490.148953 | I27: 0 | J27: 40900.97 | K27: =IF(ISERROR(+I27+'App.2-CC_DepExp_Yr2'!K27-J27), 0, +I27+'App.2-CC_DepExp_Yr2'!K27-J27) -> 157859.371
A28: 1825 | B28: Storage Battery Equipment | C28: =SUM('App.2-BA_Fixed Asset Cont'!E176) -> 0 | E28: 0 | F28: =IF(D28=0,+'App.2-CC_DepExp_Yr2'!K28,+'App.2-CC_DepExp_Yr2'!K28+((C28*0.5)/D28)) -> 0 | G28: =SUM('App.2-BA_Fixed Asset Cont'!J176)*-1 -> 0 | H28: 0 | I28: 0 | K28: =IF(ISERROR(+I28+'App.2-CC_DepExp_Yr2'!K28-J28), 0, +I28+'App.2-CC_DepExp_Yr2'!K28-J28) -> 0
A29: 1830 | B29: Poles, Towers & Fixtures | C29: =SUM('App.2-BA_Fixed Asset Cont'!E177) -> 4241393.91 | D29: 40 | E29: 0.025 | F29: =IF(D29=0,+'App.2-CC_DepExp_Yr2'!K29,+'App.2-CC_DepExp_Yr2'!K29+((C29*0.5)/D29)) -> 817220.0285 | G29: =SUM('App.2-BA_Fixed Asset Cont'!J177)*-1 -> 855217.33 | H29: -37997.30146 | I29: 106034.8478 | J29: 59952 | K29: =IF(ISERROR(+I29+'App.2-CC_DepExp_Yr2'!K29-J29), 0, +I29+'App.2-CC_DepExp_Yr2'!K29-J29) -> 810285.4524
A30: 1835 | B30: Overhead Conductors & Devices | C30: =SUM('App.2-BA_Fixed Asset Cont'!E178)-C31 -> 572356.4 | D30: 40 | E30: 0.025 | F30: =IF(D30=0,+'App.2-CC_DepExp_Yr2'!K30,+'App.2-CC_DepExp_Yr2'!K30+((C30*0.5)/D30)) -> 82756.00963 | H30: 82756.00963 | I30: 14308.91 | J30: 14699 | K30: =IF(ISERROR(+I30+'App.2-CC_DepExp_Yr2'!K30-J30), 0, +I30+'App.2-CC_DepExp_Yr2'!K30-J30) -> 75211.46463
A31: 1835 | B31: Overhead Conductors & Devices - Conductor | C31: 1645917 | D31: 60 | E31: 0.01666666667 | F31: =IF(D31=0,+'App.2-CC_DepExp_Yr2'!K31,+'App.2-CC_DepExp_Yr2'!K31+((C31*0.5)/D31)) -> 336151.0735 | G31: =SUM('App.2-BA_Fixed Asset Cont'!J178)*-1 -> 475176.04 | H31: -139024.9665 | I31: 27431.95 | K31: =IF(ISERROR(+I31+'App.2-CC_DepExp_Yr2'!K31-J31), 0, +I31+'App.2-CC_DepExp_Yr2'!K31-J31) -> 349867.0485
A32: 1840 | B32: Underground Conduit - Ducts | C32: =SUM('App.2-BA_Fixed Asset Cont'!E179)-C33-C34 -> 787716.94 | D32: 80 | E32: 0.0125 | F32: =IF(D32=0,+'App.2-CC_DepExp_Yr2'!K32,+'App.2-CC_DepExp_Yr2'!K32+((C32*0.5)/D32)) -> 85230.44824 | G32: =SUM('App.2-BA_Fixed Asset Cont'!J179)*-1 -> 116164.12 | H32: -30933.67176 | I32: 9846.46175 | J32: 103 | K32: =IF(ISERROR(+I32+'App.2-CC_DepExp_Yr2'!K32-J32), 0, +I32+'App.2-CC_DepExp_Yr2'!K32-J32) -> 90050.67912
A33: 1840 | B33: Underground Conduit - Trenches | D33: 40 | E33: 0.025 | F33: =IF(D33=0,+'App.2-CC_DepExp_Yr2'!K33,+'App.2-CC_DepExp_Yr2'!K33+((C33*0.5)/D33)) -> 10729.44098 | H33: 10729.44098 | I33: 0 | K33: =IF(ISERROR(+I33+'App.2-CC_DepExp_Yr2'!K33-J33), 0, +I33+'App.2-CC_DepExp_Yr2'!K33-J33) -> 10729.44098
A34: 1840 | B34: Underground Conduit - Foundations | C34: 19945.45 | D34: 55 | E34: 0.01818181818 | F34: =IF(D34=0,+'App.2-CC_DepExp_Yr2'!K34,+'App.2-CC_DepExp_Yr2'!K34+((C34*0.5)/D34)) -> 18270.87539 | H34: 18270.87539 | I34: 362.6445455 | K34: =IF(ISERROR(+I34+'App.2-CC_DepExp_Yr2'!K34-J34), 0, +I34+'App.2-CC_DepExp_Yr2'!K34-J34) -> 18452.19767
A35: 1845 | B35: Underground Conductors & Devices - Cables in Duct | C35: =SUM('App.2-BA_Fixed Asset Cont'!E180)-C36-C37 -> 624897.44 | D35: 40 | E35: 0.025 | F35: =IF(D35=0,+'App.2-CC_DepExp_Yr2'!K35,+'App.2-CC_DepExp_Yr2'!K35+((C35*0.5)/D35)) -> 278945.6534 | G35: =SUM('App.2-BA_Fixed Asset Cont'!J180)*-1 -> 378574.59 | H35: -99628.9366 | I35: 15622.436 | J35: 3536 | K35: =IF(ISERROR(+I35+'App.2-CC_DepExp_Yr2'!K35-J35), 0, +I35+'App.2-CC_DepExp_Yr2'!K35-J35) -> 283220.8714
A36: 1845 | B36: Underground Conductors & Devices - Cables Direct Buried | D36: 30 | E36: 0.03333333333 | F36: =IF(D36=0,+'App.2-CC_DepExp_Yr2'!K36,+'App.2-CC_DepExp_Yr2'!K36+((C36*0.5)/D36)) -> 67648.84729 | H36: 67648.84729 | I36: 0 | J36: 19749 | K36: =IF(ISERROR(+I36+'App.2-CC_DepExp_Yr2'!K36-J36), 0, +I36+'App.2-CC_DepExp_Yr2'!K36-J36) -> 47899.84729
A37: 1845 | B37: Underground Conductors & Devices - UG Switchgear | C37: 24777.56 | D37: 30 | E37: 0.03333333333 | F37: =IF(D37=0,+'App.2-CC_DepExp_Yr2'!K37,+'App.2-CC_DepExp_Yr2'!K37+((C37*0.5)/D37)) -> 24640.24437 | H37: 24640.24437 | I37: 825.9186667 | K37: =IF(ISERROR(+I37+'App.2-CC_DepExp_Yr2'!K37-J37), 0, +I37+'App.2-CC_DepExp_Yr2'!K37-J37) -> 25053.20371
A38: 1850 | B38: Line Transformers | C38: =SUM('App.2-BA_Fixed Asset Cont'!E181) -> 1539937.15 | D38: 40 | E38: 0.025 | F38: =IF(D38=0,+'App.2-CC_DepExp_Yr2'!K38,+'App.2-CC_DepExp_Yr2'!K38+((C38*0.5)/D38)) -> 558206.8286 | G38: =SUM('App.2-BA_Fixed Asset Cont'!J181)*-1 -> 535007.85 | H38: 23198.97863 | I38: 38498.42875 | J38: 57069 | K38: =IF(ISERROR(+I38+'App.2-CC_DepExp_Yr2'!K38-J38), 0, +I38+'App.2-CC_DepExp_Yr2'!K38-J38) -> 520387.043
A39: 1850 | B39: ARO | C39: =SUM('App.2-BA_Fixed Asset Cont'!E182) -> -26685.93 | D39: 11.18 | E39: 0.08944543828 | F39: =IF(D39=0,+'App.2-CC_DepExp_Yr2'!K39,+'App.2-CC_DepExp_Yr2'!K39+((C39*0.5)/D39)) -> 12848.73748 | G39: =SUM('App.2-BA_Fixed Asset Cont'!J182)*-1 -> 14120 | H39: -1271.262522 | I39: -2386.934705 | K39: =IF(ISERROR(+I39+'App.2-CC_DepExp_Yr2'!K39-J39), 0, +I39+'App.2-CC_DepExp_Yr2'!K39-J39) -> 11655.27013
A40: 1855 | B40: Services Overhead | C40: =SUM('App.2-BA_Fixed Asset Cont'!E183)-C41-C42 -> 124928.43 | D40: 40 | E40: 0.025 | F40: =IF(D40=0,+'App.2-CC_DepExp_Yr2'!K40,+'App.2-CC_DepExp_Yr2'!K40+((C40*0.5)/D40)) -> 82357.78087 | G40: =SUM('App.2-BA_Fixed Asset Cont'!J183)*-1 -> 238636.02 | H40: -156278.2391 | I40: 3123.21075 | J40: 803 | K40: =IF(ISERROR(+I40+'App.2-CC_DepExp_Yr2'!K40-J40), 0, +I40+'App.2-CC_DepExp_Yr2'!K40-J40) -> 83116.38624
A41: 1855 | B41: Services Underground - In duct | C41: 290450.22 | D41: 40 | E41: 0.025 | F41: =IF(D41=0,+'App.2-CC_DepExp_Yr2'!K41,+'App.2-CC_DepExp_Yr2'!K41+((C41*0.5)/D41)) -> 87938.84648 | H41: 87938.84648 | I41: 7261.2555 | K41: =IF(ISERROR(+I41+'App.2-CC_DepExp_Yr2'!K41-J41), 0, +I41+'App.2-CC_DepExp_Yr2'!K41-J41) -> 91569.47423
A42: 1855 | B42: Services Underground - Direct Buried | D42: 30 | E42: 0.03333333333 | F42: =IF(D42=0,+'App.2-CC_DepExp_Yr2'!K42,+'App.2-CC_DepExp_Yr2'!K42+((C42*0.5)/D42)) -> 13425.80966 | H42: 13425.80966 | I42: 0 | K42: =IF(ISERROR(+I42+'App.2-CC_DepExp_Yr2'!K42-J42), 0, +I42+'App.2-CC_DepExp_Yr2'!K42-J42) -> 13425.80966
A43: 1860 | B43: Meters - Industrial/Commercial Energy Meters | D43: 35 | E43: 0.02857142857 | F43: =IF(D43=0,+'App.2-CC_DepExp_Yr2'!K43,+'App.2-CC_DepExp_Yr2'!K43+((C43*0.5)/D43)) -> 13180.9161 | H43: 13180.9161 | I43: 0 | J43: 22 | K43: =IF(ISERROR(+I43+'App.2-CC_DepExp_Yr2'!K43-J43), 0, +I43+'App.2-CC_DepExp_Yr2'!K43-J43) -> 13158.9161
A44: 1860 | B44: Meters - CT PT's | C44: 5835.58 | D44: 50 | E44: 0.02 | F44: =IF(D44=0,+'App.2-CC_DepExp_Yr2'!K44,+'App.2-CC_DepExp_Yr2'!K44+((C44*0.5)/D44)) -> 3412.073853 | H44: 3412.073853 | I44: 116.7116 | K44: =IF(ISERROR(+I44+'App.2-CC_DepExp_Yr2'!K44-J44), 0, +I44+'App.2-CC_DepExp_Yr2'!K44-J44) -> 3470.429653
A45: 1860 | B45: Meters - Primary | D45: 50 | E45: 0.02 | F45: =IF(D45=0,+'App.2-CC_DepExp_Yr2'!K45,+'App.2-CC_DepExp_Yr2'!K45+((C45*0.5)/D45)) -> 3463.151117 | H45: 3463.151117 | I45: 0 | K45: =IF(ISERROR(+I45+'App.2-CC_DepExp_Yr2'!K45-J45), 0, +I45+'App.2-CC_DepExp_Yr2'!K45-J45) -> 3463.151117
A46: 1860 | B46: Meters - Smart Meters | C46: =SUM('App.2-BA_Fixed Asset Cont'!E184)-C43-C44-C45-C47 -> 548833.9 | D46: 15 | E46: 0.06666666667 | F46: =IF(D46=0,+'App.2-CC_DepExp_Yr2'!K46,+'App.2-CC_DepExp_Yr2'!K46+((C46*0.5)/D46)) -> 541398.2135 | G46: =SUM('App.2-BA_Fixed Asset Cont'!J184)*-1 -> 564951.36 | H46: -23553.1465 | I46: 36588.92667 | J46: 15 | K46: =IF(ISERROR(+I46+'App.2-CC_DepExp_Yr2'!K46-J46), 0, +I46+'App.2-CC_DepExp_Yr2'!K46-J46) -> 559677.6768
A47: 1860 | B47: Meters - Repeaters & Collectors | D47: 15 | E47: 0.06666666667 | F47: =IF(D47=0,+'App.2-CC_DepExp_Yr2'!K47,+'App.2-CC_DepExp_Yr2'!K47+((C47*0.5)/D47)) -> 50136.9119 | H47: 50136.9119 | I47: 0 | K47: =IF(ISERROR(+I47+'App.2-CC_DepExp_Yr2'!K47-J47), 0, +I47+'App.2-CC_DepExp_Yr2'!K47-J47) -> 50136.9119
A48: 1905 | B48: Land | C48: =SUM('App.2-BA_Fixed Asset Cont'!E186) -> 0 | E48: 0 | F48: =IF(D48=0,+'App.2-CC_DepExp_Yr2'!K48,+'App.2-CC_DepExp_Yr2'!K48+((C48*0.5)/D48)) -> 0 | H48: 0 | I48: 0 | K48: =IF(ISERROR(+I48+'App.2-CC_DepExp_Yr2'!K48-J48), 0, +I48+'App.2-CC_DepExp_Yr2'!K48-J48) -> 0
A49: 1908 | B49: Buildings & Fixtures | C49: =SUM('App.2-BA_Fixed Asset Cont'!E187) -> 0 | E49: 0 | F49: =IF(D49=0,+'App.2-CC_DepExp_Yr2'!K49,+'App.2-CC_DepExp_Yr2'!K49+((C49*0.5)/D49)) -> 0 | H49: 0 | I49: 0 | K49: =IF(ISERROR(+I49+'App.2-CC_DepExp_Yr2'!K49-J49), 0, +I49+'App.2-CC_DepExp_Yr2'!K49-J49) -> 0
A50: 1910 | B50: Leasehold Improvements | C50: =SUM('App.2-BA_Fixed Asset Cont'!E188) -> 0 | E50: 0 | F50: =IF(D50=0,+'App.2-CC_DepExp_Yr2'!K50,+'App.2-CC_DepExp_Yr2'!K50+((C50*0.5)/D50)) -> 0 | H50: 0 | I50: 0 | K50: =IF(ISERROR(+I50+'App.2-CC_DepExp_Yr2'!K50-J50), 0, +I50+'App.2-CC_DepExp_Yr2'!K50-J50) -> 0
A51: 1915 | B51: Office Furniture & Equipment | C51: =SUM('App.2-BA_Fixed Asset Cont'!E189) -> 114528.03 | D51: 10 | E51: 0.1 | F51: =IF(D51=0,+'App.2-CC_DepExp_Yr2'!K51,+'App.2-CC_DepExp_Yr2'!K51+((C51*0.5)/D51)) -> 47390.23101 | G51: =SUM('App.2-BA_Fixed Asset Cont'!J189)*-1 -> 48133.87 | H51: -743.6389876 | I51: 11452.803 | J51: 1729.18 | K51: =IF(ISERROR(+I51+'App.2-CC_DepExp_Yr2'!K51-J51), 0, +I51+'App.2-CC_DepExp_Yr2'!K51-J51) -> 51387.45251
A52: 1920 | B52: Computer Equipment - Hardware | C52: =SUM('App.2-BA_Fixed Asset Cont'!E191)-C53-C54 -> 83078.23 | D52: 5 | E52: 0.2 | F52: =IF(D52=0,+'App.2-CC_DepExp_Yr2'!K52,+'App.2-CC_DepExp_Yr2'!K52+((C52*0.5)/D52)) -> 83836.98102 | G52: =SUM('App.2-BA_Fixed Asset Cont'!J191)*-1 -> 115757.26 | H52: -31920.27898 | I52: 16615.646 | J52: 12918.7 | K52: =IF(ISERROR(+I52+'App.2-CC_DepExp_Yr2'!K52-J52), 0, +I52+'App.2-CC_DepExp_Yr2'!K52-J52) -> 79226.10402
A53: 1920 | B53: Computer Equip.-Hardware PC's | C53: 35464 | D53: 3 | E53: 0.3333333333 | F53: =IF(D53=0,+'App.2-CC_DepExp_Yr2'!K53,+'App.2-CC_DepExp_Yr2'!K53+((C53*0.5)/D53)) -> 27981.97667 | H53: 27981.97667 | I53: 11821.33333 | J53: 0 | K53: =IF(ISERROR(+I53+'App.2-CC_DepExp_Yr2'!K53-J53), 0, +I53+'App.2-CC_DepExp_Yr2'!K53-J53) -> 33892.64333
A54: 1920 | B54: Computer Equip.-Hardware Printers | C54: 18989 | D54: 5 | E54: 0.2 | F54: =IF(D54=0,+'App.2-CC_DepExp_Yr2'!K54,+'App.2-CC_DepExp_Yr2'!K54+((C54*0.5)/D54)) -> 6085.612 | H54: 6085.612 | I54: 3797.8 | J54: 0 | K54: =IF(ISERROR(+I54+'App.2-CC_DepExp_Yr2'!K54-J54), 0, +I54+'App.2-CC_DepExp_Yr2'!K54-J54) -> 7984.512
A55: 1930 | B55: Trailers 10 Yrs | D55: 10 | E55: 0.1 | F55: =IF(D55=0,+'App.2-CC_DepExp_Yr2'!K56,+'App.2-CC_DepExp_Yr2'!K56+((C55*0.5)/D55)) -> 386.2246154 | H55: 386.2246154 | I55: 0 | K55: =IF(ISERROR(+I55+'App.2-CC_DepExp_Yr2'!K55-J55), 0, +I55+'App.2-CC_DepExp_Yr2'!K55-J55) -> 9071.163588
A56: 1930 | B56: Trailers 20 Yrs | D56: 20 | E56: 0.05 | F56: =IF(D56=0,+'App.2-CC_DepExp_Yr2'!K57,+'App.2-CC_DepExp_Yr2'!K57+((C56*0.5)/D56)) -> 52091.47423 | H56: 52091.47423 | I56: 0 | K56: =IF(ISERROR(+I56+'App.2-CC_DepExp_Yr2'!K56-J56), 0, +I56+'App.2-CC_DepExp_Yr2'!K56-J56) -> 386.2246154
A57: 1930 | B57: Trucks < 3 Tons | C57: 3473.45 | D57: 12 | E57: 0.08333333333 | F57: =IF(D57=0,+'App.2-CC_DepExp_Yr2'!K58,+'App.2-CC_DepExp_Yr2'!K58+((C57*0.5)/D57)) -> 206508.9283 | G57: =SUM('App.2-BA_Fixed Asset Cont'!J194)*-1 -> 260569.31 | H57: -54060.38167 | I57: 289.4541667 | K57: =IF(ISERROR(+I57+'App.2-CC_DepExp_Yr2'!K57-J57), 0, +I57+'App.2-CC_DepExp_Yr2'!K57-J57) -> 52380.92839
A58: 1930 | B58: Trucks > 3 Tons | C58: 481964.68 | D58: 15 | E58: 0.06666666667 | F58: =IF(D58=0,+'App.2-CC_DepExp_Yr2'!K59,+'App.2-CC_DepExp_Yr2'!K59+((C58*0.5)/D58)) -> 16065.19933 | H58: 16065.19933 | I58: 32130.97867 | K58: =IF(ISERROR(+I58+'App.2-CC_DepExp_Yr2'!K58-J58), 0, +I58+'App.2-CC_DepExp_Yr2'!K58-J58) -> 238495.1799
A59: 1935 | B59: Stores Equipment | C59: =SUM('App.2-BA_Fixed Asset Cont'!E195) -> 0 | D59: 10 | E59: 0.1 | F59: =IF(D59=0,+'App.2-CC_DepExp_Yr2'!K59,+'App.2-CC_DepExp_Yr2'!K59+((C59*0.5)/D59)) -> -0.29 | G59: =SUM('App.2-BA_Fixed Asset Cont'!J195)*-1 -> 0 | H59: -0.29 | I59: 0 | K59: =IF(ISERROR(+I59+'App.2-CC_DepExp_Yr2'!K59-J59), 0, +I59+'App.2-CC_DepExp_Yr2'!K59-J59) -> -0.29
A60: 1940 | B60: Tools, Shop & Garage Equipment | C60: =SUM('App.2-BA_Fixed Asset Cont'!E196) -> 158840.73 | D60: 10 | E60: 0.1 | F60: =IF(D60=0,+'App.2-CC_DepExp_Yr2'!K60,+'App.2-CC_DepExp_Yr2'!K60+((C60*0.5)/D60)) -> 57167.03951 | G60: =SUM('App.2-BA_Fixed Asset Cont'!J196)*-1 -> 62121.71 | H60: -4954.670488 | I60: 15884.073 | J60: 3931.58 | K60: =IF(ISERROR(+I60+'App.2-CC_DepExp_Yr2'!K60-J60), 0, +I60+'App.2-CC_DepExp_Yr2'!K60-J60) -> 61177.49601
A61: 1945 | B61: Measurement & Testing Equipment | C61: =SUM('App.2-BA_Fixed Asset Cont'!E197) -> 41458.24 | D61: 10 | E61: 0.1 | F61: =IF(D61=0,+'App.2-CC_DepExp_Yr2'!K61,+'App.2-CC_DepExp_Yr2'!K61+((C61*0.5)/D61)) -> 21299.60386 | G61: =SUM('App.2-BA_Fixed Asset Cont'!J197)*-1 -> 24684.09 | H61: -3384.486141 | I61: 4145.824 | J61: 503.28 | K61: =IF(ISERROR(+I61+'App.2-CC_DepExp_Yr2'!K61-J61), 0, +I61+'App.2-CC_DepExp_Yr2'!K61-J61) -> 22869.23586
A62: 1950 | B62: Power Operated Equipment | C62: =SUM('App.2-BA_Fixed Asset Cont'!E198) -> 196682.41 | D62: 10 | E62: 0.1 | F62: =IF(D62=0,+'App.2-CC_DepExp_Yr2'!K62,+'App.2-CC_DepExp_Yr2'!K62+((C62*0.5)/D62)) -> 30780.08561 | G62: =SUM('App.2-BA_Fixed Asset Cont'!J198)*-1 -> 32050.5 | H62: -1270.414393 | I62: 19668.241 | K62: =IF(ISERROR(+I62+'App.2-CC_DepExp_Yr2'!K62-J62), 0, +I62+'App.2-CC_DepExp_Yr2'!K62-J62) -> 40614.20611
A63: 1955 | B63: Communications Equipment | C63: =SUM('App.2-BA_Fixed Asset Cont'!E199) -> 4150 | D63: 5 | E63: 0.2 | F63: =IF(D63=0,+'App.2-CC_DepExp_Yr2'!K63,+'App.2-CC_DepExp_Yr2'!K63+((C63*0.5)/D63)) -> 27889.46043 | G63: =SUM('App.2-BA_Fixed Asset Cont'!J199)*-1 -> 27180.65 | H63: 708.8104329 | I63: 830 | J63: 4628.26 | K63: =IF(ISERROR(+I63+'App.2-CC_DepExp_Yr2'!K63-J63), 0, +I63+'App.2-CC_DepExp_Yr2'!K63-J63) -> 23676.20043
A64: 1960 | B64: Miscellaneous Equipment | C64: =SUM('App.2-BA_Fixed Asset Cont'!E201) -> 0 | E64: 0 | F64: =IF(D64=0,+'App.2-CC_DepExp_Yr2'!K64,+'App.2-CC_DepExp_Yr2'!K64+((C64*0.5)/D64)) -> 0 | G64: =SUM('App.2-BA_Fixed Asset Cont'!J201)*-1 -> 0 | H64: 0 | I64: 0 | K64: =IF(ISERROR(+I64+'App.2-CC_DepExp_Yr2'!K64-J64), 0, +I64+'App.2-CC_DepExp_Yr2'!K64-J64) -> 0
A65: 1970 | B65: Load Management Controls Customer Premises | C65: =SUM('App.2-BA_Fixed Asset Cont'!E202) -> 0 | E65: 0 | F65: =IF(D65=0,+'App.2-CC_DepExp_Yr2'!K65,+'App.2-CC_DepExp_Yr2'!K65+((C65*0.5)/D65)) -> 0 | G65: =SUM('App.2-BA_Fixed Asset Cont'!J202)*-1 -> 0 | H65: 0 | I65: 0 | K65: =IF(ISERROR(+I65+'App.2-CC_DepExp_Yr2'!K65-J65), 0, +I65+'App.2-CC_DepExp_Yr2'!K65-J65) -> 0
A66: 1975 | B66: Load Management Controls Utility Premises | C66: =SUM('App.2-BA_Fixed Asset Cont'!E203) -> 0 | E66: 0 | F66: =IF(D66=0,+'App.2-CC_DepExp_Yr2'!K66,+'App.2-CC_DepExp_Yr2'!K66+((C66*0.5)/D66)) -> 0 | G66: =SUM('App.2-BA_Fixed Asset Cont'!J203)*-1 -> 0 | H66: 0 | I66: 0 | K66: =IF(ISERROR(+I66+'App.2-CC_DepExp_Yr2'!K66-J66), 0, +I66+'App.2-CC_DepExp_Yr2'!K66-J66) -> 0
A67: 1980 | B67: System Supervisor Equipment | C67: =SUM('App.2-BA_Fixed Asset Cont'!E204) -> 0 | D67: 20 | E67: 0.05 | F67: =IF(D67=0,+'App.2-CC_DepExp_Yr2'!K67,+'App.2-CC_DepExp_Yr2'!K67+((C67*0.5)/D67)) -> 34282.75589 | G67: =SUM('App.2-BA_Fixed Asset Cont'!J204)*-1 -> 24857.7 | H67: 9425.055892 | I67: 0 | K67: =IF(ISERROR(+I67+'App.2-CC_DepExp_Yr2'!K67-J67), 0, +I67+'App.2-CC_DepExp_Yr2'!K67-J67) -> 34282.75589
A68: 1985 | B68: Miscellaneous Fixed Assets | C68: =SUM('App.2-BA_Fixed Asset Cont'!E205) -> 0 | E68: 0 | F68: =IF(D68=0,+'App.2-CC_DepExp_Yr2'!K68,+'App.2-CC_DepExp_Yr2'!K68+((C68*0.5)/D68)) -> 0 | G68: =SUM('App.2-BA_Fixed Asset Cont'!J205)*-1 -> 0 | H68: 0 | I68: 0 | K68: =IF(ISERROR(+I68+'App.2-CC_DepExp_Yr2'!K68-J68), 0, +I68+'App.2-CC_DepExp_Yr2'!K68-J68) -> 0
A69: 1990 | B69: Other Tangible Property | C69: =SUM('App.2-BA_Fixed Asset Cont'!E206) -> 0 | E69: 0 | F69: =IF(D69=0,+'App.2-CC_DepExp_Yr2'!K69,+'App.2-CC_DepExp_Yr2'!K69+((C69*0.5)/D69)) -> 0 | G69: =SUM('App.2-BA_Fixed Asset Cont'!J206)*-1 -> 0 | H69: 0 | I69: 0 | K69: =IF(ISERROR(+I69+'App.2-CC_DepExp_Yr2'!K69-J69), 0, +I69+'App.2-CC_DepExp_Yr2'!K69-J69) -> 0
A70: 1995 | B70: Contributions & Grants | C70: =SUM('App.2-BA_Fixed Asset Cont'!E207) -> -1984670.78 | D70: 41.18 | E70: 0.02428363283 | F70: =IF(D70=0,+'App.2-CC_DepExp_Yr2'!K70,+'App.2-CC_DepExp_Yr2'!K70+((C70*0.5)/D70)) -> -535034.4623 | G70: =SUM('App.2-BA_Fixed Asset Cont'!J207)*-1 -> -504470.93 | H70: -30563.53229 | I70: -48195.01651 | K70: =IF(ISERROR(+I70+'App.2-CC_DepExp_Yr2'!K70-J70), 0, +I70+'App.2-CC_DepExp_Yr2'!K70-J70) -> -559131.9705
A71: 2440 | B71: Deferred Revenue5 | C71: =SUM('App.2-BA_Fixed Asset Cont'!E208) -> 0 | E71: 0 | F71: =IF(D71=0,+'App.2-CC_DepExp_Yr2'!K71,+'App.2-CC_DepExp_Yr2'!K71+((C71*0.5)/D71)) -> 0 | G71: =SUM('App.2-BA_Fixed Asset Cont'!J208)*-1 -> 0 | H71: 0 | I71: 0 | K71: =IF(ISERROR(+I71+'App.2-CC_DepExp_Yr2'!K71-J71), 0, +I71+'App.2-CC_DepExp_Yr2'!K71-J71) -> 0
A72: WIP | B72: Work in Progress | C72: =SUM('App.2-BA_Fixed Asset Cont'!E209) -> 125762.11 | E72: =IF(D72=0,0,1/D72) -> 0 | F72: =IF(D72=0,+'App.2-CC_DepExp_Yr2'!K72,+'App.2-CC_DepExp_Yr2'!K72+((C72*0.5)/D72)) -> 0 | G72: =SUM('App.2-BA_Fixed Asset Cont'!J209)*-1 -> 0 | H72: =IF(ISERROR(+F72-G72), 0, +F72-G72) -> 0 | I72: =IF(D72=0,0,+(C72)/D72) -> 0 | K72: =IF(ISERROR(+I72+'App.2-CC_DepExp_Yr2'!K72-J72), 0, +I72+'App.2-CC_DepExp_Yr2'!K72-J72) -> 0
B73: Total | C73: =SUM(C20:C72) -> 9886365.21 | F73: =SUM(F20:F72) -> 3655771.832 | G73: 3769340.81 | H73: -113568.978 | I73: 356300.4091 | J73: 257373.24 | K73: 3585620.25
B74: Depreciation exp. adj. from gain or loss on the retirement of assets (pool of like assets) (under MIFRS)
B75: Total Depreciation Expense | F75: =+F74+F73 -> 3655771.832
A77: Notes:
A78: 1 | B78: Board policy of the "half-year" rule - the applicant must ensure that additions in the year attract a half-year depreciation expense in the first year. Deviations from this standard practice must be supported in the application.
A79: 2 | B79: The applicant must provide an explanation of material variances in evidence.
A80: 3 | B80: This column refers to the calculated full year depreciation but excludes the depreciation expense on assets fully depreciated during the year. This column is used for the purpose of calculating depreciation expense in the following year on the next worksheet.
A82: General: | B82: Applicants must provide a breakdown of depreciation and amortization expense in the above format for all relevant accounts. Asset Retirement Obligations (AROs), depreciation and accretion expense should be disclosed separately consistent with the Notes of historical Audited Financial Statements.

Sheet App.2-CE_DepExp_Yr4
J1: File Number: | K1: =EBNUMBER -> EB-2016-0105
J2: Exhibit: | K2: 4
J3: Tab:
J4: Attachment: | K4: 4-S
J5: Page:
J7: Date: | K7: =+'App.2-CD_DepExp_Yr3'!K7 -> 2016-09-09
A9: Appendix 2-CE
A10: Depreciation and Amortization Expense
A11: MIFRS (Year 4) 2016
A13: Select the set of appendices that apply | J13: Year Reflected in Schedule Below | K13: Accounting Standard
A14: 2012 Set of Appendices (2-CA to 2-CG) | C14: Assumes the applicant made capitalization and depreciation expense accounting policy changes under CGAAP effective January 1, 2012 and has adopted IFRS for financial reporting purposes effective January 1, 2015. Assumes that the applicant is reflecting these changes in a rebasing application for the first time. | J14: 2015 | K14: MIFRS
A15: 2013 Set of Appendices (2-CA to 2-CF) | C15: Assumes the applicant made capitalization and depreciation expense accounting policy changes under CGAAP effective January 1, 2013 and has adopted IFRS for financial reporting purposes effective January 1, 2015. Assumes that the applicant is reflecting these changes in a rebasing application for the first time. | J15: 2016 | K15: MIFRS
A18: Account | B18: Description | C18: Additions | D18: Years (new additions only) | E18: Depreciation Rate on New Additions | F18: Current Year Depreciation Expense1 | G18: Depreciation Expense per Appendix 2-BA Fixed Assets, Column J (l) | H18: Variance 2 | I18: Depreciation Expense on Current Full Year Additions | J18: Less Depreciation Expense on Assets Fully Depreciated During the Year (o) | K18: Current Full Year Depreciation 3
C19: (d) | D19: (f) | E19: (g) = 1 / (f) | F19: (h)=Prior Full Year Depreciation + ((d)*0.5)/(f) | H19: (m) = (h) - (l) | I19: (n)=((d))/(f) | K19: (p) = Prior Full Year Depreciation + (n) - (o)
A20: 1609 | B20: Hydro One Gate Station | C20: =SUM('App.2-BA_Fixed Asset Cont'!E233) -> 0 | D20: 25 | E20: =IF(D20=0,0,1/D20) -> 0.04 | F20: =IF(D20=0,'App.2-CD_DepExp_Yr3'!K20,+'App.2-CD_DepExp_Yr3'!K20+((C20*0.5)/D20)) -> 50834.19065 | G20: =SUM('App.2-BA_Fixed Asset Cont'!J233)*-1 -> 50893 | H20: =IF(ISERROR(+F20-G20), 0, +F20-G20) -> -58.80935195 | I20: =IF(D20=0,0,+(C20)/D20) -> 0 | K20: =IF(ISERROR(+I20+'App.2-CD_DepExp_Yr3'!K20-J20), 0, +I20+'App.2-CD_DepExp_Yr3'!K20-J20) -> 50834.19065
A21: 1611 | B21: Computer Software (Formally known as Account 1925) | C21: =SUM('App.2-BA_Fixed Asset Cont'!E234) -> 77000 | D21: 2.24 | E21: =IF(D21=0,0,1/D21) -> 0.4464285714 | F21: =IF(D21=0,'App.2-CD_DepExp_Yr3'!K21,+'App.2-CD_DepExp_Yr3'!K21+((C21*0.5)/D21)) -> 53593.3735 | G21: =SUM('App.2-BA_Fixed Asset Cont'!J234)*-1 -> 73141 | H21: -19547.6265 | I21: 34375 | J21: 38519.33 | K21: =IF(ISERROR(+I21+'App.2-CD_DepExp_Yr3'!K21-J21), 0, +I21+'App.2-CD_DepExp_Yr3'!K21-J21) -> 32261.5435
A22: 1612 | B22: Land Rights (Formally known as Account 1906) | C22: =SUM('App.2-BA_Fixed Asset Cont'!E235) -> 0 | E22: 0 | F22: =IF(D22=0,'App.2-CD_DepExp_Yr3'!K22,+'App.2-CD_DepExp_Yr3'!K22+((C22*0.5)/D22)) -> 0 | G22: =SUM('App.2-BA_Fixed Asset Cont'!J235)*-1 -> 0 | H22: 0 | I22: 0 | K22: =IF(ISERROR(+I22+'App.2-CD_DepExp_Yr3'!K22-J22), 0, +I22+'App.2-CD_DepExp_Yr3'!K22-J22) -> 0
A23: 1805 | B23: Land | C23: =SUM('App.2-BA_Fixed Asset Cont'!E236) -> 0 | E23: 0 | F23: =IF(D23=0,'App.2-CD_DepExp_Yr3'!K23,+'App.2-CD_DepExp_Yr3'!K23+((C23*0.5)/D23)) -> 0 | G23: =SUM('App.2-BA_Fixed Asset Cont'!J236)*-1 -> 0 | H23: 0 | I23: 0 | K23: =IF(ISERROR(+I23+'App.2-CD_DepExp_Yr3'!K23-J23), 0, +I23+'App.2-CD_DepExp_Yr3'!K23-J23) -> 0
A24: 1808 | B24: Buildings | C24: =SUM('App.2-BA_Fixed Asset Cont'!E237) -> 81000 | D24: 25 | E24: 0.04 | F24: =IF(D24=0,'App.2-CD_DepExp_Yr3'!K24,+'App.2-CD_DepExp_Yr3'!K24+((C24*0.5)/D24)) -> 182513.2315 | G24: =SUM('App.2-BA_Fixed Asset Cont'!J237)*-1 -> 193682 | H24: -11168.76851 | I24: 3240 | K24: =IF(ISERROR(+I24+'App.2-CD_DepExp_Yr3'!K24-J24), 0, +I24+'App.2-CD_DepExp_Yr3'!K24-J24) -> 184133.2315
A25: 1810 | B25: Leasehold Improvements | C25: =SUM('App.2-BA_Fixed Asset Cont'!E238) -> 50000 | D25: 25 | E25: 0.04 | F25: =IF(D25=0,'App.2-CD_DepExp_Yr3'!K25,+'App.2-CD_DepExp_Yr3'!K25+((C25*0.5)/D25)) -> 3484.466744 | G25: =SUM('App.2-BA_Fixed Asset Cont'!J238)*-1 -> 1000 | H25: 2484.466744 | I25: 2000 | K25: =IF(ISERROR(+I25+'App.2-CD_DepExp_Yr3'!K25-J25), 0, +I25+'App.2-CD_DepExp_Yr3'!K25-J25) -> 4484.466744
A26: 1815 | B26: Transformer Station Equipment >50 kV | C26: =SUM('App.2-BA_Fixed Asset Cont'!E239) -> 0 | E26: 0 | F26: =IF(D26=0,'App.2-CD_DepExp_Yr3'!K26,+'App.2-CD_DepExp_Yr3'!K26+((C26*0.5)/D26)) -> 0 | G26: =SUM('App.2-BA_Fixed Asset Cont'!J239)*-1 -> 0 | H26: 0 | I26: 0 | K26: =IF(ISERROR(+I26+'App.2-CD_DepExp_Yr3'!K26-J26), 0, +I26+'App.2-CD_DepExp_Yr3'!K26-J26) -> 0
A27: 1820 | B27: Distribution Station Equipment <50 kV | C27: =SUM('App.2-BA_Fixed Asset Cont'!E240) -> 0 | D27: 20 | E27: 0.05 | F27: =IF(D27=0,'App.2-CD_DepExp_Yr3'!K27,+'App.2-CD_DepExp_Yr3'!K27+((C27*0.5)/D27)) -> 157859.371 | G27: =SUM('App.2-BA_Fixed Asset Cont'!J240)*-1 -> 200251 | H27: -42391.62895 | I27: 0 | K27: =IF(ISERROR(+I27+'App.2-CD_DepExp_Yr3'!K27-J27), 0, +I27+'App.2-CD_DepExp_Yr3'!K27-J27) -> 157859.371
A28: 1825 | B28: Storage Battery Equipment | C28: =SUM('App.2-BA_Fixed Asset Cont'!E241) -> 0 | E28: 0 | F28: =IF(D28=0,'App.2-CD_DepExp_Yr3'!K28,+'App.2-CD_DepExp_Yr3'!K28+((C28*0.5)/D28)) -> 0 | G28: =SUM('App.2-BA_Fixed Asset Cont'!J241)*-1 -> 0 | H28: 0 | I28: 0 | K28: =IF(ISERROR(+I28+'App.2-CD_DepExp_Yr3'!K28-J28), 0, +I28+'App.2-CD_DepExp_Yr3'!K28-J28) -> 0
A29: 1830 | B29: Poles, Towers & Fixtures | C29: =SUM('App.2-BA_Fixed Asset Cont'!E242) -> 3043610 | D29: 40 | E29: 0.025 | F29: =IF(D29=0,'App.2-CD_DepExp_Yr3'!K29,+'App.2-CD_DepExp_Yr3'!K29+((C29*0.5)/D29)) -> 848330.5774 | G29: =SUM('App.2-BA_Fixed Asset Cont'!J242)*-1 -> 908347 | H29: -60016.42258 | I29: 76090.25 | J29: 69615 | K29: =IF(ISERROR(+I29+'App.2-CD_DepExp_Yr3'!K29-J29), 0, +I29+'App.2-CD_DepExp_Yr3'!K29-J29) -> 816760.7024
A30: 1835 | B30: Overhead Conductors & Devices | C30: =SUM('App.2-BA_Fixed Asset Cont'!E243)-C31 -> 951183.5 | D30: 40 | E30: 0.025 | F30: =IF(D30=0,'App.2-CD_DepExp_Yr3'!K30,+'App.2-CD_DepExp_Yr3'!K30+((C30*0.5)/D30)) -> 87101.25838 | H30: 87101.25838 | I30: 23779.5875 | K30: =IF(ISERROR(+I30+'App.2-CD_DepExp_Yr3'!K30-J30), 0, +I30+'App.2-CD_DepExp_Yr3'!K30-J30) -> 98991.05213
A31: 1835 | B31: Overhead Conductors & Devices - Conductor | C31: =3804734*0.75 -> 2853550.5 | D31: 60 | E31: 0.01666666667 | F31: =IF(D31=0,'App.2-CD_DepExp_Yr3'!K31,+'App.2-CD_DepExp_Yr3'!K31+((C31*0.5)/D31)) -> 373646.636 | G31: =SUM('App.2-BA_Fixed Asset Cont'!J243)*-1 -> 504696 | H31: -131049.364 | I31: 47559.175 | J31: 58955 | K31: =IF(ISERROR(+I31+'App.2-CD_DepExp_Yr3'!K31-J31), 0, +I31+'App.2-CD_DepExp_Yr3'!K31-J31) -> 338471.2235
A32: 1840 | B32: Underground Conduit - Ducts | C32: =SUM('App.2-BA_Fixed Asset Cont'!E244) -> 359914 | D32: 80 | E32: 0.0125 | F32: =IF(D32=0,'App.2-CD_DepExp_Yr3'!K32,+'App.2-CD_DepExp_Yr3'!K32+((C32*0.5)/D32)) -> 92300.14162 | G32: =SUM('App.2-BA_Fixed Asset Cont'!J244)*-1 -> 123381 | H32: -31080.85838 | I32: 4498.925 | J32: 1767 | K32: =IF(ISERROR(+I32+'App.2-CD_DepExp_Yr3'!K32-J32), 0, +I32+'App.2-CD_DepExp_Yr3'!K32-J32) -> 92782.60412
A33: 1840 | B33: Underground Conduit - Trenches | D33: 40 | E33: 0.025 | F33: =IF(D33=0,'App.2-CD_DepExp_Yr3'!K33,+'App.2-CD_DepExp_Yr3'!K33+((C33*0.5)/D33)) -> 10729.44098 | H33: 10729.44098 | I33: 0 | K33: =IF(ISERROR(+I33+'App.2-CD_DepExp_Yr3'!K33-J33), 0, +I33+'App.2-CD_DepExp_Yr3'!K33-J33) -> 10729.44098
A34: 1840 | B34: Underground Conduit - Foundations | D34: 55 | E34: 0.01818181818 | F34: =IF(D34=0,'App.2-CD_DepExp_Yr3'!K34,+'App.2-CD_DepExp_Yr3'!K34+((C34*0.5)/D34)) -> 18452.19767 | H34: 18452.19767 | I34: 0 | K34: =IF(ISERROR(+I34+'App.2-CD_DepExp_Yr3'!K34-J34), 0, +I34+'App.2-CD_DepExp_Yr3'!K34-J34) -> 18452.19767
A35: 1845 | B35: Underground Conductors & Devices - Cable in Duct | C35: =SUM('App.2-BA_Fixed Asset Cont'!E245)-C36-C37 -> 588543 | D35: 40 | E35: 0.025 | F35: =IF(D35=0,'App.2-CD_DepExp_Yr3'!K35,+'App.2-CD_DepExp_Yr3'!K35+((C35*0.5)/D35)) -> 290577.6589 | G35: =SUM('App.2-BA_Fixed Asset Cont'!J245)*-1 -> 402093 | H35: -111515.3411 | I35: 14713.575 | J35: 17331 | K35: =IF(ISERROR(+I35+'App.2-CD_DepExp_Yr3'!K35-J35), 0, +I35+'App.2-CD_DepExp_Yr3'!K35-J35) -> 280603.4464
A36: 1845 | B36: Underground Conductors & Devices - Cables Direct Buried | D36: 30 | E36: 0.03333333333 | F36: =IF(D36=0,'App.2-CD_DepExp_Yr3'!K36,+'App.2-CD_DepExp_Yr3'!K36+((C36*0.5)/D36)) -> 47899.84729 | H36: 47899.84729 | I36: 0 | K36: =IF(ISERROR(+I36+'App.2-CD_DepExp_Yr3'!K36-J36), 0, +I36+'App.2-CD_DepExp_Yr3'!K36-J36) -> 47899.84729
A37: 1845 | B37: Undergrouind Conductors & Devicies - UG Switchgear | C37: 180000 | D37: 30 | E37: 0.03333333333 | F37: =IF(D37=0,'App.2-CD_DepExp_Yr3'!K37,+'App.2-CD_DepExp_Yr3'!K37+((C37*0.5)/D37)) -> 28053.20371 | G37: =SUM('App.2-BA_Fixed Asset Cont'!J250)*-1 -> 0 | H37: 28053.20371 | I37: 6000 | K37: =IF(ISERROR(+I37+'App.2-CD_DepExp_Yr3'!K37-J37), 0, +I37+'App.2-CD_DepExp_Yr3'!K37-J37) -> 31053.20371
A38: 1850 | B38: Line Transformers | C38: =SUM('App.2-BA_Fixed Asset Cont'!E246) -> 2176719 | D38: 40 | E38: 0.025 | F38: =IF(D38=0,'App.2-CD_DepExp_Yr3'!K38,+'App.2-CD_DepExp_Yr3'!K38+((C38*0.5)/D38)) -> 547596.0305 | G38: =SUM('App.2-BA_Fixed Asset Cont'!J246)*-1 -> 569122 | H38: -21525.96949 | I38: 54417.975 | J38: 101551 | K38: =IF(ISERROR(+I38+'App.2-CD_DepExp_Yr3'!K38-J38), 0, +I38+'App.2-CD_DepExp_Yr3'!K38-J38) -> 473254.018
A39: 1850 | B39: ARO | C39: =SUM('App.2-BA_Fixed Asset Cont'!E247) -> 0 | D39: 11.18 | E39: 0.08944543828 | F39: =IF(D39=0,'App.2-CD_DepExp_Yr3'!K39,+'App.2-CD_DepExp_Yr3'!K39+((C39*0.5)/D39)) -> 11655.27013 | G39: =SUM('App.2-BA_Fixed Asset Cont'!J247)*-1 -> 14120 | H39: -2464.729875 | I39: 0 | K39: =IF(ISERROR(+I39+'App.2-CD_DepExp_Yr3'!K39-J39), 0, +I39+'App.2-CD_DepExp_Yr3'!K39-J39) -> 11655.27013
A40: 1855 | B40: Services Overhead | C40: =SUM('App.2-BA_Fixed Asset Cont'!E248)-C41-C42 -> 132158.8 | D40: 40 | E40: 0.025 | F40: =IF(D40=0,'App.2-CD_DepExp_Yr3'!K40,+'App.2-CD_DepExp_Yr3'!K40+((C40*0.5)/D40)) -> 84768.37124 | G40: =SUM('App.2-BA_Fixed Asset Cont'!J248)*-1 -> 253461 | H40: -168692.6288 | I40: 3303.97 | J40: 13518 | K40: =IF(ISERROR(+I40+'App.2-CD_DepExp_Yr3'!K40-J40), 0, +I40+'App.2-CD_DepExp_Yr3'!K40-J40) -> 72902.35624
A41: 1855 | B41: Services Underground - In Duct | D41: 40 | E41: 0.025 | F41: =IF(D41=0,'App.2-CD_DepExp_Yr3'!K41,+'App.2-CD_DepExp_Yr3'!K41+((C41*0.5)/D41)) -> 91569.47423 | H41: 91569.47423 | I41: 0 | K41: =IF(ISERROR(+I41+'App.2-CD_DepExp_Yr3'!K41-J41), 0, +I41+'App.2-CD_DepExp_Yr3'!K41-J41) -> 91569.47423
A42: 1855 | B42: Services Underground - Direct Buried | C42: =330397*0.6 -> 198238.2 | D42: 30 | E42: 0.03333333333 | F42: =IF(D42=0,'App.2-CD_DepExp_Yr3'!K42,+'App.2-CD_DepExp_Yr3'!K42+((C42*0.5)/D42)) -> 16729.77966 | H42: 16729.77966 | I42: 6607.94 | K42: =IF(ISERROR(+I42+'App.2-CD_DepExp_Yr3'!K42-J42), 0, +I42+'App.2-CD_DepExp_Yr3'!K42-J42) -> 20033.74966
A43: 1860 | B43: Meters - Industrial/Commercial Energy Meters | C43: =SUM('App.2-BA_Fixed Asset Cont'!E249)-C44-C45-C46-C47 -> 0 | D43: 35 | E43: 0.02857142857 | F43: =IF(D43=0,'App.2-CD_DepExp_Yr3'!K43,+'App.2-CD_DepExp_Yr3'!K43+((C43*0.5)/D43)) -> 13158.9161 | H43: 13158.9161 | I43: 0 | K43: =IF(ISERROR(+I43+'App.2-CD_DepExp_Yr3'!K43-J43), 0, +I43+'App.2-CD_DepExp_Yr3'!K43-J43) -> 13158.9161
A44: 1860 | B44: Meters - CT PT's | D44: 50 | E44: 0.02 | F44: =IF(D44=0,'App.2-CD_DepExp_Yr3'!K44,+'App.2-CD_DepExp_Yr3'!K44+((C44*0.5)/D44)) -> 3470.429653 | H44: 3470.429653 | I44: 0 | K44: =IF(ISERROR(+I44+'App.2-CD_DepExp_Yr3'!K44-J44), 0, +I44+'App.2-CD_DepExp_Yr3'!K44-J44) -> 3470.429653
A45: 1860 | B45: Meters - Primary | D45: 50 | E45: 0.02 | F45: =IF(D45=0,'App.2-CD_DepExp_Yr3'!K45,+'App.2-CD_DepExp_Yr3'!K45+((C45*0.5)/D45)) -> 3463.151117 | H45: 3463.151117 | I45: 0 | K45: =IF(ISERROR(+I45+'App.2-CD_DepExp_Yr3'!K45-J45), 0, +I45+'App.2-CD_DepExp_Yr3'!K45-J45) -> 3463.151117
A46: 1860 | B46: Meters - Smart Meters | C46: 608338 | D46: 15 | E46: 0.06666666667 | F46: =IF(D46=0,'App.2-CD_DepExp_Yr3'!K46,+'App.2-CD_DepExp_Yr3'!K46+((C46*0.5)/D46)) -> 579955.6102 | G46: =SUM('App.2-BA_Fixed Asset Cont'!J249)*-1 -> 600049 | H46: -20093.38984 | I46: 40555.86667 | J46: 12983 | K46: =IF(ISERROR(+I46+'App.2-CD_DepExp_Yr3'!K46-J46), 0, +I46+'App.2-CD_DepExp_Yr3'!K46-J46) -> 587250.5435
A47: 1860 | B47: Meters - Repeaters & Collectors | C47: =SUM('App.2-BA_Fixed Asset Cont'!E250) -> 0 | D47: 15 | E47: 0.06666666667 | F47: =IF(D47=0,'App.2-CD_DepExp_Yr3'!K44,+'App.2-CD_DepExp_Yr3'!K44+((C47*0.5)/D47)) -> 3470.429653 | H47: 3470.429653 | I47: 0 | K47: =IF(ISERROR(+I47+'App.2-CD_DepExp_Yr3'!K47-J47), 0, +I47+'App.2-CD_DepExp_Yr3'!K47-J47) -> 50136.9119
A48: 1905 | B48: Land | C48: =SUM('App.2-BA_Fixed Asset Cont'!E251) -> 0 | E48: 0 | F48: =IF(D48=0,'App.2-CD_DepExp_Yr3'!K48,+'App.2-CD_DepExp_Yr3'!K48+((C48*0.5)/D48)) -> 0 | G48: =SUM('App.2-BA_Fixed Asset Cont'!J251)*-1 -> 0 | H48: 0 | I48: 0 | K48: =IF(ISERROR(+I48+'App.2-CD_DepExp_Yr3'!K48-J48), 0, +I48+'App.2-CD_DepExp_Yr3'!K48-J48) -> 0
A49: 1908 | B49: Buildings & Fixtures | C49: =SUM('App.2-BA_Fixed Asset Cont'!E252) -> 0 | E49: 0 | F49: =IF(D49=0,'App.2-CD_DepExp_Yr3'!K49,+'App.2-CD_DepExp_Yr3'!K49+((C49*0.5)/D49)) -> 0 | G49: =SUM('App.2-BA_Fixed Asset Cont'!J252)*-1 -> 0 | H49: 0 | I49: 0 | K49: =IF(ISERROR(+I49+'App.2-CD_DepExp_Yr3'!K49-J49), 0, +I49+'App.2-CD_DepExp_Yr3'!K49-J49) -> 0
A50: 1910 | B50: Leasehold Improvements | C50: =SUM('App.2-BA_Fixed Asset Cont'!E253) -> 0 | E50: 0 | F50: =IF(D50=0,'App.2-CD_DepExp_Yr3'!K50,+'App.2-CD_DepExp_Yr3'!K50+((C50*0.5)/D50)) -> 0 | G50: =SUM('App.2-BA_Fixed Asset Cont'!J253)*-1 -> 0 | H50: 0 | I50: 0 | K50: =IF(ISERROR(+I50+'App.2-CD_DepExp_Yr3'!K50-J50), 0, +I50+'App.2-CD_DepExp_Yr3'!K50-J50) -> 0
A51: 1915 | B51: Office Furniture & Equipment | C51: =SUM('App.2-BA_Fixed Asset Cont'!E254) -> 21397 | D51: 10 | E51: 0.1 | F51: =IF(D51=0,'App.2-CD_DepExp_Yr3'!K51,+'App.2-CD_DepExp_Yr3'!K51+((C51*0.5)/D51)) -> 52457.30251 | G51: =SUM('App.2-BA_Fixed Asset Cont'!J254)*-1 -> 58822 | H51: -6364.697488 | I51: 2139.7 | K51: =IF(ISERROR(+I51+'App.2-CD_DepExp_Yr3'!K51-J51), 0, +I51+'App.2-CD_DepExp_Yr3'!K51-J51) -> 53527.15251
A52: 1920 | B52: Computer Equipment - Hardware | C52: =SUM('App.2-BA_Fixed Asset Cont'!E256)-C53-C54 -> 58000 | D52: 5 | E52: 0.2 | F52: =IF(D52=0,'App.2-CD_DepExp_Yr3'!K52,+'App.2-CD_DepExp_Yr3'!K52+((C52*0.5)/D52)) -> 85026.10402 | G52: =SUM('App.2-BA_Fixed Asset Cont'!J256)*-1 -> 146850 | H52: -61823.89598 | I52: 11600 | J52: 19030 | K52: =IF(ISERROR(+I52+'App.2-CD_DepExp_Yr3'!K52-J52), 0, +I52+'App.2-CD_DepExp_Yr3'!K52-J52) -> 71796.10402
A53: 1920 | B53: Computer Equip.-Hardware PC's | C53: 43500 | D53: 3 | E53: 0.3333333333 | F53: =IF(D53=0,'App.2-CD_DepExp_Yr3'!K53,+'App.2-CD_DepExp_Yr3'!K53+((C53*0.5)/D53)) -> 41142.64333 | H53: 41142.64333 | I53: 14500 | J53: 14382.17 | K53: =IF(ISERROR(+I53+'App.2-CD_DepExp_Yr3'!K53-J53), 0, +I53+'App.2-CD_DepExp_Yr3'!K53-J53) -> 34010.47333
A54: 1920 | B54: Computer Equip.-Hardware Printers | C54: 5186 | D54: 5 | E54: 0.2 | F54: =IF(D54=0,'App.2-CD_DepExp_Yr3'!K54,+'App.2-CD_DepExp_Yr3'!K54+((C54*0.5)/D54)) -> 8503.112 | H54: =IF(ISERROR(+F54-G54), 0, +F54-G54) -> 8503.112 | I54: 1037.2 | K54: =IF(ISERROR(+I54+'App.2-CD_DepExp_Yr3'!K54-J54), 0, +I54+'App.2-CD_DepExp_Yr3'!K54-J54) -> 9021.712
A55: 1930 | B55: Trailers 10 Yrs | C55: 15000 | D55: 10 | E55: 0.1 | F55: =IF(D55=0,'App.2-CD_DepExp_Yr3'!K55,+'App.2-CD_DepExp_Yr3'!K55+((C55*0.5)/D55)) -> 9821.163588 | H55: 9821.163588 | I55: 1500 | K55: =IF(ISERROR(+I55+'App.2-CD_DepExp_Yr3'!K55-J55), 0, +I55+'App.2-CD_DepExp_Yr3'!K55-J55) -> 10571.16359
A56: 1930 | B56: Trailers 20 Yrs | D56: 20 | E56: 0.05 | F56: =IF(D56=0,'App.2-CD_DepExp_Yr3'!K56,+'App.2-CD_DepExp_Yr3'!K56+((C56*0.5)/D56)) -> 386.2246154 | H56: 386.2246154 | I56: 0 | K56: =IF(ISERROR(+I56+'App.2-CD_DepExp_Yr3'!K56-J56), 0, +I56+'App.2-CD_DepExp_Yr3'!K56-J56) -> 386.2246154
A57: 1930 | B57: Trucks < 3 Tons | C57: 180000 | D57: 12 | E57: 0.08333333333 | F57: =IF(D57=0,'App.2-CD_DepExp_Yr3'!K57,+'App.2-CD_DepExp_Yr3'!K57+((C57*0.5)/D57)) -> 59880.92839 | H57: 59880.92839 | I57: 15000 | K57: =IF(ISERROR(+I57+'App.2-CD_DepExp_Yr3'!K57-J57), 0, +I57+'App.2-CD_DepExp_Yr3'!K57-J57) -> 67380.92839
A58: 1930 | B58: Trucks > 3 Tons | C58: 797128 | D58: 15 | E58: 0.06666666667 | F58: =IF(D58=0,'App.2-CD_DepExp_Yr3'!K58,+'App.2-CD_DepExp_Yr3'!K58+((C58*0.5)/D58)) -> 265066.1132 | G58: =SUM('App.2-BA_Fixed Asset Cont'!J259)*-1 -> 303018 | H58: -37951.88675 | I58: 53141.86667 | J58: 23995.66 | K58: =IF(ISERROR(+I58+'App.2-CD_DepExp_Yr3'!K58-J58), 0, +I58+'App.2-CD_DepExp_Yr3'!K58-J58) -> 267641.3866
A59: 1935 | B59: Stores Equipment | C59: =SUM('App.2-BA_Fixed Asset Cont'!E260) -> 0 | D59: 10 | E59: 0.1 | F59: =IF(D59=0,'App.2-CD_DepExp_Yr3'!K59,+'App.2-CD_DepExp_Yr3'!K59+((C59*0.5)/D59)) -> -0.29 | G59: =SUM('App.2-BA_Fixed Asset Cont'!J260)*-1 -> 0 | H59: -0.29 | I59: 0 | K59: =IF(ISERROR(+I59+'App.2-CD_DepExp_Yr3'!K59-J59), 0, +I59+'App.2-CD_DepExp_Yr3'!K59-J59) -> -0.29
A60: 1940 | B60: Tools, Shop & Garage Equipment | C60: =SUM('App.2-BA_Fixed Asset Cont'!E261) -> 115500 | D60: 10 | E60: 0.1 | F60: =IF(D60=0,'App.2-CD_DepExp_Yr3'!K60,+'App.2-CD_DepExp_Yr3'!K60+((C60*0.5)/D60)) -> 66952.49601 | G60: =SUM('App.2-BA_Fixed Asset Cont'!J261)*-1 -> 75948 | H60: -8995.503988 | I60: 11550 | K60: =IF(ISERROR(+I60+'App.2-CD_DepExp_Yr3'!K60-J60), 0, +I60+'App.2-CD_DepExp_Yr3'!K60-J60) -> 72727.49601
A61: 1945 | B61: Measurement & Testing Equipment | C61: =SUM('App.2-BA_Fixed Asset Cont'!E262) -> 26250 | D61: 10 | E61: 0.1 | F61: =IF(D61=0,'App.2-CD_DepExp_Yr3'!K61,+'App.2-CD_DepExp_Yr3'!K61+((C61*0.5)/D61)) -> 24181.73586 | G61: =SUM('App.2-BA_Fixed Asset Cont'!J262)*-1 -> 28551 | H61: -4369.264141 | I61: 2625 | K61: =IF(ISERROR(+I61+'App.2-CD_DepExp_Yr3'!K61-J61), 0, +I61+'App.2-CD_DepExp_Yr3'!K61-J61) -> 25494.23586
A62: 1950 | B62: Power Operated Equipment | C62: =SUM('App.2-BA_Fixed Asset Cont'!E263) -> 17222 | D62: 10 | E62: 0.1 | F62: =IF(D62=0,'App.2-CD_DepExp_Yr3'!K62,+'App.2-CD_DepExp_Yr3'!K62+((C62*0.5)/D62)) -> 41475.30611 | G62: =SUM('App.2-BA_Fixed Asset Cont'!J263)*-1 -> 37072 | H62: 4403.306107 | I62: 1722.2 | K62: =IF(ISERROR(+I62+'App.2-CD_DepExp_Yr3'!K62-J62), 0, +I62+'App.2-CD_DepExp_Yr3'!K62-J62) -> 42336.40611
A63: 1955 | B63: Communications Equipment | C63: =SUM('App.2-BA_Fixed Asset Cont'!E264) -> 0 | D63: 5 | E63: 0.2 | F63: =IF(D63=0,'App.2-CD_DepExp_Yr3'!K63,+'App.2-CD_DepExp_Yr3'!K63+((C63*0.5)/D63)) -> 23676.20043 | G63: =SUM('App.2-BA_Fixed Asset Cont'!J264)*-1 -> 24453 | H63: -776.7995671 | I63: 0 | K63: =IF(ISERROR(+I63+'App.2-CD_DepExp_Yr3'!K63-J63), 0, +I63+'App.2-CD_DepExp_Yr3'!K63-J63) -> 23676.20043
A64: 1960 | B64: Miscellaneous Equipment | C64: =SUM('App.2-BA_Fixed Asset Cont'!E266) -> 0 | E64: 0 | F64: =IF(D64=0,'App.2-CD_DepExp_Yr3'!K64,+'App.2-CD_DepExp_Yr3'!K64+((C64*0.5)/D64)) -> 0 | G64: =SUM('App.2-BA_Fixed Asset Cont'!J266)*-1 -> 0 | H64: 0 | I64: 0 | K64: =IF(ISERROR(+I64+'App.2-CD_DepExp_Yr3'!K64-J64), 0, +I64+'App.2-CD_DepExp_Yr3'!K64-J64) -> 0
A65: 1970 | B65: Load Management Controls Customer Premises | C65: =SUM('App.2-BA_Fixed Asset Cont'!E267) -> 0 | E65: 0 | F65: =IF(D65=0,'App.2-CD_DepExp_Yr3'!K65,+'App.2-CD_DepExp_Yr3'!K65+((C65*0.5)/D65)) -> 0 | G65: =SUM('App.2-BA_Fixed Asset Cont'!J267)*-1 -> 0 | H65: 0 | I65: 0 | K65: =IF(ISERROR(+I65+'App.2-CD_DepExp_Yr3'!K65-J65), 0, +I65+'App.2-CD_DepExp_Yr3'!K65-J65) -> 0
A66: 1975 | B66: Load Management Controls Utility Premises | C66: =SUM('App.2-BA_Fixed Asset Cont'!E268) -> 0 | E66: 0 | F66: =IF(D66=0,'App.2-CD_DepExp_Yr3'!K66,+'App.2-CD_DepExp_Yr3'!K66+((C66*0.5)/D66)) -> 0 | G66: =SUM('App.2-BA_Fixed Asset Cont'!J268)*-1 -> 0 | H66: 0 | I66: 0 | K66: =IF(ISERROR(+I66+'App.2-CD_DepExp_Yr3'!K66-J66), 0, +I66+'App.2-CD_DepExp_Yr3'!K66-J66) -> 0
A67: 1980 | B67: System Supervisor Equipment | C67: =SUM('App.2-BA_Fixed Asset Cont'!E269) -> 447231 | D67: 20 | E67: 0.05 | F67: =IF(D67=0,'App.2-CD_DepExp_Yr3'!K67,+'App.2-CD_DepExp_Yr3'!K67+((C67*0.5)/D67)) -> 45463.53089 | G67: =SUM('App.2-BA_Fixed Asset Cont'!J269)*-1 -> 53415 | H67: -7951.469108 | I67: 22361.55 | K67: =IF(ISERROR(+I67+'App.2-CD_DepExp_Yr3'!K67-J67), 0, +I67+'App.2-CD_DepExp_Yr3'!K67-J67) -> 56644.30589
A68: 1985 | B68: Miscellaneous Fixed Assets | C68: =SUM('App.2-BA_Fixed Asset Cont'!E270) -> 0 | E68: 0 | F68: =IF(D68=0,'App.2-CD_DepExp_Yr3'!K68,+'App.2-CD_DepExp_Yr3'!K68+((C68*0.5)/D68)) -> 0 | G68: =SUM('App.2-BA_Fixed Asset Cont'!J270)*-1 -> 0 | H68: 0 | I68: 0 | K68: =IF(ISERROR(+I68+'App.2-CD_DepExp_Yr3'!K68-J68), 0, +I68+'App.2-CD_DepExp_Yr3'!K68-J68) -> 0
A69: 1990 | B69: Other Tangible Property | C69: =SUM('App.2-BA_Fixed Asset Cont'!E271) -> 0 | E69: 0 | F69: =IF(D69=0,'App.2-CD_DepExp_Yr3'!K69,+'App.2-CD_DepExp_Yr3'!K69+((C69*0.5)/D69)) -> 0 | G69: =SUM('App.2-BA_Fixed Asset Cont'!J271)*-1 -> 0 | H69: 0 | I69: 0 | K69: =IF(ISERROR(+I69+'App.2-CD_DepExp_Yr3'!K69-J69), 0, +I69+'App.2-CD_DepExp_Yr3'!K69-J69) -> 0
A70: 1995 | B70: Contributions & Grants | C70: =SUM('App.2-BA_Fixed Asset Cont'!E272) -> -1235032 | D70: 37.91 | E70: =IF(D70=0,0,1/D70) -> 0.02637826431 | F70: =IF(D70=0,'App.2-CD_DepExp_Yr3'!K70,+'App.2-CD_DepExp_Yr3'!K70+((C70*0.5)/D70)) -> -575420.9708 | G70: =SUM('App.2-BA_Fixed Asset Cont'!J272)*-1 -> -540000 | H70: -35420.97081 | I70: =IF(D70=0,0,+(C70)/D70) -> -32578.00053 | K70: =IF(ISERROR(+I70+'App.2-CD_DepExp_Yr3'!K70-J70), 0, +I70+'App.2-CD_DepExp_Yr3'!K70-J70) -> -591709.9711
A71: 2440 | B71: Deferred Revenue5 | C71: =SUM('App.2-BA_Fixed Asset Cont'!E273) -> 0 | E71: =IF(D71=0,0,1/D71) -> 0 | F71: =IF(D71=0,'App.2-CD_DepExp_Yr3'!K71,+'App.2-CD_DepExp_Yr3'!K71+((C71*0.5)/D71)) -> 0 | G71: =SUM('App.2-BA_Fixed Asset Cont'!J273)*-1 -> 0 | H71: 0 | I71: 0 | K71: =IF(ISERROR(+I71+'App.2-CD_DepExp_Yr3'!K71-J71), 0, +I71+'App.2-CD_DepExp_Yr3'!K71-J71) -> 0
A72: WIP | B72: Work in Progress | C72: =SUM('App.2-BA_Fixed Asset Cont'!E274) -> 1507294 | E72: 0 | F72: =IF(D72=0,'App.2-CD_DepExp_Yr3'!K72,+'App.2-CD_DepExp_Yr3'!K72+((C72*0.5)/D72)) -> 0 | G72: =SUM('App.2-BA_Fixed Asset Cont'!J274)*-1 -> 0 | H72: 0 | I72: 0 | K72: =IF(ISERROR(+I72+'App.2-CD_DepExp_Yr3'!K72-J72), 0, +I72+'App.2-CD_DepExp_Yr3'!K72-J72) -> 0
B73: Total | C73: =SUM(C20:C72) -> 13298931 | F73: =SUM(F20:F72) -> 3749824.658 | G73: 4082365 | H73: -332540.342 | I73: 421741.7803 | J73: 371647.16 | K73: 3635714.87
B74: Depreciation exp. adj. from gain or loss on the retirement of assets (pool of like assets)
B75: Total Depreciation Expense | F75: =SUM(F73:F74) -> 3749824.658
A76: Notes:
A77: 1 | B77: Board policy of the "half-year" rule - the applicant must ensure that additions in the year attract a half-year depreciation expense in the first year. Deviations from this standard practice must be supported in the application.
A78: 2 | B78: The applicant must provide an explanation of material variances in evidence.
A79: 3 | B79: This column refers to the calculated full year depreciation but excludes the depreciation expense on assets fully depreciated during the year. This column is used for the purpose of calculating depreciation expense in the following year on the next worksheet.
A81: General: | B81: Applicants must provide a breakdown of depreciation and amortization expense in the above format for all relevant accounts. Asset Retirement Obligations (AROs), depreciation and accretion expense should be disclosed separately consistent with the Notes of historical Audited Financial Statements.

Sheet App.2-CF_DepExp_Yr5
J1: File Number: | K1: =EBNUMBER -> EB-2016-0105
J2: Exhibit: | K2: 4
J3: Tab:
J4: Attachment: | K4: 4-T
J5: Page:
J7: Date: | K7: =+'App.2-CE_DepExp_Yr4'!K7 -> 2016-09-09
A9: Appendix 2-CF
A10: Depreciation and Amortization Expense
A11: MIFRS (Year 5) 2017
A13: Select the set of appendices that apply | J13: Year Reflected in Schedule Below | K13: Accounting Standard
A14: 2012 Set of Appendices (2-CA to 2-CG) | C14: Assumes the applicant made capitalization and depreciation expense accounting policy changes under CGAAP effective January 1, 2012 and has adopted IFRS for financial reporting purposes effective January 1, 2015. Assumes that the applicant is reflecting these changes in a rebasing application for the first time. | J14: 2016 | K14: MIFRS
A15: 2013 Set of Appendices (2-CA to 2-CF) | C15: Assumes the applicant made capitalization and depreciation expense accounting policy changes under CGAAP effective January 1, 2013 and has adopted IFRS for financial reporting purposes effective January 1, 2015. Assumes that the applicant is reflecting these changes in a rebasing application for the first time. | J15: 2017 | K15: MIFRS
A18: Account | B18: Description | C18: Additions | D18: Years (new additions only) | E18: Depreciation Rate on New Additions | F18: Current Depreciation Expense1 | G18: Depreciation Expense per Appendix 2-BA Fixed Assets, Column J (l) | H18: Variance 2 | I18: Depreciation Expense on Current Full Year Additions | J18: Less Depreciation Expense on Assets Fully Depreciated During the Year (o) | K18: Current Full Year Depreciation 3
C19: (d) | D19: (f) | E19: (g) = 1 / (f) | F19: (h)= Prior Full Year Depreciation + ((d)*0.5)/(f) | H19: (m) = (h) - (l) | I19: (n)=((d))/(f) | K19: (p) = Prior Full Year Depreciation + (n) - (o)
A20: 1609 | B20: Hydro One Gate Station | C20: =SUM('App.2-BA_Fixed Asset Cont'!E299) -> 0 | D20: 25 | E20: =IF(D20=0,0,1/D20) -> 0.04 | F20: =IF(D20=0,'App.2-CE_DepExp_Yr4'!K20,+'App.2-CE_DepExp_Yr4'!K20+((C20*0.5)/D20)) -> 50834.19065 | G20: =SUM('App.2-BA_Fixed Asset Cont'!J299)*-1 -> 50893 | H20: =IF(ISERROR(+F20-G20), 0, +F20-G20) -> -58.80935195 | I20: =IF(D20=0,0,+(C20)/D20) -> 0 | K20: =IF(ISERROR(+I20+'App.2-CE_DepExp_Yr4'!K20-J20), 0, +'App.2-CE_DepExp_Yr4'!K20-J20) -> 50834.19065
A21: 1611 | B21: Computer Software (Formally known as Account 1925) | C21: =SUM('App.2-BA_Fixed Asset Cont'!E300) -> 62500 | D21: 2 | E21: =IF(D21=0,0,1/D21) -> 0.5 | F21: =IF(D21=0,'App.2-CE_DepExp_Yr4'!K21,+'App.2-CE_DepExp_Yr4'!K21+((C21*0.5)/D21)) -> 47886.5435 | G21: =SUM('App.2-BA_Fixed Asset Cont'!J300)*-1 -> 55969 | H21: -8082.456496 | I21: 31250 | J21: 26000 | K21: =IF(ISERROR(+I21+'App.2-CE_DepExp_Yr4'!K21-J21), 0, +'App.2-CE_DepExp_Yr4'!K21-J21) -> 6261.543504
A22: 1612 | B22: Land Rights (Formally known as Account 1906) | C22: =SUM('App.2-BA_Fixed Asset Cont'!E301) -> 0 | E22: 0 | F22: =IF(D22=0,'App.2-CE_DepExp_Yr4'!K22,+'App.2-CE_DepExp_Yr4'!K22+((C22*0.5)/D22)) -> 0 | G22: =SUM('App.2-BA_Fixed Asset Cont'!J301)*-1 -> 0 | H22: 0 | I22: 0 | K22: =IF(ISERROR(+I22+'App.2-CE_DepExp_Yr4'!K22-J22), 0, +'App.2-CE_DepExp_Yr4'!K22-J22) -> 0
A23: 1805 | B23: Land | C23: =SUM('App.2-BA_Fixed Asset Cont'!E302) -> 0 | E23: 0 | F23: =IF(D23=0,'App.2-CE_DepExp_Yr4'!K23,+'App.2-CE_DepExp_Yr4'!K23+((C23*0.5)/D23)) -> 0 | G23: =SUM('App.2-BA_Fixed Asset Cont'!J302)*-1 -> 0 | H23: 0 | I23: 0 | K23: =IF(ISERROR(+I23+'App.2-CE_DepExp_Yr4'!K23-J23), 0, +'App.2-CE_DepExp_Yr4'!K23-J23) -> 0
A24: 1808 | B24: Buildings | C24: =SUM('App.2-BA_Fixed Asset Cont'!E303) -> 82000 | D24: 25 | E24: 0.04 | F24: =IF(D24=0,'App.2-CE_DepExp_Yr4'!K24,+'App.2-CE_DepExp_Yr4'!K24+((C24*0.5)/D24)) -> 185773.2315 | G24: =SUM('App.2-BA_Fixed Asset Cont'!J303)*-1 -> 197677 | H24: -11903.76851 | I24: 3280 | K24: =IF(ISERROR(+I24+'App.2-CE_DepExp_Yr4'!K24-J24), 0, +'App.2-CE_DepExp_Yr4'!K24-J24) -> 184133.2315
A25: 1810 | B25: Leasehold Improvements | C25: =SUM('App.2-BA_Fixed Asset Cont'!E304) -> 0 | D25: 5 | E25: 0.2 | F25: =IF(D25=0,'App.2-CE_DepExp_Yr4'!K25,+'App.2-CE_DepExp_Yr4'!K25+((C25*0.5)/D25)) -> 4484.466744 | G25: =SUM('App.2-BA_Fixed Asset Cont'!J304)*-1 -> 2000 | H25: 2484.466744 | I25: 0 | K25: =IF(ISERROR(+I25+'App.2-CE_DepExp_Yr4'!K25-J25), 0, +'App.2-CE_DepExp_Yr4'!K25-J25) -> 4484.466744
A26: 1815 | B26: Transformer Station Equipment >50 kV | C26: =SUM('App.2-BA_Fixed Asset Cont'!E305) -> 0 | E26: 0 | F26: =IF(D26=0,'App.2-CE_DepExp_Yr4'!K26,+'App.2-CE_DepExp_Yr4'!K26+((C26*0.5)/D26)) -> 0 | G26: =SUM('App.2-BA_Fixed Asset Cont'!J305)*-1 -> 0 | H26: 0 | I26: 0 | K26: =IF(ISERROR(+I26+'App.2-CE_DepExp_Yr4'!K26-J26), 0, +'App.2-CE_DepExp_Yr4'!K26-J26) -> 0
A27: 1820 | B27: Distribution Station Equipment <50 kV | C27: =SUM('App.2-BA_Fixed Asset Cont'!E306) -> 0 | D27: 20 | E27: 0.05 | F27: =IF(D27=0,'App.2-CE_DepExp_Yr4'!K27,+'App.2-CE_DepExp_Yr4'!K27+((C27*0.5)/D27)) -> 157859.371 | G27: =SUM('App.2-BA_Fixed Asset Cont'!J306)*-1 -> 200251 | H27: -42391.62895 | I27: 0 | K27: =IF(ISERROR(+I27+'App.2-CE_DepExp_Yr4'!K27-J27), 0, +'App.2-CE_DepExp_Yr4'!K27-J27) -> 157859.371
A28: 1825 | B28: Storage Battery Equipment | C28: =SUM('App.2-BA_Fixed Asset Cont'!E307) -> 0 | E28: 0 | F28: =IF(D28=0,'App.2-CE_DepExp_Yr4'!K28,+'App.2-CE_DepExp_Yr4'!K28+((C28*0.5)/D28)) -> 0 | G28: =SUM('App.2-BA_Fixed Asset Cont'!J307)*-1 -> 0 | H28: 0 | I28: 0 | K28: =IF(ISERROR(+I28+'App.2-CE_DepExp_Yr4'!K28-J28), 0, +'App.2-CE_DepExp_Yr4'!K28-J28) -> 0
A29: 1830 | B29: Poles, Towers & Fixtures | C29: =SUM('App.2-BA_Fixed Asset Cont'!E308) -> 3787353 | D29: 40 | E29: 0.025 | F29: =IF(D29=0,'App.2-CE_DepExp_Yr4'!K29,+'App.2-CE_DepExp_Yr4'!K29+((C29*0.5)/D29)) -> 864102.6149 | G29: =SUM('App.2-BA_Fixed Asset Cont'!J308)*-1 -> 958403 | H29: -94300.38508 | I29: 94683.825 | J29: 69615 | K29: =IF(ISERROR(+I29+'App.2-CE_DepExp_Yr4'!K29-J29), 0, +'App.2-CE_DepExp_Yr4'!K29-J29) -> 747145.7024
A30: 1835 | B30: Overhead Conductors & Devices | C30: =SUM('App.2-BA_Fixed Asset Cont'!E309)-C31 -> 829477.25 | D30: 40 | E30: 0.025 | F30: =IF(D30=0,'App.2-CE_DepExp_Yr4'!K30,+'App.2-CE_DepExp_Yr4'!K30+((C30*0.5)/D30)) -> 109359.5178 | H30: 109359.5178 | I30: 20736.93125 | J30: 58945 | K30: =IF(ISERROR(+I30+'App.2-CE_DepExp_Yr4'!K30-J30), 0, +'App.2-CE_DepExp_Yr4'!K30-J30) -> 40046.05213
A31: 1835 | B31: Overhead Conductors & Devices - Conductor | C31: =3317909*0.75 -> 2488431.75 | D31: 60 | E31: 0.01666666667 | F31: =IF(D31=0,'App.2-CE_DepExp_Yr4'!K31,+'App.2-CE_DepExp_Yr4'!K31+((C31*0.5)/D31)) -> 359208.1548 | G31: =SUM('App.2-BA_Fixed Asset Cont'!J309)*-1 -> 532508 | H31: -173299.8452 | I31: 41473.8625 | K31: =IF(ISERROR(+I31+'App.2-CE_DepExp_Yr4'!K31-J31), 0, +'App.2-CE_DepExp_Yr4'!K31-J31) -> 338471.2235
A32: 1840 | B32: Underground Conduit - Ducts | C32: =SUM('App.2-BA_Fixed Asset Cont'!E310) -> 287505 | D32: 80 | E32: 0.0125 | F32: =IF(D32=0,'App.2-CE_DepExp_Yr4'!K32,+'App.2-CE_DepExp_Yr4'!K32+((C32*0.5)/D32)) -> 94579.51037 | G32: =SUM('App.2-BA_Fixed Asset Cont'!J310)*-1 -> 130180 | H32: -35600.48963 | I32: 3593.8125 | J32: 1737 | K32: =IF(ISERROR(+I32+'App.2-CE_DepExp_Yr4'!K32-J32), 0, +'App.2-CE_DepExp_Yr4'!K32-J32) -> 91045.60412
A33: 1840 | B33: Underground Conduit - Trenches | D33: 40 | E33: 0.025 | F33: =IF(D33=0,'App.2-CE_DepExp_Yr4'!K33,+'App.2-CE_DepExp_Yr4'!K33+((C33*0.5)/D33)) -> 10729.44098 | H33: 10729.44098 | I33: 0 | K33: =IF(ISERROR(+I33+'App.2-CE_DepExp_Yr4'!K33-J33), 0, +'App.2-CE_DepExp_Yr4'!K33-J33) -> 10729.44098
A34: 1840 | B34: Underground Conduit - Foundations | D34: 55 | E34: 0.01818181818 | F34: =IF(D34=0,'App.2-CE_DepExp_Yr4'!K34,+'App.2-CE_DepExp_Yr4'!K34+((C34*0.5)/D34)) -> 18452.19767 | H34: 18452.19767 | I34: 0 | K34: =IF(ISERROR(+I34+'App.2-CE_DepExp_Yr4'!K34-J34), 0, +'App.2-CE_DepExp_Yr4'!K34-J34) -> 18452.19767
A35: 1845 | B35: Underground Conductors & Devices - Cable in Duct | C35: =SUM('App.2-BA_Fixed Asset Cont'!E311) -> 872103 | D35: 40 | E35: 0.025 | F35: =IF(D35=0,'App.2-CE_DepExp_Yr4'!K35,+'App.2-CE_DepExp_Yr4'!K35+((C35*0.5)/D35)) -> 291504.7339 | G35: =SUM('App.2-BA_Fixed Asset Cont'!J311)*-1 -> 424251 | H35: -132746.2661 | I35: 21802.575 | J35: 17331 | K35: =IF(ISERROR(+I35+'App.2-CE_DepExp_Yr4'!K35-J35), 0, +'App.2-CE_DepExp_Yr4'!K35-J35) -> 263272.4464
A36: 1845 | B36: Underground Conductors & Devices - Cables Direct Buried | D36: 30 | E36: 0.03333333333 | F36: =IF(D36=0,'App.2-CE_DepExp_Yr4'!K36,+'App.2-CE_DepExp_Yr4'!K36+((C36*0.5)/D36)) -> 47899.84729 | H36: 47899.84729 | I36: 0 | K36: =IF(ISERROR(+I36+'App.2-CE_DepExp_Yr4'!K36-J36), 0, +'App.2-CE_DepExp_Yr4'!K36-J36) -> 47899.84729
A37: 1845 | B37: Undergrouind Conductors & Devicies - UG Switchgear | D37: 30 | E37: 0.03333333333 | F37: =IF(D37=0,'App.2-CE_DepExp_Yr4'!K37,+'App.2-CE_DepExp_Yr4'!K37+((C37*0.5)/D37)) -> 31053.20371 | H37: 31053.20371 | I37: 0 | K37: =IF(ISERROR(+I37+'App.2-CE_DepExp_Yr4'!K37-J37), 0, +'App.2-CE_DepExp_Yr4'!K37-J37) -> 31053.20371
A38: 1850 | B38: Line Transformers | C38: =SUM('App.2-BA_Fixed Asset Cont'!E312) -> 1731045 | D38: 40 | E38: 0.025 | F38: =IF(D38=0,'App.2-CE_DepExp_Yr4'!K38,+'App.2-CE_DepExp_Yr4'!K38+((C38*0.5)/D38)) -> 494892.0805 | G38: =SUM('App.2-BA_Fixed Asset Cont'!J312)*-1 -> 601263 | H38: -106370.9195 | I38: 43276.125 | J38: 101551 | K38: =IF(ISERROR(+I38+'App.2-CE_DepExp_Yr4'!K38-J38), 0, +'App.2-CE_DepExp_Yr4'!K38-J38) -> 371703.018
A39: 1850 | B39: ARO | C39: =SUM('App.2-BA_Fixed Asset Cont'!E313) -> 0 | D39: 11.18 | E39: 0.08944543828 | G39: =SUM('App.2-BA_Fixed Asset Cont'!J313)*-1 -> 14120 | H39: -14120 | I39: 0 | K39: =IF(ISERROR(+I39+'App.2-CE_DepExp_Yr4'!K39-J39), 0, +'App.2-CE_DepExp_Yr4'!K39-J39) -> 11655.27013
A40: 1855 | B40: Services Overhead | C40: =SUM('App.2-BA_Fixed Asset Cont'!E314)-C41-C42 -> 117118.4 | D40: 40 | E40: 0.025 | F40: =IF(D40=0,'App.2-CE_DepExp_Yr4'!K40,+'App.2-CE_DepExp_Yr4'!K40+((C40*0.5)/D40)) -> 74366.33624 | G40: =SUM('App.2-BA_Fixed Asset Cont'!J314)*-1 -> 267429 | H40: -193062.6638 | I40: 2927.96 | J40: 13518 | K40: =IF(ISERROR(+I40+'App.2-CE_DepExp_Yr4'!K40-J40), 0, +'App.2-CE_DepExp_Yr4'!K40-J40) -> 59384.35624
A41: 1855 | B41: Services Underground - In Duct | D41: 40 | E41: 0.025 | F41: =IF(D41=0,'App.2-CE_DepExp_Yr4'!K41,+'App.2-CE_DepExp_Yr4'!K41+((C41*0.5)/D41)) -> 91569.47423 | H41: 91569.47423 | I41: 0 | K41: =IF(ISERROR(+I41+'App.2-CE_DepExp_Yr4'!K41-J41), 0, +'App.2-CE_DepExp_Yr4'!K41-J41) -> 91569.47423
A42: 1855 | B42: Services Underground - Direct Buried | C42: =292796*0.6 -> 175677.6 | D42: 30 | E42: 0.03333333333 | F42: =IF(D42=0,'App.2-CE_DepExp_Yr4'!K42,+'App.2-CE_DepExp_Yr4'!K42+((C42*0.5)/D42)) -> 22961.70966 | H42: 22961.70966 | I42: 5855.92 | K42: =IF(ISERROR(+I42+'App.2-CE_DepExp_Yr4'!K42-J42), 0, +'App.2-CE_DepExp_Yr4'!K42-J42) -> 20033.74966
A43: 1860 | B43: Meters - Industrial/Commercial Energy Meters | C43: =SUM('App.2-BA_Fixed Asset Cont'!E315)-C44-C45-C46-C47 -> 0 | D43: 35 | E43: 0.02857142857 | F43: =IF(D43=0,'App.2-CE_DepExp_Yr4'!K43,+'App.2-CE_DepExp_Yr4'!K43+((C43*0.5)/D43)) -> 13158.9161 | H43: 13158.9161 | I43: 0 | K43: =IF(ISERROR(+I43+'App.2-CE_DepExp_Yr4'!K43-J43), 0, +'App.2-CE_DepExp_Yr4'!K43-J43) -> 13158.9161
A44: 1860 | B44: Meters - CT PT's | C44: =SUM('App.2-BA_Fixed Asset Cont'!E316) -> 0 | D44: 50 | E44: 0.02 | F44: =IF(D44=0,'App.2-CE_DepExp_Yr4'!K47,+'App.2-CE_DepExp_Yr4'!K47+((C44*0.5)/D44)) -> 50136.9119 | H44: 50136.9119 | I44: 0 | K44: =IF(ISERROR(+I44+'App.2-CE_DepExp_Yr4'!K44-J44), 0, +'App.2-CE_DepExp_Yr4'!K44-J44) -> 3470.429653
A45: 1860 | B45: Meters - Primary | D45: 50 | E45: 0.02 | F45: =IF(D45=0,'App.2-CE_DepExp_Yr4'!K45,+'App.2-CE_DepExp_Yr4'!K45+((C45*0.5)/D45)) -> 3463.151117 | H45: 3463.151117 | I45: 0 | K45: =IF(ISERROR(+I45+'App.2-CE_DepExp_Yr4'!K45-J45), 0, +'App.2-CE_DepExp_Yr4'!K45-J45) -> 3463.151117
A46: 1860 | B46: Meters - Smart Meters | C46: 447424 | D46: 15 | E46: 0.06666666667 | F46: =IF(D46=0,'App.2-CE_DepExp_Yr4'!K46,+'App.2-CE_DepExp_Yr4'!K46+((C46*0.5)/D46)) -> 602164.6768 | G46: =SUM('App.2-BA_Fixed Asset Cont'!J315)*-1 -> 633115 | H46: -30950.32317 | I46: 29828.26667 | J46: 12983 | K46: =IF(ISERROR(+I46+'App.2-CE_DepExp_Yr4'!K46-J46), 0, +'App.2-CE_DepExp_Yr4'!K46-J46) -> 574267.5435
A47: 1860 | B47: Meters - Repeaters & Collectors | D47: 15 | E47: 0.06666666667 | F47: =IF(D47=0,'App.2-CE_DepExp_Yr4'!K47,+'App.2-CE_DepExp_Yr4'!K47+((C47*0.5)/D47)) -> 50136.9119 | H47: 50136.9119 | I47: 0 | K47: =IF(ISERROR(+I47+'App.2-CE_DepExp_Yr4'!K47-J47), 0, +'App.2-CE_DepExp_Yr4'!K47-J47) -> 50136.9119
A48: 1905 | B48: Land | C48: =SUM('App.2-BA_Fixed Asset Cont'!E317) -> 0 | E48: 0 | F48: =IF(D48=0,'App.2-CE_DepExp_Yr4'!K48,+'App.2-CE_DepExp_Yr4'!K48+((C48*0.5)/D48)) -> 0 | G48: =SUM('App.2-BA_Fixed Asset Cont'!J317)*-1 -> 0 | H48: 0 | I48: 0 | K48: =IF(ISERROR(+I48+'App.2-CE_DepExp_Yr4'!K48-J48), 0, +'App.2-CE_DepExp_Yr4'!K48-J48) -> 0
A49: 1908 | B49: Buildings & Fixtures | C49: =SUM('App.2-BA_Fixed Asset Cont'!E318) -> 0 | E49: 0 | F49: =IF(D49=0,'App.2-CE_DepExp_Yr4'!K49,+'App.2-CE_DepExp_Yr4'!K49+((C49*0.5)/D49)) -> 0 | G49: =SUM('App.2-BA_Fixed Asset Cont'!J318)*-1 -> 0 | H49: 0 | I49: 0 | K49: =IF(ISERROR(+I49+'App.2-CE_DepExp_Yr4'!K49-J49), 0, +'App.2-CE_DepExp_Yr4'!K49-J49) -> 0
A50: 1910 | B50: Leasehold Improvements | C50: =SUM('App.2-BA_Fixed Asset Cont'!E319) -> 0 | E50: 0 | F50: =IF(D50=0,'App.2-CE_DepExp_Yr4'!K50,+'App.2-CE_DepExp_Yr4'!K50+((C50*0.5)/D50)) -> 0 | G50: =SUM('App.2-BA_Fixed Asset Cont'!J319)*-1 -> 0 | H50: 0 | I50: 0 | K50: =IF(ISERROR(+I50+'App.2-CE_DepExp_Yr4'!K50-J50), 0, +'App.2-CE_DepExp_Yr4'!K50-J50) -> 0
A51: 1915 | B51: Office Furniture & Equipment (10 years) | C51: =SUM('App.2-BA_Fixed Asset Cont'!E320) -> 58000 | D51: 10 | E51: 0.1 | F51: =IF(D51=0,'App.2-CE_DepExp_Yr4'!K51,+'App.2-CE_DepExp_Yr4'!K51+((C51*0.5)/D51)) -> 56427.15251 | G51: =SUM('App.2-BA_Fixed Asset Cont'!J320)*-1 -> 60779 | H51: -4351.847488 | I51: 5800 | K51: =IF(ISERROR(+I51+'App.2-CE_DepExp_Yr4'!K51-J51), 0, +'App.2-CE_DepExp_Yr4'!K51-J51) -> 53527.15251
A52: 1920 | B52: Computer Equipment - Hardware | C52: =SUM('App.2-BA_Fixed Asset Cont'!E322)-C53-C54 -> 55400 | D52: 5 | E52: 0.2 | F52: =IF(D52=0,'App.2-CE_DepExp_Yr4'!K52,+'App.2-CE_DepExp_Yr4'!K52+((C52*0.5)/D52)) -> 77336.10402 | G52: =SUM('App.2-BA_Fixed Asset Cont'!J322)*-1 -> 111283 | H52: -33946.89598 | I52: 11080 | J52: 37191.57 | K52: =IF(ISERROR(+I52+'App.2-CE_DepExp_Yr4'!K52-J52), 0, +'App.2-CE_DepExp_Yr4'!K52-J52) -> 34604.53402
A53: 1920 | B53: Computer Equip.-Hardware PC's | C53: 54600 | D53: 3 | E53: 0.3333333333 | F53: =IF(D53=0,'App.2-CE_DepExp_Yr4'!K53,+'App.2-CE_DepExp_Yr4'!K53+((C53*0.5)/D53)) -> 43110.47333 | H53: 43110.47333 | I53: 18200 | J53: 7689.14 | K53: =IF(ISERROR(+I53+'App.2-CE_DepExp_Yr4'!K53-J53), 0, +'App.2-CE_DepExp_Yr4'!K53-J53) -> 26321.33333
A54: 1920 | B54: Computer Equip.-Hardware Printers | C54: 38500 | D54: 5 | E54: 0.2 | F54: =IF(D54=0,'App.2-CE_DepExp_Yr4'!K54,+'App.2-CE_DepExp_Yr4'!K54+((C54*0.5)/D54)) -> 12871.712 | H54: 12871.712 | I54: 7700 | K54: =IF(ISERROR(+I54+'App.2-CE_DepExp_Yr4'!K54-J54), 0, +'App.2-CE_DepExp_Yr4'!K54-J54) -> 9021.712
A55: 1930 | B55: Trailers 10 Yrs | C55: 15000 | D55: 10 | E55: 0.1 | F55: =IF(D55=0,'App.2-CE_DepExp_Yr4'!K55,+'App.2-CE_DepExp_Yr4'!K55+((C55*0.5)/D55)) -> 11321.16359 | H55: 11321.16359 | I55: 1500 | K55: =IF(ISERROR(+I55+'App.2-CE_DepExp_Yr4'!K55-J55), 0, +'App.2-CE_DepExp_Yr4'!K55-J55) -> 10571.16359
A56: 1930 | B56: Trailers 20 Yrs | D56: 20 | E56: 0.05 | F56: =IF(D56=0,'App.2-CE_DepExp_Yr4'!K56,+'App.2-CE_DepExp_Yr4'!K56+((C56*0.5)/D56)) -> 386.2246154 | H56: 386.2246154 | I56: 0 | K56: =IF(ISERROR(+I56+'App.2-CE_DepExp_Yr4'!K56-J56), 0, +'App.2-CE_DepExp_Yr4'!K56-J56) -> 386.2246154
A57: 1930 | B57: Trucks < 3 Tons | C57: 145000 | D57: 12 | E57: 0.08333333333 | F57: =IF(D57=0,'App.2-CE_DepExp_Yr4'!K57,+'App.2-CE_DepExp_Yr4'!K57+((C57*0.5)/D57)) -> 73422.59506 | H57: 73422.59506 | I57: 12083.33333 | K57: =IF(ISERROR(+I57+'App.2-CE_DepExp_Yr4'!K57-J57), 0, +'App.2-CE_DepExp_Yr4'!K57-J57) -> 67380.92839
A58: 1930 | B58: Trucks > 3 Tons | C58: 450000 | D58: 15 | E58: 0.06666666667 | F58: =IF(D58=0,'App.2-CE_DepExp_Yr4'!K58,+'App.2-CE_DepExp_Yr4'!K58+((C58*0.5)/D58)) -> 282641.3866 | G58: =SUM('App.2-BA_Fixed Asset Cont'!J325)*-1 -> 364753 | H58: -82111.61342 | I58: 30000 | J58: 35729.42 | K58: =IF(ISERROR(+I58+'App.2-CE_DepExp_Yr4'!K58-J58), 0, +'App.2-CE_DepExp_Yr4'!K58-J58) -> 231911.9666
A59: 1935 | B59: Stores Equipment | C59: =SUM('App.2-BA_Fixed Asset Cont'!E326) -> 0 | D59: 10 | E59: 0.1 | F59: =IF(D59=0,'App.2-CE_DepExp_Yr4'!K59,+'App.2-CE_DepExp_Yr4'!K59+((C59*0.5)/D59)) -> -0.29 | G59: =SUM('App.2-BA_Fixed Asset Cont'!J326)*-1 -> 0 | H59: -0.29 | I59: 0 | K59: =IF(ISERROR(+I59+'App.2-CE_DepExp_Yr4'!K59-J59), 0, +'App.2-CE_DepExp_Yr4'!K59-J59) -> -0.29
A60: 1940 | B60: Tools, Shop & Garage Equipment | C60: =SUM('App.2-BA_Fixed Asset Cont'!E327) -> 101500 | D60: 10 | E60: 0.1 | F60: =IF(D60=0,'App.2-CE_DepExp_Yr4'!K60,+'App.2-CE_DepExp_Yr4'!K60+((C60*0.5)/D60)) -> 77802.49601 | G60: =SUM('App.2-BA_Fixed Asset Cont'!J327)*-1 -> 79546 | H60: -1743.503988 | I60: 10150 | K60: =IF(ISERROR(+I60+'App.2-CE_DepExp_Yr4'!K60-J60), 0, +'App.2-CE_DepExp_Yr4'!K60-J60) -> 72727.49601
A61: 1945 | B61: Measurement & Testing Equipment | C61: =SUM('App.2-BA_Fixed Asset Cont'!E328) -> 75000 | D61: 10 | E61: 0.1 | F61: =IF(D61=0,'App.2-CE_DepExp_Yr4'!K61,+'App.2-CE_DepExp_Yr4'!K61+((C61*0.5)/D61)) -> 29244.23586 | G61: =SUM('App.2-BA_Fixed Asset Cont'!J328)*-1 -> 29981 | H61: -736.764141 | I61: 7500 | K61: =IF(ISERROR(+I61+'App.2-CE_DepExp_Yr4'!K61-J61), 0, +'App.2-CE_DepExp_Yr4'!K61-J61) -> 25494.23586
A62: 1950 | B62: Power Operated Equipment | C62: =SUM('App.2-BA_Fixed Asset Cont'!E329) -> 0 | D62: 10 | E62: 0.1 | F62: =IF(D62=0,'App.2-CE_DepExp_Yr4'!K62,+'App.2-CE_DepExp_Yr4'!K62+((C62*0.5)/D62)) -> 42336.40611 | G62: =SUM('App.2-BA_Fixed Asset Cont'!J329)*-1 -> 38928 | H62: 3408.406107 | I62: 0 | K62: =IF(ISERROR(+I62+'App.2-CE_DepExp_Yr4'!K62-J62), 0, +'App.2-CE_DepExp_Yr4'!K62-J62) -> 42336.40611
A63: 1955 | B63: Communications Equipment | C63: =SUM('App.2-BA_Fixed Asset Cont'!E330) -> 0 | D63: 5 | E63: 0.2 | F63: =IF(D63=0,'App.2-CE_DepExp_Yr4'!K63,+'App.2-CE_DepExp_Yr4'!K63+((C63*0.5)/D63)) -> 23676.20043 | G63: =SUM('App.2-BA_Fixed Asset Cont'!J330)*-1 -> 13954 | H63: 9722.200433 | I63: 0 | K63: =IF(ISERROR(+I63+'App.2-CE_DepExp_Yr4'!K63-J63), 0, +'App.2-CE_DepExp_Yr4'!K63-J63) -> 23676.20043
A64: 1960 | B64: Miscellaneous Equipment | C64: =SUM('App.2-BA_Fixed Asset Cont'!E332) -> 0 | E64: 0 | F64: =IF(D64=0,'App.2-CE_DepExp_Yr4'!K64,+'App.2-CE_DepExp_Yr4'!K64+((C64*0.5)/D64)) -> 0 | G64: =SUM('App.2-BA_Fixed Asset Cont'!J332)*-1 -> 0 | H64: 0 | I64: 0 | K64: =IF(ISERROR(+I64+'App.2-CE_DepExp_Yr4'!K64-J64), 0, +'App.2-CE_DepExp_Yr4'!K64-J64) -> 0
A65: 1970 | B65: Load Management Controls Customer Premises | C65: =SUM('App.2-BA_Fixed Asset Cont'!E333) -> 0 | E65: 0 | F65: =IF(D65=0,'App.2-CE_DepExp_Yr4'!K65,+'App.2-CE_DepExp_Yr4'!K65+((C65*0.5)/D65)) -> 0 | G65: =SUM('App.2-BA_Fixed Asset Cont'!J333)*-1 -> 0 | H65: 0 | I65: 0 | K65: =IF(ISERROR(+I65+'App.2-CE_DepExp_Yr4'!K65-J65), 0, +'App.2-CE_DepExp_Yr4'!K65-J65) -> 0
A66: 1975 | B66: Load Management Controls Utility Premises | C66: =SUM('App.2-BA_Fixed Asset Cont'!E334) -> 0 | E66: 0 | F66: =IF(D66=0,'App.2-CE_DepExp_Yr4'!K66,+'App.2-CE_DepExp_Yr4'!K66+((C66*0.5)/D66)) -> 0 | G66: =SUM('App.2-BA_Fixed Asset Cont'!J334)*-1 -> 0 | H66: 0 | I66: 0 | K66: =IF(ISERROR(+I66+'App.2-CE_DepExp_Yr4'!K66-J66), 0, +'App.2-CE_DepExp_Yr4'!K66-J66) -> 0
A67: 1980 | B67: System Supervisor Equipment | C67: =SUM('App.2-BA_Fixed Asset Cont'!E335) -> 174430 | D67: 20 | E67: 0.05 | F67: =IF(D67=0,'App.2-CE_DepExp_Yr4'!K67,+'App.2-CE_DepExp_Yr4'!K67+((C67*0.5)/D67)) -> 61005.05589 | G67: =SUM('App.2-BA_Fixed Asset Cont'!J335)*-1 -> 74250 | H67: -13244.94411 | I67: 8721.5 | K67: =IF(ISERROR(+I67+'App.2-CE_DepExp_Yr4'!K67-J67), 0, +'App.2-CE_DepExp_Yr4'!K67-J67) -> 56644.30589
A68: 1985 | B68: Miscellaneous Fixed Assets | C68: =SUM('App.2-BA_Fixed Asset Cont'!E336) -> 0 | E68: 0 | F68: =IF(D68=0,'App.2-CE_DepExp_Yr4'!K68,+'App.2-CE_DepExp_Yr4'!K68+((C68*0.5)/D68)) -> 0 | G68: =SUM('App.2-BA_Fixed Asset Cont'!J336)*-1 -> 0 | H68: 0 | I68: 0 | K68: =IF(ISERROR(+I68+'App.2-CE_DepExp_Yr4'!K68-J68), 0, +'App.2-CE_DepExp_Yr4'!K68-J68) -> 0
A69: 1990 | B69: Other Tangible Property | C69: =SUM('App.2-BA_Fixed Asset Cont'!E337) -> 0 | E69: 0 | F69: =IF(D69=0,'App.2-CE_DepExp_Yr4'!K69,+'App.2-CE_DepExp_Yr4'!K69+((C69*0.5)/D69)) -> 0 | G69: =SUM('App.2-BA_Fixed Asset Cont'!J337)*-1 -> 0 | H69: 0 | I69: 0 | K69: =IF(ISERROR(+I69+'App.2-CE_DepExp_Yr4'!K69-J69), 0, +'App.2-CE_DepExp_Yr4'!K69-J69) -> 0
A70: 1995 | B70: Contributions & Grants | C70: =SUM('App.2-BA_Fixed Asset Cont'!E338) -> -1326298 | D70: 38.16 | E70: 0.02620545073 | F70: =IF(D70=0,'App.2-CD_DepExp_Yr3'!K70,+'App.2-CD_DepExp_Yr3'!K70+((C70*0.5)/D70)) -> -576510.089 | G70: =SUM('App.2-BA_Fixed Asset Cont'!J338)*-1 -> -573662 | H70: =IF(ISERROR(+F70-G70), 0, +F70-G70) -> -2848.088995 | I70: -34756.2369 | K70: =IF(ISERROR(+I70+'App.2-CE_DepExp_Yr4'!K70-J70), 0, +'App.2-CE_DepExp_Yr4'!K70-J70) -> -591709.9711
A71: 2440 | B71: Deferred Revenue5 | C71: =SUM('App.2-BA_Fixed Asset Cont'!E339) -> 0 | E71: 0 | F71: =IF(D71=0,'App.2-CD_DepExp_Yr3'!K71,+'App.2-CD_DepExp_Yr3'!K71+((C71*0.5)/D71)) -> 0 | G71: =SUM('App.2-BA_Fixed Asset Cont'!J339)*-1 -> 0 | H71: 0 | I71: 0 | K71: =IF(ISERROR(+I71+'App.2-CE_DepExp_Yr4'!K71-J71), 0, +'App.2-CE_DepExp_Yr4'!K71-J71) -> 0
A72: WIP | B72: Work in Progress | C72: =SUM('App.2-BA_Fixed Asset Cont'!E340) -> 1870537 | E72: 0 | F72: =IF(D72=0,'App.2-CD_DepExp_Yr3'!K72,+'App.2-CD_DepExp_Yr3'!K72+((C72*0.5)/D72)) -> 0 | G72: =SUM('App.2-BA_Fixed Asset Cont'!J340)*-1 -> 0 | H72: 0 | I72: 0 | K72: =IF(ISERROR(+I72+'App.2-CE_DepExp_Yr4'!K72-J72), 0, +'App.2-CE_DepExp_Yr4'!K72-J72) -> 0
B73: Total | C73: =SUM(C20:C72) -> 12592304 | F73: =SUM(F20:F72) -> 3891648.02 | G73: 4267871 | H73: -376222.9797 | I73: 376687.8744 | J73: 382290.13 | K73: 3253424.74
B74: Depreciation exp. adj. from gain or loss on the retirement of assets (pool of like assets)
B75: Total Depreciation Expense | F75: =SUM(F73:F74) -> 3891648.02
A76: Notes:
A77: 1 | B77: Board policy of the "half-year" rule - the applicant must ensure that additions in the year attract a half-year depreciation expense in the first year. Deviations from this standard practice must be supported in the application.
A78: 2 | B78: The applicant must provide an explanation of material variances in evidence.
A79: 3 | B79: This column refers to the calculated full year depreciation but excludes the depreciation expense on assets fully depreciated during the year. This column is used for the purpose of calculating depreciation expense in the following year on the next worksheet.
A81: General: | B81: Applicants must provide a breakdown of depreciation and amortization expense in the above format for all relevant accounts. Asset Retirement Obligations (AROs), depreciation and accretion expense should be disclosed separately consistent with the Notes of historical Audited Financial Statements.

Sheet App.2-CG_DepExp_Yr6
J1: File Number: | K1: =EBNUMBER -> EB-2016-0105
J2: Exhibit:
J3: Tab:
J4: Attachment: | K4: NA
J5: Page:
J7: Date: | K7: =+'App.2-AA_Capital Projects'!$H$7 -> 2016-09-09
A9: Appendix 2-CG
A10: Depreciation and Amortization Expense
A11: MIFRS (Year 6)
A13: Select the set of appendices that apply | J13: Year Reflected in Schedule Below | K13: Accounting Standard
A14: 2012 Set of Appendices (2-CA to 2-CG) | C14: Assumes the applicant made capitalization and depreciation expense accounting policy changes under CGAAP effective January 1, 2012 and has adopted IFRS for financial reporting purposes effective January 1, 2015. Assumes that the applicant is reflecting these changes in a rebasing application for the first time. | J14: 2017 | K14: MIFRS
A15: N/A | B15: 2013 Set of Appendices | C15: Not applicable as the test year depreciation is already calculated in Appendix 2-CF. Note that this appendix is not to be used even though depreciation expense calculations will flow through from previous years to this appendix. | J15: N/A | K15: N/A
A18: Account | B18: Description | C18: Additions | D18: Years (new additions only) | E18: Depreciation Rate on New Additions | F18: Current Depreciation Expense1 | G18: Depreciation Expense per Appendix 2-BA Fixed Assets, Column J (l) | H18: Variance 2
C19: (d) | D19: (f) | E19: (g) = 1 / (f) | F19: (h)= Prior Full Year Depreciation + ((d)*0.5)/(f) | H19: (m) = (h) - (l)
A20: 1609 | B20: Hydro One Gate Station
A21: 1611 | B21: Computer Software (Formally known as Account 1925) | E21: =IF(D21=0,0,1/D21) -> 0
A22: 1612 | B22: Land Rights (Formally known as Account 1906) | E22: 0
A23: 1805 | B23: Land | E23: 0
A24: 1808 | B24: Buildings | E24: 0
A25: 1810 | B25: Leasehold Improvements | E25: 0
A26: 1815 | B26: Transformer Station Equipment >50 kV | E26: 0
A27: 1820 | B27: Distribution Station Equipment <50 kV | E27: 0
A28: 1825 | B28: Storage Battery Equipment | E28: 0
A29: 1830 | B29: Poles, Towers & Fixtures | E29: 0
A30: 1835 | B30: Overhead Conductors & Devices | E30: 0
A31: 1835 | B31: Overhead Conductors & Devices
A32: 1840 | B32: Underground Conduit - Ducts | E32: 0
A33: 1840 | B33: Underground Conduit - Trenches
A34: 1840 | B34: Underground Conduit - Foundations
A35: 1845 | B35: Underground Conductors & Devices - Cable in Duct | E35: 0
A36: 1845 | B36: Underground Conductors & Devices - Cables Direct Buried
A37: 1845 | B37: Undergrouind Conductors & Devicies - UG Switchgear
A38: 1850 | B38: Line Transformers | E38: 0
A39: 1850 | B39: ARO
A40: 1855 | B40: Services Overhead | E40: 0
A41: 1855 | B41: Services Underground - In Duct
A42: 1855 | B42: Services Underground - Direct Buried
A43: 1860 | B43: Meters - Industrial/Commercial Energy Meters
A44: 1860 | B44: Meters - CT PT's
A45: 1860 | B45: Meters - Primary
A46: 1860 | B46: Meters - Smart Meters | E46: 0
A47: 1860 | B47: Meters - Repeaters & Collectors | E47: 0
A48: 1905 | B48: Land | E48: 0
A49: 1908 | B49: Buildings & Fixtures | E49: 0
A50: 1910 | B50: Leasehold Improvements | E50: 0
A51: 1915 | B51: Office Furniture & Equipment (10 years) | E51: 0
A52: 1920 | B52: Computer Equipment - Hardware | E52: 0
A53: 1920 | B53: Computer Equip.-Hardware PC's | E53: 0
A54: 1920 | B54: Computer Equip.-Hardware Printers | E54: 0
A55: 1930 | B55: Trailers 10 Yrs | E55: 0
A56: 1930 | B56: Trailers 20 Yrs
A57: 1930 | B57: Trucks < 3 Tons
A58: 1930 | B58: Trucks > 3 Tons
A59: 1935 | B59: Stores Equipment | E59: 0
A60: 1940 | B60: Tools, Shop & Garage Equipment | E60: 0
A61: 1945 | B61: Measurement & Testing Equipment | E61: 0
A62: 1950 | B62: Power Operated Equipment | E62: 0
A63: 1955 | B63: Communications Equipment | E63: 0
A64: 1960 | B64: Miscellaneous Equipment | E64: 0
A65: 1970 | B65: Load Management Controls Customer Premises | E65: 0
A66: 1975 | B66: Load Management Controls Utility Premises | E66: 0
A67: 1980 | B67: System Supervisor Equipment | E67: 0
A68: 1985 | B68: Miscellaneous Fixed Assets | E68: 0
A69: 1990 | B69: Other Tangible Property | E69: 0
A70: 1995 | B70: Contributions & Grants | E70: 0
A71: 2440 | B71: Deferred Revenue
A72: WIP | B72: Work in Progress
B73: Total | C73: =SUM(C21:C70) -> 0 | F73: =SUM(F21:F70) -> 0 | G73: =SUM(G21:G70) -> 0 | H73: =SUM(H21:H70) -> 0
B74: Depreciation exp. adj. from gain or loss on the retirement of assets (pool of like assets)
B75: Total Depreciation Expense | F75: =SUM(F73:F74) -> 0
A76: Notes:
A77: 1 | B77: Board policy of the "half-year" rule - the applicant must ensure that additions in the year attract a half-year depreciation expense in the first year. Deviations from this standard practice must be supported in the application.
A78: 2 | B78: The applicant must provide an explanation of material variances in evidence.
A81: General: | B81: Applicants must provide a breakdown of depreciation and amortization expense in the above format for all relevant accounts. Asset Retirement Obligations (AROs), depreciation and accretion expense should be disclosed separately consistent with the Notes of historical Audited Financial Statements.

Sheet App.2-CH_DepExp
K1: File Number: | L1: =EBNUMBER -> EB-2016-0105
K2: Exhibit:
K3: Tab:
K4: Attachment: | L4: NA
K5: Page:
K7: Date: | L7: =+'App.2-AA_Capital Projects'!$H$7 -> 2016-09-09
A9: Appendix 2-CH1
A10: Depreciation and Amortization Expense
A11: Revised CGAAP or MIFRS
A13: Assumes the applicant changed capitalization and depreciation policies and reflected these changes in a prior rebasing application
D15: Accounting Standard | E15: MIFRS
D16: Year | E16: 2013
A18: Account | B18: Description | C18: Opening Regulatory Gross PP&E as at Jan. 1 | D18: Less Fully Depreciated | E18: Net for Depreciation | F18: Additions | G18: Total for Depreciation 2 | H18: Years | I18: Depreciation Rate | J18: Current Year Depreciation Expense | K18: Depreciation Expense per Appendix 2-BA Fixed Assets, Column J (l) | L18: Variance 3
C19: (a) | D19: (b) | E19: (c) | F19: (d) | G19: (e) = (c) + ½ x (d) | H19: (f) | I19: (g) = 1 / (f) | J19: (h) = (e) / (f) | L19: (m) = (h) - (l)
A20: 1609 | B20: Hydro One Gate Station | E20: =C20-D20 -> 0 | G20: =E20+0.5*F20 -> 0 | I20: =IF(H20=0,0,1/H20) -> 0 | J20: =IF(H20=0,0,G20/H20) -> 0 | L20: =IF(ISERROR(+J20-K20), 0, +J20-K20) -> 0
A21: 1611 | B21: Computer Software (Formally known as Account 1925) | E21: 0 | G21: 0 | I21: 0 | J21: 0 | L21: 0
A22: 1612 | B22: Land Rights (Formally known as Account 1906) | E22: 0 | G22: 0 | I22: 0 | J22: 0 | L22: 0
A23: 1805 | B23: Land | E23: 0 | G23: 0 | I23: 0 | J23: 0 | L23: 0
A24: 1808 | B24: Buildings | E24: 0 | G24: 0 | I24: 0 | J24: 0 | L24: 0
A25: 1810 | B25: Leasehold Improvements | E25: 0 | G25: 0 | I25: 0 | J25: 0 | L25: 0
A26: 1815 | B26: Transformer Station Equipment >50 kV | E26: 0 | G26: 0 | I26: 0 | J26: 0 | L26: 0
A27: 1820 | B27: Distribution Station Equipment <50 kV | E27: 0 | G27: 0 | I27: 0 | J27: 0 | L27: 0
A28: 1825 | B28: Storage Battery Equipment | E28: 0 | G28: 0 | I28: 0 | J28: 0 | L28: 0
A29: 1830 | B29: Poles, Towers & Fixtures | E29: 0 | G29: 0 | I29: 0 | J29: 0 | L29: 0
A30: 1835 | B30: Overhead Conductors & Devices | E30: 0 | G30: 0 | I30: 0 | J30: 0 | L30: 0
A31: 1840 | B31: Underground Conduit | E31: 0 | G31: 0 | I31: 0 | J31: 0 | L31: 0
A32: 1845 | B32: Underground Conductors & Devices | E32: 0 | G32: 0 | I32: 0 | J32: 0 | L32: 0
A33: 1850 | B33: Line Transformers | E33: 0 | G33: 0 | I33: 0 | J33: 0 | L33: 0
A34: 1850 | B34: ARO | E34: 0 | G34: 0 | I34: 0 | J34: 0 | L34: 0
A35: 1855 | B35: Services (Overhead & Underground) | E35: 0 | G35: 0 | I35: 0 | J35: 0 | L35: 0
A36: 1860 | B36: Meters | E36: 0 | G36: 0 | I36: 0 | J36: 0 | L36: 0
A37: 1860 | B37: Meters (Smart Meters) | E37: 0 | G37: 0 | I37: 0 | J37: 0 | L37: 0
A38: 1905 | B38: Land | E38: 0 | G38: 0 | I38: 0 | J38: 0 | L38: 0
A39: 1908 | B39: Buildings & Fixtures | E39: 0 | G39: 0 | I39: 0 | J39: 0 | L39: 0
A40: 1910 | B40: Leasehold Improvements | E40: 0 | G40: 0 | I40: 0 | J40: 0 | L40: 0
A41: 1915 | B41: Office Furniture & Equipment (10 years) | E41: 0 | G41: 0 | I41: 0 | J41: 0 | L41: 0
A42: 1915 | B42: Office Furniture & Equipment (5 years) | E42: 0 | G42: 0 | I42: 0 | J42: 0 | L42: 0
A43: 1920 | B43: Computer Equipment - Hardware | E43: 0 | G43: 0 | I43: 0 | J43: 0 | L43: 0
A44: 1920 | B44: Computer Equip.-Hardware(Post Mar. 22/04) | E44: 0 | G44: 0 | I44: 0 | J44: 0 | L44: 0
A45: 1920 | B45: Computer Equip.-Hardware(Post Mar. 19/07) | E45: 0 | G45: 0 | I45: 0 | J45: 0 | L45: 0
A46: 1930 | B46: Transportation Equipment | E46: 0 | G46: 0 | I46: 0 | J46: 0 | L46: 0
A47: 1935 | B47: Stores Equipment | E47: 0 | G47: 0 | I47: 0 | J47: 0 | L47: 0
A48: 1940 | B48: Tools, Shop & Garage Equipment | E48: 0 | G48: 0 | I48: 0 | J48: 0 | L48: 0
A49: 1945 | B49: Measurement & Testing Equipment | E49: 0 | G49: 0 | I49: 0 | J49: 0 | L49: 0
A50: 1950 | B50: Power Operated Equipment | E50: 0 | G50: 0 | I50: 0 | J50: 0 | L50: 0
A51: 1955 | B51: Communications Equipment | E51: 0 | G51: 0 | I51: 0 | J51: 0 | L51: 0
A52: 1955 | B52: Communication Equipment (Smart Meters) | E52: 0 | G52: 0 | I52: 0 | J52: 0 | L52: 0
A53: 1960 | B53: Miscellaneous Equipment | E53: 0 | G53: 0 | I53: 0 | J53: 0 | L53: 0
A54: 1970 | B54: Load Management Controls - Customer Premises | E54: 0 | G54: 0 | I54: 0 | J54: 0 | L54: 0
A55: 1975 | B55: Load Management Controls Utility Premises | E55: 0 | G55: 0 | I55: 0 | J55: 0 | L55: 0
A56: 1980 | B56: System Supervisor Equipment | E56: 0 | G56: 0 | I56: 0 | J56: 0 | L56: 0
A57: 1985 | B57: Miscellaneous Fixed Assets | E57: 0 | G57: 0 | I57: 0 | J57: 0 | L57: 0
A58: 1990 | B58: Other Tangible Property | E58: 0 | G58: 0 | I58: 0 | J58: 0 | L58: 0
A59: 1995 | B59: Contributions & Grants
A60: 2440 | B60: Deferred Revenue5
B61: Work in Process | E61: =C61-D61 -> 0 | G61: =E61+0.5*F61 -> 0 | I61: =IF(H61=0,0,1/H61) -> 0 | J61: =IF(H61=0,0,G61/H61) -> 0 | L61: =IF(ISERROR(+J61-K61), 0, +J61-K61) -> 0
B62: Total | C62: =SUM(C20:C61) -> 0 | D62: =SUM(D20:D61) -> 0 | E62: =SUM(E20:E61) -> 0 | F62: =SUM(F20:F61) -> 0 | G62: =SUM(G20:G61) -> 0 | J62: =SUM(J20:J61) -> 0 | K62: =SUM(K20:K61) -> 0 | L62: =SUM(L20:L61) -> 0
B63: Depreciation exp. adj. from gain or loss on the retirement of assets (pool of like assets) (under MIFRS)
B64: Total Depreciation Expense | J64: =SUM(J62:J63) -> 0
A66: Notes:
A68: 1 | B68: The appendix should be submitted for the Test Year, Bridge Year and all relevant historical years. At a minimum , the applicant must provide data for the earlier of: 1) all historical years back to its last rebasing; or 2) at least three years of historical actuals, in addition to Bridge Year and Test Year forecasts.
A70: 2 | B70: Board policy of the "half-year" rule - the applicant must ensure that additions in the year attract a half-year depreciation expense in the first year. Deviations from this standard practice must be supported in the application.
A71: 3 | B71: The applicant must provide an explanation of material variances in evidence.
A73: General | B73: Applicants must provide a breakdown of depreciation and amortization expense in the above format for all relevant accounts. Asset Retirement Obligations (AROs), depreciation and accretion expense should be disclosed separately consistent with the Notes of historical Audited Financial Statements.

Sheet App.2-D_Overhead
F1: File Number: | G1: =EBNUMBER -> EB-2016-0105
F2: Exhibit: | G2: 2
F3: Tab:
F4: Attachment: | G4: 2-E
F5: Page:
F7: Date: | G7: =+'App.2-AA_Capital Projects'!$H$7 -> 2016-09-09
A9: Appendix 2-D
A10: Overhead Expense
A12: Applicants are to provide a breakdown of OM&A before capitalization in the below table. OM&A before capitalization may be broken down by cost center, program, drivers or another format best suited to focus on capitalized vs. uncapitalized OM&A.
A14: OM&A Before Capitalization
B15: =F15-4 -> 2013 | C15: =F15-3 -> 2014 | D15: =F15-2 -> 2015 | E15: =F15-1 -> 2016 | F15: =TestYear -> 2017
B16: Historical Year | C16: Historical Year | D16: Historical Year | E16: Bridge Year | F16: Test Year
A18: Total OM&A Before Capitalization (B) | B18: =+'App.2-JA_OM&A_Summary_Analys'!C26+B32 -> 16149367.02 | C18: =+'App.2-JA_OM&A_Summary_Analys'!D26+C32 -> 16407572.49 | D18: =+'App.2-JA_OM&A_Summary_Analys'!E26+D32 -> 17212081.87 | E18: =+'App.2-JA_OM&A_Summary_Analys'!F26+E32 -> 18370620.91 | F18: =+'App.2-JA_OM&A_Summary_Analys'!G26+F32 -> 18996026.87
A20: Applicants are to provide a breakdown of capitalized OM&A in the below table. Capitalized OM&A may be broken down using the categories listed in the table below if possible. Otherwise, applicants are to provide its own break down of capitalized OM&A.
A22: Capitalized OM&A | G22: Directly | H22: Explanation for Change in Overhead Capitalized
B23: =F23-4 -> 2013 | C23: =F23-3 -> 2014 | D23: =F23-2 -> 2015 | E23: =F23-1 -> 2016 | F23: =TestYear -> 2017 | G23: Attributable?
B24: Historical Year | C24: Historical Year | D24: Historical Year | E24: Bridge Year | F24: Test Year | G24: (Yes/No)
A25: Benefits | B25: 112331.99 | C25: 109853.0428 | D25: 135209.4725 | E25: 150034 | F25: 170953 | G25: Yes | H25: No changes necessary on transition to MIFRS
A26: Downtime | B26: 351315.61 | C26: 366214.39 | D26: 520424.7724 | E26: 493088 | F26: 573241 | G26: Yes | H26: No changes necessary on transition to MIFRS
A27: Material | B27: 75962.42 | C27: 87911.32 | D27: 97486.05966 | E27: 96642 | F27: 100910 | G27: Yes | H27: No changes necessary on transition to MIFRS
A28: Supervisory | B28: 405267.61 | C28: 477764.66 | D28: 555175.6744 | E28: 548051 | F28: 596441 | G28: Yes | H28: No changes necessary on transition to MIFRS
A29: Engineering | B29: 1033597.72 | C29: 1029131.83 | D29: 974724.4742 | E29: 1002953 | F29: 1062413 | G29: Yes | H29: No changes necessary on transition to MIFRS
A30: Trucking | B30: 938007.78 | C30: 514179.72 | D30: 685057.4346 | E30: 665470 | F30: 762197 | G30: Yes | H30: No changes necessary on transition to MIFRS
A32: Total Capitalized OM&A (A) | B32: =SUM(B25:B31) -> 2916483.13 | C32: =SUM(C25:C31) -> 2585054.963 | D32: =SUM(D25:D31) -> 2968077.888 | E32: =SUM(E25:E31) -> 2956238 | F32: =SUM(F25:F31) -> 3266155
A34: % of Capitalized OM&A (=A/B) | B34: =IF(ISERROR(B32/B18),"0%",B32/B18) -> 0.1805942689 | C34: =IF(ISERROR(C32/C18),"0%",C32/C18) -> 0.1575525547 | D34: =IF(ISERROR(D32/D18),"0%",D32/D18) -> 0.1724415391 | E34: =IF(ISERROR(E32/E18),"0%",E32/E18) -> 0.1609220513 | F34: =IF(ISERROR(F32/F18),"0%",F32/F18) -> 0.1719388492
F35: =B34-F34 -> 0.008655419658

Sheet App.2-EA_Account 1575 (2015)
H1: File Number: | I1: =EBNUMBER -> EB-2016-0105
H2: Exhibit: | I2: 9
H3: Tab:
H4: Attachment: | I4: 9-C
H5: Page:
H7: Date: | I7: =+'App.2-AA_Capital Projects'!$H$7 -> 2016-09-09
A9: Appendix 2-EA
A10: Account 1575 - IFRS-CGAAP Transitional PP&E Amounts
A11: 2015 Adopters of IFRS for Financial Reporting Purposes
A13: For applicants that adopted IFRS on January 1, 2015 for financial reporting purposes
B17: =RebaseYear &" Rebasing Year" -> 2013 Rebasing Year | C17: =TestYear-3 -> 2014 | D17: =TestYear-2 -> 2015 | E17: =CONCATENATE(TestYear-1," Bridge Year") -> 2016 Bridge Year | F17: =CONCATENATE(TestYear," Rebasing Year") -> 2017 Rebasing Year
A18: Reporting Basis | B18: CGAAP | C18: CGAAP | D18: CGAAP | E18: MIFRS | F18: MIFRS
B19: Forecast | C19: Actual | D19: Actual | E19: Forecast | F19: Forecast
D20: $ | E20: $
A21: PP&E Values under CGAAP
A22: Opening net PP&E - Note 1 | C22: 84209458 | D22: =+C25 -> 89238952 | E22: =+D25 -> 95608984
A23: Net Additions - Note 4 | C23: 6908174 | D23: 7990672 | E23: 8776791
A24: Net Depreciation (amounts should be negative) - Note 4 | C24: -1878680 | D24: -1620640 | E24: -1932153
A25: Closing net PP&E (1) | C25: =C22+C23+C24 -> 89238952 | D25: =SUM(D22:D24) -> 95608984 | E25: =SUM(E22:E24) -> 102453622
A27: PP&E Values under MIFRS (Starts from 2014, the transition year)
A28: Opening net PP&E - Note 1 | C28: 84209458 | D28: =+C31 -> 89519339 | E28: =+D31 -> 95889371
A29: Net Additions - Note 4 | C29: 7188561 | D29: 7990672 | E29: 9033681
A30: Net Depreciation (amounts should be negative) - Note 4 | C30: -1878680 | D30: -1620640 | E30: -1932153
A31: Closing net PP&E (2) | C31: =SUM(C28:C30) -> 89519339 | D31: =SUM(D28:D30) -> 95889371 | E31: =SUM(E28:E30) -> 102990899
A33: Difference in Closing net PP&E, former CGAAP vs. revised CGAAP | C33: =C25-C31 -> -280387 | D33: =D25-D31 -> -280387 | E33: =E25-E31 -> -537277
A36: Effect on Deferral and Variance Account Rate Riders
A37: Closing balance in Account 1576 | F37: =IF(ISERROR(E33), 0, E33) -> -537277 | H37: WACC | I37: 0.04916441977
A38: Return on Rate Base Associated with Account 1576 balance at WACC - Note 2 | F38: =E33*I37*I38 -> -26414.91196 | G38: # of years of rate rider disposition period | I38: 1
A39: Amount included in Deferral and Variance Account Rate Rider Calculation | F39: =F37+F38 -> -563691.912
A41: Notes:
A42: 1 For an applicant that adopted IFRS on January 1, 2015, the PP&E values as of January 1, 2014 under both CGAAP and MIFRS should be the same.
A43: 2 Return on rate base associated with deferred balance is calculated as:
A44: the deferral account closing balance as of 2016 x WACC X # of years of rate rider disposition period
A45: * Please note that the calculation should be adjusted once WACC is updated and finalized in the rate application.
A46: 3 The PP&E deferral account is cleared by including the total balance in the deferral and variance account rate rider calculation.
A47: 4 Net additions are additions net of disposals; Net depreciation is additions to depreciation net of disposals.

Sheet App.2-EB_Account 1576 (2012)
J1: File Number: | K1: =EBNUMBER -> EB-2016-0105
J2: Exhibit:
J3: Tab:
J4: Attachment: | K4: NA
J5: Page:
J7: Date: | K7: =+'App.2-AA_Capital Projects'!$H$7 -> 2016-09-09
A9: Appendix 2-EB
A10: Account 1576 - Accounting Changes under CGAAP
A11: 2012 Changes in Accounting Policies under CGAAP
A13: For applicants with a balance in Account 1576 and made capitalization and depreciation expense accounting policy changes under CGAAP effective January 1, 2012
B17: 2011 Rebasing Year | C17: 2012 | D17: 2013 | E17: 2014 | F17: 2015 | G17: 2016 | H17: 2017 Rebasing Year
A18: Reporting Basis | B18: CGAAP | C18: CGAAP | D18: CGAAP | E18: CGAAP | F18: MIFRS - Note 5 | G18: MIFRS | H18: MIFRS
B19: Forecast | C19: Actual | D19: Actual | E19: Actual | F19: Actual | G19: Forecast | H19: Forecast
C20: $ | D20: $ | E20: $ | G20: $
A21: PP&E Values under former CGAAP
A22: Opening net PP&E - Note 1 | D22: =+C25 -> 0 | E22: =+D25 -> 0 | F22: =+D25 -> 0 | G22: =+E25 -> 0
A23: Net Additions - Note 4
A24: Net Depreciation (amounts should be negative) - Note 4
A25: Closing net PP&E (1) | C25: =C22+C23+C24 -> 0 | D25: =D22+D23+D24 -> 0 | E25: =E22+E23+E24 -> 0 | F25: =F22+F23+F24 -> 0 | G25: =G22+G23+G24 -> 0
A27: PP&E Values under revised CGAAP (Starts from 2012)
A28: Opening net PP&E - Note 1 | D28: =+C31 -> 0 | E28: =+D31 -> 0 | F28: =+D31 -> 0 | G28: =+E31 -> 0
A29: Net Additions - Note 4
A30: Net Depreciation (amounts should be negative) - Note 4
A31: Closing net PP&E (2) | C31: =SUM(C28:C30) -> 0 | D31: =SUM(D28:D30) -> 0 | E31: =SUM(E28:E30) -> 0 | F31: =SUM(F28:F30) -> 0 | G31: =SUM(G28:G30) -> 0
A33: Difference in Closing net PP&E, former CGAAP vs. revised CGAAP | C33: =C25-C31 -> 0 | D33: =D25-D31 -> 0 | E33: =E25-E31 -> 0 | F33: =F25-F31 -> 0 | G33: =G25-G31 -> 0
A36: Effect on Deferral and Variance Account Rate Riders
A37: Closing balance in Account 1576 | H37: =IF(ISERROR(G33), 0, G33) -> 0 | J37: WACC
A38: Return on Rate Base Associated with Account 1576 balance at WACC - Note 2 | H38: =G33*K37*K38 -> 0 | I38: # of years of rate rider disposition period
A39: Amount included in Deferral and Variance Account Rate Rider Calculation | H39: =H37+H38 -> 0
A41: Notes:
A42: 1 For an applicant that made the capitalization and depreciation expense accounting policy changes on January 1, 2012, the PP&E values as of January 1, 2012 under both former CGAAP and revised CGAAP should be the same.
A43: 2 Return on rate base associated with Account 1576 balance is calculated as:
A44: the variance account ending balance as of 2016 x WACC X # of years of rate rider disposition period
A45: * Please note that the calculation should be adjusted once WACC is updated and finalized in the rate application.
A46: 3 Account 1576 is cleared by including the total balance in the deferral and variance account rate rider calculation.
A47: 4 Net additions are additions net of disposals; Net depreciation is additions to depreciation net of disposals.
A48: 5 Differences due to the adoption of MIFRS are to be shown separately in Account 1575 in Appendix 2-EA as Accounts 1575 and 1576 cannot be used interchangably.

Sheet App.2-EC_Account 1576 (2013)
I1: File Number: | J1: =EBNUMBER -> EB-2016-0105
I2: Exhibit:
I3: Tab:
I4: Attachment: | J4: NA
I5: Page:
I7: Date: | J7: =+'App.2-AA_Capital Projects'!$H$7 -> 2016-09-09
A9: Appendix 2-EC
A10: Account 1576 - Accounting Changes under CGAAP
A11: 2013 Changes in Accounting Policies under CGAAP
A13: For applicants with a balance in Account 1576 and made capitalization and depreciation expense accounting policy changes under CGAAP effective January 1, 2013
B17: 2012 Rebasing Year | C17: 2013 | D17: 2014 | E17: 2015 | F17: 2016 | G17: 2017 Rebasing Year
A18: Reporting Basis | B18: CGAAP | C18: CGAAP | D18: CGAAP | E18: MIFRS - Note 5 | F18: MIFRS | G18: MIFRS
B19: Actual | C19: Actual | D19: Actual | E19: Actual | F19: Forecast | G19: Forecast
C20: $ | D20: $ | F20: $
A21: PP&E Values under former CGAAP
A22: Opening net PP&E - Note 1 | D22: =+C25 -> 0 | E22: =+D25 -> 0 | F22: =+D25 -> 0
A23: Net Additions - Note 4
A24: Net Depreciation (amounts should be negative) - Note 4
A25: Closing net PP&E (1) | C25: =C22+C23+C24 -> 0 | D25: =D22+D23+D24 -> 0 | E25: =E22+E23+E24 -> 0 | F25: =F22+F23+F24 -> 0
A27: PP&E Values under revised CGAAP (Starts from 2012)
A28: Opening net PP&E - Note 1 | D28: =+C31 -> 0 | E28: =+D31 -> 0 | F28: =+D31 -> 0
A29: Net Additions - Note 4
A30: Net Depreciation (amounts should be negative) - Note 4
A31: Closing net PP&E (2) | C31: =SUM(C28:C30) -> 0 | D31: =SUM(D28:D30) -> 0 | E31: =SUM(E28:E30) -> 0 | F31: =SUM(F28:F30) -> 0
A33: Difference in Closing net PP&E, former CGAAP vs. revised CGAAP | C33: =C25-C31 -> 0 | D33: =D25-D31 -> 0 | E33: =E25-E31 -> 0 | F33: =F25-F31 -> 0
A36: Effect on Deferral and Variance Account Rate Riders
A37: Closing balance in Account 1576 | G37: =IF(ISERROR(F33), 0, F33) -> 0 | I37: WACC
A38: Return on Rate Base Associated with Account 1576 balance at WACC - Note 2 | G38: =F33*J37*J38 -> 0 | H38: # of years of rate rider disposition period
A39: Amount included in Deferral and Variance Account Rate Rider Calculation | G39: =G37+G38 -> 0
A41: Notes:
A42: 1 For an applicant that made the capitalization and depreciation expense accounting policy changes on January 1, 2013, the PP&E values as of January 1, 2013 under both former CGAAP and revised CGAAP should be the same.
A43: 2 Return on rate base associated with Account 1576 balance is calculated as:
A44: the variance account ending balance as of 2016 x WACC X # of years of rate rider disposition period
A45: * Please note that the calculation should be adjusted once WACC is updated and finalized in the rate application.
A46: 3 Account 1576 is cleared by including the total balance in the deferral and variance account rate rider calculation.
A47: 4 Net additions are additions net of disposals; Net depreciation is additions to depreciation net of disposals.
A48: 5 Differences due to the adoption of MIFRS are to be shown separately in Account 1575 in Appendix 2-EA as Accounts 1575 and 1576 cannot be used interchangably.

Sheet App.2-FA Proposed REG Invest.
J1: File Number: | K1: =EBNUMBER -> EB-2016-0105
J2: Exhibit: | K2: 2
J3: Tab:
J4: Attachment: | K4: 2-F
J5: Page:
J7: Date: | K7: =+'App.2-AA_Capital Projects'!$H$7 -> 2016-09-09
A9: Appendix 2-FA
A10: Renewable Generation Connection Investment Summary (past investments or over the future rate setting period)
A12: Enter the details of the Renewable Generation Connection projects as described in the appropriate section of the Filing Requirements.
A13: All costs entered on this page will be transferred to the appropriate cells in the appendices that follow.
A14: For Part A, Renewable Enabling Improvements (REI), these amounts will be transferred to Appendix 2 - FB
A15: For Part B, Expansions, these amounts will be transferred to Appendix 2 - FC
A17: If there are more than five projects proposed to be in-service in a certain year, please amend the tables below and ensure that the formulae for the Total Amounts in any given rate year are updated.
A18: Based on the current methodology and allocation, amounts allocated represent 6% for REI Connection Investments and 17% for Expansion Investments. (EB-2009-0349, 6-10-2010, p. 15, note 9)
A20: There are two scenarios described below. Separate sets of spreadsheets (2-FA, 2-FB, 2-FC) should be submited for each scenario as required.
A21: Scenario 1: Past Investments with No Recovery. The distributor has made investments in the past (during the IRM Years), but has not received approval for these projects and therefore did not receive
A22: revenue from the IESO under Regulation 330/09 and did not receive ratepayer revenue for the direct benefit portion of the investment.
A23: The WCA percentage, debt percentages, interest rates, kWh, tax rates, amortization period, CCA Class and percentage should correspond to the distributor's last Cost of Service approval.
A24: The Direct Benefit portion of the calculated Revenue Requirement for each year should be summed and can be applied for recovery from the distributor's ratepayers through a rate rider.
A25: The Provincial Recovery portion of the calculated Revenue Requirement for each year should be summed and can be applied for recovery from the IESO through a separate order.
A27: Scenario 2: Investments in the Test Year and Beyond. Distributor plans to make investments in 2017 and/or beyond. These investments should be added to 2-FA in the appropriate year.
A28: The WCA percentage, debt percentages, interest rates, kWh, tax rates, amortization period, CCA Class and percentage should correspond to the distributor's current application.
A30: Part A | G30: Test Year
A31: REI Investments (Direct Benefit at 6%) | C31: =D31-1 -> 2013 | D31: =E31-1 -> 2014 | E31: =F31-1 -> 2015 | F31: =G31-1 -> 2016 | G31: =TestYear -> 2017 | H31: =G31+1 -> 2018 | I31: =H31+1 -> 2019 | J31: =I31+1 -> 2020 | K31: =J31+1 -> 2021
A32: Project 1
A33: Name: REI Connection Project
A34: Capital Costs | C34: 61636 | D34: 0 | E34: 0 | F34: 0 | G34: 0 | H34: 0 | I34: 0 | J34: 0 | K34: 0
A35: OM&A (Start-Up) | C35: 0 | D35: 0 | E35: 0 | F35: 0 | G35: 0 | H35: 0 | I35: 0 | J35: 0 | K35: 0
A36: OM&A (Ongoing) | C36: 0 | D36: 0 | E36: 0 | F36: 0 | G36: 0 | H36: 0 | I36: 0 | J36: 0 | K36: 0
A38: Project 2
A39: Name: REI Connection Project
A40: Capital Costs | C40: 583185 | D40: 0 | E40: 0 | F40: 0 | G40: 0 | H40: 0 | I40: 0 | J40: 0 | K40: 0
A41: OM&A (Start-Up) | C41: 0 | D41: 0 | E41: 0 | F41: 0 | G41: 0 | H41: 0 | I41: 0 | J41: 0 | K41: 0
A42: OM&A (Ongoing) | C42: 0 | D42: 0 | E42: 0 | F42: 0 | G42: 0 | H42: 0 | I42: 0 | J42: 0 | K42: 0
A44: Project 3
A45: Name: REI Connection Project
A46: Capital Costs | C46: 0 | D46: 0 | E46: 0 | F46: 0 | G46: 0 | H46: 0 | I46: 0 | J46: 0 | K46: 0
A47: OM&A (Start-Up) | C47: 0 | D47: 0 | E47: 0 | F47: 0 | G47: 0 | H47: 0 | I47: 0 | J47: 0 | K47: 0
A48: OM&A (Ongoing) | C48: 0 | D48: 0 | E48: 0 | F48: 0 | G48: 0 | H48: 0 | I48: 0 | J48: 0 | K48: 0
A50: Project 4
A51: Name: REI Connection Project
A52: Capital Costs | C52: 0 | D52: 0 | E52: 0 | F52: 0 | G52: 0 | H52: 0 | I52: 0 | J52: 0 | K52: 0
A53: OM&A (Start-Up) | C53: 0 | D53: 0 | E53: 0 | F53: 0 | G53: 0 | H53: 0 | I53: 0 | J53: 0 | K53: 0
A54: OM&A (Ongoing) | C54: 0 | D54: 0 | E54: 0 | F54: 0 | G54: 0 | H54: 0 | I54: 0 | J54: 0 | K54: 0
A56: Project 5
A57: Name: REI Connection Project
A58: Capital Costs | C58: 0 | D58: 0 | E58: 0 | F58: 0 | G58: 0 | H58: 0 | I58: 0 | J58: 0 | K58: 0
A59: OM&A (Start-Up) | C59: 0 | D59: 0 | E59: 0 | F59: 0 | G59: 0 | H59: 0 | I59: 0 | J59: 0 | K59: 0
A60: OM&A (Ongoing) | C60: 0 | D60: 0 | E60: 0 | F60: 0 | G60: 0 | H60: 0 | I60: 0 | J60: 0 | K60: 0
A62: Total Capital Costs | C62: =SUM(C58,C52,C46,C40,C34) -> 644821 | D62: 0 | E62: 0 | F62: 0 | G62: =SUM(G58,G52,G46,G40,G34) -> 0 | H62: =SUM(H58,H52,H46,H40,H34) -> 0 | I62: 0 | J62: 0 | K62: 0
A63: Total OM&A (Start-Up) | C63: 0 | D63: 0 | E63: 0 | F63: 0 | G63: =SUM(G59,G53,G47,G41,G35) -> 0 | H63: 0 | I63: 0 | J63: 0 | K63: 0
A64: Total OM&A (Ongoing) | C64: 0 | D64: 0 | E64: 0 | F64: 0 | G64: =SUM(G60,G54,G48,G42,G36) -> 0 | H64: 0 | I64: 0 | J64: 0 | K64: 0
A67: Part B | G67: Test Year
A68: Expansion Investments (Direct Benefit at 17%) | C68: =D68-1 -> 2013 | D68: =E68-1 -> 2014 | E68: =F68-1 -> 2015 | F68: =G68-1 -> 2016 | G68: =TestYear -> 2017 | H68: =G68+1 -> 2018 | I68: =H68+1 -> 2019 | J68: =I68+1 -> 2020 | K68: =J68+1 -> 2021
A69: Project 1
A70: Name: Expansion Connection Project
A71: Capital Costs | C71: 0 | D71: 0 | E71: 0 | F71: 0 | G71: 0 | H71: 0 | I71: 0 | J71: 0 | K71: 0
A72: OM&A (Start-Up) | C72: 0 | D72: 0 | E72: 0 | F72: 0 | G72: 0 | H72: 0 | I72: 0 | J72: 0 | K72: 0
A73: OM&A (Ongoing) | C73: 0 | D73: 0 | E73: 0 | F73: 0 | G73: 0 | H73: 0 | I73: 0 | J73: 0 | K73: 0
A75: Project 2
A76: Name: Expansion Connection Project
A77: Capital Costs | C77: 0 | D77: 0 | E77: 0 | F77: 0 | G77: 0 | H77: 0 | I77: 0 | J77: 0 | K77: 0
A78: OM&A (Start-Up) | C78: 0 | D78: 0 | E78: 0 | F78: 0 | G78: 0 | H78: 0 | I78: 0 | J78: 0 | K78: 0
A79: OM&A (Ongoing) | C79: 0 | D79: 0 | E79: 0 | F79: 0 | G79: 0 | H79: 0 | I79: 0 | J79: 0 | K79: 0
A81: Project 3
A82: Name: Expansion Connection Project
A83: Capital Costs | C83: 0 | D83: 0 | E83: 0 | F83: 0 | G83: 0 | H83: 0 | I83: 0 | J83: 0 | K83: 0
A84: OM&A (Start-Up) | C84: 0 | D84: 0 | E84: 0 | F84: 0 | G84: 0 | H84: 0 | I84: 0 | J84: 0 | K84: 0
A85: OM&A (Ongoing) | C85: 0 | D85: 0 | E85: 0 | F85: 0 | G85: 0 | H85: 0 | I85: 0 | J85: 0 | K85: 0
A87: Project 4
A88: Name: Expansion Connection Project
A89: Capital Costs | C89: 0 | D89: 0 | E89: 0 | F89: 0 | G89: 0 | H89: 0 | I89: 0 | J89: 0 | K89: 0
A90: OM&A (Start-Up) | C90: 0 | D90: 0 | E90: 0 | F90: 0 | G90: 0 | H90: 0 | I90: 0 | J90: 0 | K90: 0
A91: OM&A (Ongoing) | C91: 0 | D91: 0 | E91: 0 | F91: 0 | G91: 0 | H91: 0 | I91: 0 | J91: 0 | K91: 0
A93: Project 5
A94: Name: Expansion Connection Project
A95: Capital Costs | C95: 0 | D95: 0 | E95: 0 | F95: 0 | G95: 0 | H95: 0 | I95: 0 | J95: 0 | K95: 0
A96: OM&A (Start-Up) | C96: 0 | D96: 0 | E96: 0 | F96: 0 | G96: 0 | H96: 0 | I96: 0 | J96: 0 | K96: 0
A97: OM&A (Ongoing) | C97: 0 | D97: 0 | E97: 0 | F97: 0 | G97: 0 | H97: 0 | I97: 0 | J97: 0 | K97: 0
A99: Total Capital Costs | C99: =SUM(C95,C89,C83,C77,C71) -> 0 | D99: 0 | E99: 0 | F99: 0 | G99: =SUM(G95,G89,G83,G77,G71) -> 0 | H99: =SUM(H95,H89,H83,H77,H71) -> 0 | I99: 0 | J99: 0 | K99: 0
A100: Total OM&A (Start-Up) | C100: 0 | D100: 0 | E100: 0 | F100: 0 | G100: =SUM(G96,G90,G84,G78,G72) -> 0 | H100: 0 | I100: 0 | J100: 0 | K100: 0
A101: Total OM&A (Ongoing) | C101: 0 | D101: 0 | E101: 0 | F101: 0 | G101: =SUM(G97,G91,G85,G79,G73) -> 0 | H101: 0 | I101: 0 | J101: 0 | K101: 0

Sheet App.2-FB Calc of REG Improvemnt
N1: File Number: | O1: =EBNUMBER -> EB-2016-0105
N2: Exhibit: | O2: 2
N3: Tab:
N4: Attachment: | O4: 2-G
N5: Page:
N7: Date: | O7: =+'App.2-AA_Capital Projects'!$H$7 -> 2016-09-09
A9: Appendix 2-FB
A10: Calculation of Renewable Generation Connection Direct Benefits/Provincial Amount: Renewable Enabling Improvement Investments
A12: This table will calculate the distributor/provincial shares of the investments entered in Part A of Appendix 2-FA.
A13: Enter values in green shaded cells: WCA percentage, debt percentages, interest rates, kWh, tax rates, amortization period, CCA Class and percentage.
A14: For historical investments, enter these variables for your last cost of service test year. For 2017 and beyond, enter variables as in the application.
A15: Rate Riders are not calculated for the Test Year as these assets and costs are already in the distributor's rate base/revenue requirement.
C17: =F17-1 -> 2013 | F17: =I17-1 -> 2014 | I17: =L17-1 -> 2015 | L17: =BridgeYear -> 2016 | O17: =CONCATENATE(TestYear," Test Year") -> 2017 Test Year | R17: =TestYear+1 -> 2018 | U17: =R17+1 -> 2019 | V17: 2016 | X17: =U17+1 -> 2020 | AA17: =X17+1 -> 2021
D18: Direct Benefit | E18: Provincial | G18: Direct Benefit | H18: Provincial | J18: Direct Benefit | K18: Provincial | M18: Direct Benefit | N18: Provincial | P18: Direct Benefit | Q18: Provincial | S18: Direct Benefit | T18: Provincial | V18: Direct Benefit | W18: Provincial | Y18: Direct Benefit | Z18: Provincial | AB18: Direct Benefit | AC18: Provincial
C19: Total | D19: 0.06 | E19: 0.94 | F19: Total | G19: 0.06 | H19: 0.94 | I19: Total | J19: 0.06 | K19: 0.94 | L19: Total | M19: 0.06 | N19: 0.94 | O19: Total | P19: 0.06 | Q19: 0.94 | R19: Total | S19: 0.06 | T19: 0.94 | U19: Total | V19: 0.06 | W19: 0.94 | X19: Total | Y19: 0.06 | Z19: 0.94 | AA19: Total | AB19: 0.06 | AC19: 0.94
A20: Net Fixed Assets (average) | C20: =D82 -> 315962.29 | D20: =C20*D19 -> 18957.7374 | E20: =C20*E19 -> 297004.5526 | F20: =E82 -> 619028.16 | G20: =F20*G19 -> 37141.6896 | H20: =F20*H19 -> 581886.4704 | I20: =F82 -> 593235.32 | J20: =I20*J19 -> 35594.1192 | K20: =I20*K19 -> 557641.2008 | L20: =G82 -> 567442.48 | M20: =L20*M19 -> 34046.5488 | N20: =L20*N19 -> 533395.9312 | O20: =H82 -> 541649.64 | P20: =O20*P19 -> 32498.9784 | Q20: =O20*Q19 -> 509150.6616 | R20: =I82 -> 515856.8 | S20: =R20*S19 -> 30951.408 | T20: =R20*T19 -> 484905.392 | U20: =J82 -> 490063.96 | V20: =U20*V19 -> 29403.8376 | W20: =U20*W19 -> 460660.1224 | X20: =K82 -> 464271.12 | Y20: =X20*Y19 -> 27856.2672 | Z20: =X20*Z19 -> 436414.8528 | AA20: =L82 -> 438478.28 | AB20: =AA20*AB19 -> 26308.6968 | AC20: =AA20*AC19 -> 412169.5832
A21: Incremental OM&A (on-going, N/A for Provincial Recovery) | C21: ='App.2-FA Proposed REG Invest.'!C64 -> 0 | D21: =C21 -> 0 | F21: ='App.2-FA Proposed REG Invest.'!D64 -> 0 | G21: =F21 -> 0 | I21: ='App.2-FA Proposed REG Invest.'!E64 -> 0 | J21: =I21 -> 0 | L21: ='App.2-FA Proposed REG Invest.'!F64 -> 0 | M21: =L21 -> 0 | O21: ='App.2-FA Proposed REG Invest.'!G64 -> 0 | P21: =O21 -> 0 | R21: ='App.2-FA Proposed REG Invest.'!H64 -> 0 | S21: =R21 -> 0 | U21: ='App.2-FA Proposed REG Invest.'!I64 -> 0 | V21: =U21 -> 0 | X21: ='App.2-FA Proposed REG Invest.'!J64 -> 0 | Y21: =X21 -> 0 | AA21: ='App.2-FA Proposed REG Invest.'!K64 -> 0 | AB21: =AA21 -> 0
A22: Incremental OM&A (start-up, applicable for Provincial Recovery) | C22: ='App.2-FA Proposed REG Invest.'!C63 -> 0 | D22: =C22*D19 -> 0 | E22: =C22*E19 -> 0 | F22: ='App.2-FA Proposed REG Invest.'!D63 -> 0 | G22: =F22*G19 -> 0 | H22: =F22*H19 -> 0 | I22: ='App.2-FA Proposed REG Invest.'!E63 -> 0 | J22: =I22*J19 -> 0 | K22: =I22*K19 -> 0 | L22: ='App.2-FA Proposed REG Invest.'!F63 -> 0 | M22: =L22*M19 -> 0 | N22: =L22*N19 -> 0 | O22: ='App.2-FA Proposed REG Invest.'!G63 -> 0 | P22: =O22*P19 -> 0 | Q22: =O22*Q19 -> 0 | R22: ='App.2-FA Proposed REG Invest.'!H63 -> 0 | S22: =R22*S19 -> 0 | T22: =R22*T19 -> 0 | U22: ='App.2-FA Proposed REG Invest.'!I63 -> 0 | V22: =U22*V19 -> 0 | W22: =U22*W19 -> 0 | X22: ='App.2-FA Proposed REG Invest.'!J63 -> 0 | Y22: =X22*Y19 -> 0 | Z22: =X22*Z19 -> 0 | AA22: ='App.2-FA Proposed REG Invest.'!K63 -> 0 | AB22: =AA22*AB19 -> 0 | AC22: =AA22*AC19 -> 0
A23: WCA | B23: 0.13 | D23: =(D21+D22)*$B$23 -> 0 | E23: =E22*$B$23 -> 0 | G23: =(G21+G22)*$B$23 -> 0 | H23: =H22*$B$23 -> 0 | J23: =(J21+J22)*$B$23 -> 0 | K23: =K22*$B$23 -> 0 | M23: =(M21+M22)*$B$23 -> 0 | N23: =N22*$B$23 -> 0 | P23: =(P21+P22)*$B$23 -> 0 | Q23: =Q22*$B$23 -> 0 | S23: =(S21+S22)*$B$23 -> 0 | T23: =T22*$B$23 -> 0 | V23: =(V21+V22)*$B$23 -> 0 | W23: =W22*$B$23 -> 0 | Y23: =(Y21+Y22)*$B$23 -> 0 | Z23: =Z22*$B$23 -> 0 | AB23: =(AB21+AB22)*$B$23 -> 0 | AC23: =AC22*$B$23 -> 0
A24: Rate Base | D24: =SUM(D20+D23) -> 18957.7374 | E24: =SUM(E20+E23) -> 297004.5526 | G24: =SUM(G20+G23) -> 37141.6896 | H24: =SUM(H20+H23) -> 581886.4704 | J24: =SUM(J20+J23) -> 35594.1192 | K24: =SUM(K20+K23) -> 557641.2008 | M24: =SUM(M20+M23) -> 34046.5488 | N24: =SUM(N20+N23) -> 533395.9312 | P24: =SUM(P20+P23) -> 32498.9784 | Q24: =SUM(Q20+Q23) -> 509150.6616 | S24: =SUM(S20+S23) -> 30951.408 | T24: =SUM(T20+T23) -> 484905.392 | V24: =SUM(V20+V23) -> 29403.8376 | W24: =SUM(W20+W23) -> 460660.1224 | Y24: =SUM(Y20+Y23) -> 27856.2672 | Z24: =SUM(Z20+Z23) -> 436414.8528 | AB24: =SUM(AB20+AB23) -> 26308.6968 | AC24: =SUM(AC20+AC23) -> 412169.5832
A27: Deemed ST Debt | B27: =+'App.2-OA Capital Structure'!E23 -> 0.04 | D27: =D24*$B$27 -> 758.309496 | E27: =E24*$B$27 -> 11880.1821 | G27: =G24*$B$27 -> 1485.667584 | H27: =H24*$B$27 -> 23275.45882 | J27: =J24*$B$27 -> 1423.764768 | K27: =K24*$B$27 -> 22305.64803 | M27: =M24*$B$27 -> 1361.861952 | N27: =N24*$B$27 -> 21335.83725 | P27: =P24*$B$27 -> 1299.959136 | Q27: =Q24*$B$27 -> 20366.02646 | S27: =S24*$B$27 -> 1238.05632 | T27: =T24*$B$27 -> 19396.21568 | V27: =V24*$B$27 -> 1176.153504 | W27: =W24*$B$27 -> 18426.4049 | Y27: =Y24*$B$27 -> 1114.250688 | Z27: =Z24*$B$27 -> 17456.59411 | AB27: =AB24*$B$27 -> 1052.347872 | AC27: =AC24*$B$27 -> 16486.78333
A28: Deemed LT Debt | B28: =+'App.2-OA Capital Structure'!E22 -> 0.56 | D28: =D24*$B$28 -> 10616.33294 | E28: =E24*$B$28 -> 166322.5495 | G28: =G24*$B$28 -> 20799.34618 | H28: =H24*$B$28 -> 325856.4234 | J28: =J24*$B$28 -> 19932.70675 | K28: =K24*$B$28 -> 312279.0724 | M28: =M24*$B$28 -> 19066.06733 | N28: =N24*$B$28 -> 298701.7215 | P28: =P24*$B$28 -> 18199.4279 | Q28: =Q24*$B$28 -> 285124.3705 | S28: =S24*$B$28 -> 17332.78848 | T28: =T24*$B$28 -> 271547.0195 | V28: =V24*$B$28 -> 16466.14906 | W28: =W24*$B$28 -> 257969.6685 | Y28: =Y24*$B$28 -> 15599.50963 | Z28: =Z24*$B$28 -> 244392.3176 | AB28: =AB24*$B$28 -> 14732.87021 | AC28: =AC24*$B$28 -> 230814.9666
A29: Deemed Equity | B29: =+'App.2-OA Capital Structure'!E27 -> 0.4 | D29: =D24*$B$29 -> 7583.09496 | E29: =E24*$B$29 -> 118801.821 | G29: =G24*$B$29 -> 14856.67584 | H29: =H24*$B$29 -> 232754.5882 | J29: =J24*$B$29 -> 14237.64768 | K29: =K24*$B$29 -> 223056.4803 | M29: =M24*$B$29 -> 13618.61952 | N29: =N24*$B$29 -> 213358.3725 | P29: =P24*$B$29 -> 12999.59136 | Q29: =Q24*$B$29 -> 203660.2646 | S29: =S24*$B$29 -> 12380.5632 | T29: =T24*$B$29 -> 193962.1568 | V29: =V24*$B$29 -> 11761.53504 | W29: =W24*$B$29 -> 184264.049 | Y29: =Y24*$B$29 -> 11142.50688 | Z29: =Z24*$B$29 -> 174565.9411 | AB29: =AB24*$B$29 -> 10523.47872 | AC29: =AC24*$B$29 -> 164867.8333
A31: ST Interest | B31: 0.0207 | D31: =D27*$B31 -> 15.69700657 | E31: 245.9197696 | G31: =G27*$B31 -> 30.75331899 | H31: 481.8019975 | J31: =J27*$B31 -> 29.4719307 | K31: 461.7269143 | M31: =M27*$B31 -> 28.19054241 | N31: 441.651831 | P31: =P27*$B31 -> 26.90915412 | Q31: 421.5767478 | S31: =S27*$B31 -> 25.62776582 | T31: 401.5016646 | V31: =V27*$B31 -> 24.34637753 | W31: 381.4265813 | Y31: =Y27*$B31 -> 23.06498924 | Z31: 361.3514981 | AB31: =AB27*$B31 -> 21.78360095 | AC31: 341.2764149
A32: LT Interest | B32: 0.0153 | D32: 162.429894 | E32: 2544.735007 | G32: 318.2299965 | H32: 4985.603278 | J32: 304.9704133 | K32: 4777.869808 | M32: 291.7108301 | N32: 4570.136339 | P32: 278.4512469 | Q32: 4362.402869 | S32: 265.1916637 | T32: 4154.669399 | V32: 251.9320806 | W32: 3946.935929 | Y32: 238.6724974 | Z32: 3739.202459 | AB32: 225.4129142 | AC32: 3531.468989
A33: ROE | B33: 0.07 | D33: 530.8166472 | E33: 8316.127473 | G33: 1039.967309 | H33: 16292.82117 | J33: 996.6353376 | K33: 15613.95362 | M33: 953.3033664 | N33: 14935.08607 | P33: 909.9713952 | Q33: 14256.21852 | S33: 866.639424 | T33: 13577.35098 | V33: 823.3074528 | W33: 12898.48343 | Y33: 779.9754816 | Z33: 12219.61588 | AB33: 736.6435104 | AC33: 11540.74833
A34: Cost of Capital Total | D34: =SUM(D31:D33) -> 708.9435478 | E34: =SUM(E31:E33) -> 11106.78225 | G34: =SUM(G31:G33) -> 1388.950624 | H34: =SUM(H31:H33) -> 21760.22645 | J34: =SUM(J31:J33) -> 1331.077682 | K34: =SUM(K31:K33) -> 20853.55035 | M34: =SUM(M31:M33) -> 1273.204739 | N34: =SUM(N31:N33) -> 19946.87424 | P34: =SUM(P31:P33) -> 1215.331796 | Q34: =SUM(Q31:Q33) -> 19040.19814 | S34: =SUM(S31:S33) -> 1157.458854 | T34: =SUM(T31:T33) -> 18133.52204 | V34: =SUM(V31:V33) -> 1099.585911 | W34: =SUM(W31:W33) -> 17226.84594 | Y34: =SUM(Y31:Y33) -> 1041.712968 | Z34: =SUM(Z31:Z33) -> 16320.16984 | AB34: =SUM(AB31:AB33) -> 983.8400255 | AC34: =SUM(AC31:AC33) -> 15413.49373
A36: OM&A | D36: =D21+D22 -> 0 | E36: =E22 -> 0 | G36: =G21+G22 -> 0 | H36: =H22 -> 0 | J36: =J21+J22 -> 0 | K36: =K22 -> 0 | M36: =M21+M22 -> 0 | N36: =N22 -> 0 | P36: =P21+P22 -> 0 | Q36: =Q22 -> 0 | S36: =S21+S22 -> 0 | T36: =T22 -> 0 | V36: =V21+V22 -> 0 | W36: =W22 -> 0 | Y36: =Y21+Y22 -> 0 | Z36: =Z22 -> 0 | AB36: =AB21+AB22 -> 0 | AC36: =AC22 -> 0
A37: Amortization | C37: =D77 -> 12896.42 | D37: =C37*D$19 -> 773.7852 | E37: =C37*E$19 -> 12122.6348 | F37: =E77 -> 0 | G37: =F37*G$19 -> 0 | H37: =F37*H$19 -> 0 | I37: =F77 -> 0 | J37: =I37*J$19 -> 0 | K37: =I37*K$19 -> 0 | L37: =G77 -> 0 | M37: =L37*M$19 -> 0 | N37: =L37*N$19 -> 0 | O37: =H77 -> 0 | P37: =O37*P$19 -> 0 | Q37: =O37*Q$19 -> 0 | R37: =I76+I77 -> 25792.84 | S37: =R37*S$19 -> 1547.5704 | T37: =R37*T$19 -> 24245.2696 | U37: =J76+J77 -> 25792.84 | V37: =U37*V$19 -> 1547.5704 | W37: =U37*W$19 -> 24245.2696 | X37: =K76+K77 -> 25792.84 | Y37: =X37*Y$19 -> 1547.5704 | Z37: =X37*Z$19 -> 24245.2696 | AA37: =L76+L77 -> 25792.84 | AB37: =AA37*AB$19 -> 1547.5704 | AC37: =AA37*AC$19 -> 24245.2696
A38: Grossed-up PILs | D38: =D65 -> -87.60090679 | E38: =E65 -> -1372.414206 | G38: =G65 -> 0 | H38: =H65 -> 0 | J38: =J65 -> 0 | K38: =K65 -> 0 | M38: =M65 -> 0 | N38: =N65 -> 0 | P38: =P65 -> 0 | Q38: =Q65 -> 0 | S38: =S65 -> 0 | T38: =T65 -> 0 | V38: =V65 -> 0 | W38: =W65 -> 0 | Y38: =Y65 -> 0 | Z38: =Z65 -> 0 | AB38: =AB65 -> 0 | AC38: =AC65 -> 0
A40: Revenue Requirement | D40: =SUM(D34:D38) -> 1395.127841 | E40: =SUM(E34:E38) -> 21857.00284 | G40: =SUM(G34:G38) -> 1388.950624 | H40: =SUM(H34:H38) -> 21760.22645 | J40: =SUM(J34:J38) -> 1331.077682 | K40: =SUM(K34:K38) -> 20853.55035 | M40: =SUM(M34:M38) -> 1273.204739 | N40: =SUM(N34:N38) -> 19946.87424 | P40: =SUM(P34:P38) -> 1215.331796 | Q40: =SUM(Q34:Q38) -> 19040.19814 | S40: =SUM(S34:S38) -> 2705.029254 | T40: =SUM(T34:T38) -> 42378.79164 | V40: =SUM(V34:V38) -> 2647.156311 | W40: =SUM(W34:W38) -> 41472.11554 | Y40: =SUM(Y34:Y38) -> 2589.283368 | Z40: =SUM(Z34:Z38) -> 40565.43944 | AB40: =SUM(AB34:AB38) -> 2531.410426 | AC40: =SUM(AC34:AC38) -> 39658.76333
A43: Provincial Rate Protection | E43: =E40 -> 21857.00284 | H43: =H40 -> 21760.22645 | K43: =K40 -> 20853.55035 | N43: =N40 -> 19946.87424 | Q43: =Q40 -> 19040.19814 | T43: =T40 -> 42378.79164 | W43: =W40 -> 41472.11554 | Z43: =Z40 -> 40565.43944 | AC43: =AC40 -> 39658.76333
A45: Monthly Amount Paid by IESO | E45: =E43/12 -> 1821.416904 | H45: =H43/12 -> 1813.352204 | K45: =K43/12 -> 1737.795862 | N45: =N43/12 -> 1662.23952 | Q45: =Q43/12 -> 1586.683178 | T45: =T43/12 -> 3531.56597 | W45: =W43/12 -> 3456.009628 | Z45: =Z43/12 -> 3380.453286 | AC45: =AC43/12 -> 3304.896944
A47: Note 1: The difference between the actual costs of approved eligible investments and revenue received from the IESO should be recorded in a variance account. The Board may provide
A48: regulatory accounting guidance regarding a variance account either in an individual proceeding or on a generic basis.
A49: Note 2: For the 2016 Test Year, Costs and Revenues of the Direct Benefit are to be included in the test year applicant Rate Base and Revenues.
A51: PILs Calculation
D52: =C17 -> 2013 | G52: =F17 -> 2014 | J52: =I17 -> 2015 | M52: =L17 -> 2016 | P52: =O17 -> 2017 Test Year | S52: =R17 -> 2018 | V52: =U17 -> 2019 | Y52: =X17 -> 2020 | AB52: =AA17 -> 2021
A53: Income Tax | D53: Direct Benefit | E53: Provincial | G53: Direct Benefit | H53: Provincial | J53: Direct Benefit | K53: Provincial | M53: Direct Benefit | N53: Provincial | P53: Direct Benefit | Q53: Provincial | S53: Direct Benefit | T53: Provincial | V53: Direct Benefit | W53: Provincial | Y53: Direct Benefit | Z53: Provincial | AB53: Direct Benefit | AC53: Provincial
X54: Total | AA54: Total
A55: Net Income - ROE on Rate Base | D55: =D33 -> 530.8166472 | E55: =E33 -> 8316.127473 | G55: =G33 -> 1039.967309 | H55: =H33 -> 16292.82117 | J55: =J33 -> 996.6353376 | K55: =K33 -> 15613.95362 | M55: =M33 -> 953.3033664 | N55: =N33 -> 14935.08607 | P55: =P33 -> 909.9713952 | Q55: =Q33 -> 14256.21852 | S55: =S33 -> 866.639424 | T55: =T33 -> 13577.35098 | V55: =V33 -> 823.3074528 | W55: =W33 -> 12898.48343 | Y55: =Y33 -> 779.9754816 | Z55: =Z33 -> 12219.61588 | AB55: =AB33 -> 736.6435104 | AC55: =AC33 -> 11540.74833
A56: Amortization (6% DB and 94% P) | D56: =D37 -> 773.7852 | E56: =E37 -> 12122.6348 | G56: =G37 -> 0 | H56: =H37 -> 0 | J56: =J37 -> 0 | K56: =K37 -> 0 | M56: =M37 -> 0 | N56: =N37 -> 0 | P56: =P37 -> 0 | Q56: =Q37 -> 0 | S56: =S37 -> 1547.5704 | T56: =T37 -> 24245.2696 | V56: =V37 -> 1547.5704 | W56: =W37 -> 24245.2696 | Y56: =Y37 -> 1547.5704 | Z56: =Z37 -> 24245.2696 | AB56: =AB37 -> 1547.5704 | AC56: =AC37 -> 24245.2696
A57: CCA (6% DB and 94% P) | D57: =-D94*D$19 -> -1547.5704 | E57: =-D94*E$19 -> -24245.2696 | G57: =-E94*G19 -> -2971.335168 | H57: =-E94*H$19 -> -46550.91763 | J57: =-F94*J$19 -> -2733.628355 | K57: =-F94*K$19 -> -42826.84422 | M57: =-G94*M$19 -> -2514.938086 | N57: =-G94*N$19 -> -39400.69668 | P57: =-H94*P$19 -> -2313.743039 | Q57: =-H94*Q$19 -> -36248.64095 | S57: =-I94*S$19 -> -2128.643596 | T57: =-I94*T$19 -> -33348.74967 | V57: =-J94*V$19 -> -1958.352108 | W57: =-J94*W$19 -> -30680.8497 | Y57: =-K94*Y$19 -> -1801.68394 | Z57: =-K94*Z$19 -> -28226.38172 | AB57: =-L94*AB$19 -> -1657.549225 | AC57: =-L94*AC$19 -> -25968.27119
A58: Taxable income | D58: =SUM(D55:D57) -> -242.9685528 | E58: =SUM(E55:E57) -> -3806.507327 | G58: =SUM(G55:G57) -> -1931.367859 | H58: =SUM(H55:H57) -> -30258.09646 | J58: =SUM(J55:J57) -> -1736.993017 | K58: =SUM(K55:K57) -> -27212.8906 | M58: =SUM(M55:M57) -> -1561.63472 | N58: =SUM(N55:N57) -> -24465.61061 | P58: =SUM(P55:P57) -> -1403.771644 | Q58: =SUM(Q55:Q57) -> -21992.42242 | S58: =SUM(S55:S57) -> 285.5662278 | T58: =SUM(T55:T57) -> 4473.870903 | V58: =SUM(V55:V57) -> 412.5257443 | W58: =SUM(W55:W57) -> 6462.903328 | Y58: =SUM(Y55:Y57) -> 525.8619418 | Z58: =SUM(Z55:Z57) -> 8238.503755 | AB58: =SUM(AB55:AB57) -> 626.6646858 | AC58: =SUM(AC55:AC57) -> 9817.746744
A60: Tax Rate (to be entered) | D60: 0.265 | E60: 0.265
A62: Income Taxes Payable | D62: =D58*D60 -> -64.38666649 | E62: =E58*E60 -> -1008.724442 | G62: =G58*G60 -> 0 | H62: =H58*H60 -> 0 | J62: =J58*J60 -> 0 | K62: =K58*K60 -> 0 | M62: =M58*M60 -> 0 | N62: =N58*N60 -> 0 | P62: =P58*P60 -> 0 | Q62: =Q58*Q60 -> 0 | S62: =S58*S60 -> 0 | T62: =T58*T60 -> 0 | V62: =V58*V60 -> 0 | W62: =W58*W60 -> 0 | Y62: =Y58*Y60 -> 0 | Z62: =Z58*Z60 -> 0 | AB62: =AB58*AB60 -> 0 | AC62: =AC58*AC60 -> 0
A63: Gross Up
A64: Income Taxes Payable | D64: =D62/(1-D60) -> -87.60090679 | E64: =E62/(1-E60) -> -1372.414206 | G64: =G62/(1-G60) -> 0 | H64: =H62/(1-H60) -> 0 | J64: =J62/(1-J60) -> 0 | K64: =K62/(1-K60) -> 0 | M64: =M62/(1-M60) -> 0 | N64: =N62/(1-N60) -> 0 | P64: =P62/(1-P60) -> 0 | Q64: =Q62/(1-Q60) -> 0 | S64: =S62/(1-S60) -> 0 | T64: =T62/(1-T60) -> 0 | V64: =V62/(1-V60) -> 0 | W64: =W62/(1-W60) -> 0 | Y64: =Y62/(1-Y60) -> 0 | Z64: =Z62/(1-Z60) -> 0 | AB64: =AB62/(1-AB60) -> 0 | AC64: =AC62/(1-AC60) -> 0
A65: Grossed Up PILs | D65: =SUM(D64:D64) -> -87.60090679 | E65: =SUM(E64:E64) -> -1372.414206 | G65: =SUM(G64:G64) -> 0 | H65: =SUM(H64:H64) -> 0 | J65: =SUM(J64:J64) -> 0 | K65: =SUM(K64:K64) -> 0 | M65: =SUM(M64:M64) -> 0 | N65: =SUM(N64:N64) -> 0 | P65: =SUM(P64:P64) -> 0 | Q65: =SUM(Q64:Q64) -> 0 | S65: =SUM(S64:S64) -> 0 | T65: =SUM(T64:T64) -> 0 | V65: =SUM(V64:V64) -> 0 | W65: =SUM(W64:W64) -> 0 | Y65: =SUM(Y64:Y64) -> 0 | Z65: =SUM(Z64:Z64) -> 0 | AB65: =SUM(AB64:AB64) -> 0 | AC65: =SUM(AC64:AC64) -> 0
D68: =E68-1 -> 2013 | E68: =F68-1 -> 2014 | F68: =G68-1 -> 2015 | G68: =H68-1 -> 2016 | H68: =TestYear -> 2017 | I68: =H68+1 -> 2018 | J68: =I68+1 -> 2019 | K68: =J68+1 -> 2020 | L68: =K68+1 -> 2021
A69: Net Fixed Assets
B70: Enter applicable amortization in years: | C70: 25
A71: Opening Gross Fixed Assets | E71: =D73 -> 644821 | F71: 644821 | G71: 644821 | H71: 644821 | I71: 644821 | J71: 644821 | K71: 644821 | L71: 644821
A72: Gross Capital Additions | D72: ='App.2-FA Proposed REG Invest.'!C62 -> 644821 | E72: ='App.2-FA Proposed REG Invest.'!D62 -> 0 | F72: ='App.2-FA Proposed REG Invest.'!E62 -> 0 | G72: ='App.2-FA Proposed REG Invest.'!F62 -> 0 | H72: ='App.2-FA Proposed REG Invest.'!G62 -> 0 | I72: ='App.2-FA Proposed REG Invest.'!H62 -> 0 | J72: ='App.2-FA Proposed REG Invest.'!I62 -> 0 | K72: ='App.2-FA Proposed REG Invest.'!J62 -> 0 | L72: ='App.2-FA Proposed REG Invest.'!K62 -> 0
A73: Closing Gross Fixed Assets | D73: =SUM(D71:D72) -> 644821 | E73: 644821 | F73: 644821 | G73: 644821 | H73: 644821 | I73: 644821 | J73: 644821 | K73: 644821 | L73: 644821
A75: Opening Accumulated Amortization | E75: =+D78 -> 12896.42 | F75: =E78 -> 38689.26 | G75: 64482.1 | H75: 90274.94 | I75: 116067.78 | J75: 141860.62 | K75: 167653.46 | L75: 193446.3
A76: Current Year Amortization (before additions) | D76: =IF(ISERROR(D71/$C$70), 0, D71/$C$70) -> 0 | E76: 25792.84 | F76: 25792.84 | G76: 25792.84 | H76: 25792.84 | I76: 25792.84 | J76: 25792.84 | K76: 25792.84 | L76: 25792.84
A77: Additions (half year) | D77: =D72/$C$70/2 -> 12896.42 | E77: =E72/$C$70/2 -> 0 | F77: =F72/$C$70/2 -> 0 | G77: =G72/$C$70/2 -> 0 | H77: =H72/$C$70/2 -> 0 | I77: =I72/C70/2 -> 0 | J77: =J72/C70/2 -> 0 | K77: =K72/C70/2 -> 0 | L77: =L72/C70/2 -> 0
A78: Closing Accumulated Amortization | D78: =SUM(D75+D76+D77) -> 12896.42 | E78: =SUM(E75+E76+E77) -> 38689.26 | F78: =SUM(F75+F76+F77) -> 64482.1 | G78: =SUM(G75+G76+G77) -> 90274.94 | H78: =SUM(H75+H76+H77) -> 116067.78 | I78: =SUM(I75:I77) -> 141860.62 | J78: =SUM(J75:J77) -> 167653.46 | K78: =SUM(K75:K77) -> 193446.3 | L78: =SUM(L75:L77) -> 219239.14
A80: Opening Net Fixed Assets | D80: =D71-D75 -> 0 | E80: =E71-E75 -> 631924.58 | F80: =F71-F75 -> 606131.74 | G80: =G71-G75 -> 580338.9 | H80: =H71-H75 -> 554546.06 | I80: =H81 -> 528753.22 | J80: =I81 -> 502960.38 | K80: =J81 -> 477167.54 | L80: =K81 -> 451374.7
A81: Closing Net Fixed Assets | D81: =D73-D78 -> 631924.58 | E81: 606131.74 | F81: 580338.9 | G81: 554546.06 | H81: 528753.22 | I81: 502960.38 | J81: 477167.54 | K81: 451374.7 | L81: 425581.86
A82: Average Net Fixed Assets | D82: =SUM(D80:D81)/2 -> 315962.29 | E82: 619028.16 | F82: 593235.32 | G82: 567442.48 | H82: 541649.64 | I82: 515856.8 | J82: 490063.96 | K82: 464271.12 | L82: 438478.28
A84: UCC for PILs Calculation
D85: =D68 -> 2013 | E85: =E68 -> 2014 | F85: 2015 | G85: 2016 | H85: 2017 | I85: 2018 | J85: 2019 | K85: 2020 | L85: 2021
A87: Opening UCC | E87: =D95 -> 619028.16 | F87: 569505.9072 | G87: 523945.4346 | H87: 482029.7999 | I87: 443467.4159 | J87: 407990.0226 | K87: 375350.8208 | L87: 345322.7551
A88: Capital Additions (from Appendix 2-FA) | D88: =D72 -> 644821 | E88: 0 | F88: 0 | G88: 0 | H88: 0 | I88: 0 | J88: 0 | K88: 0 | L88: 0
A89: UCC Before Half Year Rule | D89: =SUM(D87:D88) -> 644821 | E89: 619028.16 | F89: 569505.9072 | G89: 523945.4346 | H89: 482029.7999 | I89: 443467.4159 | J89: 407990.0226 | K89: 375350.8208 | L89: 345322.7551
A90: Half Year Rule (1/2 Additions - Disposals) | D90: =D88/2 -> 322410.5 | E90: 0 | F90: 0 | G90: 0 | H90: 0 | I90: 0 | J90: 0 | K90: 0 | L90: 0
A91: Reduced UCC | D91: =D89-D90 -> 322410.5 | E91: 619028.16 | F91: 569505.9072 | G91: 523945.4346 | H91: 482029.7999 | I91: 443467.4159 | J91: 407990.0226 | K91: 375350.8208 | L91: 345322.7551
A92: CCA Rate Class (to be entered) | C92: 47 | D92: =C92 -> 47 | E92: =D92 -> 47 | F92: 47 | G92: 47 | H92: 47 | I92: 47 | J92: 47 | K92: 47 | L92: 47
A93: CCA Rate (to be entered) | C93: 0.08 | D93: =C93 -> 0.08 | E93: 0.08 | F93: 0.08 | G93: 0.08 | H93: 0.08 | I93: 0.08 | J93: 0.08 | K93: 0.08 | L93: 0.08
A94: CCA | D94: =D91*D93 -> 25792.84 | E94: 49522.2528 | F94: 45560.47258 | G94: 41915.63477 | H94: 38562.38399 | I94: 35477.39327 | J94: 32639.20181 | K94: 30028.06566 | L94: 27625.82041
A95: Closing UCC | D95: =D89-D94 -> 619028.16 | E95: 569505.9072 | F95: 523945.4346 | G95: 482029.7999 | H95: 443467.4159 | I95: 407990.0226 | J95: 375350.8208 | K95: 345322.7551 | L95: 317696.9347

Sheet App.2-FC Calc of REG Expansion
N1: File Number: | O1: =EBNUMBER -> EB-2016-0105
N2: Exhibit: | O2: 2
N3: Tab:
N4: Attachment: | O4: 2-H
N5: Page:
N7: Date: | O7: =+'App.2-AA_Capital Projects'!$H$7 -> 2016-09-09
A9: Appendix 2-FC
A10: Calculation of Renewable Generation Connection Direct Benefits/Provincial Amount: Renewable Expansion Investments
A12: This table will calculate the distributor/provincial shares of the investments entered in Part B of Appendix 2-FA.
A13: Enter values in green shaded cells: WCA percentage, debt percentages, interest rates, kWh, tax rates, amortization period, CCA Class and percentage.
A14: For historical investments, enter these variables for your last cost of service test year. For 2016 and beyond, enter variables as in the application.
A15: Rate Riders are not calculated for the Test Year as these assets and costs are already in the distributor's rate base.
D18: =G18-1 -> 2013 | G18: =J18-1 -> 2014 | J18: =M18-1 -> 2015 | M18: =BridgeYear -> 2016 | P18: =CONCATENATE(TestYear," Test Year") -> 2017 Test Year | S18: =TestYear+1 -> 2018 | T18: 2016 | V18: =S18+1 -> 2019 | Y18: =V18+1 -> 2020 | AB18: =Y18+1 -> 2021
E19: Direct Benefit | F19: Provincial | H19: Direct Benefit | I19: Provincial | K19: Direct Benefit | L19: Provincial | N19: Direct Benefit | O19: Provincial | Q19: Direct Benefit | R19: Provincial | T19: Direct Benefit | U19: Provincial | W19: Direct Benefit | X19: Provincial | Z19: Direct Benefit | AA19: Provincial | AC19: Direct Benefit | AD19: Provincial
D20: Total | E20: 0.17 | F20: 0.83 | G20: Total | H20: 0.17 | I20: 0.83 | J20: Total | K20: 0.17 | L20: 0.83 | M20: Total | N20: 0.17 | O20: 0.83 | P20: Total | Q20: 0.17 | R20: 0.83 | S20: Total | T20: 0.17 | U20: 0.83 | V20: Total | W20: 0.17 | X20: 0.83 | Y20: Total | Z20: 0.17 | AA20: 0.83 | AB20: Total | AC20: 0.17 | AD20: 0.83
A21: Net Fixed Assets (average) | D21: =D82 -> 0 | E21: =D21*E20 -> 0 | F21: =D21*F20 -> 0 | G21: =E82 -> 0 | H21: =G21*H20 -> 0 | I21: =G21*I20 -> 0 | J21: =F82 -> 0 | K21: =J21*K20 -> 0 | L21: =J21*L20 -> 0 | M21: =G82 -> 0 | N21: =M21*N20 -> 0 | O21: =M21*O20 -> 0 | P21: =H82 -> 0 | Q21: =P21*Q20 -> 0 | R21: =P21*R20 -> 0 | S21: =I82 -> 0 | T21: =S21*T20 -> 0 | U21: =S21*U20 -> 0 | V21: =J82 -> 0 | W21: =V21*W20 -> 0 | X21: =V21*X20 -> 0 | Y21: =K82 -> 0 | Z21: =Y21*Z20 -> 0 | AA21: =Y21*AA20 -> 0 | AB21: =L82 -> 0 | AC21: =AB21*AC20 -> 0 | AD21: =AB21*AD20 -> 0
A22: Incremental OM&A (on-going, N/A for Provincial Recovery) | D22: ='App.2-FA Proposed REG Invest.'!C101 -> 0 | E22: =D22 -> 0 | G22: ='App.2-FA Proposed REG Invest.'!D$101 -> 0 | H22: =G22 -> 0 | J22: ='App.2-FA Proposed REG Invest.'!E$101 -> 0 | K22: =J22 -> 0 | M22: ='App.2-FA Proposed REG Invest.'!F$101 -> 0 | N22: =M22 -> 0 | P22: ='App.2-FA Proposed REG Invest.'!G$101 -> 0 | Q22: =P22 -> 0 | S22: ='App.2-FA Proposed REG Invest.'!H$101 -> 0 | T22: =S22 -> 0 | V22: ='App.2-FA Proposed REG Invest.'!I$101 -> 0 | W22: =V22 -> 0 | Y22: ='App.2-FA Proposed REG Invest.'!J$101 -> 0 | Z22: =Y22 -> 0 | AB22: ='App.2-FA Proposed REG Invest.'!K$101 -> 0 | AC22: =AB22 -> 0
A23: Incremental OM&A (start-up, applicable for Provincial Recovery) | D23: ='App.2-FA Proposed REG Invest.'!C100 -> 0 | E23: =D23*E20 -> 0 | F23: =D23*F20 -> 0 | G23: ='App.2-FA Proposed REG Invest.'!D$100 -> 0 | H23: =G23*H20 -> 0 | I23: =G23*I20 -> 0 | J23: ='App.2-FA Proposed REG Invest.'!E$100 -> 0 | K23: =J23*K20 -> 0 | L23: =J23*L20 -> 0 | M23: ='App.2-FA Proposed REG Invest.'!F$100 -> 0 | N23: =M23*N20 -> 0 | O23: =M23*O20 -> 0 | P23: ='App.2-FA Proposed REG Invest.'!G$100 -> 0 | Q23: =P23*Q20 -> 0 | R23: =P23*R20 -> 0 | S23: ='App.2-FA Proposed REG Invest.'!H$100 -> 0 | T23: =S23*T20 -> 0 | U23: =S23*U20 -> 0 | V23: ='App.2-FA Proposed REG Invest.'!I$100 -> 0 | W23: =V23*W20 -> 0 | X23: =V23*X20 -> 0 | Y23: ='App.2-FA Proposed REG Invest.'!J$100 -> 0 | Z23: =Y23*Z20 -> 0 | AA23: =Y23*AA20 -> 0 | AB23: ='App.2-FA Proposed REG Invest.'!K$100 -> 0 | AC23: =AB23*AC20 -> 0 | AD23: =AB23*AD20 -> 0
A24: WCA | B24: 0.13 | E24: =(E22+E23)*$B$24 -> 0 | F24: =F23*$B$24 -> 0 | H24: =(H22+H23)*$B$24 -> 0 | I24: =I23*$B$24 -> 0 | K24: =(K22+K23)*$B$24 -> 0 | L24: =L23*$B$24 -> 0 | N24: =(N22+N23)*$B$24 -> 0 | O24: =O23*$B$24 -> 0 | Q24: =(Q22+Q23)*$B$24 -> 0 | R24: =R23*$B$24 -> 0 | T24: =(T22+T23)*$B$24 -> 0 | U24: =U23*$B$24 -> 0 | W24: =(W22+W23)*$B$24 -> 0 | X24: =X23*$B$24 -> 0 | Z24: =(Z22+Z23)*$B$24 -> 0 | AA24: =AA23*$B$24 -> 0 | AC24: =(AC22+AC23)*$B$24 -> 0 | AD24: =AD23*$B$24 -> 0
A25: Rate Base | E25: =SUM(E21+E24) -> 0 | F25: =SUM(F21+F24) -> 0 | H25: =SUM(H21+H24) -> 0 | I25: =SUM(I21+I24) -> 0 | K25: =SUM(K21+K24) -> 0 | L25: =SUM(L21+L24) -> 0 | N25: =SUM(N21+N24) -> 0 | O25: =SUM(O21+O24) -> 0 | Q25: =SUM(Q21+Q24) -> 0 | R25: =SUM(R21+R24) -> 0 | T25: =SUM(T21+T24) -> 0 | U25: =SUM(U21+U24) -> 0 | W25: =SUM(W21+W24) -> 0 | X25: =SUM(X21+X24) -> 0 | Z25: =SUM(Z21+Z24) -> 0 | AA25: =SUM(AA21+AA24) -> 0 | AC25: =SUM(AC21+AC24) -> 0 | AD25: =SUM(AD21+AD24) -> 0
A28: Deemed ST Debt | B28: 0.04 | E28: =E25*$B$28 -> 0 | F28: =F25*$B$28 -> 0 | H28: =H25*$B$28 -> 0 | I28: =I25*$B$28 -> 0 | K28: =K25*$B$28 -> 0 | L28: =L25*$B$28 -> 0 | N28: =N25*$B$28 -> 0 | O28: =O25*$B$28 -> 0 | Q28: =Q25*$B$28 -> 0 | R28: =R25*$B$28 -> 0 | T28: =T25*$B$28 -> 0 | U28: =U25*$B$28 -> 0 | W28: =W25*$B$28 -> 0 | X28: =X25*$B$28 -> 0 | Z28: =Z25*$B$28 -> 0 | AA28: =AA25*$B$28 -> 0 | AC28: =AC25*$B$28 -> 0 | AD28: =AD25*$B$28 -> 0
A29: Deemed LT Debt | B29: 0.56 | E29: =E25*$B$29 -> 0 | F29: =F25*$B$29 -> 0 | H29: =H25*$B$29 -> 0 | I29: =I25*$B$29 -> 0 | K29: =K25*$B$29 -> 0 | L29: =L25*$B$29 -> 0 | N29: =N25*$B$29 -> 0 | O29: =O25*$B$29 -> 0 | Q29: =Q25*$B$29 -> 0 | R29: =R25*$B$29 -> 0 | T29: =T25*$B$29 -> 0 | U29: =U25*$B$29 -> 0 | W29: =W25*$B$29 -> 0 | X29: =X25*$B$29 -> 0 | Z29: =Z25*$B$29 -> 0 | AA29: =AA25*$B$29 -> 0 | AC29: =AC25*$B$29 -> 0 | AD29: =AD25*$B$29 -> 0
A30: Deemed Equity | B30: 0.4 | E30: =E25*$B$30 -> 0 | F30: =F25*$B$30 -> 0 | H30: =H25*$B$30 -> 0 | I30: =I25*$B$30 -> 0 | K30: =K25*$B$30 -> 0 | L30: =L25*$B$30 -> 0 | N30: =N25*$B$30 -> 0 | O30: =O25*$B$30 -> 0 | Q30: =Q25*$B$30 -> 0 | R30: =R25*$B$30 -> 0 | T30: =T25*$B$30 -> 0 | U30: =U25*$B$30 -> 0 | W30: =W25*$B$30 -> 0 | X30: =X25*$B$30 -> 0 | Z30: =Z25*$B$30 -> 0 | AA30: =AA25*$B$30 -> 0 | AC30: =AC25*$B$30 -> 0 | AD30: =AD25*$B$30 -> 0
A32: ST Interest | B32: 0.0207 | E32: =E28*$B$32 -> 0 | F32: =F28*$B$32 -> 0 | H32: =H28*$B$32 -> 0 | I32: =I28*$B$32 -> 0 | K32: =K28*$B$32 -> 0 | L32: =L28*$B$32 -> 0 | N32: =N28*$B$32 -> 0 | O32: =O28*$B$32 -> 0 | Q32: =Q28*$B$32 -> 0 | R32: =R28*$B$32 -> 0 | T32: =T28*$B$32 -> 0 | U32: =U28*$B$32 -> 0 | W32: =W28*$B$32 -> 0 | X32: =X28*$B$32 -> 0 | Z32: =Z28*$B$32 -> 0 | AA32: =AA28*$B$32 -> 0 | AC32: =AC28*$B$32 -> 0 | AD32: =AD28*$B$32 -> 0
A33: LT Interest | B33: 0.0153 | E33: =E29*$B$33 -> 0 | F33: =F29*$B$33 -> 0 | H33: =H29*$B$33 -> 0 | I33: =I29*$B$33 -> 0 | K33: =K29*$B$33 -> 0 | L33: =L29*$B$33 -> 0 | N33: =N29*$B$33 -> 0 | O33: =O29*$B$33 -> 0 | Q33: =Q29*$B$33 -> 0 | R33: =R29*$B$33 -> 0 | T33: =T29*$B$33 -> 0 | U33: =U29*$B$33 -> 0 | W33: =W29*$B$33 -> 0 | X33: =X29*$B$33 -> 0 | Z33: =Z29*$B$33 -> 0 | AA33: =AA29*$B$33 -> 0 | AC33: =AC29*$B$33 -> 0 | AD33: =AD29*$B$33 -> 0
A34: ROE | B34: 0.07 | E34: =E30*$B$34 -> 0 | F34: =F30*$B$34 -> 0 | H34: =H30*$B$34 -> 0 | I34: =I30*$B$34 -> 0 | K34: =K30*$B$34 -> 0 | L34: =L30*$B$34 -> 0 | N34: =N30*$B$34 -> 0 | O34: =O30*$B$34 -> 0 | Q34: =Q30*$B$34 -> 0 | R34: =R30*$B$34 -> 0 | T34: =T30*$B$34 -> 0 | U34: =U30*$B$34 -> 0 | W34: =W30*$B$34 -> 0 | X34: =X30*$B$34 -> 0 | Z34: =Z30*$B$34 -> 0 | AA34: =AA30*$B$34 -> 0 | AC34: =AC30*$B$34 -> 0 | AD34: =AD30*$B$34 -> 0
A35: Cost of Capital Total | E35: =SUM(E32:E34) -> 0 | F35: =SUM(F32:F34) -> 0 | H35: =SUM(H32:H34) -> 0 | I35: =SUM(I32:I34) -> 0 | K35: =SUM(K32:K34) -> 0 | L35: =SUM(L32:L34) -> 0 | N35: =SUM(N32:N34) -> 0 | O35: =SUM(O32:O34) -> 0 | Q35: =SUM(Q32:Q34) -> 0 | R35: =SUM(R32:R34) -> 0 | T35: =SUM(T32:T34) -> 0 | U35: =SUM(U32:U34) -> 0 | W35: =SUM(W32:W34) -> 0 | X35: =SUM(X32:X34) -> 0 | Z35: =SUM(Z32:Z34) -> 0 | AA35: =SUM(AA32:AA34) -> 0 | AC35: =SUM(AC32:AC34) -> 0 | AD35: =SUM(AD32:AD34) -> 0
A37: OM&A | E37: =E22+E23 -> 0 | F37: =F23 -> 0 | H37: =H22+H23 -> 0 | I37: =I23 -> 0 | K37: =K22+K23 -> 0 | L37: =L23 -> 0 | N37: =N22+N23 -> 0 | O37: =O23 -> 0 | Q37: =Q22+Q23 -> 0 | R37: =R23 -> 0 | T37: =T22+T23 -> 0 | U37: =U23 -> 0 | W37: =W22+W23 -> 0 | X37: =X23 -> 0 | Z37: =Z22+Z23 -> 0 | AA37: =AA23 -> 0 | AC37: =AC22+AC23 -> 0 | AD37: =AD23 -> 0
A38: Amortization | D38: =D78 -> 0 | E38: =D38*E$20 -> 0 | F38: =D38*F$20 -> 0 | G38: =E78 -> 0 | H38: =G38*H$20 -> 0 | I38: =G38*I$20 -> 0 | J38: =F78 -> 0 | K38: =J38*K$20 -> 0 | L38: =J38*L$20 -> 0 | M38: =G78 -> 0 | N38: =M38*N$20 -> 0 | O38: =M38*O$20 -> 0 | P38: =H76+H77 -> 0 | Q38: =P38*Q$20 -> 0 | R38: =P38*R$20 -> 0 | S38: =I76+I77 -> 0 | T38: =S38*T$20 -> 0 | U38: =S38*U$20 -> 0 | V38: =J76+J77 -> 0 | W38: =V38*W$20 -> 0 | X38: =V38*X$20 -> 0 | Y38: =K76+K77 -> 0 | Z38: =Y38*Z$20 -> 0 | AA38: =Y38*AA$20 -> 0 | AB38: =L76+L77 -> 0 | AC38: =AB38*AC$20 -> 0 | AD38: =AB38*AD$20 -> 0
A39: Grossed-up PILs | E39: =E66 -> 0 | F39: =F66 -> 0 | H39: =H66 -> 0 | I39: =I66 -> 0 | K39: =K66 -> 0 | L39: =L66 -> 0 | N39: =N66 -> 0 | O39: =O66 -> 0 | Q39: =Q66 -> 0 | R39: =R66 -> 0 | T39: =T66 -> 0 | U39: =U66 -> 0 | W39: =W66 -> 0 | X39: =X66 -> 0 | Z39: =Z66 -> 0 | AA39: =AA66 -> 0 | AC39: =AC66 -> 0 | AD39: =AD66 -> 0
A41: Revenue Requirement | E41: =SUM(E35:E39) -> 0 | F41: =SUM(F35:F39) -> 0 | H41: =SUM(H35:H39) -> 0 | I41: =SUM(I35:I39) -> 0 | K41: =SUM(K35:K39) -> 0 | L41: =SUM(L35:L39) -> 0 | N41: =SUM(N35:N39) -> 0 | O41: =SUM(O35:O39) -> 0 | Q41: =SUM(Q35:Q39) -> 0 | R41: =SUM(R35:R39) -> 0 | T41: =SUM(T35:T39) -> 0 | U41: =SUM(U35:U39) -> 0 | W41: =SUM(W35:W39) -> 0 | X41: =SUM(X35:X39) -> 0 | Z41: =SUM(Z35:Z39) -> 0 | AA41: =SUM(AA35:AA39) -> 0 | AC41: =SUM(AC35:AC39) -> 0 | AD41: =SUM(AD35:AD39) -> 0
A44: Provincial Rate Protection | F44: =F41 -> 0 | I44: =I41 -> 0 | L44: =L41 -> 0 | O44: =O41 -> 0 | R44: =R41 -> 0 | U44: =U41 -> 0 | X44: =X41 -> 0 | AA44: =AA41 -> 0 | AD44: =AD41 -> 0
A46: Monthly Amount Paid by IESO | F46: =F44/12 -> 0 | I46: =I44/12 -> 0 | L46: =L44/12 -> 0 | O46: =O44/12 -> 0 | R46: =R44/12 -> 0 | U46: =U44/12 -> 0 | X46: =X44/12 -> 0 | AA46: =AA44/12 -> 0 | AD46: =AD44/12 -> 0
A48: Note 1: The difference between the actual costs of approved eligible investments and revenue received from the IESO should be recorded in a variance account. The Board may provide
A49: regulatory accounting guidance regarding a variance account either in an individual proceeding or on a generic basis.
A50: Note 2: For the 2016 Test Year, Costs and Revenues of the Direct Benefit are to be included in the test year applicant Rate Base and Revenues.
A52: PILs Calculation
E53: =D18 -> 2013 | H53: =G18 -> 2014 | K53: =J18 -> 2015 | N53: =M18 -> 2016 | Q53: =P18 -> 2017 Test Year | T53: =S18 -> 2018 | W53: =V18 -> 2019 | Z53: =Y18 -> 2020 | AC53: =AB18 -> 2021
A54: Income Tax | E54: Direct Benefit | F54: Provincial | H54: Direct Benefit | I54: Provincial | K54: Direct Benefit | L54: Provincial | N54: Direct Benefit | O54: Provincial | Q54: Direct Benefit | R54: Provincial | T54: Direct Benefit | U54: Provincial | W54: Direct Benefit | X54: Provincial | Z54: Direct Benefit | AA54: Provincial | AC54: Direct Benefit | AD54: Provincial
V55: Total | Y55: Total | AB55: Total
A56: Net Income - ROE on Rate Base | E56: =E34 -> 0 | F56: =F34 -> 0 | H56: =H34 -> 0 | I56: =I34 -> 0 | K56: =K34 -> 0 | L56: =L34 -> 0 | N56: =N34 -> 0 | O56: =O34 -> 0 | Q56: =Q34 -> 0 | R56: =R34 -> 0 | T56: =T34 -> 0 | U56: =U34 -> 0 | W56: =W34 -> 0 | X56: =X34 -> 0 | Z56: =Z34 -> 0 | AA56: =AA34 -> 0 | AC56: =AC34 -> 0 | AD56: =AD34 -> 0
A57: Amortization (17% DB and 83% P) | E57: =E38 -> 0 | F57: =F38 -> 0 | H57: =H38 -> 0 | I57: =I38 -> 0 | K57: =K38 -> 0 | L57: =L38 -> 0 | N57: =N38 -> 0 | O57: =O38 -> 0 | Q57: =Q38 -> 0 | R57: =R38 -> 0 | T57: =T38 -> 0 | U57: =U38 -> 0 | W57: =W38 -> 0 | X57: =X38 -> 0 | Z57: =Z38 -> 0 | AA57: =AA38 -> 0 | AC57: =AC38 -> 0 | AD57: =AD38 -> 0
A58: CCA (17% DB and 83% P) | E58: =-D94*E$20 -> 0 | F58: =-D94*F$20 -> 0 | H58: =-E94*H$20 -> 0 | I58: =-E94*I$20 -> 0 | K58: =-F94*K$20 -> 0 | L58: =-F94*L$20 -> 0 | N58: =-G94*N$20 -> 0 | O58: =-G94*O$20 -> 0 | Q58: =-H94*Q$20 -> 0 | R58: =-H94*R$20 -> 0 | T58: =-I94*T$20 -> 0 | U58: =-I94*U$20 -> 0 | W58: =-J94*W$20 -> 0 | X58: =-J94*X$20 -> 0 | Z58: =-K94*Z$20 -> 0 | AA58: =-K94*AA$20 -> 0 | AC58: =-L94*AC$20 -> 0 | AD58: =-L94*AD$20 -> 0
A59: Taxable income | E59: =SUM(E56:E58) -> 0 | F59: =SUM(F56:F58) -> 0 | H59: =SUM(H56:H58) -> 0 | I59: =SUM(I56:I58) -> 0 | K59: =SUM(K56:K58) -> 0 | L59: =SUM(L56:L58) -> 0 | N59: =SUM(N56:N58) -> 0 | O59: =SUM(O56:O58) -> 0 | Q59: =SUM(Q56:Q58) -> 0 | R59: =SUM(R56:R58) -> 0 | T59: =SUM(T56:T58) -> 0 | U59: =SUM(U56:U58) -> 0 | W59: =SUM(W56:W58) -> 0 | X59: =SUM(X56:X58) -> 0 | Z59: =SUM(Z56:Z58) -> 0 | AA59: =SUM(AA56:AA58) -> 0 | AC59: =SUM(AC56:AC58) -> 0 | AD59: =SUM(AD56:AD58) -> 0
A61: Tax Rate (to be entered)
A63: Income Taxes Payable | E63: =E59*E61 -> 0 | F63: =F59*F61 -> 0 | H63: =H59*H61 -> 0 | I63: =I59*I61 -> 0 | K63: =K59*K61 -> 0 | L63: =L59*L61 -> 0 | N63: =N59*N61 -> 0 | O63: =O59*O61 -> 0 | Q63: =Q59*Q61 -> 0 | R63: =R59*R61 -> 0 | T63: =T59*T61 -> 0 | U63: =U59*U61 -> 0 | W63: =W59*W61 -> 0 | X63: =X59*X61 -> 0 | Z63: =Z59*Z61 -> 0 | AA63: =AA59*AA61 -> 0 | AC63: =AC59*AC61 -> 0 | AD63: =AD59*AD61 -> 0
A64: Gross Up
A65: Income Taxes Payable | E65: =E63/(1-E61) -> 0 | F65: =F63/(1-F61) -> 0 | H65: =H63/(1-H61) -> 0 | I65: =I63/(1-I61) -> 0 | K65: =K63/(1-K61) -> 0 | L65: =L63/(1-L61) -> 0 | N65: =N63/(1-N61) -> 0 | O65: =O63/(1-O61) -> 0 | Q65: =Q63/(1-Q61) -> 0 | R65: =R63/(1-R61) -> 0 | T65: =T63/(1-T61) -> 0 | U65: =U63/(1-U61) -> 0 | W65: =W63/(1-W61) -> 0 | X65: =X63/(1-X61) -> 0 | Z65: =Z63/(1-Z61) -> 0 | AA65: =AA63/(1-AA61) -> 0 | AC65: =AC63/(1-AC61) -> 0 | AD65: =AD63/(1-AD61) -> 0
A66: Grossed Up PILs | E66: =SUM(E65:E65) -> 0 | F66: =SUM(F65:F65) -> 0 | H66: =SUM(H65:H65) -> 0 | I66: =SUM(I65:I65) -> 0 | K66: =SUM(K65:K65) -> 0 | L66: =SUM(L65:L65) -> 0 | N66: =SUM(N65:N65) -> 0 | O66: =SUM(O65:O65) -> 0 | Q66: =SUM(Q65:Q65) -> 0 | R66: =SUM(R65:R65) -> 0 | T66: =SUM(T65:T65) -> 0 | U66: =SUM(U65:U65) -> 0 | W66: =SUM(W65:W65) -> 0 | X66: =SUM(X65:X65) -> 0 | Z66: =SUM(Z65:Z65) -> 0 | AA66: =SUM(AA65:AA65) -> 0 | AC66: =SUM(AC65:AC65) -> 0 | AD66: =SUM(AD65:AD65) -> 0
A69: Net Fixed Assets | D69: 2011 | E69: 2012 | F69: 2013 | G69: 2014 | H69: 2015 | I69: 2016 | J69: 2017 | K69: 2018 | L69: 2019
B70: Enter applicable amortization in years: | C70: 25
A71: Opening Gross Fixed Assets | E71: =D73 -> 0 | F71: 0 | G71: 0 | H71: 0 | I71: 0 | J71: 0 | K71: 0 | L71: 0
A72: Gross Capital Additions | D72: ='App.2-FA Proposed REG Invest.'!C99 -> 0 | E72: ='App.2-FA Proposed REG Invest.'!D99 -> 0 | F72: ='App.2-FA Proposed REG Invest.'!E99 -> 0 | G72: ='App.2-FA Proposed REG Invest.'!F99 -> 0 | H72: ='App.2-FA Proposed REG Invest.'!G99 -> 0 | I72: ='App.2-FA Proposed REG Invest.'!H99 -> 0 | J72: ='App.2-FA Proposed REG Invest.'!I99 -> 0 | K72: ='App.2-FA Proposed REG Invest.'!J99 -> 0 | L72: ='App.2-FA Proposed REG Invest.'!K99 -> 0
A73: Closing Gross Fixed Assets | D73: =SUM(D71:D72) -> 0 | E73: 0 | F73: 0 | G73: 0 | H73: 0 | I73: 0 | J73: 0 | K73: 0 | L73: 0
A75: Opening Accumulated Amortization | E75: =+D78 -> 0 | F75: =E78 -> 0 | G75: 0 | H75: 0 | I75: 0 | J75: 0 | K75: 0 | L75: 0
A76: Current Year Amortization (before additions) | E76: =IF(ISERROR(E71/$C$70), 0, E71/$C$70) -> 0 | F76: =IF(ISERROR(F71/$C$70), 0, F71/$C$70) -> 0 | G76: =IF(ISERROR(G71/$C$70), 0, G71/$C$70) -> 0 | H76: =H71/$C$70 -> 0 | I76: =I71/$C$70 -> 0 | J76: =J71/$C$70 -> 0 | K76: =K71/$C$70 -> 0 | L76: =L71/$C$70 -> 0
A77: Additions (half year) | D77: =D72/C70/2 -> 0 | E77: =E72/C70/2 -> 0 | F77: =F72/C70/2 -> 0 | G77: =G72/C70/2 -> 0 | H77: =H72/C70/2 -> 0 | I77: =I72/C70/2 -> 0 | J77: =J72/C70/2 -> 0 | K77: =K72/C70/2 -> 0 | L77: =L72/C70/2 -> 0
A78: Closing Accumulated Amortization | D78: =SUM(D75+D77) -> 0 | E78: =SUM(E75:E77) -> 0 | F78: 0 | G78: 0 | H78: 0 | I78: 0 | J78: 0 | K78: 0 | L78: 0
A80: Opening Net Fixed Assets | D80: =D71-D75 -> 0 | E80: =E71-E75 -> 0 | F80: =F71-F75 -> 0 | G80: =G71-G75 -> 0 | H80: =G81 -> 0 | I80: =H81 -> 0 | J80: =I81 -> 0 | K80: =J81 -> 0 | L80: =K81 -> 0
A81: Closing Net Fixed Assets | D81: =D73-D78 -> 0 | E81: 0 | F81: 0 | G81: 0 | H81: 0 | I81: 0 | J81: 0 | K81: 0 | L81: 0
A82: Average Net Fixed Assets | D82: =SUM(D80:D81)/2 -> 0 | E82: 0 | F82: 0 | G82: 0 | H82: 0 | I82: 0 | J82: 0 | K82: 0 | L82: 0
A84: UCC for PILs Calculation
D85: 2014 | E85: 2014 | F85: 2014 | G85: 2014 | H85: 2015 | I85: 2016 | J85: 2017 | K85: 2018 | L85: 2019
A87: Opening UCC | E87: =D95 -> 0 | F87: 0 | G87: 0 | H87: 0 | I87: 0 | J87: 0 | K87: 0 | L87: 0
A88: Capital Additions (from Appendix 2-FA) | D88: =D72 -> 0 | E88: 0 | F88: 0 | G88: 0 | H88: 0 | I88: 0 | J88: 0 | K88: 0 | L88: 0
A89: UCC Before Half Year Rule | D89: =SUM(D87:D88) -> 0 | E89: 0 | F89: 0 | G89: 0 | H89: 0 | I89: 0 | J89: 0 | K89: 0 | L89: 0
A90: Half Year Rule (1/2 Additions - Disposals) | D90: =D88/2 -> 0 | E90: 0 | F90: 0 | G90: 0 | H90: 0 | I90: 0 | J90: 0 | K90: 0 | L90: 0
A91: Reduced UCC | D91: =D89-D90 -> 0 | E91: 0 | F91: 0 | G91: 0 | H91: 0 | I91: 0 | J91: 0 | K91: 0 | L91: 0
A92: CCA Rate Class (to be entered) | C92: 47 | D92: =$C$92 -> 47 | E92: =$C$92 -> 47 | F92: 47 | G92: 47 | H92: 47 | I92: 47 | J92: 47 | K92: 47 | L92: 47
A93: CCA Rate (to be entered) | C93: 0.08 | D93: =$C$93 -> 0.08 | E93: =$C$93 -> 0.08 | F93: 0.08 | G93: 0.08 | H93: 0.08 | I93: 0.08 | J93: 0.08 | K93: 0.08 | L93: 0.08
A94: CCA | D94: =D91*D$93 -> 0 | E94: 0 | F94: 0 | G94: 0 | H94: 0 | I94: 0 | J94: 0 | K94: 0 | L94: 0
A95: Closing UCC | D95: =D89-D94 -> 0 | E95: 0 | F95: 0 | G95: 0 | H95: 0 | I95: 0 | J95: 0 | K95: 0 | L95: 0

Sheet App.2-G SQI
M1: File Number: | O1: =EBNUMBER -> EB-2016-0105
M2: Exhibit: | O2: 2
M3: Tab:
M4: Attachment: | O4: 2-I
M5: Page:
M7: Date: | O7: =+'App.2-AA_Capital Projects'!$H$7 -> 2016-09-09
A9: Appendix 2-G
A10: Service Reliability and Quality Indicators
A11: 2011 - 2015
A13: Service Reliability
M14: Not yet reportable
A15: Index | B15: Including outages caused by loss of supply | G15: Excluding outages caused by loss of supply | N15: Excluding Major Events
B16: =TestYear-6 -> 2011 | C16: =TestYear-5 -> 2012 | D16: =TestYear-4 -> 2013 | E16: =TestYear-3 -> 2014 | F16: =TestYear-2 -> 2015 | G16: =B16 -> 2011 | H16: 2012 | I16: 2013 | J16: 2014 | K16: 2015 | L16: 2011 | M16: 2012 | N16: 2013 | O16: 2014 | P16: 2015
A17: SAIDI | B17: 2.938604421 | C17: 2.79 | D17: 1.29 | E17: 1.04 | F17: 2.15 | G17: 2.600373987 | H17: 2.77 | I17: 1.28 | J17: 1.03 | K17: 1.92
A18: SAIFI | B18: 4.556261652 | C18: 3.8 | D18: 3.12 | E18: 2.14 | F18: 2.94 | G18: 3.677699807 | H18: 3.65 | I18: 3.12 | J18: 2.02 | K18: 2.68
A20: 5 Year Historical Average
A21: SAIDI | F21: =IF(ISERROR(AVERAGE(B17:F17)), "", AVERAGE(B17:F17)) -> 2.041720884 | K21: =IF(ISERROR(AVERAGE(G17:K17)), "", AVERAGE(G17:K17)) -> 1.920074797 | P21: =IF(ISERROR(AVERAGE(L17:P17)), "", AVERAGE(L17:P17)) -> 
A22: SAIFI | F22: =IF(ISERROR(AVERAGE(B18:F18)), "", AVERAGE(B18:F18)) -> 3.31125233 | K22: =IF(ISERROR(AVERAGE(G18:K18)), "", AVERAGE(G18:K18)) -> 3.029539961 | P22: =IF(ISERROR(AVERAGE(L18:P18)), "", AVERAGE(L18:P18)) -> 
A24: SAIDI = System Average Interruption Duration Index
A25: SAIFI = System Average Interruption Frequency Index
A27: Service Quality
A29: Indicator | E29: OEB Minimum Standard | G29: =B16 -> 2011 | H29: =C16 -> 2012 | I29: =D16 -> 2013 | J29: =E16 -> 2014 | K29: =F16 -> 2015
A30: Low Voltage Connections | E30: 0.9 | G30: 0.983 | H30: 0.998 | I30: 0.991 | J30: 0.998 | K30: 1
A31: High Voltage Connections | E31: 0.9 | G31: 1 | H31: 1 | I31: 1 | J31: 1 | K31: 1
A32: Telephone Accessibility | E32: 0.65 | G32: 0.927 | H32: 0.918 | I32: 0.901 | J32: 0.918 | K32: 0.871
A33: Appointments Met | E33: 0.9 | G33: 0.991 | H33: 0.919 | I33: 0.996 | J33: 0.978 | K33: 1
A34: Written Response to Enquires | E34: 0.8 | G34: 0.978 | H34: 0.973 | I34: 0.974 | J34: 0.996 | K34: 0.969
A35: Emergency Urban Response | E35: 0.8 | G35: 0.967 | H35: 0.965 | I35: 0.935 | J35: 0.976 | K35: 0.922
A36: Emergency Rural Response | E36: 0.8 | G36: 0.939 | H36: 1 | I36: 1 | J36: 1 | K36: 0.972
A37: Telephone Call Abandon Rate | E37: 0.1 | G37: 0.007 | H37: 0.01 | I37: 0.009 | J37: 0.007 | K37: 0.013
A38: Appointment Scheduling | E38: 0.9 | G38: 0.991 | H38: 0.919 | I38: 0.996 | J38: 0.978 | K38: 0.988
A39: Rescheduling a Missed Appointment | E39: 1 | G39: 1 | H39: 1 | I39: 1 | J39: 1 | K39: 1
A40: Reconnection Performance Standard | E40: 0.85 | G40: 0 | H40: 1 | I40: 1 | J40: 1 | K40: 1

Sheet App.2-H_Other_Oper_Rev
E1: File Number: | F1: =EBNUMBER -> EB-2016-0105
E2: Exhibit: | F2: 3
E3: Tab:
E4: Attachment: | F4: 3-E
E5: Page:
E7: Date: | F7: =+'App.2-AA_Capital Projects'!$H$7 -> 2016-09-09
A9: Appendix 2-H
A10: Other Operating Revenue
A12: USoA # | B12: USoA Description | C12: =E13-2 & " Actual" -> 2013 Actual | D12: =E13-1 & " Actual" -> 2014 Actual | E12: =E13 & " Actual" & CHAR(178) -> 2015 Actual² | F12: ="Bridge Year" & CHAR(178) -> Bridge Year² | G12: Test Year
C13: =D13-1 -> 2013 | D13: =E13-1 -> 2014 | E13: 2015 | F13: =BridgeYear -> 2016 | G13: =TestYear -> 2017
B14: Reporting Basis | C14: CGAAP | D14: MIFRS | E14: MIFRS | F14: MIFRS | G14: MIFRS
A15: 4235 | B15: Specific Service Charges | C15: -411161.2 | D15: -380787.52 | E15: -468930.33 | F15: -377550 | G15: -398500
A16: 4225 | B16: Late Payment Charges | C16: -287462.73 | D16: -329078.1 | E16: -326892.1 | F16: -361612 | G16: -380777
A17: 4080 | B17: SS Administration | C17: -144112.77 | D17: -143535.68 | E17: -146591.67 | F17: -151000 | G17: -148000
A18: 4082 | B18: Retail Services Revenues | C18: -33540 | D18: -28944 | E18: -24848.8 | F18: -21840 | G18: -23100
A19: 4084 | B19: Service Transaction Requests (STR) Revenues | C19: -1257.25 | D19: -594.5 | E19: -704.75 | F19: -450 | G19: -400
A20: 4205 | B20: Interdepartmental Rents | C20: 0 | D20: 0 | E20: 0 | F20: 0 | G20: 0
A21: 4210 | B21: Rent from Electric Property | C21: -490735.92 | D21: -503293.94 | E21: -501359.77 | F21: -499404 | G21: -499404
A22: 4220 | B22: Other Electric Revenues | C22: -6662.41 | D22: -7240.28 | E22: -9512.61 | F22: -7396 | G22: -16569.41
A23: 4245 | B23: Government Assistance Directly Credited to Income | C23: 0 | D23: 0 | E23: 0 | F23: 0 | G23: 0
A24: 4325 | B24: Revenues from Merchandise Jobbing, Etc. | C24: 0 | D24: 0 | E24: 0 | F24: 0 | G24: 0
A25: 4330 | B25: Costs and Expenses of Merchandising Jobbing, Etc. | C25: 0 | D25: 0 | E25: 0 | F25: 0 | G25: 0
A26: 4355 | B26: Gain on Disposition of Utility and Other Property | C26: -2741.81 | D26: -1136.94 | E26: -15352 | F26: -205313.96 | G26: -4000
A27: 4360 | B27: Loss on Disposition of Utility and Other Property | C27: 50505.41 | D27: 168776.91 | E27: 263182.95 | F27: 332057 | G27: 335217
A28: 4375 | B28: Revenues from Non-Utility Operations | C28: -89914.44 | D28: -122457.93 | E28: -119935.22 | F28: -208963 | G28: -240082
A29: 4380 | B29: Expenses of Non-Utility Operations | C29: 81044.71 | D29: 109448.01 | E29: 105583.65 | F29: 195292 | G29: 219876
A30: 4390 | B30: Miscellaneous Non-Operating Income | C30: -16562.7 | D30: -13297.97 | E30: 11983.37 | F30: -14570 | G30: -14712
A31: 4405 | B31: Interest and Dividend Income | C31: -194985.06 | D31: -138175.54 | E31: -146597.4 | F31: -79000 | G31: -77000
A33: Specific Service Charges | C33: =C15 -> -411161.2 | D33: -380787.52 | E33: -468930.33 | F33: -377550 | G33: -398500
A34: Late Payment Charges | C34: -287462.73 | D34: -329078.1 | E34: -326892.1 | F34: -361612 | G34: -380777
A35: Other Operating Revenues | C35: =SUM(C17:C19) -> -178910.02 | D35: =SUM(D17:D19) -> -173074.18 | E35: =SUM(E17:E19) -> -172145.22 | F35: =SUM(F17:F19) -> -173290 | G35: =SUM(G17:G19) -> -171500
A36: Other Income or Deductions | C36: =SUM(C20:C31) -> -670052.22 | D36: =SUM(D20:D31) -> -507377.68 | E36: -412007.03 | F36: -487297.96 | G36: -296674.41
A37: Total | C37: =SUM(C33:C36) -> -1547586.17 | D37: =SUM(D33:D36) -> -1390317.48 | E37: -1379974.68 | F37: -1399749.96 | G37: -1247451.41
A39: Description | C39: Account(s)
A40: Specific Service Charges: | C40: 4235
A41: Late Payment Charges: | C41: 4225
A42: Other Distribution Revenues: | C42: 4080, 4082, 4084, 4090, 4205, 4210, 4215, 4220, 4240, 4245
A43: Other Income and Expenses: | C43: 4305, 4310, 4315, 4320, 4325, 4330, 4335, 4340, 4345, 4350, 4355, 4360, 4365, 4370, 4375, 4380, 4385, 4390, 4395, 4398, 4405, 4415
A46: Note: Add all applicable accounts listed above to the table and include all relevant information.
A48: Account Breakdown Details
A50: For each "Other Operating Revenue" and "Other Income or Deductions" Account, a detailed breakdown of the account components is required. See the example below for Account 4405, Interest and Dividend Income.
A52: Account 4080-2: Retail Service Revenues
B53: =+$C$12 -> 2013 Actual | C53: =+$D$12 -> 2014 Actual | D53: =+$E$12 -> 2015 Actual² | E53: =+$F$12 -> Bridge Year² | F53: =+$G$12 -> Test Year
B54: =+$C$13 -> 2013 | C54: =+$D$13 -> 2014 | D54: =+$E$13 -> 2015 | E54: =+$F$13 -> 2016 | F54: =+$G$13 -> 2017
A55: Reporting Basis | B55: =+$C$14 -> CGAAP | C55: =+$D$14 -> MIFRS | D55: =+$E$14 -> MIFRS | E55: =+$F$14 -> MIFRS | F55: =+$G$14 -> MIFRS
A56: SS Administration Charge - 311 | B56: -129393.53 | C56: -129299.91 | D56: -132246.01 | E56: -136030 | F56: -133327
A57: SS Administration Charge - 313 | B57: -6 | C57: -6 | D57: -6 | E57: 0 | F57: 0
A58: SS Administration Charge - 314 | B58: -489.16 | C58: -487 | D58: -468.11 | E58: -512 | F58: -502
A59: SS Administration Charge - 315 | B59: -12911.6 | C59: -12524.91 | D59: -12760.8 | E59: -13176 | F59: -12915
A60: SS Administration Charge - 316 | B60: -1273.48 | C60: -1174.36 | D60: -1066.97 | E60: -1235 | F60: -1211
A61: SS Administration Charge - 318 | B61: -39 | C61: -43.5 | D61: -44 | E61: -47 | F61: -45
A62: Total | B62: =SUM(B56:B61) -> -144112.77 | C62: =SUM(C56:C61) -> -143535.68 | D62: -146591.89 | E62: -151000 | F62: -148000
A64: Account 4082: Retail Service Revenues
B65: =+$C$12 -> 2013 Actual | C65: =+$D$12 -> 2014 Actual | D65: =+$E$12 -> 2015 Actual² | E65: =+$F$12 -> Bridge Year² | F65: =+$G$12 -> Test Year
B66: =+$C$13 -> 2013 | C66: =+$D$13 -> 2014 | D66: =+$E$13 -> 2015 | E66: =+$F$13 -> 2016 | F66: =+$G$13 -> 2017
A67: Reporting Basis | B67: =+$C$14 -> CGAAP | C67: =+$D$14 -> MIFRS | D67: =+$E$14 -> MIFRS | E67: =+$F$14 -> MIFRS | F67: =+$G$14 -> MIFRS
A68: Service Agreement | B68: -100 | C68: -100 | D68: 0 | E68: 0 | F68: 0
A69: Service Agreement | B69: -4140 | C69: -4140 | D69: -4080 | E69: -4080 | F69: -4100
A70: Service Agreement Variable | B70: -18312.5 | C70: -15440 | D70: -12980.5 | E70: -11100 | F70: -11500
A71: Bill Ready Charge | B71: -10987.5 | C71: -9264 | D71: -7788.3 | E71: -6660 | F71: -7500
A72: Total | B72: =SUM(B68:B71) -> -33540 | C72: =SUM(C68:C71) -> -28944 | D72: =SUM(D68:D71) -> -24848.8 | E72: =SUM(E68:E71) -> -21840 | F72: =SUM(F68:F71) -> -23100
A74: Account 4084 - Service Transaction Requests (STR) Revenues
B75: 2013 Actual | C75: 2014 Actual | D75: 2015 Actual² | E75: Bridge Year² | F75: Test Year
B76: 2013 | C76: 2014 | D76: 2015 | E76: 2016 | F76: 2017
A77: Reporting Basis | B77: CGAAP | C77: MIFRS | D77: MIFRS | E77: MIFRS | F77: MIFRS
A78: Request Fee | B78: -520.25 | C78: -222.5 | D78: -190.25 | E78: -180 | F78: -150
A79: Process Fee | B79: -737 | C79: -372 | D79: -319.5 | E79: -220 | F79: -200
A80: Information Requests | B80: 0 | C80: 0 | D80: -195 | E80: -50 | F80: -50
A81: Total | B81: =SUM(B78:B80) -> -1257.25 | C81: =SUM(C78:C80) -> -594.5 | D81: =SUM(D78:D80) -> -704.75 | E81: =SUM(E78:E80) -> -450 | F81: =SUM(F78:F80) -> -400
A84: Account 4205 - Interdepartmental Rents
B85: =+$C$12 -> 2013 Actual | C85: =+$D$12 -> 2014 Actual | D85: =+$E$12 -> 2015 Actual² | E85: =+$F$12 -> Bridge Year² | F85: =+$G$12 -> Test Year
B86: =+$C$13 -> 2013 | C86: =+$D$13 -> 2014 | D86: =+$E$13 -> 2015 | E86: =+$F$13 -> 2016 | F86: =+$G$13 -> 2017
A87: Reporting Basis | B87: =+$C$14 -> CGAAP | C87: =+$D$14 -> MIFRS | D87: =+$E$14 -> MIFRS | E87: =+$F$14 -> MIFRS | F87: =+$G$14 -> MIFRS
B88: 0 | C88: 0 | D88: 0 | E88: 0 | F88: 0
A89: Total | B89: =SUM(B88:B88) -> 0 | C89: =SUM(C88:C88) -> 0 | D89: =SUM(D88:D88) -> 0 | E89: =SUM(E88:E88) -> 0 | F89: =SUM(F88:F88) -> 0
A92: Appendix 2-H
A93: Other Operating Revenue
A95: Account 4210 - Rent from Electric Property
B96: =+$C$12 -> 2013 Actual | C96: =+$D$12 -> 2014 Actual | D96: =+$E$12 -> 2015 Actual² | E96: =+$F$12 -> Bridge Year² | F96: =+$G$12 -> Test Year
B97: =+$C$13 -> 2013 | C97: =+$D$13 -> 2014 | D97: =+$E$13 -> 2015 | E97: =+$F$13 -> 2016 | F97: =+$G$13 -> 2017
A98: Reporting Basis | B98: =+$C$14 -> CGAAP | C98: =+$D$14 -> MIFRS | D98: =+$E$14 -> MIFRS | E98: =+$F$14 -> MIFRS | F98: =+$G$14 -> MIFRS
A99: Transformer/Meter
A100: Pole Line and Other Miscellaneous Rentals | B100: =-479421.49-11314 -> -490735.49 | C100: =-493804.05-9490 -> -503294.05 | D100: =-493804.04-7556 -> -501360.04 | E100: =-493804-5600 -> -499404 | F100: =-493804-5600 -> -499404
